Workbook

Sheet Start
D2: =VLOOKUP(Output!J2,Translation!A2:BE6,57,FALSE) -> Press "Start" to begin your new project. Note: you'll lose all the information related to your last selection.

Sheet Print Results
G1: VRV-Q Replacement
A4: R22 Replacement Technology - Energy simulation and running costs evaluation
A5: =Results!B4 -> Project Name
A20: Note: the following results are based on nominal conditions for UK climate | H20: =Results!E6 -> Existing Installation | I20: =Results!I6 -> VRVQ + Old IDUs | J20: =Results!M6 -> VRVQ + New IDUs | K20: Based on the latest VRV Systems
A23: Annual Running Costs | H23: =CONCATENATE(Output!A32," ",Results!E8) -> € 638.55 | I23: =IF(Results!I8=0,"N/A",CONCATENATE(Output!A32," ",Results!I8)) -> € 370.26 | J23: =CONCATENATE(Output!A32," ",Results!M8) -> € 358.82 | K23: =CONCATENATE(Output!A32," ",Results!Q8) -> € 358.82
A24: Annual Energy Savings (compared to existing installation) | I24: =IF(Results!I8=0,"N/A",Results!J8) -> 0.4201550388 | J24: =Results!N8 -> 0.4380706288 | K24: =Results!R8 -> 0.4380706288
A25: Annual CO2 Emissions (Tonnes) | H25: =Results!G8 -> 3 T | I25: =IF(Results!I8=0,"N/A",Results!K8) -> 1.7 T | J25: =Results!O8 -> 1.7 T | K25: =Results!S8 -> 1.7 T
A42: Working Conditions
D44: =Output!B1 -> hours/day | F44: =Output!B3 -> 7 | H44: =Output!F1 -> heating weeks | J44: =Output!F3 -> 15
D45: =Output!C1 -> days/week | F45: =Output!C3 -> 5 | H45: =Output!G1 -> intermediate weeks | J45: =Output!G3 -> 22
D46: =Output!D1 -> weeks/year | F46: =Output!D3 -> 51 | H46: =CONCATENATE(Output!A32,"/kWh") -> €/kWh | J46: =Output!H3 -> 0.11
D47: =Output!E1 -> cooling weeks | F47: =Output!E3 -> 14 | H47: =LOWER(Output!I1) -> carbon equivalent | J47: =Output!I3 -> 0.527
A49: We have included a minimal Variable Refrigerant Temperature effect in these calculations. In real running conditions the VRV IV performance could be better than shown.
B51: Original Equipment List
A53: =IF($B$56="Select Outdoor Unit",0,1) -> 1 | B53: Outdoor Unit | E53: Indoor Units | H53: =CONCATENATE($H$20," (kWh)") -> Existing Installation (kWh) | I53: =CONCATENATE($I$20," (kWh)") -> VRVQ + Old IDUs (kWh) | J53: =CONCATENATE($J$20," (kWh)") -> VRVQ + New IDUs (kWh) | K53: =IF(LEFT(B56,3)="RXY","VRV IV with Variable Refrigerant Temperature",IF(LEFT(B56,3)="REY","Heat Recovery VRV III",IF(LEFT(B56,4)="RSXY","VRV IV with Variable Refrigerant Temperature",IF(LEFT(B56,4)="RSEY","Heat Recovery VRV III",0)))) -> VRV IV with Variable Refrigerant Temperature
A54: =IF($B$56="Select Outdoor Unit",0,1) -> 1
A55: 1 | E55: Type | G55: Qty
A56: =IF(Output!$D$5="Select Outdoor Unit",0,IF(G56>0,1,0)) -> 0 | B56: =Results!C29 -> RSXY8K7 | E56: =Results!H29 -> Wall Mounted | G56: =Results!L29 -> 0 | H56: =Results!M29 -> 5805 | I56: =Results!P29 -> 3366 | J56: =Results!R29 -> 3262 | K56: =Results!T29 -> 3262
A57: =IF(Output!$D$5="Select Outdoor Unit",0,IF(G57>0,1,0)) -> 0 | E57: =Results!H30 -> Ceiling Mounted Cassette | G57: =Results!L30 -> 0
A58: =IF(Output!$D$5="Select Outdoor Unit",0,IF(G58>0,1,0)) -> 1 | E58: =Results!H31 -> Horizontal Ducted | G58: =Results!L31 -> 1
A59: =IF(Output!$D$5="Select Outdoor Unit",0,IF(G59>0,1,0)) -> 1 | E59: =Results!H32 -> Ceiling Suspended | G59: =Results!L32 -> 2
A60: =IF(Output!$D$5="Select Outdoor Unit",0,IF(G60>0,1,0)) -> 0 | E60: =Results!H33 -> Floor Standing | G60: =Results!L33 -> 0
A61: =IF(Output!$D$5="Select Outdoor Unit",0,IF(G61>0,1,0)) -> 0 | E61: =Results!H34 -> Concealed Floor | G61: =Results!L34 -> 0
A62: =IF($B$65="Select Outdoor Unit",0,1) -> 0 | B62: Outdoor Unit | E62: Indoor Units | H62: =CONCATENATE($H$20," (kWh)") -> Existing Installation (kWh) | I62: =CONCATENATE($I$20," (kWh)") -> VRVQ + Old IDUs (kWh) | J62: =CONCATENATE($J$20," (kWh)") -> VRVQ + New IDUs (kWh) | K62: =IF(LEFT(B65,3)="RXY","VRV IV with Variable Refrigerant Temperature",IF(LEFT(B65,3)="REY","Heat Recovery VRV III",IF(LEFT(B65,4)="RSXY","VRV IV with Variable Refrigerant Temperature",IF(LEFT(B65,4)="RSEY","Heat Recovery VRV III",0)))) -> 0
A63: =IF($B$65="Select Outdoor Unit",0,1) -> 0
A64: 0 | E64: Type | G64: Qty
A65: =IF(Output!$F$5="Select Outdoor Unit",0,IF(G65>0,1,0)) -> 0 | B65: =Results!C36 -> Select Outdoor Unit | E65: =E56 -> Wall Mounted | G65: =Results!L36 -> 0 | H65: =Results!M36 -> 0 | I65: =Results!P36 -> 0 | J65: =Results!R36 -> 0 | K65: =Results!T36 -> 0
A66: =IF(Output!$F$5="Select Outdoor Unit",0,IF(G66>0,1,0)) -> 0 | E66: Ceiling Mounted Cassette | G66: =Results!L37 -> 0
A67: =IF(Output!$F$5="Select Outdoor Unit",0,IF(G67>0,1,0)) -> 0 | E67: Horizontal Ducted | G67: =Results!L38 -> 0
A68: =IF(Output!$F$5="Select Outdoor Unit",0,IF(G68>0,1,0)) -> 0 | E68: Ceiling Suspended | G68: =Results!L39 -> 0
A69: =IF(Output!$F$5="Select Outdoor Unit",0,IF(G69>0,1,0)) -> 0 | E69: Floor Standing | G69: =Results!L40 -> 0
A70: =IF(Output!$F$5="Select Outdoor Unit",0,IF(G70>0,1,0)) -> 0 | E70: Concealed Floor | G70: =Results!L41 -> 0
A71: =IF($B$74="Select Outdoor Unit",0,1) -> 0 | B71: Outdoor Unit | E71: Indoor Units | H71: =CONCATENATE($H$20," (kWh)") -> Existing Installation (kWh) | I71: =CONCATENATE($I$20," (kWh)") -> VRVQ + Old IDUs (kWh) | J71: =CONCATENATE($J$20," (kWh)") -> VRVQ + New IDUs (kWh) | K71: =IF(LEFT(B74,3)="RXY","VRV IV with Variable Refrigerant Temperature",IF(LEFT(B74,3)="REY","Heat Recovery VRV III",IF(LEFT(B74,4)="RSXY","VRV IV with Variable Refrigerant Temperature",IF(LEFT(B74,4)="RSEY","Heat Recovery VRV III",0)))) -> 0
A72: =IF($B$74="Select Outdoor Unit",0,1) -> 0
A73: 0 | E73: Type | G73: Qty
A74: =IF(Output!$H$5="Select Outdoor Unit",0,IF(G74>0,1,0)) -> 0 | B74: =Results!C50 -> Select Outdoor Unit | E74: =E65 -> Wall Mounted | G74: =Results!L50 -> 0 | H74: =Results!M50 -> 0 | I74: =Results!P50 -> 0 | J74: =Results!R50 -> 0 | K74: =Results!T50 -> 0
A75: =IF(Output!$H$5="Select Outdoor Unit",0,IF(G75>0,1,0)) -> 0 | E75: Ceiling Mounted Cassette | G75: =Results!L51 -> 0
A76: =IF(Output!$H$5="Select Outdoor Unit",0,IF(G76>0,1,0)) -> 0 | E76: Horizontal Ducted | G76: =Results!L52 -> 0
A77: =IF(Output!$H$5="Select Outdoor Unit",0,IF(G77>0,1,0)) -> 0 | E77: Ceiling Suspended | G77: =Results!L53 -> 0
A78: =IF(Output!$H$5="Select Outdoor Unit",0,IF(G78>0,1,0)) -> 0 | E78: Floor Standing | G78: =Results!L54 -> 0
A79: =IF(Output!$H$5="Select Outdoor Unit",0,IF(G79>0,1,0)) -> 0 | E79: Concealed Floor | G79: =Results!L55 -> 0
A80: =IF($B$83="Select Outdoor Unit",0,1) -> 0 | B80: Outdoor Unit | E80: Indoor Units | H80: =CONCATENATE($H$20," (kWh)") -> Existing Installation (kWh) | I80: =CONCATENATE($I$20," (kWh)") -> VRVQ + Old IDUs (kWh) | J80: =CONCATENATE($J$20," (kWh)") -> VRVQ + New IDUs (kWh) | K80: =IF(LEFT(B83,3)="RXY","VRV IV with Variable Refrigerant Temperature",IF(LEFT(B83,3)="REY","Heat Recovery VRV III",IF(LEFT(B83,4)="RSXY","VRV IV with Variable Refrigerant Temperature",IF(LEFT(B83,4)="RSEY","Heat Recovery VRV III",0)))) -> 0
A81: =IF($B$83="Select Outdoor Unit",0,1) -> 0
A82: =IF($B$83="Select Outdoor Unit",0,1) -> 0 | E82: Type | G82: Qty
A83: =IF(Output!$J$5="Select Outdoor Unit",0,IF(G83>0,1,0)) -> 0 | B83: =Results!C57 -> Select Outdoor Unit | E83: =E74 -> Wall Mounted | G83: =Results!L57 -> 0 | H83: =Results!M57 -> 0 | I83: =Results!P57 -> 0 | J83: =Results!R57 -> 0 | K83: =Results!T57 -> 0
A84: =IF(Output!$J$5="Select Outdoor Unit",0,IF(G84>0,1,0)) -> 0 | E84: Ceiling Mounted Cassette | G84: =Results!L58 -> 0
A85: =IF(Output!$J$5="Select Outdoor Unit",0,IF(G85>0,1,0)) -> 0 | E85: Horizontal Ducted | G85: =Results!L59 -> 0
A86: =IF(Output!$J$5="Select Outdoor Unit",0,IF(G86>0,1,0)) -> 0 | E86: Ceiling Suspended | G86: =Results!L60 -> 0
A87: =IF(Output!$J$5="Select Outdoor Unit",0,IF(G87>0,1,0)) -> 0 | E87: Floor Standing | G87: =Results!L61 -> 0
A88: =IF(Output!$J$5="Select Outdoor Unit",0,IF(G88>0,1,0)) -> 0 | E88: Concealed Floor | G88: =Results!L62 -> 0
A89: =IF($B$92="Select Outdoor Unit",0,1) -> 0 | B89: Outdoor Unit | E89: Indoor Units | H89: =CONCATENATE($H$20," (kWh)") -> Existing Installation (kWh) | I89: =CONCATENATE($I$20," (kWh)") -> VRVQ + Old IDUs (kWh) | J89: =CONCATENATE($J$20," (kWh)") -> VRVQ + New IDUs (kWh) | K89: =IF(LEFT(B92,3)="RXY","VRV IV with Variable Refrigerant Temperature",IF(LEFT(B92,3)="REY","Heat Recovery VRV III",IF(LEFT(B92,4)="RSXY","VRV IV with Variable Refrigerant Temperature",IF(LEFT(B92,4)="RSEY","Heat Recovery VRV III",0)))) -> 0
A90: =IF($B$92="Select Outdoor Unit",0,1) -> 0
A91: 0 | E91: Type | G91: Qty
A92: =IF(Output!$L$5="Select Outdoor Unit",0,IF(G92>0,1,0)) -> 0 | B92: =Results!C64 -> Select Outdoor Unit | E92: =E83 -> Wall Mounted | G92: =Results!L64 -> 0 | H92: =Results!M64 -> 0 | I92: =Results!P64 -> 0 | J92: =Results!R64 -> 0 | K92: =Results!T64 -> 0
A93: =IF(Output!$L$5="Select Outdoor Unit",0,IF(G93>0,1,0)) -> 0 | E93: Ceiling Mounted Cassette | G93: =Results!L65 -> 0
A94: =IF(Output!$L$5="Select Outdoor Unit",0,IF(G94>0,1,0)) -> 0 | E94: Horizontal Ducted | G94: =Results!L66 -> 0
A95: =IF(Output!$L$5="Select Outdoor Unit",0,IF(G95>0,1,0)) -> 0 | E95: Ceiling Suspended | G95: =Results!L67 -> 0
A96: =IF(Output!$L$5="Select Outdoor Unit",0,IF(G96>0,1,0)) -> 0 | E96: Floor Standing | G96: =Results!L68 -> 0
A97: =IF(Output!$L$5="Select Outdoor Unit",0,IF(G97>0,1,0)) -> 0 | E97: Concealed Floor | G97: =Results!L69 -> 0
A98: =IF($B$101="Select Outdoor Unit",0,1) -> 0 | B98: Outdoor Unit | E98: Indoor Units | H98: =CONCATENATE($H$20," (kWh)") -> Existing Installation (kWh) | I98: =CONCATENATE($I$20," (kWh)") -> VRVQ + Old IDUs (kWh) | J98: =CONCATENATE($J$20," (kWh)") -> VRVQ + New IDUs (kWh) | K98: =IF(LEFT(B101,3)="RXY","VRV IV with Variable Refrigerant Temperature",IF(LEFT(B101,3)="REY","Heat Recovery VRV III",IF(LEFT(B101,4)="RSXY","VRV IV with Variable Refrigerant Temperature",IF(LEFT(B101,4)="RSEY","Heat Recovery VRV III",0)))) -> 0
A99: =IF($B$101="Select Outdoor Unit",0,1) -> 0
A100: 0 | E100: Type | G100: Qty
A101: =IF(Output!$N$5="Select Outdoor Unit",0,IF(G101>0,1,0)) -> 0 | B101: =Results!C71 -> Select Outdoor Unit | E101: =E92 -> Wall Mounted | G101: =Results!L71 -> 0 | H101: =Results!M71 -> 0 | I101: =Results!P71 -> 0 | J101: =Results!R71 -> 0 | K101: =Results!T71 -> 0
A102: =IF(Output!$N$5="Select Outdoor Unit",0,IF(G102>0,1,0)) -> 0 | E102: Ceiling Mounted Cassette | G102: =Results!L72 -> 0
A103: =IF(Output!$N$5="Select Outdoor Unit",0,IF(G103>0,1,0)) -> 0 | E103: Horizontal Ducted | G103: =Results!L73 -> 0
A104: =IF(Output!$N$5="Select Outdoor Unit",0,IF(G104>0,1,0)) -> 0 | E104: Ceiling Suspended | G104: =Results!L74 -> 0
A105: =IF(Output!$N$5="Select Outdoor Unit",0,IF(G105>0,1,0)) -> 0 | E105: Floor Standing | G105: =Results!L75 -> 0
A106: =IF(Output!$N$5="Select Outdoor Unit",0,IF(G106>0,1,0)) -> 0 | E106: Concealed Floor | G106: =Results!L76 -> 0
A107: =IF($B$110="Select Outdoor Unit",0,1) -> 0 | B107: Outdoor Unit | E107: Indoor Units | H107: =CONCATENATE($H$20," (kWh)") -> Existing Installation (kWh) | I107: =CONCATENATE($I$20," (kWh)") -> VRVQ + Old IDUs (kWh) | J107: =CONCATENATE($J$20," (kWh)") -> VRVQ + New IDUs (kWh) | K107: =IF(LEFT(B110,3)="RXY","VRV IV with Variable Refrigerant Temperature",IF(LEFT(B110,3)="REY","Heat Recovery VRV III",IF(LEFT(B110,4)="RSXY","VRV IV with Variable Refrigerant Temperature",IF(LEFT(B110,4)="RSEY","Heat Recovery VRV III",0)))) -> 0
A108: =IF($B$110="Select Outdoor Unit",0,1) -> 0
A109: 0 | E109: Type | G109: Qty
A110: =IF(Output!$P$5="Select Outdoor Unit",0,IF(G110>0,1,0)) -> 0 | B110: =Results!C78 -> Select Outdoor Unit | E110: =E101 -> Wall Mounted | G110: =Results!L78 -> 0 | H110: =Results!M78 -> 0 | I110: =Results!P78 -> 0 | J110: =Results!R78 -> 0 | K110: =Results!T78 -> 0
A111: =IF(Output!$P$5="Select Outdoor Unit",0,IF(G111>0,1,0)) -> 0 | E111: Ceiling Mounted Cassette | G111: =Results!L79 -> 0
A112: =IF(Output!$P$5="Select Outdoor Unit",0,IF(G112>0,1,0)) -> 0 | E112: Horizontal Ducted | G112: =Results!L80 -> 0
A113: =IF(Output!$P$5="Select Outdoor Unit",0,IF(G113>0,1,0)) -> 0 | E113: Ceiling Suspended | G113: =Results!L81 -> 0
A114: =IF(Output!$P$5="Select Outdoor Unit",0,IF(G114>0,1,0)) -> 0 | E114: Floor Standing | G114: =Results!L82 -> 0
A115: =IF(Output!$P$5="Select Outdoor Unit",0,IF(G115>0,1,0)) -> 0 | E115: Concealed Floor | G115: =Results!L83 -> 0
A116: =IF($B$119="Select Outdoor Unit",0,1) -> 0 | B116: Outdoor Unit | E116: Indoor Units | H116: =CONCATENATE($H$20," (kWh)") -> Existing Installation (kWh) | I116: =CONCATENATE($I$20," (kWh)") -> VRVQ + Old IDUs (kWh) | J116: =CONCATENATE($J$20," (kWh)") -> VRVQ + New IDUs (kWh) | K116: =IF(LEFT(B119,3)="RXY","VRV IV with Variable Refrigerant Temperature",IF(LEFT(B119,3)="REY","Heat Recovery VRV III",IF(LEFT(B119,4)="RSXY","VRV IV with Variable Refrigerant Temperature",IF(LEFT(B119,4)="RSEY","Heat Recovery VRV III",0)))) -> 0
A117: =IF($B$119="Select Outdoor Unit",0,1) -> 0
A118: 0 | E118: Type | G118: Qty
A119: =IF(Output!$R$5="Select Outdoor Unit",0,IF(G119>0,1,0)) -> 0 | B119: =Results!C85 -> Select Outdoor Unit | E119: =E110 -> Wall Mounted | G119: =Results!L85 -> 0 | H119: =Results!M85 -> 0 | I119: =Results!P85 -> 0 | J119: =Results!R85 -> 0 | K119: =Results!T85 -> 0
A120: =IF(Output!$R$5="Select Outdoor Unit",0,IF(G120>0,1,0)) -> 0 | E120: Ceiling Mounted Cassette | G120: =Results!L86 -> 0
A121: =IF(Output!$R$5="Select Outdoor Unit",0,IF(G121>0,1,0)) -> 0 | E121: Horizontal Ducted | G121: =Results!L87 -> 0
A122: =IF(Output!$R$5="Select Outdoor Unit",0,IF(G122>0,1,0)) -> 0 | E122: Ceiling Suspended | G122: =Results!L88 -> 0
A123: =IF(Output!$R$5="Select Outdoor Unit",0,IF(G123>0,1,0)) -> 0 | E123: Floor Standing | G123: =Results!L89 -> 0
A124: =IF(Output!$R$5="Select Outdoor Unit",0,IF(G124>0,1,0)) -> 0 | E124: Concealed Floor | G124: =Results!L90 -> 0
A125: =IF($B$128="Select Outdoor Unit",0,1) -> 0 | B125: Outdoor Unit | E125: Indoor Units | H125: =CONCATENATE($H$20," (kWh)") -> Existing Installation (kWh) | I125: =CONCATENATE($I$20," (kWh)") -> VRVQ + Old IDUs (kWh) | J125: =CONCATENATE($J$20," (kWh)") -> VRVQ + New IDUs (kWh) | K125: =IF(LEFT(B128,3)="RXY","VRV IV with Variable Refrigerant Temperature",IF(LEFT(B128,3)="REY","Heat Recovery VRV III",IF(LEFT(B128,4)="RSXY","VRV IV with Variable Refrigerant Temperature",IF(LEFT(B128,4)="RSEY","Heat Recovery VRV III",0)))) -> 0
A126: =IF($B$128="Select Outdoor Unit",0,1) -> 0
A127: 0 | E127: Type | G127: Qty
A128: =IF(Output!$T$5="Select Outdoor Unit",0,IF(G128>0,1,0)) -> 0 | B128: =Results!C92 -> Select Outdoor Unit | E128: =E119 -> Wall Mounted | G128: =Results!L92 -> 0 | H128: =Results!M92 -> 0 | I128: =Results!P92 -> 0 | J128: =Results!R92 -> 0 | K128: =Results!T92 -> 0
A129: =IF(Output!$T$5="Select Outdoor Unit",0,IF(G129>0,1,0)) -> 0 | E129: Ceiling Mounted Cassette | G129: =Results!L93 -> 0
A130: =IF(Output!$T$5="Select Outdoor Unit",0,IF(G130>0,1,0)) -> 0 | E130: Horizontal Ducted | G130: =Results!L94 -> 0
A131: =IF(Output!$T$5="Select Outdoor Unit",0,IF(G131>0,1,0)) -> 0 | E131: Ceiling Suspended | G131: =Results!L95 -> 0
A132: =IF(Output!$T$5="Select Outdoor Unit",0,IF(G132>0,1,0)) -> 0 | E132: Floor Standing | G132: =Results!L96 -> 0
A133: =IF(Output!$T$5="Select Outdoor Unit",0,IF(G133>0,1,0)) -> 0 | E133: Concealed Floor | G133: =Results!L97 -> 0
A134: =IF($B$137="Select Outdoor Unit",0,1) -> 0 | B134: Outdoor Unit | E134: Indoor Units | H134: =CONCATENATE($H$20," (kWh)") -> Existing Installation (kWh) | I134: =CONCATENATE($I$20," (kWh)") -> VRVQ + Old IDUs (kWh) | J134: =CONCATENATE($J$20," (kWh)") -> VRVQ + New IDUs (kWh) | K134: =IF(LEFT(B137,3)="RXY","VRV IV with Variable Refrigerant Temperature",IF(LEFT(B137,3)="REY","Heat Recovery VRV III",IF(LEFT(B137,4)="RSXY","VRV IV with Variable Refrigerant Temperature",IF(LEFT(B137,4)="RSEY","Heat Recovery VRV III",0)))) -> 0
A135: =IF($B$137="Select Outdoor Unit",0,1) -> 0
A136: 0 | E136: Type | G136: Qty
A137: =IF(Output!$V$5="Select Outdoor Unit",0,IF(G137>0,1,0)) -> 0 | B137: =Results!C99 -> Select Outdoor Unit | E137: =E128 -> Wall Mounted | G137: =Results!L99 -> 0 | H137: =Results!M99 -> 0 | I137: =Results!P99 -> 0 | J137: =Results!R99 -> 0 | K137: =Results!T99 -> 0
A138: =IF(Output!$V$5="Select Outdoor Unit",0,IF(G138>0,1,0)) -> 0 | E138: Ceiling Mounted Cassette | G138: =Results!L100 -> 0
A139: =IF(Output!$V$5="Select Outdoor Unit",0,IF(G139>0,1,0)) -> 0 | E139: Horizontal Ducted | G139: =Results!L101 -> 0
A140: =IF(Output!$V$5="Select Outdoor Unit",0,IF(G140>0,1,0)) -> 0 | E140: Ceiling Suspended | G140: =Results!L102 -> 0
A141: =IF(Output!$V$5="Select Outdoor Unit",0,IF(G141>0,1,0)) -> 0 | E141: Floor Standing | G141: =Results!L103 -> 0
A142: =IF(Output!$V$5="Select Outdoor Unit",0,IF(G142>0,1,0)) -> 0 | E142: Concealed Floor | G142: =Results!L104 -> 0

Sheet FullDetails
C2: Full equipment list
B5: =IF($C$7="Select Outdoor Unit",0,1) -> 1 | C5: R22 Outdoor Unit | D5: R22 Indoor Units | G5: VRVQ + Old IDUs | J5: VRVQ + New IDUs | M5: ='Print Results'!K53 -> VRV IV with Variable Refrigerant Temperature
B6: =IF($C$7="Select Outdoor Unit",0,1) -> 1 | D6: Type | E6: Qty | G6: Outdoor | H6: Indoor | J6: Outdoor | K6: Indoor | M6: Outdoor | N6: Indoor
B7: =IF(Output!$D$5="Select Outdoor Unit",0,IF(E7>0,1,0)) -> 0 | C7: ='Print Results'!B56 -> RSXY8K7 | D7: Wall Mounted (25) | E7: =COUNTIFS(Output!$D$6:$D$37,25,Output!$E$5:$E$36,"Wall Mounted") -> 0 | G7: =VLOOKUP(C7,Database!$A$8:$J$53,7,FALSE) -> RXYQQ8T | H7: =D7 -> Wall Mounted (25) | J7: =VLOOKUP(C7,Database!$A$8:$J$53,4,FALSE) -> RXYQQ8T | K7: FXAQ (25) | M7: =VLOOKUP(C7,Database!$A$8:$J$53,10,FALSE) -> RYYQ8T | N7: =K7 -> FXAQ (25)
B8: =IF(Output!$D$5="Select Outdoor Unit",0,IF(E8>0,1,0)) -> 0 | D8: Wall Mounted (31.25) | E8: =COUNTIFS(Output!$D$6:$D$37,31.25,Output!$E$5:$E$36,"Wall Mounted") -> 0 | H8: =D8 -> Wall Mounted (31.25) | K8: FXAQ (31.25) | N8: =K8 -> FXAQ (31.25)
B9: =IF(Output!$D$5="Select Outdoor Unit",0,IF(E9>0,1,0)) -> 0 | D9: Wall Mounted (40) | E9: =COUNTIFS(Output!$D$6:$D$37,40,Output!$E$5:$E$36,"Wall Mounted") -> 0 | H9: Wall Mounted (40) | K9: FXAQ (40) | N9: FXAQ (40)
B10: =IF(Output!$D$5="Select Outdoor Unit",0,IF(E10>0,1,0)) -> 0 | D10: Wall Mounted (50) | E10: =COUNTIFS(Output!$D$6:$D$37,50,Output!$E$5:$E$36,"Wall Mounted") -> 0 | H10: Wall Mounted (50) | K10: FXAQ (50) | N10: FXAQ (50)
B11: =IF(Output!$D$5="Select Outdoor Unit",0,IF(E11>0,1,0)) -> 0 | D11: Wall Mounted (63) | E11: =COUNTIFS(Output!$D$6:$D$37,63,Output!$E$5:$E$36,"Wall Mounted") -> 0 | H11: Wall Mounted (63) | K11: FXAQ (63) | N11: FXAQ (63)
B12: =IF(Output!$D$5="Select Outdoor Unit",0,IF(E12>0,1,0)) -> 0 | D12: Ceiling Mounted Cassette (31.25) | E12: =COUNTIFS(Output!$D$6:$D$37,31.25,Output!$E$5:$E$36,"Ceiling Mounted Cassette") -> 0 | H12: =D12 -> Ceiling Mounted Cassette (31.25) | K12: FXFQ (31.25) | N12: FXFQ (31.25)
B13: =IF(Output!$D$5="Select Outdoor Unit",0,IF(E13>0,1,0)) -> 0 | D13: Ceiling Mounted Cassette (40) | E13: =COUNTIFS(Output!$D$6:$D$37,40,Output!$E$5:$E$36,"Ceiling Mounted Cassette") -> 0 | H13: Ceiling Mounted Cassette (40) | K13: FXFQ (40) | N13: FXFQ (40)
B14: =IF(Output!$D$5="Select Outdoor Unit",0,IF(E14>0,1,0)) -> 0 | D14: Ceiling Mounted Cassette (50) | E14: =COUNTIFS(Output!$D$6:$D$37,50,Output!$E$5:$E$36,"Ceiling Mounted Cassette") -> 0 | H14: Ceiling Mounted Cassette (50) | K14: FXFQ (50) | N14: FXFQ (50)
B15: =IF(Output!$D$5="Select Outdoor Unit",0,IF(E15>0,1,0)) -> 0 | D15: Ceiling Mounted Cassette (63) | E15: =COUNTIFS(Output!$D$6:$D$37,63,Output!$E$5:$E$36,"Ceiling Mounted Cassette") -> 0 | H15: Ceiling Mounted Cassette (63) | K15: FXFQ (63) | N15: FXFQ (63)
B16: =IF(Output!$D$5="Select Outdoor Unit",0,IF(E16>0,1,0)) -> 0 | D16: Ceiling Mounted Cassette (80) | E16: =COUNTIFS(Output!$D$6:$D$37,80,Output!$E$5:$E$36,"Ceiling Mounted Cassette") -> 0 | H16: Ceiling Mounted Cassette (80) | K16: FXFQ (80) | N16: FXFQ (80)
B17: =IF(Output!$D$5="Select Outdoor Unit",0,IF(E17>0,1,0)) -> 0 | D17: Ceiling Mounted Cassette (100) | E17: =COUNTIFS(Output!$D$6:$D$37,100,Output!$E$5:$E$36,"Ceiling Mounted Cassette") -> 0 | H17: Ceiling Mounted Cassette (100) | K17: FXFQ (100) | N17: FXFQ (100)
B18: =IF(Output!$D$5="Select Outdoor Unit",0,IF(E18>0,1,0)) -> 0 | D18: Ceiling Mounted Cassette (125) | E18: =COUNTIFS(Output!$D$6:$D$37,125,Output!$E$5:$E$36,"Ceiling Mounted Cassette") -> 0 | H18: Ceiling Mounted Cassette (125) | K18: FXFQ (125) | N18: FXFQ (125)
B19: =IF(Output!$D$5="Select Outdoor Unit",0,IF(E19>0,1,0)) -> 0 | D19: Horizontal Ducted (20) | E19: =COUNTIFS(Output!$D$6:$D$37,20,Output!$E$5:$E$36,"Horizontal Ducted") -> 0 | H19: Horizontal Ducted (20) | K19: FXSQ (20) | N19: FXSQ (20)
B20: =IF(Output!$D$5="Select Outdoor Unit",0,IF(E20>0,1,0)) -> 0 | D20: Horizontal Ducted (25) | E20: =COUNTIFS(Output!$D$6:$D$37,25,Output!$E$5:$E$36,"Horizontal Ducted") -> 0 | H20: Horizontal Ducted (25) | K20: FXSQ (25) | N20: FXSQ (25)
B21: =IF(Output!$D$5="Select Outdoor Unit",0,IF(E21>0,1,0)) -> 1 | D21: Horizontal Ducted (31.25) | E21: =COUNTIFS(Output!$D$6:$D$37,31.25,Output!$E$5:$E$36,"Horizontal Ducted") -> 1 | H21: Horizontal Ducted (31.25) | K21: FXSQ (31.25) | N21: FXSQ (31.25)
B22: =IF(Output!$D$5="Select Outdoor Unit",0,IF(E22>0,1,0)) -> 0 | D22: Horizontal Ducted (40) | E22: =COUNTIFS(Output!$D$6:$D$37,40,Output!$E$5:$E$36,"Horizontal Ducted") -> 0 | H22: Horizontal Ducted (40) | K22: FXSQ (40) | N22: FXSQ (40)
B23: =IF(Output!$D$5="Select Outdoor Unit",0,IF(E23>0,1,0)) -> 0 | D23: Horizontal Ducted (50) | E23: =COUNTIFS(Output!$D$6:$D$37,50,Output!$E$5:$E$36,"Horizontal Ducted") -> 0 | H23: Horizontal Ducted (50) | K23: FXSQ (50) | N23: FXSQ (50)
B24: =IF(Output!$D$5="Select Outdoor Unit",0,IF(E24>0,1,0)) -> 0 | D24: Horizontal Ducted (63) | E24: =COUNTIFS(Output!$D$6:$D$37,63,Output!$E$5:$E$36,"Horizontal Ducted") -> 0 | H24: Horizontal Ducted (63) | K24: FXSQ (63) | N24: FXSQ (63)
B25: =IF(Output!$D$5="Select Outdoor Unit",0,IF(E25>0,1,0)) -> 0 | D25: Horizontal Ducted (80) | E25: =COUNTIFS(Output!$D$6:$D$37,80,Output!$E$5:$E$36,"Horizontal Ducted") -> 0 | H25: Horizontal Ducted (80) | K25: FXSQ (80) | N25: FXSQ (80)
B26: =IF(Output!$D$5="Select Outdoor Unit",0,IF(E26>0,1,0)) -> 0 | D26: Horizontal Ducted (100) | E26: =COUNTIFS(Output!$D$6:$D$37,100,Output!$E$5:$E$36,"Horizontal Ducted") -> 0 | H26: Horizontal Ducted (100) | K26: FXSQ (100) | N26: FXSQ (100)
B27: =IF(Output!$D$5="Select Outdoor Unit",0,IF(E27>0,1,0)) -> 0 | D27: Horizontal Ducted (125) | E27: =COUNTIFS(Output!$D$6:$D$37,125,Output!$E$5:$E$36,"Horizontal Ducted") -> 0 | H27: Horizontal Ducted (125) | K27: FXSQ (125) | N27: FXSQ (125)
B28: =IF(Output!$D$5="Select Outdoor Unit",0,IF(E28>0,1,0)) -> 0 | D28: Ceiling Suspended (31.25) | E28: =COUNTIFS(Output!$D$6:$D$37,31.25,Output!$E$5:$E$36,"Ceiling Suspended") -> 0 | H28: Ceiling Suspended (31.25) | K28: FXHQ (31.25) | N28: FXHQ (31.25)
B29: =IF(Output!$D$5="Select Outdoor Unit",0,IF(E29>0,1,0)) -> 1 | D29: Ceiling Suspended (63) | E29: =COUNTIFS(Output!$D$6:$D$37,63,Output!$E$5:$E$36,"Ceiling Suspended") -> 1 | H29: Ceiling Suspended (63) | K29: FXHQ (63) | N29: FXHQ (63)
B30: =IF(Output!$D$5="Select Outdoor Unit",0,IF(E30>0,1,0)) -> 1 | D30: Ceiling Suspended (100) | E30: =COUNTIFS(Output!$D$6:$D$37,100,Output!$E$5:$E$36,"Ceiling Suspended") -> 1 | H30: Ceiling Suspended (100) | K30: FXHQ (100) | N30: FXHQ (100)
B31: =IF(Output!$D$5="Select Outdoor Unit",0,IF(E31>0,1,0)) -> 0 | D31: Floor Standing (25) | E31: =COUNTIFS(Output!$D$6:$D$37,25,Output!$E$5:$E$36,"Floor Standing") -> 0 | H31: Floor Standing (25) | K31: FXLQ (25) | N31: FXLQ (25)
B32: =IF(Output!$D$5="Select Outdoor Unit",0,IF(E32>0,1,0)) -> 0 | D32: Floor Standing (40) | E32: =COUNTIFS(Output!$D$6:$D$37,40,Output!$E$5:$E$36,"Floor Standing") -> 0 | H32: Floor Standing (40) | K32: FXLQ (40) | N32: FXLQ (40)
B33: =IF(Output!$D$5="Select Outdoor Unit",0,IF(E33>0,1,0)) -> 0 | D33: Floor Standing (63) | E33: =COUNTIFS(Output!$D$6:$D$37,63,Output!$E$5:$E$36,"Floor Standing") -> 0 | H33: Floor Standing (63) | K33: FXLQ (63) | N33: FXLQ (63)
B34: =IF(Output!$D$5="Select Outdoor Unit",0,IF(E34>0,1,0)) -> 0 | D34: Concealed Floor (25) | E34: =COUNTIFS(Output!$D$6:$D$37,25,Output!$E$5:$E$36,"Concealed Floor") -> 0 | H34: Concealed Floor (25) | K34: FXNQ (25) | N34: FXNQ (25)
B35: =IF(Output!$D$5="Select Outdoor Unit",0,IF(E35>0,1,0)) -> 0 | D35: Concealed Floor (40) | E35: =COUNTIFS(Output!$D$6:$D$37,40,Output!$E$5:$E$36,"Concealed Floor") -> 0 | H35: Concealed Floor (40) | K35: FXNQ (40) | N35: FXNQ (40)
B36: =IF(Output!$D$5="Select Outdoor Unit",0,IF(E36>0,1,0)) -> 0 | D36: Concealed Floor (63) | E36: =COUNTIFS(Output!$D$6:$D$37,63,Output!$E$5:$E$36,"Concealed Floor") -> 0 | H36: Concealed Floor (63) | K36: FXNQ (63) | N36: FXNQ (63)
B37: =IF($C$39="Select Outdoor Unit",0,1) -> 0 | C37: R22 Outdoor Unit | D37: R22 Indoor Units | G37: VRVQ + Old IDUs | J37: VRVQ + New IDUs | M37: ='Print Results'!K62 -> 0
B38: =IF($C$39="Select Outdoor Unit",0,1) -> 0 | D38: Type | E38: Qty | G38: Outdoor | H38: Indoor | J38: Outdoor | K38: Indoor | M38: Outdoor | N38: Indoor
B39: =IF(Output!$D$5="Select Outdoor Unit",0,IF(E39>0,1,0)) -> 0 | C39: ='Print Results'!B65 -> Select Outdoor Unit | D39: Wall Mounted (25) | E39: =COUNTIFS(Output!$F$6:$F$37,25,Output!$G$5:$G$36,"Wall Mounted") -> 0 | G39: =VLOOKUP(C39,Database!$A$8:$J$53,7,FALSE) ->  | H39: =D39 -> Wall Mounted (25) | J39: =VLOOKUP(C39,Database!$A$8:$J$53,4,FALSE) ->  | K39: FXAQ (25) | M39: =VLOOKUP(C39,Database!$A$8:$J$53,10,FALSE) ->  | N39: =K39 -> FXAQ (25)
B40: =IF(Output!$D$5="Select Outdoor Unit",0,IF(E40>0,1,0)) -> 0 | D40: Wall Mounted (31.25) | E40: =COUNTIFS(Output!$F$6:$F$37,31.25,Output!$G$5:$G$36,"Wall Mounted") -> 0 | H40: =D40 -> Wall Mounted (31.25) | K40: FXAQ (31.25) | N40: =K40 -> FXAQ (31.25)
B41: =IF(Output!$D$5="Select Outdoor Unit",0,IF(E41>0,1,0)) -> 0 | D41: Wall Mounted (40) | E41: =COUNTIFS(Output!$F$6:$F$37,40,Output!$G$5:$G$36,"Wall Mounted") -> 0 | H41: Wall Mounted (40) | K41: FXAQ (40) | N41: FXAQ (40)
B42: =IF(Output!$D$5="Select Outdoor Unit",0,IF(E42>0,1,0)) -> 0 | D42: Wall Mounted (50) | E42: =COUNTIFS(Output!$F$6:$F$37,50,Output!$G$5:$G$36,"Wall Mounted") -> 0 | H42: Wall Mounted (50) | K42: FXAQ (50) | N42: FXAQ (50)
B43: =IF(Output!$D$5="Select Outdoor Unit",0,IF(E43>0,1,0)) -> 0 | D43: Wall Mounted (63) | E43: =COUNTIFS(Output!$F$6:$F$37,63,Output!$G$5:$G$36,"Wall Mounted") -> 0 | H43: Wall Mounted (63) | K43: FXAQ (63) | N43: FXAQ (63)
B44: =IF(Output!$D$5="Select Outdoor Unit",0,IF(E44>0,1,0)) -> 0 | D44: Ceiling Mounted Cassette (31.25) | E44: =COUNTIFS(Output!$F$6:$F$37,31.25,Output!$G$5:$G$36,"Ceiling Mounted Cassette") -> 0 | H44: Ceiling Mounted Cassette (31.25) | K44: FXFQ (31.25) | N44: FXFQ (31.25)
B45: =IF(Output!$D$5="Select Outdoor Unit",0,IF(E45>0,1,0)) -> 0 | D45: Ceiling Mounted Cassette (40) | E45: =COUNTIFS(Output!$F$6:$F$37,40,Output!$G$5:$G$36,"Ceiling Mounted Cassette") -> 0 | H45: Ceiling Mounted Cassette (40) | K45: FXFQ (40) | N45: FXFQ (40)
B46: =IF(Output!$D$5="Select Outdoor Unit",0,IF(E46>0,1,0)) -> 0 | D46: Ceiling Mounted Cassette (50) | E46: =COUNTIFS(Output!$F$6:$F$37,50,Output!$G$5:$G$36,"Ceiling Mounted Cassette") -> 0 | H46: Ceiling Mounted Cassette (50) | K46: FXFQ (50) | N46: FXFQ (50)
B47: =IF(Output!$D$5="Select Outdoor Unit",0,IF(E47>0,1,0)) -> 0 | D47: Ceiling Mounted Cassette (63) | E47: =COUNTIFS(Output!$F$6:$F$37,63,Output!$G$5:$G$36,"Ceiling Mounted Cassette") -> 0 | H47: Ceiling Mounted Cassette (63) | K47: FXFQ (63) | N47: FXFQ (63)
B48: =IF(Output!$D$5="Select Outdoor Unit",0,IF(E48>0,1,0)) -> 0 | D48: Ceiling Mounted Cassette (80) | E48: =COUNTIFS(Output!$F$6:$F$37,80,Output!$G$5:$G$36,"Ceiling Mounted Cassette") -> 0 | H48: Ceiling Mounted Cassette (80) | K48: FXFQ (80) | N48: FXFQ (80)
B49: =IF(Output!$D$5="Select Outdoor Unit",0,IF(E49>0,1,0)) -> 0 | D49: Ceiling Mounted Cassette (100) | E49: =COUNTIFS(Output!$F$6:$F$37,100,Output!$G$5:$G$36,"Ceiling Mounted Cassette") -> 0 | H49: Ceiling Mounted Cassette (100) | K49: FXFQ (100) | N49: FXFQ (100)
B50: =IF(Output!$D$5="Select Outdoor Unit",0,IF(E50>0,1,0)) -> 0 | D50: Ceiling Mounted Cassette (125) | E50: =COUNTIFS(Output!$F$6:$F$37,125,Output!$G$5:$G$36,"Ceiling Mounted Cassette") -> 0 | H50: Ceiling Mounted Cassette (125) | K50: FXFQ (125) | N50: FXFQ (125)
B51: =IF(Output!$D$5="Select Outdoor Unit",0,IF(E51>0,1,0)) -> 0 | D51: Horizontal Ducted (20) | E51: =COUNTIFS(Output!$F$6:$F$37,20,Output!$G$5:$G$36,"Horizontal Ducted") -> 0 | H51: Horizontal Ducted (20) | K51: FXSQ (20) | N51: FXSQ (20)
B52: =IF(Output!$D$5="Select Outdoor Unit",0,IF(E52>0,1,0)) -> 0 | D52: Horizontal Ducted (25) | E52: =COUNTIFS(Output!$F$6:$F$37,25,Output!$G$5:$G$36,"Horizontal Ducted") -> 0 | H52: Horizontal Ducted (25) | K52: FXSQ (25) | N52: FXSQ (25)
B53: =IF(Output!$D$5="Select Outdoor Unit",0,IF(E53>0,1,0)) -> 0 | D53: Horizontal Ducted (31.25) | E53: =COUNTIFS(Output!$F$6:$F$37,31.25,Output!$G$5:$G$36,"Horizontal Ducted") -> 0 | H53: Horizontal Ducted (31.25) | K53: FXSQ (31.25) | N53: FXSQ (31.25)
B54: =IF(Output!$D$5="Select Outdoor Unit",0,IF(E54>0,1,0)) -> 0 | D54: Horizontal Ducted (40) | E54: =COUNTIFS(Output!$F$6:$F$37,40,Output!$G$5:$G$36,"Horizontal Ducted") -> 0 | H54: Horizontal Ducted (40) | K54: FXSQ (40) | N54: FXSQ (40)
B55: =IF(Output!$D$5="Select Outdoor Unit",0,IF(E55>0,1,0)) -> 0 | D55: Horizontal Ducted (50) | E55: =COUNTIFS(Output!$F$6:$F$37,50,Output!$G$5:$G$36,"Horizontal Ducted") -> 0 | H55: Horizontal Ducted (50) | K55: FXSQ (50) | N55: FXSQ (50)
B56: =IF(Output!$D$5="Select Outdoor Unit",0,IF(E56>0,1,0)) -> 0 | D56: Horizontal Ducted (63) | E56: =COUNTIFS(Output!$F$6:$F$37,63,Output!$G$5:$G$36,"Horizontal Ducted") -> 0 | H56: Horizontal Ducted (63) | K56: FXSQ (63) | N56: FXSQ (63)
B57: =IF(Output!$D$5="Select Outdoor Unit",0,IF(E57>0,1,0)) -> 0 | D57: Horizontal Ducted (80) | E57: =COUNTIFS(Output!$F$6:$F$37,80,Output!$G$5:$G$36,"Horizontal Ducted") -> 0 | H57: Horizontal Ducted (80) | K57: FXSQ (80) | N57: FXSQ (80)
B58: =IF(Output!$D$5="Select Outdoor Unit",0,IF(E58>0,1,0)) -> 0 | D58: Horizontal Ducted (100) | E58: =COUNTIFS(Output!$F$6:$F$37,100,Output!$G$5:$G$36,"Horizontal Ducted") -> 0 | H58: Horizontal Ducted (100) | K58: FXSQ (100) | N58: FXSQ (100)
B59: =IF(Output!$D$5="Select Outdoor Unit",0,IF(E59>0,1,0)) -> 0 | D59: Horizontal Ducted (125) | E59: =COUNTIFS(Output!$F$6:$F$37,125,Output!$G$5:$G$36,"Horizontal Ducted") -> 0 | H59: Horizontal Ducted (125) | K59: FXSQ (125) | N59: FXSQ (125)
B60: =IF(Output!$D$5="Select Outdoor Unit",0,IF(E60>0,1,0)) -> 0 | D60: Ceiling Suspended (31.25) | E60: =COUNTIFS(Output!$F$6:$F$37,31.25,Output!$G$5:$G$36,"Ceiling Suspended") -> 0 | H60: Ceiling Suspended (31.25) | K60: FXHQ (31.25) | N60: FXHQ (31.25)
B61: =IF(Output!$D$5="Select Outdoor Unit",0,IF(E61>0,1,0)) -> 0 | D61: Ceiling Suspended (63) | E61: =COUNTIFS(Output!$F$6:$F$37,63,Output!$G$5:$G$36,"Ceiling Suspended") -> 0 | H61: Ceiling Suspended (63) | K61: FXHQ (63) | N61: FXHQ (63)
B62: =IF(Output!$D$5="Select Outdoor Unit",0,IF(E62>0,1,0)) -> 0 | D62: Ceiling Suspended (100) | E62: =COUNTIFS(Output!$F$6:$F$37,100,Output!$G$5:$G$36,"Ceiling Suspended") -> 0 | H62: Ceiling Suspended (100) | K62: FXHQ (100) | N62: FXHQ (100)
B63: =IF(Output!$D$5="Select Outdoor Unit",0,IF(E63>0,1,0)) -> 0 | D63: Floor Standing (25) | E63: =COUNTIFS(Output!$F$6:$F$37,25,Output!$G$5:$G$36,"Floor Standing") -> 0 | H63: Floor Standing (25) | K63: FXLQ (25) | N63: FXLQ (25)
B64: =IF(Output!$D$5="Select Outdoor Unit",0,IF(E64>0,1,0)) -> 0 | D64: Floor Standing (40) | E64: =COUNTIFS(Output!$F$6:$F$37,40,Output!$G$5:$G$36,"Floor Standing") -> 0 | H64: Floor Standing (40) | K64: FXLQ (40) | N64: FXLQ (40)
B65: =IF(Output!$D$5="Select Outdoor Unit",0,IF(E65>0,1,0)) -> 0 | D65: Floor Standing (63) | E65: =COUNTIFS(Output!$F$6:$F$37,63,Output!$G$5:$G$36,"Floor Standing") -> 0 | H65: Floor Standing (63) | K65: FXLQ (63) | N65: FXLQ (63)
B66: =IF(Output!$D$5="Select Outdoor Unit",0,IF(E66>0,1,0)) -> 0 | D66: Concealed Floor (25) | E66: =COUNTIFS(Output!$F$6:$F$37,25,Output!$G$5:$G$36,"Concealed Floor") -> 0 | H66: Concealed Floor (25) | K66: FXNQ (25) | N66: FXNQ (25)
B67: =IF(Output!$D$5="Select Outdoor Unit",0,IF(E67>0,1,0)) -> 0 | D67: Concealed Floor (40) | E67: =COUNTIFS(Output!$F$6:$F$37,40,Output!$G$5:$G$36,"Concealed Floor") -> 0 | H67: Concealed Floor (40) | K67: FXNQ (40) | N67: FXNQ (40)
B68: =IF(Output!$D$5="Select Outdoor Unit",0,IF(E68>0,1,0)) -> 0 | D68: Concealed Floor (63) | E68: =COUNTIFS(Output!$F$6:$F$37,63,Output!$G$5:$G$36,"Concealed Floor") -> 0 | H68: Concealed Floor (63) | K68: FXNQ (63) | N68: FXNQ (63)
B69: =IF($C$71="Select Outdoor Unit",0,1) -> 0 | C69: R22 Outdoor Unit | D69: R22 Indoor Units | G69: VRVQ + Old IDUs | J69: VRVQ + New IDUs | M69: ='Print Results'!K71 -> 0
B70: =IF($C$71="Select Outdoor Unit",0,1) -> 0 | D70: Type | E70: Qty | G70: Outdoor | H70: Indoor | J70: Outdoor | K70: Indoor | M70: Outdoor | N70: Indoor
B71: =IF(Output!$D$5="Select Outdoor Unit",0,IF(E71>0,1,0)) -> 0 | C71: ='Print Results'!B74 -> Select Outdoor Unit | D71: Wall Mounted (25) | E71: =COUNTIFS(Output!$H$6:$H$37,25,Output!$I$5:$I$36,"Wall Mounted") -> 0 | G71: =VLOOKUP(C71,Database!$A$8:$J$53,7,FALSE) ->  | H71: =D71 -> Wall Mounted (25) | J71: =VLOOKUP(C71,Database!$A$8:$J$53,4,FALSE) ->  | K71: FXAQ (25) | M71: =VLOOKUP(C71,Database!$A$8:$J$53,10,FALSE) ->  | N71: =K71 -> FXAQ (25)
B72: =IF(Output!$D$5="Select Outdoor Unit",0,IF(E72>0,1,0)) -> 0 | D72: Wall Mounted (31.25) | E72: =COUNTIFS(Output!$H$6:$H$37,31.25,Output!$I$5:$I$36,"Wall Mounted") -> 0 | H72: =D72 -> Wall Mounted (31.25) | K72: FXAQ (31.25) | N72: =K72 -> FXAQ (31.25)
B73: =IF(Output!$D$5="Select Outdoor Unit",0,IF(E73>0,1,0)) -> 0 | D73: Wall Mounted (40) | E73: =COUNTIFS(Output!$H$6:$H$37,40,Output!$I$5:$I$36,"Wall Mounted") -> 0 | H73: Wall Mounted (40) | K73: FXAQ (40) | N73: FXAQ (40)
B74: =IF(Output!$D$5="Select Outdoor Unit",0,IF(E74>0,1,0)) -> 0 | D74: Wall Mounted (50) | E74: =COUNTIFS(Output!$H$6:$H$37,50,Output!$I$5:$I$36,"Wall Mounted") -> 0 | H74: Wall Mounted (50) | K74: FXAQ (50) | N74: FXAQ (50)
B75: =IF(Output!$D$5="Select Outdoor Unit",0,IF(E75>0,1,0)) -> 0 | D75: Wall Mounted (63) | E75: =COUNTIFS(Output!$H$6:$H$37,63,Output!$I$5:$I$36,"Wall Mounted") -> 0 | H75: Wall Mounted (63) | K75: FXAQ (63) | N75: FXAQ (63)
B76: =IF(Output!$D$5="Select Outdoor Unit",0,IF(E76>0,1,0)) -> 0 | D76: Ceiling Mounted Cassette (31.25) | E76: =COUNTIFS(Output!$H$6:$H$37,31.25,Output!$I$5:$I$36,"Ceiling Mounted Cassette") -> 0 | H76: Ceiling Mounted Cassette (31.25) | K76: FXFQ (31.25) | N76: FXFQ (31.25)
B77: =IF(Output!$D$5="Select Outdoor Unit",0,IF(E77>0,1,0)) -> 0 | D77: Ceiling Mounted Cassette (40) | E77: =COUNTIFS(Output!$H$6:$H$37,40,Output!$I$5:$I$36,"Ceiling Mounted Cassette") -> 0 | H77: Ceiling Mounted Cassette (40) | K77: FXFQ (40) | N77: FXFQ (40)
B78: =IF(Output!$D$5="Select Outdoor Unit",0,IF(E78>0,1,0)) -> 0 | D78: Ceiling Mounted Cassette (50) | E78: =COUNTIFS(Output!$H$6:$H$37,50,Output!$I$5:$I$36,"Ceiling Mounted Cassette") -> 0 | H78: Ceiling Mounted Cassette (50) | K78: FXFQ (50) | N78: FXFQ (50)
B79: =IF(Output!$D$5="Select Outdoor Unit",0,IF(E79>0,1,0)) -> 0 | D79: Ceiling Mounted Cassette (63) | E79: =COUNTIFS(Output!$H$6:$H$37,63,Output!$I$5:$I$36,"Ceiling Mounted Cassette") -> 0 | H79: Ceiling Mounted Cassette (63) | K79: FXFQ (63) | N79: FXFQ (63)
B80: =IF(Output!$D$5="Select Outdoor Unit",0,IF(E80>0,1,0)) -> 0 | D80: Ceiling Mounted Cassette (80) | E80: =COUNTIFS(Output!$H$6:$H$37,80,Output!$I$5:$I$36,"Ceiling Mounted Cassette") -> 0 | H80: Ceiling Mounted Cassette (80) | K80: FXFQ (80) | N80: FXFQ (80)
B81: =IF(Output!$D$5="Select Outdoor Unit",0,IF(E81>0,1,0)) -> 0 | D81: Ceiling Mounted Cassette (100) | E81: =COUNTIFS(Output!$H$6:$H$37,100,Output!$I$5:$I$36,"Ceiling Mounted Cassette") -> 0 | H81: Ceiling Mounted Cassette (100) | K81: FXFQ (100) | N81: FXFQ (100)
B82: =IF(Output!$D$5="Select Outdoor Unit",0,IF(E82>0,1,0)) -> 0 | D82: Ceiling Mounted Cassette (125) | E82: =COUNTIFS(Output!$H$6:$H$37,125,Output!$I$5:$I$36,"Ceiling Mounted Cassette") -> 0 | H82: Ceiling Mounted Cassette (125) | K82: FXFQ (125) | N82: FXFQ (125)
B83: =IF(Output!$D$5="Select Outdoor Unit",0,IF(E83>0,1,0)) -> 0 | D83: Horizontal Ducted (20) | E83: =COUNTIFS(Output!$H$6:$H$37,20,Output!$I$5:$I$36,"Horizontal Ducted") -> 0 | H83: Horizontal Ducted (20) | K83: FXSQ (20) | N83: FXSQ (20)
B84: =IF(Output!$D$5="Select Outdoor Unit",0,IF(E84>0,1,0)) -> 0 | D84: Horizontal Ducted (25) | E84: =COUNTIFS(Output!$H$6:$H$37,25,Output!$I$5:$I$36,"Horizontal Ducted") -> 0 | H84: Horizontal Ducted (25) | K84: FXSQ (25) | N84: FXSQ (25)
B85: =IF(Output!$D$5="Select Outdoor Unit",0,IF(E85>0,1,0)) -> 0 | D85: Horizontal Ducted (31.25) | E85: =COUNTIFS(Output!$H$6:$H$37,31.25,Output!$I$5:$I$36,"Horizontal Ducted") -> 0 | H85: Horizontal Ducted (31.25) | K85: FXSQ (31.25) | N85: FXSQ (31.25)
B86: =IF(Output!$D$5="Select Outdoor Unit",0,IF(E86>0,1,0)) -> 0 | D86: Horizontal Ducted (40) | E86: =COUNTIFS(Output!$H$6:$H$37,40,Output!$I$5:$I$36,"Horizontal Ducted") -> 0 | H86: Horizontal Ducted (40) | K86: FXSQ (40) | N86: FXSQ (40)
B87: =IF(Output!$D$5="Select Outdoor Unit",0,IF(E87>0,1,0)) -> 0 | D87: Horizontal Ducted (50) | E87: =COUNTIFS(Output!$H$6:$H$37,50,Output!$I$5:$I$36,"Horizontal Ducted") -> 0 | H87: Horizontal Ducted (50) | K87: FXSQ (50) | N87: FXSQ (50)
B88: =IF(Output!$D$5="Select Outdoor Unit",0,IF(E88>0,1,0)) -> 0 | D88: Horizontal Ducted (63) | E88: =COUNTIFS(Output!$H$6:$H$37,63,Output!$I$5:$I$36,"Horizontal Ducted") -> 0 | H88: Horizontal Ducted (63) | K88: FXSQ (63) | N88: FXSQ (63)
B89: =IF(Output!$D$5="Select Outdoor Unit",0,IF(E89>0,1,0)) -> 0 | D89: Horizontal Ducted (80) | E89: =COUNTIFS(Output!$H$6:$H$37,80,Output!$I$5:$I$36,"Horizontal Ducted") -> 0 | H89: Horizontal Ducted (80) | K89: FXSQ (80) | N89: FXSQ (80)
B90: =IF(Output!$D$5="Select Outdoor Unit",0,IF(E90>0,1,0)) -> 0 | D90: Horizontal Ducted (100) | E90: =COUNTIFS(Output!$H$6:$H$37,100,Output!$I$5:$I$36,"Horizontal Ducted") -> 0 | H90: Horizontal Ducted (100) | K90: FXSQ (100) | N90: FXSQ (100)
B91: =IF(Output!$D$5="Select Outdoor Unit",0,IF(E91>0,1,0)) -> 0 | D91: Horizontal Ducted (125) | E91: =COUNTIFS(Output!$H$6:$H$37,125,Output!$I$5:$I$36,"Horizontal Ducted") -> 0 | H91: Horizontal Ducted (125) | K91: FXSQ (125) | N91: FXSQ (125)
B92: =IF(Output!$D$5="Select Outdoor Unit",0,IF(E92>0,1,0)) -> 0 | D92: Ceiling Suspended (31.25) | E92: =COUNTIFS(Output!$H$6:$H$37,31.25,Output!$I$5:$I$36,"Ceiling Suspended") -> 0 | H92: Ceiling Suspended (31.25) | K92: FXHQ (31.25) | N92: FXHQ (31.25)
B93: =IF(Output!$D$5="Select Outdoor Unit",0,IF(E93>0,1,0)) -> 0 | D93: Ceiling Suspended (63) | E93: =COUNTIFS(Output!$H$6:$H$37,63,Output!$I$5:$I$36,"Ceiling Suspended") -> 0 | H93: Ceiling Suspended (63) | K93: FXHQ (63) | N93: FXHQ (63)
B94: =IF(Output!$D$5="Select Outdoor Unit",0,IF(E94>0,1,0)) -> 0 | D94: Ceiling Suspended (100) | E94: =COUNTIFS(Output!$H$6:$H$37,100,Output!$I$5:$I$36,"Ceiling Suspended") -> 0 | H94: Ceiling Suspended (100) | K94: FXHQ (100) | N94: FXHQ (100)
B95: =IF(Output!$D$5="Select Outdoor Unit",0,IF(E95>0,1,0)) -> 0 | D95: Floor Standing (25) | E95: =COUNTIFS(Output!$H$6:$H$37,25,Output!$I$5:$I$36,"Floor Standing") -> 0 | H95: Floor Standing (25) | K95: FXLQ (25) | N95: FXLQ (25)
B96: =IF(Output!$D$5="Select Outdoor Unit",0,IF(E96>0,1,0)) -> 0 | D96: Floor Standing (40) | E96: =COUNTIFS(Output!$H$6:$H$37,40,Output!$I$5:$I$36,"Floor Standing") -> 0 | H96: Floor Standing (40) | K96: FXLQ (40) | N96: FXLQ (40)
B97: =IF(Output!$D$5="Select Outdoor Unit",0,IF(E97>0,1,0)) -> 0 | D97: Floor Standing (63) | E97: =COUNTIFS(Output!$H$6:$H$37,63,Output!$I$5:$I$36,"Floor Standing") -> 0 | H97: Floor Standing (63) | K97: FXLQ (63) | N97: FXLQ (63)
B98: =IF(Output!$D$5="Select Outdoor Unit",0,IF(E98>0,1,0)) -> 0 | D98: Concealed Floor (25) | E98: =COUNTIFS(Output!$H$6:$H$37,25,Output!$I$5:$I$36,"Concealed Floor") -> 0 | H98: Concealed Floor (25) | K98: FXNQ (25) | N98: FXNQ (25)
B99: =IF(Output!$D$5="Select Outdoor Unit",0,IF(E99>0,1,0)) -> 0 | D99: Concealed Floor (40) | E99: =COUNTIFS(Output!$H$6:$H$37,40,Output!$I$5:$I$36,"Concealed Floor") -> 0 | H99: Concealed Floor (40) | K99: FXNQ (40) | N99: FXNQ (40)
B100: =IF(Output!$D$5="Select Outdoor Unit",0,IF(E100>0,1,0)) -> 0 | D100: Concealed Floor (63) | E100: =COUNTIFS(Output!$H$6:$H$37,63,Output!$I$5:$I$36,"Concealed Floor") -> 0 | H100: Concealed Floor (63) | K100: FXNQ (63) | N100: FXNQ (63)
B101: =IF($C$103="Select Outdoor Unit",0,1) -> 0 | C101: R22 Outdoor Unit | D101: R22 Indoor Units | G101: VRVQ + Old IDUs | J101: VRVQ + New IDUs | M101: ='Print Results'!K80 -> 0
B102: =IF($C$103="Select Outdoor Unit",0,1) -> 0 | D102: Type | E102: Qty | G102: Outdoor | H102: Indoor | J102: Outdoor | K102: Indoor | M102: Outdoor | N102: Indoor
B103: =IF(Output!$D$5="Select Outdoor Unit",0,IF(E103>0,1,0)) -> 0 | C103: ='Print Results'!B83 -> Select Outdoor Unit | D103: Wall Mounted (25) | E103: =COUNTIFS(Output!$J$6:$J$37,25,Output!$K$5:$K$36,"Wall Mounted") -> 0 | G103: =VLOOKUP(C103,Database!$A$8:$J$53,7,FALSE) ->  | H103: =D103 -> Wall Mounted (25) | J103: =VLOOKUP(C103,Database!$A$8:$J$53,4,FALSE) ->  | K103: FXAQ (25) | M103: =VLOOKUP(C103,Database!$A$8:$J$53,10,FALSE) ->  | N103: =K103 -> FXAQ (25)
B104: =IF(Output!$D$5="Select Outdoor Unit",0,IF(E104>0,1,0)) -> 0 | D104: Wall Mounted (31.25) | E104: =COUNTIFS(Output!$J$6:$J$37,31.25,Output!$K$5:$K$36,"Wall Mounted") -> 0 | H104: =D104 -> Wall Mounted (31.25) | K104: FXAQ (31.25) | N104: =K104 -> FXAQ (31.25)
B105: =IF(Output!$D$5="Select Outdoor Unit",0,IF(E105>0,1,0)) -> 0 | D105: Wall Mounted (40) | E105: =COUNTIFS(Output!$J$6:$J$37,40,Output!$K$5:$K$36,"Wall Mounted") -> 0 | H105: Wall Mounted (40) | K105: FXAQ (40) | N105: FXAQ (40)
B106: =IF(Output!$D$5="Select Outdoor Unit",0,IF(E106>0,1,0)) -> 0 | D106: Wall Mounted (50) | E106: =COUNTIFS(Output!$J$6:$J$37,50,Output!$K$5:$K$36,"Wall Mounted") -> 0 | H106: Wall Mounted (50) | K106: FXAQ (50) | N106: FXAQ (50)
B107: =IF(Output!$D$5="Select Outdoor Unit",0,IF(E107>0,1,0)) -> 0 | D107: Wall Mounted (63) | E107: =COUNTIFS(Output!$J$6:$J$37,63,Output!$K$5:$K$36,"Wall Mounted") -> 0 | H107: Wall Mounted (63) | K107: FXAQ (63) | N107: FXAQ (63)
B108: =IF(Output!$D$5="Select Outdoor Unit",0,IF(E108>0,1,0)) -> 0 | D108: Ceiling Mounted Cassette (31.25) | E108: =COUNTIFS(Output!$J$6:$J$37,31.25,Output!$K$5:$K$36,"Ceiling Mounted Cassette") -> 0 | H108: Ceiling Mounted Cassette (31.25) | K108: FXFQ (31.25) | N108: FXFQ (31.25)
B109: =IF(Output!$D$5="Select Outdoor Unit",0,IF(E109>0,1,0)) -> 0 | D109: Ceiling Mounted Cassette (40) | E109: =COUNTIFS(Output!$J$6:$J$37,40,Output!$K$5:$K$36,"Ceiling Mounted Cassette") -> 0 | H109: Ceiling Mounted Cassette (40) | K109: FXFQ (40) | N109: FXFQ (40)
B110: =IF(Output!$D$5="Select Outdoor Unit",0,IF(E110>0,1,0)) -> 0 | D110: Ceiling Mounted Cassette (50) | E110: =COUNTIFS(Output!$J$6:$J$37,50,Output!$K$5:$K$36,"Ceiling Mounted Cassette") -> 0 | H110: Ceiling Mounted Cassette (50) | K110: FXFQ (50) | N110: FXFQ (50)
B111: =IF(Output!$D$5="Select Outdoor Unit",0,IF(E111>0,1,0)) -> 0 | D111: Ceiling Mounted Cassette (63) | E111: =COUNTIFS(Output!$J$6:$J$37,63,Output!$K$5:$K$36,"Ceiling Mounted Cassette") -> 0 | H111: Ceiling Mounted Cassette (63) | K111: FXFQ (63) | N111: FXFQ (63)
B112: =IF(Output!$D$5="Select Outdoor Unit",0,IF(E112>0,1,0)) -> 0 | D112: Ceiling Mounted Cassette (80) | E112: =COUNTIFS(Output!$J$6:$J$37,80,Output!$K$5:$K$36,"Ceiling Mounted Cassette") -> 0 | H112: Ceiling Mounted Cassette (80) | K112: FXFQ (80) | N112: FXFQ (80)
B113: =IF(Output!$D$5="Select Outdoor Unit",0,IF(E113>0,1,0)) -> 0 | D113: Ceiling Mounted Cassette (100) | E113: =COUNTIFS(Output!$J$6:$J$37,100,Output!$K$5:$K$36,"Ceiling Mounted Cassette") -> 0 | H113: Ceiling Mounted Cassette (100) | K113: FXFQ (100) | N113: FXFQ (100)
B114: =IF(Output!$D$5="Select Outdoor Unit",0,IF(E114>0,1,0)) -> 0 | D114: Ceiling Mounted Cassette (125) | E114: =COUNTIFS(Output!$J$6:$J$37,125,Output!$K$5:$K$36,"Ceiling Mounted Cassette") -> 0 | H114: Ceiling Mounted Cassette (125) | K114: FXFQ (125) | N114: FXFQ (125)
B115: =IF(Output!$D$5="Select Outdoor Unit",0,IF(E115>0,1,0)) -> 0 | D115: Horizontal Ducted (20) | E115: =COUNTIFS(Output!$J$6:$J$37,20,Output!$K$5:$K$36,"Horizontal Ducted") -> 0 | H115: Horizontal Ducted (20) | K115: FXSQ (20) | N115: FXSQ (20)
B116: =IF(Output!$D$5="Select Outdoor Unit",0,IF(E116>0,1,0)) -> 0 | D116: Horizontal Ducted (25) | E116: =COUNTIFS(Output!$J$6:$J$37,25,Output!$K$5:$K$36,"Horizontal Ducted") -> 0 | H116: Horizontal Ducted (25) | K116: FXSQ (25) | N116: FXSQ (25)
B117: =IF(Output!$D$5="Select Outdoor Unit",0,IF(E117>0,1,0)) -> 0 | D117: Horizontal Ducted (31.25) | E117: =COUNTIFS(Output!$J$6:$J$37,31.25,Output!$K$5:$K$36,"Horizontal Ducted") -> 0 | H117: Horizontal Ducted (31.25) | K117: FXSQ (31.25) | N117: FXSQ (31.25)
B118: =IF(Output!$D$5="Select Outdoor Unit",0,IF(E118>0,1,0)) -> 0 | D118: Horizontal Ducted (40) | E118: =COUNTIFS(Output!$J$6:$J$37,40,Output!$K$5:$K$36,"Horizontal Ducted") -> 0 | H118: Horizontal Ducted (40) | K118: FXSQ (40) | N118: FXSQ (40)
B119: =IF(Output!$D$5="Select Outdoor Unit",0,IF(E119>0,1,0)) -> 0 | D119: Horizontal Ducted (50) | E119: =COUNTIFS(Output!$J$6:$J$37,50,Output!$K$5:$K$36,"Horizontal Ducted") -> 0 | H119: Horizontal Ducted (50) | K119: FXSQ (50) | N119: FXSQ (50)
B120: =IF(Output!$D$5="Select Outdoor Unit",0,IF(E120>0,1,0)) -> 0 | D120: Horizontal Ducted (63) | E120: =COUNTIFS(Output!$J$6:$J$37,63,Output!$K$5:$K$36,"Horizontal Ducted") -> 0 | H120: Horizontal Ducted (63) | K120: FXSQ (63) | N120: FXSQ (63)
B121: =IF(Output!$D$5="Select Outdoor Unit",0,IF(E121>0,1,0)) -> 0 | D121: Horizontal Ducted (80) | E121: =COUNTIFS(Output!$J$6:$J$37,80,Output!$K$5:$K$36,"Horizontal Ducted") -> 0 | H121: Horizontal Ducted (80) | K121: FXSQ (80) | N121: FXSQ (80)
B122: =IF(Output!$D$5="Select Outdoor Unit",0,IF(E122>0,1,0)) -> 0 | D122: Horizontal Ducted (100) | E122: =COUNTIFS(Output!$J$6:$J$37,100,Output!$K$5:$K$36,"Horizontal Ducted") -> 0 | H122: Horizontal Ducted (100) | K122: FXSQ (100) | N122: FXSQ (100)
B123: =IF(Output!$D$5="Select Outdoor Unit",0,IF(E123>0,1,0)) -> 0 | D123: Horizontal Ducted (125) | E123: =COUNTIFS(Output!$J$6:$J$37,125,Output!$K$5:$K$36,"Horizontal Ducted") -> 0 | H123: Horizontal Ducted (125) | K123: FXSQ (125) | N123: FXSQ (125)
B124: =IF(Output!$D$5="Select Outdoor Unit",0,IF(E124>0,1,0)) -> 0 | D124: Ceiling Suspended (31.25) | E124: =COUNTIFS(Output!$J$6:$J$37,31.25,Output!$K$5:$K$36,"Ceiling Suspended") -> 0 | H124: Ceiling Suspended (31.25) | K124: FXHQ (31.25) | N124: FXHQ (31.25)
B125: =IF(Output!$D$5="Select Outdoor Unit",0,IF(E125>0,1,0)) -> 0 | D125: Ceiling Suspended (63) | E125: =COUNTIFS(Output!$J$6:$J$37,63,Output!$K$5:$K$36,"Ceiling Suspended") -> 0 | H125: Ceiling Suspended (63) | K125: FXHQ (63) | N125: FXHQ (63)
B126: =IF(Output!$D$5="Select Outdoor Unit",0,IF(E126>0,1,0)) -> 0 | D126: Ceiling Suspended (100) | E126: =COUNTIFS(Output!$J$6:$J$37,100,Output!$K$5:$K$36,"Ceiling Suspended") -> 0 | H126: Ceiling Suspended (100) | K126: FXHQ (100) | N126: FXHQ (100)
B127: =IF(Output!$D$5="Select Outdoor Unit",0,IF(E127>0,1,0)) -> 0 | D127: Floor Standing (25) | E127: =COUNTIFS(Output!$J$6:$J$37,25,Output!$K$5:$K$36,"Floor Standing") -> 0 | H127: Floor Standing (25) | K127: FXLQ (25) | N127: FXLQ (25)
B128: =IF(Output!$D$5="Select Outdoor Unit",0,IF(E128>0,1,0)) -> 0 | D128: Floor Standing (40) | E128: =COUNTIFS(Output!$J$6:$J$37,40,Output!$K$5:$K$36,"Floor Standing") -> 0 | H128: Floor Standing (40) | K128: FXLQ (40) | N128: FXLQ (40)
B129: =IF(Output!$D$5="Select Outdoor Unit",0,IF(E129>0,1,0)) -> 0 | D129: Floor Standing (63) | E129: =COUNTIFS(Output!$J$6:$J$37,63,Output!$K$5:$K$36,"Floor Standing") -> 0 | H129: Floor Standing (63) | K129: FXLQ (63) | N129: FXLQ (63)
B130: =IF(Output!$D$5="Select Outdoor Unit",0,IF(E130>0,1,0)) -> 0 | D130: Concealed Floor (25) | E130: =COUNTIFS(Output!$J$6:$J$37,25,Output!$K$5:$K$36,"Concealed Floor") -> 0 | H130: Concealed Floor (25) | K130: FXNQ (25) | N130: FXNQ (25)
B131: =IF(Output!$D$5="Select Outdoor Unit",0,IF(E131>0,1,0)) -> 0 | D131: Concealed Floor (40) | E131: =COUNTIFS(Output!$J$6:$J$37,40,Output!$K$5:$K$36,"Concealed Floor") -> 0 | H131: Concealed Floor (40) | K131: FXNQ (40) | N131: FXNQ (40)
B132: =IF(Output!$D$5="Select Outdoor Unit",0,IF(E132>0,1,0)) -> 0 | D132: Concealed Floor (63) | E132: =COUNTIFS(Output!$J$6:$J$37,63,Output!$K$5:$K$36,"Concealed Floor") -> 0 | H132: Concealed Floor (63) | K132: FXNQ (63) | N132: FXNQ (63)
B133: =IF($C$135="Select Outdoor Unit",0,1) -> 0 | C133: R22 Outdoor Unit | D133: R22 Indoor Units | G133: VRVQ + Old IDUs | J133: VRVQ + New IDUs | M133: ='Print Results'!K89 -> 0
B134: =IF($C$135="Select Outdoor Unit",0,1) -> 0 | D134: Type | E134: Qty | G134: Outdoor | H134: Indoor | J134: Outdoor | K134: Indoor | M134: Outdoor | N134: Indoor
B135: =IF(Output!$D$5="Select Outdoor Unit",0,IF(E135>0,1,0)) -> 0 | C135: ='Print Results'!B92 -> Select Outdoor Unit | D135: Wall Mounted (25) | E135: =COUNTIFS(Output!$L$6:$L$37,25,Output!$M$5:$M$36,"Wall Mounted") -> 0 | G135: =VLOOKUP(C135,Database!$A$8:$J$53,7,FALSE) ->  | H135: =D135 -> Wall Mounted (25) | J135: =VLOOKUP(C135,Database!$A$8:$J$53,4,FALSE) ->  | K135: FXAQ (25) | M135: =VLOOKUP(C135,Database!$A$8:$J$53,10,FALSE) ->  | N135: =K135 -> FXAQ (25)
B136: =IF(Output!$D$5="Select Outdoor Unit",0,IF(E136>0,1,0)) -> 0 | D136: Wall Mounted (31.25) | E136: =COUNTIFS(Output!$L$6:$L$37,31.25,Output!$M$5:$M$36,"Wall Mounted") -> 0 | H136: =D136 -> Wall Mounted (31.25) | K136: FXAQ (31.25) | N136: =K136 -> FXAQ (31.25)
B137: =IF(Output!$D$5="Select Outdoor Unit",0,IF(E137>0,1,0)) -> 0 | D137: Wall Mounted (40) | E137: =COUNTIFS(Output!$L$6:$L$37,40,Output!$M$5:$M$36,"Wall Mounted") -> 0 | H137: Wall Mounted (40) | K137: FXAQ (40) | N137: FXAQ (40)
B138: =IF(Output!$D$5="Select Outdoor Unit",0,IF(E138>0,1,0)) -> 0 | D138: Wall Mounted (50) | E138: =COUNTIFS(Output!$L$6:$L$37,50,Output!$M$5:$M$36,"Wall Mounted") -> 0 | H138: Wall Mounted (50) | K138: FXAQ (50) | N138: FXAQ (50)
B139: =IF(Output!$D$5="Select Outdoor Unit",0,IF(E139>0,1,0)) -> 0 | D139: Wall Mounted (63) | E139: =COUNTIFS(Output!$L$6:$L$37,63,Output!$M$5:$M$36,"Wall Mounted") -> 0 | H139: Wall Mounted (63) | K139: FXAQ (63) | N139: FXAQ (63)
B140: =IF(Output!$D$5="Select Outdoor Unit",0,IF(E140>0,1,0)) -> 0 | D140: Ceiling Mounted Cassette (31.25) | E140: =COUNTIFS(Output!$L$6:$L$37,31.25,Output!$M$5:$M$36,"Ceiling Mounted Cassette") -> 0 | H140: Ceiling Mounted Cassette (31.25) | K140: FXFQ (31.25) | N140: FXFQ (31.25)
B141: =IF(Output!$D$5="Select Outdoor Unit",0,IF(E141>0,1,0)) -> 0 | D141: Ceiling Mounted Cassette (40) | E141: =COUNTIFS(Output!$L$6:$L$37,40,Output!$M$5:$M$36,"Ceiling Mounted Cassette") -> 0 | H141: Ceiling Mounted Cassette (40) | K141: FXFQ (40) | N141: FXFQ (40)
B142: =IF(Output!$D$5="Select Outdoor Unit",0,IF(E142>0,1,0)) -> 0 | D142: Ceiling Mounted Cassette (50) | E142: =COUNTIFS(Output!$L$6:$L$37,50,Output!$M$5:$M$36,"Ceiling Mounted Cassette") -> 0 | H142: Ceiling Mounted Cassette (50) | K142: FXFQ (50) | N142: FXFQ (50)
B143: =IF(Output!$D$5="Select Outdoor Unit",0,IF(E143>0,1,0)) -> 0 | D143: Ceiling Mounted Cassette (63) | E143: =COUNTIFS(Output!$L$6:$L$37,63,Output!$M$5:$M$36,"Ceiling Mounted Cassette") -> 0 | H143: Ceiling Mounted Cassette (63) | K143: FXFQ (63) | N143: FXFQ (63)
B144: =IF(Output!$D$5="Select Outdoor Unit",0,IF(E144>0,1,0)) -> 0 | D144: Ceiling Mounted Cassette (80) | E144: =COUNTIFS(Output!$L$6:$L$37,80,Output!$M$5:$M$36,"Ceiling Mounted Cassette") -> 0 | H144: Ceiling Mounted Cassette (80) | K144: FXFQ (80) | N144: FXFQ (80)
B145: =IF(Output!$D$5="Select Outdoor Unit",0,IF(E145>0,1,0)) -> 0 | D145: Ceiling Mounted Cassette (100) | E145: =COUNTIFS(Output!$L$6:$L$37,100,Output!$M$5:$M$36,"Ceiling Mounted Cassette") -> 0 | H145: Ceiling Mounted Cassette (100) | K145: FXFQ (100) | N145: FXFQ (100)
B146: =IF(Output!$D$5="Select Outdoor Unit",0,IF(E146>0,1,0)) -> 0 | D146: Ceiling Mounted Cassette (125) | E146: =COUNTIFS(Output!$L$6:$L$37,125,Output!$M$5:$M$36,"Ceiling Mounted Cassette") -> 0 | H146: Ceiling Mounted Cassette (125) | K146: FXFQ (125) | N146: FXFQ (125)
B147: =IF(Output!$D$5="Select Outdoor Unit",0,IF(E147>0,1,0)) -> 0 | D147: Horizontal Ducted (20) | E147: =COUNTIFS(Output!$L$6:$L$37,20,Output!$M$5:$M$36,"Horizontal Ducted") -> 0 | H147: Horizontal Ducted (20) | K147: FXSQ (20) | N147: FXSQ (20)
B148: =IF(Output!$D$5="Select Outdoor Unit",0,IF(E148>0,1,0)) -> 0 | D148: Horizontal Ducted (25) | E148: =COUNTIFS(Output!$L$6:$L$37,25,Output!$M$5:$M$36,"Horizontal Ducted") -> 0 | H148: Horizontal Ducted (25) | K148: FXSQ (25) | N148: FXSQ (25)
B149: =IF(Output!$D$5="Select Outdoor Unit",0,IF(E149>0,1,0)) -> 0 | D149: Horizontal Ducted (31.25) | E149: =COUNTIFS(Output!$L$6:$L$37,31.25,Output!$M$5:$M$36,"Horizontal Ducted") -> 0 | H149: Horizontal Ducted (31.25) | K149: FXSQ (31.25) | N149: FXSQ (31.25)
B150: =IF(Output!$D$5="Select Outdoor Unit",0,IF(E150>0,1,0)) -> 0 | D150: Horizontal Ducted (40) | E150: =COUNTIFS(Output!$L$6:$L$37,40,Output!$M$5:$M$36,"Horizontal Ducted") -> 0 | H150: Horizontal Ducted (40) | K150: FXSQ (40) | N150: FXSQ (40)
B151: =IF(Output!$D$5="Select Outdoor Unit",0,IF(E151>0,1,0)) -> 0 | D151: Horizontal Ducted (50) | E151: =COUNTIFS(Output!$L$6:$L$37,50,Output!$M$5:$M$36,"Horizontal Ducted") -> 0 | H151: Horizontal Ducted (50) | K151: FXSQ (50) | N151: FXSQ (50)
B152: =IF(Output!$D$5="Select Outdoor Unit",0,IF(E152>0,1,0)) -> 0 | D152: Horizontal Ducted (63) | E152: =COUNTIFS(Output!$L$6:$L$37,63,Output!$M$5:$M$36,"Horizontal Ducted") -> 0 | H152: Horizontal Ducted (63) | K152: FXSQ (63) | N152: FXSQ (63)
B153: =IF(Output!$D$5="Select Outdoor Unit",0,IF(E153>0,1,0)) -> 0 | D153: Horizontal Ducted (80) | E153: =COUNTIFS(Output!$L$6:$L$37,80,Output!$M$5:$M$36,"Horizontal Ducted") -> 0 | H153: Horizontal Ducted (80) | K153: FXSQ (80) | N153: FXSQ (80)
B154: =IF(Output!$D$5="Select Outdoor Unit",0,IF(E154>0,1,0)) -> 0 | D154: Horizontal Ducted (100) | E154: =COUNTIFS(Output!$L$6:$L$37,100,Output!$M$5:$M$36,"Horizontal Ducted") -> 0 | H154: Horizontal Ducted (100) | K154: FXSQ (100) | N154: FXSQ (100)
B155: =IF(Output!$D$5="Select Outdoor Unit",0,IF(E155>0,1,0)) -> 0 | D155: Horizontal Ducted (125) | E155: =COUNTIFS(Output!$L$6:$L$37,125,Output!$M$5:$M$36,"Horizontal Ducted") -> 0 | H155: Horizontal Ducted (125) | K155: FXSQ (125) | N155: FXSQ (125)
B156: =IF(Output!$D$5="Select Outdoor Unit",0,IF(E156>0,1,0)) -> 0 | D156: Ceiling Suspended (31.25) | E156: =COUNTIFS(Output!$L$6:$L$37,31.25,Output!$M$5:$M$36,"Ceiling Suspended") -> 0 | H156: Ceiling Suspended (31.25) | K156: FXHQ (31.25) | N156: FXHQ (31.25)
B157: =IF(Output!$D$5="Select Outdoor Unit",0,IF(E157>0,1,0)) -> 0 | D157: Ceiling Suspended (63) | E157: =COUNTIFS(Output!$L$6:$L$37,63,Output!$M$5:$M$36,"Ceiling Suspended") -> 0 | H157: Ceiling Suspended (63) | K157: FXHQ (63) | N157: FXHQ (63)
B158: =IF(Output!$D$5="Select Outdoor Unit",0,IF(E158>0,1,0)) -> 0 | D158: Ceiling Suspended (100) | E158: =COUNTIFS(Output!$L$6:$L$37,100,Output!$M$5:$M$36,"Ceiling Suspended") -> 0 | H158: Ceiling Suspended (100) | K158: FXHQ (100) | N158: FXHQ (100)
B159: =IF(Output!$D$5="Select Outdoor Unit",0,IF(E159>0,1,0)) -> 0 | D159: Floor Standing (25) | E159: =COUNTIFS(Output!$L$6:$L$37,25,Output!$M$5:$M$36,"Floor Standing") -> 0 | H159: Floor Standing (25) | K159: FXLQ (25) | N159: FXLQ (25)
B160: =IF(Output!$D$5="Select Outdoor Unit",0,IF(E160>0,1,0)) -> 0 | D160: Floor Standing (40) | E160: =COUNTIFS(Output!$L$6:$L$37,40,Output!$M$5:$M$36,"Floor Standing") -> 0 | H160: Floor Standing (40) | K160: FXLQ (40) | N160: FXLQ (40)
B161: =IF(Output!$D$5="Select Outdoor Unit",0,IF(E161>0,1,0)) -> 0 | D161: Floor Standing (63) | E161: =COUNTIFS(Output!$L$6:$L$37,63,Output!$M$5:$M$36,"Floor Standing") -> 0 | H161: Floor Standing (63) | K161: FXLQ (63) | N161: FXLQ (63)
B162: =IF(Output!$D$5="Select Outdoor Unit",0,IF(E162>0,1,0)) -> 0 | D162: Concealed Floor (25) | E162: =COUNTIFS(Output!$L$6:$L$37,25,Output!$M$5:$M$36,"Concealed Floor") -> 0 | H162: Concealed Floor (25) | K162: FXNQ (25) | N162: FXNQ (25)
B163: =IF(Output!$D$5="Select Outdoor Unit",0,IF(E163>0,1,0)) -> 0 | D163: Concealed Floor (40) | E163: =COUNTIFS(Output!$L$6:$L$37,40,Output!$M$5:$M$36,"Concealed Floor") -> 0 | H163: Concealed Floor (40) | K163: FXNQ (40) | N163: FXNQ (40)
B164: =IF(Output!$D$5="Select Outdoor Unit",0,IF(E164>0,1,0)) -> 0 | D164: Concealed Floor (63) | E164: =COUNTIFS(Output!$L$6:$L$37,63,Output!$M$5:$M$36,"Concealed Floor") -> 0 | H164: Concealed Floor (63) | K164: FXNQ (63) | N164: FXNQ (63)
B165: =IF($C$167="Select Outdoor Unit",0,1) -> 0 | C165: R22 Outdoor Unit | D165: R22 Indoor Units | G165: VRVQ + Old IDUs | J165: VRVQ + New IDUs | M165: ='Print Results'!K98 -> 0
B166: =IF($C$167="Select Outdoor Unit",0,1) -> 0 | D166: Type | E166: Qty | G166: Outdoor | H166: Indoor | J166: Outdoor | K166: Indoor | M166: Outdoor | N166: Indoor
B167: =IF(Output!$D$5="Select Outdoor Unit",0,IF(E167>0,1,0)) -> 0 | C167: ='Print Results'!B101 -> Select Outdoor Unit | D167: Wall Mounted (25) | E167: =COUNTIFS(Output!$N$6:$N$37,25,Output!$O$5:$O$36,"Wall Mounted") -> 0 | G167: =VLOOKUP(C167,Database!$A$8:$J$53,7,FALSE) ->  | H167: =D167 -> Wall Mounted (25) | J167: =VLOOKUP(C167,Database!$A$8:$J$53,4,FALSE) ->  | K167: FXAQ (25) | M167: =VLOOKUP(C167,Database!$A$8:$J$53,10,FALSE) ->  | N167: =K167 -> FXAQ (25)
B168: =IF(Output!$D$5="Select Outdoor Unit",0,IF(E168>0,1,0)) -> 0 | D168: Wall Mounted (31.25) | E168: =COUNTIFS(Output!$N$6:$N$37,31.25,Output!$O$5:$O$36,"Wall Mounted") -> 0 | H168: =D168 -> Wall Mounted (31.25) | K168: FXAQ (31.25) | N168: =K168 -> FXAQ (31.25)
B169: =IF(Output!$D$5="Select Outdoor Unit",0,IF(E169>0,1,0)) -> 0 | D169: Wall Mounted (40) | E169: =COUNTIFS(Output!$N$6:$N$37,40,Output!$O$5:$O$36,"Wall Mounted") -> 0 | H169: Wall Mounted (40) | K169: FXAQ (40) | N169: FXAQ (40)
B170: =IF(Output!$D$5="Select Outdoor Unit",0,IF(E170>0,1,0)) -> 0 | D170: Wall Mounted (50) | E170: =COUNTIFS(Output!$N$6:$N$37,50,Output!$O$5:$O$36,"Wall Mounted") -> 0 | H170: Wall Mounted (50) | K170: FXAQ (50) | N170: FXAQ (50)
B171: =IF(Output!$D$5="Select Outdoor Unit",0,IF(E171>0,1,0)) -> 0 | D171: Wall Mounted (63) | E171: =COUNTIFS(Output!$N$6:$N$37,63,Output!$O$5:$O$36,"Wall Mounted") -> 0 | H171: Wall Mounted (63) | K171: FXAQ (63) | N171: FXAQ (63)
B172: =IF(Output!$D$5="Select Outdoor Unit",0,IF(E172>0,1,0)) -> 0 | D172: Ceiling Mounted Cassette (31.25) | E172: =COUNTIFS(Output!$N$6:$N$37,31.25,Output!$O$5:$O$36,"Ceiling Mounted Cassette") -> 0 | H172: Ceiling Mounted Cassette (31.25) | K172: FXFQ (31.25) | N172: FXFQ (31.25)
B173: =IF(Output!$D$5="Select Outdoor Unit",0,IF(E173>0,1,0)) -> 0 | D173: Ceiling Mounted Cassette (40) | E173: =COUNTIFS(Output!$N$6:$N$37,40,Output!$O$5:$O$36,"Ceiling Mounted Cassette") -> 0 | H173: Ceiling Mounted Cassette (40) | K173: FXFQ (40) | N173: FXFQ (40)
B174: =IF(Output!$D$5="Select Outdoor Unit",0,IF(E174>0,1,0)) -> 0 | D174: Ceiling Mounted Cassette (50) | E174: =COUNTIFS(Output!$N$6:$N$37,50,Output!$O$5:$O$36,"Ceiling Mounted Cassette") -> 0 | H174: Ceiling Mounted Cassette (50) | K174: FXFQ (50) | N174: FXFQ (50)
B175: =IF(Output!$D$5="Select Outdoor Unit",0,IF(E175>0,1,0)) -> 0 | D175: Ceiling Mounted Cassette (63) | E175: =COUNTIFS(Output!$N$6:$N$37,63,Output!$O$5:$O$36,"Ceiling Mounted Cassette") -> 0 | H175: Ceiling Mounted Cassette (63) | K175: FXFQ (63) | N175: FXFQ (63)
B176: =IF(Output!$D$5="Select Outdoor Unit",0,IF(E176>0,1,0)) -> 0 | D176: Ceiling Mounted Cassette (80) | E176: =COUNTIFS(Output!$N$6:$N$37,80,Output!$O$5:$O$36,"Ceiling Mounted Cassette") -> 0 | H176: Ceiling Mounted Cassette (80) | K176: FXFQ (80) | N176: FXFQ (80)
B177: =IF(Output!$D$5="Select Outdoor Unit",0,IF(E177>0,1,0)) -> 0 | D177: Ceiling Mounted Cassette (100) | E177: =COUNTIFS(Output!$N$6:$N$37,100,Output!$O$5:$O$36,"Ceiling Mounted Cassette") -> 0 | H177: Ceiling Mounted Cassette (100) | K177: FXFQ (100) | N177: FXFQ (100)
B178: =IF(Output!$D$5="Select Outdoor Unit",0,IF(E178>0,1,0)) -> 0 | D178: Ceiling Mounted Cassette (125) | E178: =COUNTIFS(Output!$N$6:$N$37,125,Output!$O$5:$O$36,"Ceiling Mounted Cassette") -> 0 | H178: Ceiling Mounted Cassette (125) | K178: FXFQ (125) | N178: FXFQ (125)
B179: =IF(Output!$D$5="Select Outdoor Unit",0,IF(E179>0,1,0)) -> 0 | D179: Horizontal Ducted (20) | E179: =COUNTIFS(Output!$N$6:$N$37,20,Output!$O$5:$O$36,"Horizontal Ducted") -> 0 | H179: Horizontal Ducted (20) | K179: FXSQ (20) | N179: FXSQ (20)
B180: =IF(Output!$D$5="Select Outdoor Unit",0,IF(E180>0,1,0)) -> 0 | D180: Horizontal Ducted (25) | E180: =COUNTIFS(Output!$N$6:$N$37,25,Output!$O$5:$O$36,"Horizontal Ducted") -> 0 | H180: Horizontal Ducted (25) | K180: FXSQ (25) | N180: FXSQ (25)
B181: =IF(Output!$D$5="Select Outdoor Unit",0,IF(E181>0,1,0)) -> 0 | D181: Horizontal Ducted (31.25) | E181: =COUNTIFS(Output!$N$6:$N$37,31.25,Output!$O$5:$O$36,"Horizontal Ducted") -> 0 | H181: Horizontal Ducted (31.25) | K181: FXSQ (31.25) | N181: FXSQ (31.25)
B182: =IF(Output!$D$5="Select Outdoor Unit",0,IF(E182>0,1,0)) -> 0 | D182: Horizontal Ducted (40) | E182: =COUNTIFS(Output!$N$6:$N$37,40,Output!$O$5:$O$36,"Horizontal Ducted") -> 0 | H182: Horizontal Ducted (40) | K182: FXSQ (40) | N182: FXSQ (40)
B183: =IF(Output!$D$5="Select Outdoor Unit",0,IF(E183>0,1,0)) -> 0 | D183: Horizontal Ducted (50) | E183: =COUNTIFS(Output!$N$6:$N$37,50,Output!$O$5:$O$36,"Horizontal Ducted") -> 0 | H183: Horizontal Ducted (50) | K183: FXSQ (50) | N183: FXSQ (50)
B184: =IF(Output!$D$5="Select Outdoor Unit",0,IF(E184>0,1,0)) -> 0 | D184: Horizontal Ducted (63) | E184: =COUNTIFS(Output!$N$6:$N$37,63,Output!$O$5:$O$36,"Horizontal Ducted") -> 0 | H184: Horizontal Ducted (63) | K184: FXSQ (63) | N184: FXSQ (63)
B185: =IF(Output!$D$5="Select Outdoor Unit",0,IF(E185>0,1,0)) -> 0 | D185: Horizontal Ducted (80) | E185: =COUNTIFS(Output!$N$6:$N$37,80,Output!$O$5:$O$36,"Horizontal Ducted") -> 0 | H185: Horizontal Ducted (80) | K185: FXSQ (80) | N185: FXSQ (80)
B186: =IF(Output!$D$5="Select Outdoor Unit",0,IF(E186>0,1,0)) -> 0 | D186: Horizontal Ducted (100) | E186: =COUNTIFS(Output!$N$6:$N$37,1000,Output!$O$5:$O$36,"Horizontal Ducted") -> 0 | H186: Horizontal Ducted (100) | K186: FXSQ (100) | N186: FXSQ (100)
B187: =IF(Output!$D$5="Select Outdoor Unit",0,IF(E187>0,1,0)) -> 0 | D187: Horizontal Ducted (125) | E187: =COUNTIFS(Output!$N$6:$N$37,125,Output!$O$5:$O$36,"Horizontal Ducted") -> 0 | H187: Horizontal Ducted (125) | K187: FXSQ (125) | N187: FXSQ (125)
B188: =IF(Output!$D$5="Select Outdoor Unit",0,IF(E188>0,1,0)) -> 0 | D188: Ceiling Suspended (31.25) | E188: =COUNTIFS(Output!$N$6:$N$37,31.25,Output!$O$5:$O$36,"Ceiling Suspended") -> 0 | H188: Ceiling Suspended (31.25) | K188: FXHQ (31.25) | N188: FXHQ (31.25)
B189: =IF(Output!$D$5="Select Outdoor Unit",0,IF(E189>0,1,0)) -> 0 | D189: Ceiling Suspended (63) | E189: =COUNTIFS(Output!$N$6:$N$37,63,Output!$O$5:$O$36,"Ceiling Suspended") -> 0 | H189: Ceiling Suspended (63) | K189: FXHQ (63) | N189: FXHQ (63)
B190: =IF(Output!$D$5="Select Outdoor Unit",0,IF(E190>0,1,0)) -> 0 | D190: Ceiling Suspended (100) | E190: =COUNTIFS(Output!$N$6:$N$37,100,Output!$O$5:$O$36,"Ceiling Suspended") -> 0 | H190: Ceiling Suspended (100) | K190: FXHQ (100) | N190: FXHQ (100)
B191: =IF(Output!$D$5="Select Outdoor Unit",0,IF(E191>0,1,0)) -> 0 | D191: Floor Standing (25) | E191: =COUNTIFS(Output!$N$6:$N$37,25,Output!$O$5:$O$36,"Floor Standing") -> 0 | H191: Floor Standing (25) | K191: FXLQ (25) | N191: FXLQ (25)
B192: =IF(Output!$D$5="Select Outdoor Unit",0,IF(E192>0,1,0)) -> 0 | D192: Floor Standing (40) | E192: =COUNTIFS(Output!$N$6:$N$37,40,Output!$O$5:$O$36,"Floor Standing") -> 0 | H192: Floor Standing (40) | K192: FXLQ (40) | N192: FXLQ (40)
B193: =IF(Output!$D$5="Select Outdoor Unit",0,IF(E193>0,1,0)) -> 0 | D193: Floor Standing (63) | E193: =COUNTIFS(Output!$N$6:$N$37,63,Output!$O$5:$O$36,"Floor Standing") -> 0 | H193: Floor Standing (63) | K193: FXLQ (63) | N193: FXLQ (63)
B194: =IF(Output!$D$5="Select Outdoor Unit",0,IF(E194>0,1,0)) -> 0 | D194: Concealed Floor (25) | E194: =COUNTIFS(Output!$N$6:$N$37,25,Output!$O$5:$O$36,"Concealed Floor") -> 0 | H194: Concealed Floor (25) | K194: FXNQ (25) | N194: FXNQ (25)
B195: =IF(Output!$D$5="Select Outdoor Unit",0,IF(E195>0,1,0)) -> 0 | D195: Concealed Floor (40) | E195: =COUNTIFS(Output!$N$6:$N$37,40,Output!$O$5:$O$36,"Concealed Floor") -> 0 | H195: Concealed Floor (40) | K195: FXNQ (40) | N195: FXNQ (40)
B196: =IF(Output!$D$5="Select Outdoor Unit",0,IF(E196>0,1,0)) -> 0 | D196: Concealed Floor (63) | E196: =COUNTIFS(Output!$N$6:$N$37,63,Output!$O$5:$O$36,"Concealed Floor") -> 0 | H196: Concealed Floor (63) | K196: FXNQ (63) | N196: FXNQ (63)
B197: =IF($C$199="Select Outdoor Unit",0,1) -> 0 | C197: R22 Outdoor Unit | D197: R22 Indoor Units | G197: VRVQ + Old IDUs | J197: VRVQ + New IDUs | M197: ='Print Results'!K107 -> 0
B198: =IF($C$199="Select Outdoor Unit",0,1) -> 0 | D198: Type | E198: Qty | G198: Outdoor | H198: Indoor | J198: Outdoor | K198: Indoor | M198: Outdoor | N198: Indoor
B199: =IF(Output!$D$5="Select Outdoor Unit",0,IF(E199>0,1,0)) -> 0 | C199: ='Print Results'!B110 -> Select Outdoor Unit | D199: Wall Mounted (25) | E199: =COUNTIFS(Output!$P$6:$P$37,25,Output!$Q$5:$Q$36,"Wall Mounted") -> 0 | G199: =VLOOKUP(C199,Database!$A$8:$J$53,7,FALSE) ->  | H199: =D199 -> Wall Mounted (25) | J199: =VLOOKUP(C199,Database!$A$8:$J$53,4,FALSE) ->  | K199: FXAQ (25) | M199: =VLOOKUP(C199,Database!$A$8:$J$53,10,FALSE) ->  | N199: =K199 -> FXAQ (25)
B200: =IF(Output!$D$5="Select Outdoor Unit",0,IF(E200>0,1,0)) -> 0 | D200: Wall Mounted (31.25) | E200: =COUNTIFS(Output!$P$6:$P$37,31.25,Output!$Q$5:$Q$36,"Wall Mounted") -> 0 | H200: =D200 -> Wall Mounted (31.25) | K200: FXAQ (31.25) | N200: =K200 -> FXAQ (31.25)
B201: =IF(Output!$D$5="Select Outdoor Unit",0,IF(E201>0,1,0)) -> 0 | D201: Wall Mounted (40) | E201: =COUNTIFS(Output!$P$6:$P$37,40,Output!$Q$5:$Q$36,"Wall Mounted") -> 0 | H201: Wall Mounted (40) | K201: FXAQ (40) | N201: FXAQ (40)
B202: =IF(Output!$D$5="Select Outdoor Unit",0,IF(E202>0,1,0)) -> 0 | D202: Wall Mounted (50) | E202: =COUNTIFS(Output!$P$6:$P$37,50,Output!$Q$5:$Q$36,"Wall Mounted") -> 0 | H202: Wall Mounted (50) | K202: FXAQ (50) | N202: FXAQ (50)
B203: =IF(Output!$D$5="Select Outdoor Unit",0,IF(E203>0,1,0)) -> 0 | D203: Wall Mounted (63) | E203: =COUNTIFS(Output!$P$6:$P$37,63,Output!$Q$5:$Q$36,"Wall Mounted") -> 0 | H203: Wall Mounted (63) | K203: FXAQ (63) | N203: FXAQ (63)
... 121 more rows

Sheet Results (hidden)
B2: =VLOOKUP(Output!$J$2,Translation!$A$2:$BF$16,48,FALSE) -> Project Summary
B4: Project Name
E6: =Database!B4 -> Existing Installation | I6: =Database!G4 -> VRVQ + Old IDUs | M6: =Database!D4 -> VRVQ + New IDUs | Q6: Based on the latest VRV Systems
E7: =Database!$B$3 -> £/annum | G7: =Database!$C$3 -> CO2/annum | I7: =M7 -> £/annum | J7: =N7 -> Saving | K7: =O7 -> CO2/annum | M7: =Database!$B$3 -> £/annum | N7: =VLOOKUP(Output!$J$2,Translation!$A$2:$BF$16,18,FALSE) -> Saving | O7: =Database!$C$3 -> CO2/annum | Q7: =M7 -> £/annum | R7: =N7 -> Saving | S7: =O7 -> CO2/annum
E8: =IFERROR((M29+M36+M50+M57+M64+M71+M78+M85+M92+M99)*Database!S3,0) -> 638.55 | G8: =IFERROR(CONCATENATE(ROUND((((M29+M36+M50+M57+M64+M71+M78+M85+M92+M99)*Database!T3)/1000),1)," T"),0) -> 3 T | I8: =IFERROR((P29+P36+P50+P57+P64+P71+P78+P85+P92+P99)*Database!S3,0) -> 370.26 | J8: =IFERROR(IF(I8=0,0,(E8-I8)/E8),0) -> 0.4201550388 | K8: =IFERROR(CONCATENATE(ROUND((((P29+P36+P50+P57+P64+P71+P78+P85+P92+P99)*Database!T3)/1000),1)," T"),0) -> 1.7 T | M8: =IF(Database!Y54=Database!T54,IFERROR((R29+R36+R50+R57+R64+R71+R78+R85+R92+R99)*Database!S3,0),0) -> 358.82 | N8: =IFERROR(IF(M8=0,0,($E$8-M8)/$E$8),0) -> 0.4380706288 | O8: =IF(Database!Y54=Database!T54,IFERROR(CONCATENATE(ROUND((((R29+R36+R50+R57+R64+R71+R78+R85+R92+R99)*Database!T3)/1000),1)," T"),0)) -> 1.7 T | Q8: =IFERROR((T29+T36+T50+T57+T64+T71+T78+T85+T92+T99)*Database!S3,0) -> 358.82 | R8: =IFERROR(IF(Q8=0,0,(E8-Q8)/E8),0) -> 0.4380706288 | S8: =IFERROR(CONCATENATE(ROUND((((T29+T36+T50+T57+T64+T71+T78+T85+T92+T99)*Database!T3)/1000),1)," T"),0) -> 1.7 T
O10: FALSE
K12: =CONCATENATE(Output!A32,"/annum") -> €/annum | L12: =CONCATENATE(G7," (T)") -> CO2/annum (T) | M12: Saving
J13: =E6 -> Existing Installation | K13: =E8 -> 638.55 | L13: =ROUND((((M29+M36+M50+M57+M64+M71+M78+M85+M92+M99)*Database!T3)/1000),0) -> 3 | M13: 0
J14: =I6 -> VRVQ + Old IDUs | K14: =IF(L14=0,0,I8) -> 370.26 | L14: =ROUND((((P29+P36+P50+P57+P64+P71+P78+P85+P92+P99)*Database!T3)/1000),0) -> 2 | M14: =K14*J8 -> 155.5666047
J15: =M6 -> VRVQ + New IDUs | K15: =M8 -> 358.82 | L15: =ROUND((((R29+R36+R50+R57+R64+R71+R78+R85+R92+R99)*Database!T3)/1000),0) -> 2 | M15: =K15*N8 -> 157.188503
J16: =Q6 -> Based on the latest VRV Systems | K16: =Q8 -> 358.82 | L16: =ROUND((((T29+T36+T50+T57+T64+T71+T78+T85+T92+T99)*Database!T3)/1000),0) -> 2 | M16: =K16*R8 -> 157.188503
C21: =IF(O23=TRUE,"",VLOOKUP(Output!$J$2,Translation!$A$2:$BF$16,49,FALSE)) -> Show detailed view
C23: Project generated: | E23: =TODAY() -> 2013-10-08 | O23: FALSE
A25: =IF($A$28=1,1,0) -> 0 | K25: =VLOOKUP(Output!J2,Translation!A2:$BF$16,52,FALSE) -> Worst | L25: =VLOOKUP(Output!J2,Translation!A2:$BF$16,53,FALSE) -> Average | M25: =VLOOKUP(Output!J2,Translation!A2:$BF$16,54,FALSE) -> Best
A26: =IF($A$28=1,1,0) -> 0
A27: 0
A28: =IF(AND(B28=1,$O$23=TRUE),1,0) -> 0 | B28: =IF(Output!$D$5="Select Outdoor Unit",0,1) -> 1 | C28: Outdoor Unit 1 | H28: Indoor Units | L28: =VLOOKUP(Output!$J$2,Translation!$A$2:$BF$16,5,FALSE) -> Quantity | M28: =CONCATENATE(E6," (kWh)") -> Existing Installation (kWh) | P28: =CONCATENATE(I6," (kWh)") -> VRVQ + Old IDUs (kWh) | R28: =CONCATENATE(M6," (kWh)") -> VRVQ + New IDUs (kWh) | T28: =CONCATENATE(Q6," (kWh)") -> Based on the latest VRV Systems (kWh) | U28: =#REF! ->  | X28: 500
A29: =IF(AND(B29=1,$O$23=TRUE),1,0) -> 0 | B29: =IF(Output!$D$5="Select Outdoor Unit",0,IF(L29>0,1,0)) -> 0 | C29: =Output!D5 -> RSXY8K7 | H29: Wall Mounted | L29: =Indoor!C13 -> 0 | M29: =ROUND(Indoor!E153,0) -> 5805 | P29: =IFERROR(ROUND(Indoor!E173,0),0) -> 3366 | R29: =ROUND(Indoor!E163,0) -> 3262 | T29: =IFERROR(ROUND(Indoor!E183,0),0) -> 3262 | U29: =IFERROR(ROUND(((VLOOKUP(C29,Database!$A$8:$AR$54,36,FALSE))*Database!$U$3)+((VLOOKUP(C29,Database!$A$8:$AR$54,37,FALSE))*Database!$V$3),0),0) -> 0 | W29: =X29-X28 -> 3423.75 | X29: =SUM(M29:T34)/COUNTIF(M29:T34,">0") -> 3923.75 | Y29: =X29+X28 -> 4423.75
A30: 0 | B30: =IF(Output!$D$5="Select Outdoor Unit",0,IF(L30>0,1,0)) -> 0 | H30: Ceiling Mounted Cassette | L30: =Indoor!C25 -> 0
A31: 0 | B31: =IF(Output!$D$5="Select Outdoor Unit",0,IF(L31>0,1,0)) -> 1 | H31: =Lists!F4 -> Horizontal Ducted | L31: =Indoor!C37 -> 1
A32: 0 | B32: =IF(Output!$D$5="Select Outdoor Unit",0,IF(L32>0,1,0)) -> 1 | H32: Ceiling Suspended | L32: =Indoor!C49 -> 2
A33: 0 | B33: =IF(Output!$D$5="Select Outdoor Unit",0,IF(L33>0,1,0)) -> 0 | H33: Floor Standing | L33: =Indoor!C61 -> 0
A34: 0 | B34: =IF(Output!$D$5="Select Outdoor Unit",0,IF(L34>0,1,0)) -> 0 | H34: Concealed Floor | L34: =Indoor!C73 -> 0
A35: 0 | B35: =IF(Output!$F$5="Select Outdoor Unit",0,1) -> 0 | C35: Outdoor Unit 2 | H35: Indoor Units | L35: =L28 -> Quantity | M35: =M28 -> Existing Installation (kWh) | P35: =P28 -> VRVQ + Old IDUs (kWh) | R35: =R28 -> VRVQ + New IDUs (kWh) | T35: =T28 -> Based on the latest VRV Systems (kWh) | U35: =U28 -> 
A36: 0 | B36: =IF(Output!$F$5="Select Outdoor Unit",0,IF(L36>0,1,0)) -> 0 | C36: =Output!F5 -> Select Outdoor Unit | H36: Wall Mounted | L36: =Indoor!I13 -> 0 | M36: =IFERROR(ROUND(Indoor!E154,0),0) -> 0 | P36: =IFERROR(ROUND(Indoor!E174,0),0) -> 0 | R36: =IFERROR(ROUND(Indoor!E164,0),0) -> 0 | T36: =IFERROR(ROUND(Indoor!E184,0),0) -> 0 | U36: =IFERROR(ROUND(((VLOOKUP(C36,Database!$A$8:$AR$54,36,FALSE))*Database!$U$3)+((VLOOKUP(C36,Database!$A$8:$AR$54,37,FALSE))*Database!$V$3),0),0) -> 0 | W36: =X36-X28 ->  | X36: =SUM(M36:T41)/COUNTIF(M36:T41,">0") ->  | Y36: =X36+X28 -> 
A37: 0 | B37: =IF(Output!$F$5="Select Outdoor Unit",0,IF(L37>0,1,0)) -> 0 | H37: Ceiling Mounted Cassette | L37: =Indoor!I25 -> 0
A38: 0 | B38: =IF(Output!$F$5="Select Outdoor Unit",0,IF(L38>0,1,0)) -> 0 | H38: =H31 -> Horizontal Ducted | L38: =Indoor!I37 -> 0
A39: 0 | B39: =IF(Output!$F$5="Select Outdoor Unit",0,IF(L39>0,1,0)) -> 0 | H39: Ceiling Suspended | L39: =Indoor!I49 -> 0
A40: 0 | B40: =IF(Output!$F$5="Select Outdoor Unit",0,IF(L40>0,1,0)) -> 0 | H40: Floor Standing | L40: =Indoor!I61 -> 0
A41: 0 | B41: =IF(Output!$F$5="Select Outdoor Unit",0,IF(L41>0,1,0)) -> 0 | H41: Concealed Floor | L41: =Indoor!I73 -> 0
A42: =IF($A$49=1,1,IF(SUM($A$36:$A$41)=5,1,0)) -> 0
A43: 0
A44: 0
A45: 0
A46: 0
A47: 0
A48: 0
A49: 0 | B49: =IF(Output!$H$5="Select Outdoor Unit",0,1) -> 0 | C49: Outdoor Unit 3 | H49: Indoor Units | L49: =L28 -> Quantity | M49: =M35 -> Existing Installation (kWh) | P49: =P35 -> VRVQ + Old IDUs (kWh) | R49: =R35 -> VRVQ + New IDUs (kWh) | T49: =T35 -> Based on the latest VRV Systems (kWh) | U49: =U35 -> 
A50: 0 | B50: =IF(Output!$H$5="Select Outdoor Unit",0,IF(L50>0,1,0)) -> 0 | C50: =Output!H5 -> Select Outdoor Unit | H50: Wall Mounted | L50: =Indoor!O13 -> 0 | M50: =IFERROR(ROUND(Indoor!E155,0),0) -> 0 | P50: =IFERROR(ROUND(Indoor!E175,0),0) -> 0 | R50: =IFERROR(ROUND(Indoor!E165,0),0) -> 0 | T50: =IFERROR(ROUND(Indoor!E185,0),0) -> 0 | U50: =IFERROR(ROUND(((VLOOKUP(C50,Database!$A$8:$AR$54,36,FALSE))*Database!$U$3)+((VLOOKUP(C50,Database!$A$8:$AR$54,37,FALSE))*Database!$V$3),0),0) -> 0 | W50: =X50-X28 ->  | X50: =SUM(M50:T55)/COUNTIF(M50:T55,">0") ->  | Y50: =X50+X28 -> 
A51: 0 | B51: =IF(Output!$H$5="Select Outdoor Unit",0,IF(L51>0,1,0)) -> 0 | H51: Ceiling Mounted Cassette | L51: =Indoor!O25 -> 0
A52: 0 | B52: =IF(Output!$H$5="Select Outdoor Unit",0,IF(L52>0,1,0)) -> 0 | H52: =H38 -> Horizontal Ducted | L52: =Indoor!O37 -> 0
A53: 0 | B53: =IF(Output!$H$5="Select Outdoor Unit",0,IF(L53>0,1,0)) -> 0 | H53: Ceiling Suspended | L53: =Indoor!O49 -> 0
A54: 0 | B54: =IF(Output!$H$5="Select Outdoor Unit",0,IF(L54>0,1,0)) -> 0 | H54: Floor Standing | L54: =Indoor!O61 -> 0
A55: 0 | B55: =IF(Output!$H$5="Select Outdoor Unit",0,IF(L55>0,1,0)) -> 0 | H55: Concealed Floor | L55: =Indoor!O73 -> 0
A56: 0 | B56: =IF(Output!$J$5="Select Outdoor Unit",0,1) -> 0 | C56: Outdoor Unit 4 | H56: Indoor Units | L56: =L28 -> Quantity | M56: =M49 -> Existing Installation (kWh) | P56: =P49 -> VRVQ + Old IDUs (kWh) | R56: =R49 -> VRVQ + New IDUs (kWh) | T56: =T49 -> Based on the latest VRV Systems (kWh) | U56: =U49 -> 
A57: 0 | B57: =IF(Output!$J$5="Select Outdoor Unit",0,IF(L57>0,1,0)) -> 0 | C57: =Output!J5 -> Select Outdoor Unit | H57: Wall Mounted | L57: =Indoor!U13 -> 0 | M57: =IFERROR(ROUND(Indoor!E156,0),0) -> 0 | P57: =IFERROR(ROUND(Indoor!E176,0),0) -> 0 | R57: =IFERROR(ROUND(Indoor!E166,0),0) -> 0 | T57: =IFERROR(ROUND(Indoor!E186,0),0) -> 0 | U57: =IFERROR(ROUND(((VLOOKUP(C57,Database!$A$8:$AR$54,36,FALSE))*Database!$U$3)+((VLOOKUP(C57,Database!$A$8:$AR$54,37,FALSE))*Database!$V$3),0),0) -> 0 | W57: =X57-X28 ->  | X57: =SUM(M57:T62)/COUNTIF(M57:T62,">0") ->  | Y57: =X57+X28 -> 
A58: 0 | B58: =IF(Output!$J$5="Select Outdoor Unit",0,IF(L58>0,1,0)) -> 0 | H58: Ceiling Mounted Cassette | L58: =Indoor!U25 -> 0
A59: 0 | B59: =IF(Output!$J$5="Select Outdoor Unit",0,IF(L59>0,1,0)) -> 0 | H59: =H52 -> Horizontal Ducted | L59: =Indoor!U37 -> 0
A60: 0 | B60: =IF(Output!$J$5="Select Outdoor Unit",0,IF(L60>0,1,0)) -> 0 | H60: Ceiling Suspended | L60: =Indoor!U49 -> 0
A61: 0 | B61: =IF(Output!$J$5="Select Outdoor Unit",0,IF(L61>0,1,0)) -> 0 | H61: Floor Standing | L61: =Indoor!U61 -> 0
A62: 0 | B62: =IF(Output!$J$5="Select Outdoor Unit",0,IF(L62>0,1,0)) -> 0 | H62: Concealed Floor | L62: =Indoor!U73 -> 0
A63: 0 | B63: =IF(Output!$L$5="Select Outdoor Unit",0,1) -> 0 | C63: Outdoor Unit 5 | H63: Indoor Units | L63: =L28 -> Quantity | M63: =M56 -> Existing Installation (kWh) | P63: =P56 -> VRVQ + Old IDUs (kWh) | R63: =R56 -> VRVQ + New IDUs (kWh) | T63: =T56 -> Based on the latest VRV Systems (kWh) | U63: =U56 -> 
A64: 0 | B64: =IF(Output!$L$5="Select Outdoor Unit",0,IF(L64>0,1,0)) -> 0 | C64: =Output!L5 -> Select Outdoor Unit | H64: Wall Mounted | L64: =Indoor!AA13 -> 0 | M64: =IFERROR(ROUND(Indoor!E157,0),0) -> 0 | P64: =IFERROR(ROUND(Indoor!E177,0),0) -> 0 | R64: =IFERROR(ROUND(Indoor!E167,0),0) -> 0 | T64: =IFERROR(ROUND(Indoor!E187,0),0) -> 0 | U64: =IFERROR(ROUND(((VLOOKUP(C64,Database!$A$8:$AR$54,36,FALSE))*Database!$U$3)+((VLOOKUP(C64,Database!$A$8:$AR$54,37,FALSE))*Database!$V$3),0),0) -> 0 | W64: =X64-X28 ->  | X64: =SUM(M64:T69)/COUNTIF(M64:T69,">0") ->  | Y64: =X64+X28 -> 
A65: 0 | B65: =IF(Output!$L$5="Select Outdoor Unit",0,IF(L65>0,1,0)) -> 0 | H65: Ceiling Mounted Cassette | L65: =Indoor!AA25 -> 0
A66: 0 | B66: =IF(Output!$L$5="Select Outdoor Unit",0,IF(L66>0,1,0)) -> 0 | H66: =H59 -> Horizontal Ducted | L66: =Indoor!AA37 -> 0
A67: 0 | B67: =IF(Output!$L$5="Select Outdoor Unit",0,IF(L67>0,1,0)) -> 0 | H67: Ceiling Suspended | L67: =Indoor!AA49 -> 0
A68: 0 | B68: =IF(Output!$L$5="Select Outdoor Unit",0,IF(L68>0,1,0)) -> 0 | H68: Floor Standing | L68: =Indoor!AA61 -> 0
A69: 0 | B69: =IF(Output!$L$5="Select Outdoor Unit",0,IF(L69>0,1,0)) -> 0 | H69: Concealed Floor | L69: =Indoor!AA73 -> 0
A70: 0 | B70: =IF(Output!$N$5="Select Outdoor Unit",0,1) -> 0 | C70: Outdoor Unit 6 | H70: Indoor Units | L70: =L28 -> Quantity | M70: =M63 -> Existing Installation (kWh) | P70: =P63 -> VRVQ + Old IDUs (kWh) | R70: =R63 -> VRVQ + New IDUs (kWh) | T70: =T63 -> Based on the latest VRV Systems (kWh) | U70: =U63 -> 
A71: 0 | B71: =IF(Output!$N$5="Select Outdoor Unit",0,IF(L71>0,1,0)) -> 0 | C71: =Output!N5 -> Select Outdoor Unit | H71: Wall Mounted | L71: =Indoor!AG13 -> 0 | M71: =IFERROR(ROUND(Indoor!E158,0),0) -> 0 | P71: =IFERROR(ROUND(Indoor!E178,0),0) -> 0 | R71: =IFERROR(ROUND(Indoor!E168,0),0) -> 0 | T71: =IFERROR(ROUND(Indoor!E188,0),0) -> 0 | U71: =IFERROR(ROUND(((VLOOKUP(C71,Database!$A$8:$AR$54,36,FALSE))*Database!$U$3)+((VLOOKUP(C71,Database!$A$8:$AR$54,37,FALSE))*Database!$V$3),0),0) -> 0 | W71: =X71-X28 ->  | X71: =SUM(M71:T76)/COUNTIF(M71:T76,">0") ->  | Y71: =X71+X28 -> 
A72: 0 | B72: =IF(Output!$N$5="Select Outdoor Unit",0,IF(L72>0,1,0)) -> 0 | H72: Ceiling Mounted Cassette | L72: =Indoor!AG25 -> 0
A73: 0 | B73: =IF(Output!$N$5="Select Outdoor Unit",0,IF(L73>0,1,0)) -> 0 | H73: =H66 -> Horizontal Ducted | L73: =Indoor!AG37 -> 0
A74: 0 | B74: =IF(Output!$N$5="Select Outdoor Unit",0,IF(L74>0,1,0)) -> 0 | H74: Ceiling Suspended | L74: =Indoor!AG49 -> 0
A75: 0 | B75: =IF(Output!$N$5="Select Outdoor Unit",0,IF(L75>0,1,0)) -> 0 | H75: Floor Standing | L75: =Indoor!AG61 -> 0
A76: 0 | B76: =IF(Output!$N$5="Select Outdoor Unit",0,IF(L76>0,1,0)) -> 0 | H76: Concealed Floor | L76: =Indoor!AG73 -> 0
A77: 0 | B77: =IF(Output!$P$5="Select Outdoor Unit",0,1) -> 0 | C77: Outdoor Unit 7 | H77: Indoor Units | L77: =L28 -> Quantity | M77: =M70 -> Existing Installation (kWh) | P77: =P70 -> VRVQ + Old IDUs (kWh) | R77: =R70 -> VRVQ + New IDUs (kWh) | T77: =T70 -> Based on the latest VRV Systems (kWh) | U77: =U70 -> 
A78: 0 | B78: =IF(Output!$P$5="Select Outdoor Unit",0,IF(L78>0,1,0)) -> 0 | C78: =Output!P5 -> Select Outdoor Unit | H78: Wall Mounted | L78: =Indoor!AM13 -> 0 | M78: =IFERROR(ROUND(Indoor!E159,0),0) -> 0 | P78: =IFERROR(ROUND(Indoor!E179,0),0) -> 0 | R78: =IFERROR(ROUND(Indoor!E169,0),0) -> 0 | T78: =IFERROR(ROUND(Indoor!E189,0),0) -> 0 | U78: =IFERROR(ROUND(((VLOOKUP(C78,Database!$A$8:$AR$54,36,FALSE))*Database!$U$3)+((VLOOKUP(C78,Database!$A$8:$AR$54,37,FALSE))*Database!$V$3),0),0) -> 0 | W78: =X78-X28 ->  | X78: =SUM(M78:T83)/COUNTIF(M78:T83,">0") ->  | Y78: =X78+X28 -> 
A79: 0 | B79: =IF(Output!$P$5="Select Outdoor Unit",0,IF(L79>0,1,0)) -> 0 | H79: Ceiling Mounted Cassette | L79: =Indoor!AM25 -> 0
A80: 0 | B80: =IF(Output!$P$5="Select Outdoor Unit",0,IF(L80>0,1,0)) -> 0 | H80: =H73 -> Horizontal Ducted | L80: =Indoor!AM37 -> 0
A81: 0 | B81: =IF(Output!$P$5="Select Outdoor Unit",0,IF(L81>0,1,0)) -> 0 | H81: Ceiling Suspended | L81: =Indoor!AM49 -> 0
A82: 0 | B82: =IF(Output!$P$5="Select Outdoor Unit",0,IF(L82>0,1,0)) -> 0 | H82: Floor Standing | L82: =Indoor!AM61 -> 0
A83: 0 | B83: =IF(Output!$P$5="Select Outdoor Unit",0,IF(L83>0,1,0)) -> 0 | H83: Concealed Floor | L83: =Indoor!AM73 -> 0
A84: 0 | B84: =IF(Output!$R$5="Select Outdoor Unit",0,1) -> 0 | C84: Outdoor Unit 8 | H84: Indoor Units | L84: =L28 -> Quantity | M84: =M77 -> Existing Installation (kWh) | P84: =P77 -> VRVQ + Old IDUs (kWh) | R84: =R77 -> VRVQ + New IDUs (kWh) | T84: =T77 -> Based on the latest VRV Systems (kWh) | U84: =U77 -> 
A85: 0 | B85: =IF(Output!$R$5="Select Outdoor Unit",0,IF(L85>0,1,0)) -> 0 | C85: =Output!R5 -> Select Outdoor Unit | H85: Wall Mounted | L85: =Indoor!AS13 -> 0 | M85: =IFERROR(ROUND(Indoor!E160,0),0) -> 0 | P85: =IFERROR(ROUND(Indoor!E180,0),0) -> 0 | R85: =IFERROR(ROUND(Indoor!E170,0),0) -> 0 | T85: =IFERROR(ROUND(Indoor!E190,0),0) -> 0 | U85: =IFERROR(ROUND(((VLOOKUP(C85,Database!$A$8:$AR$54,36,FALSE))*Database!$U$3)+((VLOOKUP(C85,Database!$A$8:$AR$54,37,FALSE))*Database!$V$3),0),0) -> 0 | W85: =X85-X28 ->  | X85: =SUM(M85:T90)/COUNTIF(M85:T90,">0") ->  | Y85: =X85+X28 -> 
A86: 0 | B86: =IF(Output!$R$5="Select Outdoor Unit",0,IF(L86>0,1,0)) -> 0 | H86: Ceiling Mounted Cassette | L86: =Indoor!AS25 -> 0
A87: 0 | B87: =IF(Output!$R$5="Select Outdoor Unit",0,IF(L87>0,1,0)) -> 0 | H87: =H80 -> Horizontal Ducted | L87: =Indoor!AS37 -> 0
A88: 0 | B88: =IF(Output!$R$5="Select Outdoor Unit",0,IF(L88>0,1,0)) -> 0 | H88: Ceiling Suspended | L88: =Indoor!AS49 -> 0
A89: 0 | B89: =IF(Output!$R$5="Select Outdoor Unit",0,IF(L89>0,1,0)) -> 0 | H89: Floor Standing | L89: =Indoor!AS61 -> 0
A90: 0 | B90: =IF(Output!$R$5="Select Outdoor Unit",0,IF(L90>0,1,0)) -> 0 | H90: Concealed Floor | L90: =Indoor!AS73 -> 0
A91: 0 | B91: =IF(Output!$T$5="Select Outdoor Unit",0,1) -> 0 | C91: Outdoor Unit 9 | H91: Indoor Units | L91: =L28 -> Quantity | M91: =M84 -> Existing Installation (kWh) | P91: =P84 -> VRVQ + Old IDUs (kWh) | R91: =R84 -> VRVQ + New IDUs (kWh) | T91: =T84 -> Based on the latest VRV Systems (kWh) | U91: =U84 -> 
A92: 0 | B92: =IF(Output!$T$5="Select Outdoor Unit",0,IF(L92>0,1,0)) -> 0 | C92: =Output!T5 -> Select Outdoor Unit | H92: Wall Mounted | L92: =Indoor!AY13 -> 0 | M92: =IFERROR(ROUND(Indoor!E161,0),0) -> 0 | P92: =IFERROR(ROUND(Indoor!E181,0),0) -> 0 | R92: =IFERROR(ROUND(Indoor!E171,0),0) -> 0 | T92: =IFERROR(ROUND(Indoor!E191,0),0) -> 0 | U92: =IFERROR(ROUND(((VLOOKUP(C92,Database!$A$8:$AR$54,36,FALSE))*Database!$U$3)+((VLOOKUP(C92,Database!$A$8:$AR$54,37,FALSE))*Database!$V$3),0),0) -> 0 | W92: =X92-X28 ->  | X92: =SUM(M92:T97)/COUNTIF(M92:T97,">0") ->  | Y92: =X92+X28 -> 
A93: 0 | B93: =IF(Output!$T$5="Select Outdoor Unit",0,IF(L93>0,1,0)) -> 0 | H93: Ceiling Mounted Cassette | L93: =Indoor!AY25 -> 0
A94: 0 | B94: =IF(Output!$T$5="Select Outdoor Unit",0,IF(L94>0,1,0)) -> 0 | H94: =H87 -> Horizontal Ducted | L94: =Indoor!AY37 -> 0
A95: 0 | B95: =IF(Output!$T$5="Select Outdoor Unit",0,IF(L95>0,1,0)) -> 0 | H95: Ceiling Suspended | L95: =Indoor!AY49 -> 0
A96: 0 | B96: =IF(Output!$T$5="Select Outdoor Unit",0,IF(L96>0,1,0)) -> 0 | H96: Floor Standing | L96: =Indoor!AY61 -> 0
A97: 0 | B97: =IF(Output!$T$5="Select Outdoor Unit",0,IF(L97>0,1,0)) -> 0 | H97: Concealed Floor | L97: =Indoor!AY73 -> 0
A98: 0 | B98: =IF(Output!$V$5="Select Outdoor Unit",0,1) -> 0 | C98: Outdoor Unit 10 | H98: Indoor Units | L98: =L28 -> Quantity | M98: =M91 -> Existing Installation (kWh) | P98: =P91 -> VRVQ + Old IDUs (kWh) | R98: =R91 -> VRVQ + New IDUs (kWh) | T98: =T91 -> Based on the latest VRV Systems (kWh) | U98: =U91 -> 
A99: 0 | B99: =IF(Output!$V$5="Select Outdoor Unit",0,IF(L99>0,1,0)) -> 0 | C99: =Output!V5 -> Select Outdoor Unit | H99: Wall Mounted | L99: =Indoor!BE13 -> 0 | M99: =IFERROR(ROUND(Indoor!E162,0),0) -> 0 | P99: =IFERROR(ROUND(Indoor!E182,0),0) -> 0 | R99: =IFERROR(ROUND(Indoor!E172,0),0) -> 0 | T99: =IFERROR(ROUND(Indoor!E192,0),0) -> 0 | U99: =IFERROR(ROUND(((VLOOKUP(C99,Database!$A$8:$AR$54,36,FALSE))*Database!$U$3)+((VLOOKUP(C99,Database!$A$8:$AR$54,37,FALSE))*Database!$V$3),0),0) -> 0 | W99: =X99-X28 ->  | X99: =SUM(M99:T104)/COUNTIF(M99:T104,">0") ->  | Y99: =X99+X28 -> 
A100: 0 | B100: =IF(Output!$V$5="Select Outdoor Unit",0,IF(L100>0,1,0)) -> 0 | H100: Ceiling Mounted Cassette | L100: =Indoor!BE25 -> 0
A101: 0 | B101: =IF(Output!$V$5="Select Outdoor Unit",0,IF(L101>0,1,0)) -> 0 | H101: =H94 -> Horizontal Ducted | L101: =Indoor!BE37 -> 0
A102: 0 | B102: =IF(Output!$V$5="Select Outdoor Unit",0,IF(L102>0,1,0)) -> 0 | H102: Ceiling Suspended | L102: =Indoor!BE49 -> 0
A103: 0 | B103: =IF(Output!$V$5="Select Outdoor Unit",0,IF(L103>0,1,0)) -> 0 | H103: Floor Standing | L103: =Indoor!BE61 -> 0
A104: 0 | B104: =IF(Output!$V$5="Select Outdoor Unit",0,IF(L104>0,1,0)) -> 0 | H104: Concealed Floor | L104: =Indoor!BE73 -> 0

Sheet Output (hidden)
B1: =VLOOKUP($J$2,Translation!$A$2:$BF$16,22,FALSE) -> hours/day | C1: =VLOOKUP($J$2,Translation!$A$2:$BF$16,23,FALSE) -> days/week | D1: =VLOOKUP($J$2,Translation!$A$2:$BF$16,24,FALSE) -> weeks/year | E1: =VLOOKUP($J$2,Translation!$A$2:$BF$16,26,FALSE) -> cooling weeks | F1: =VLOOKUP($J$2,Translation!$A$2:$BF$16,25,FALSE) -> heating weeks | G1: =VLOOKUP($J$2,Translation!$A$2:$BF$16,27,FALSE) -> intermediate weeks | H1: =VLOOKUP($J$2,Translation!$A$2:$BF$16,31,FALSE) -> £/kWh | I1: =VLOOKUP($J$2,Translation!$A$2:$BF$16,15,FALSE) -> Carbon Equivalent | J1: Language | K1: =VLOOKUP($J$2,Translation!$A$2:$BF$16,38,FALSE) -> Number of Outdoor Units | L1: =VLOOKUP($J$2,Translation!$A$2:$BF$16,39,FALSE) -> Next | M1: =VLOOKUP($J$2,Translation!$A$2:$BF$16,40,FALSE) -> Back | N1: =VLOOKUP($J$2,Translation!$A$2:$BF$16,41,FALSE) -> Finish | O1: =VLOOKUP($J$2,Translation!$A$2:$BF$16,42,FALSE) -> If you start a new selection you will lose all the data relative to the current project. | P1: =VLOOKUP($J$2,Translation!$A$2:$BF$16,43,FALSE) -> Back to the current | Q1: =VLOOKUP($J$2,Translation!$A$2:$BF$16,44,FALSE) -> Start a new selection | R1: =VLOOKUP($J$2,Translation!$A$2:$BF$16,47,FALSE) -> Your current connection index is: | S1: =VLOOKUP($J$2,Translation!$A$2:$BF$16,50,FALSE) -> You have to use all the available slots for the Outdoor Units. If you want to reduce the size of the project go back to the welcome screen. | T1: =VLOOKUP(J2,Translation!A2:$BF$16,51,FALSE) -> Save as PDF | U1: =VLOOKUP(J2,Translation!A2:$BF$16,55,FALSE) -> The following results are based upon nominal conditions and are based on UK average conditions. | V1: =VLOOKUP(J2,Translation!A2:$BF$16,56,FALSE) -> Warning! The number of weeks selected is outside the maximum range! | W1: =VLOOKUP(J2,Translation!A2:$BF$16,58,FALSE) -> Insert Project Reference / Customer Name | X1: =VLOOKUP(J2,Translation!A2:$BG$16,59,FALSE) -> Select application: | Y1: =VLOOKUP(J2,Translation!A2:BL16,64,FALSE) -> Manual Setup | AC1: Heat Recovery VRV III
B2: =B3 -> 7 | C2: =C3 -> 5 | D2: 51 | E2: 14 | F2: 15 | G2: 22 | H2: 0.11 | I2: 0.527 | J2: English | AC2: VRV IV with Variable Refrigerant Effect
A3: Manual Setup | B3: 7 | C3: 5 | D3: 51 | E3: 14 | F3: 15 | G3: =D3-E3-F3 -> 22 | H3: 0.11 | I3: 0.527
B4: Number of Outdoor | C4: English | D4: Outdoor 1 | E4: Indoor Associated | F4: Outdoor 2 | G4: Indoor Associated | H4: Outdoor 3 | I4: Indoor Associated | J4: Outdoor 4 | K4: Indoor Associated | L4: Outdoor 5 | M4: Indoor Associated | N4: Outdoor 6 | O4: Indoor Associated | P4: Outdoor 7 | Q4: Indoor Associated | R4: Outdoor 8 | S4: Indoor Associated | T4: Outdoor 9 | U4: Indoor Associated | V4: Outdoor 10 | W4: Indoor Associated
B5: 1 | C5: Italiano | D5: RSXY8K7 | E5: Ceiling Suspended | F5: Select Outdoor Unit | H5: Select Outdoor Unit | J5: Select Outdoor Unit | L5: Select Outdoor Unit | N5: Select Outdoor Unit | P5: Select Outdoor Unit | R5: Select Outdoor Unit | T5: Select Outdoor Unit | V5: Select Outdoor Unit
A6: 1 | B6: =IF($D$5<>"Select Outdoor Unit",1,0) -> 1 | C6: Español | D6: 63 | E6: Ceiling Suspended
A7: 2 | B7: =IF($F$5<>"Select Outdoor Unit",1,0) -> 0 | C7: Française | D7: 100 | E7: Horizontal Ducted
A8: 3 | B8: =IF($H$5<>"Select Outdoor Unit",1,0) -> 0 | C8: Deutsch | D8: 31.25 | E8: Select To Remove Unit
A9: 4 | B9: =IF($J$5<>"Select Outdoor Unit",1,0) -> 0 | C9: Lang6 | D9: 0
A10: 5 | B10: =IF($L$5<>"Select Outdoor Unit",1,0) -> 0 | C10: Lang7
A11: 6 | B11: =IF($N$5<>"Select Outdoor Unit",1,0) -> 0 | C11: Lang8
A12: 7 | B12: =IF($P$5<>"Select Outdoor Unit",1,0) -> 0 | C12: Lang9
A13: 8 | B13: =IF($R$5<>"Select Outdoor Unit",1,0) -> 0 | C13: Lang10
A14: 9 | B14: =IF($T$5<>"Select Outdoor Unit",1,0) -> 0 | C14: Lang11
A15: 10 | B15: =IF($V$5<>"Select Outdoor Unit",1,0) -> 0 | C15: Lang12
B16: =B5-SUM(B6:B15) -> 0 | C16: Lang13
A17: Lang. | C17: Lang14
A18: TRUE | C18: Lang15
A20: CO2 Equivalent
A21: 0.527
A22: 0.517
A23: 0.537
A25: Application | B25: Custom Conditions | C25: Office
A26: =VLOOKUP($J$2,Translation!$A$2:$BK$16,60,FALSE) -> Meeting Room | B26: FALSE
A27: =VLOOKUP($J$2,Translation!$A$2:$BK$16,61,FALSE) -> Office
A28: =VLOOKUP($J$2,Translation!$A$2:$BK$16,62,FALSE) -> Restaurant
A29: =VLOOKUP($J$2,Translation!$A$2:$BK$16,63,FALSE) -> Shop Floor
A30: =IF(OR(C25=Translation!BH2,C25=Translation!BH3,Translation!BH4,C25=Translation!BH5,C25=Translation!BH6),1,IF(OR(C25=Translation!BI2,C25=Translation!BI3,C25=Translation!BI4,C25=Translation!BI5,C25=Translation!BI6),2,IF(OR(C25=Translation!BJ2,C25=Translation!BJ3,C25=Translation!BJ4,C25=Translation!BJ5,C25=Translation!BJ6),3,IF(OR(C25=Translation!BK2,C25=Translation!BK3,C25=Translation!BK4,C25=Translation!BK5,C25=Translation!BK6),4,0)))) -> 2
A32: €
A33: £
A34: €
C40: Min index | D40: =IFERROR(VLOOKUP(D5,Database!$A$8:$AQ$53,42,FALSE),0) -> 100 | F40: =IFERROR(VLOOKUP(F5,Database!$A$8:$AQ$53,42,FALSE),0) -> 0 | H40: =IFERROR(VLOOKUP(H5,Database!$A$8:$AQ$53,42,FALSE),0) -> 0 | J40: =IFERROR(VLOOKUP(J5,Database!$A$8:$AQ$53,42,FALSE),0) -> 0 | L40: =IFERROR(VLOOKUP(L5,Database!$A$8:$AQ$53,42,FALSE),0) -> 0 | N40: =IFERROR(VLOOKUP(N5,Database!$A$8:$AQ$53,42,FALSE),0) -> 0 | P40: =IFERROR(VLOOKUP(P5,Database!$A$8:$AQ$53,42,FALSE),0) -> 0 | R40: =IFERROR(VLOOKUP(R5,Database!$A$8:$AQ$53,42,FALSE),0) -> 0 | T40: =IFERROR(VLOOKUP(T5,Database!$A$8:$AQ$53,42,FALSE),0) -> 0 | V40: =IFERROR(VLOOKUP(V5,Database!$A$8:$AQ$53,42,FALSE),0) -> 0
C41: Current index | D41: =SUM(D6:D37) -> 194.25 | F41: =SUM(F6:F37) -> 0 | H41: 0 | J41: 0 | L41: 0 | N41: 0 | P41: 0 | R41: 0 | T41: 0 | V41: 0
C42: Max index | D42: =IFERROR(VLOOKUP(D5,Database!$A$8:$AQ$53,43,FALSE),0) -> 260 | F42: =IFERROR(VLOOKUP(F5,Database!$A$8:$AQ$53,43,FALSE),0) -> 0 | H42: =IFERROR(VLOOKUP(H5,Database!$A$8:$AQ$53,43,FALSE),0) -> 0 | J42: =IFERROR(VLOOKUP(J5,Database!$A$8:$AQ$53,43,FALSE),0) -> 0 | L42: =IFERROR(VLOOKUP(L5,Database!$A$8:$AQ$53,43,FALSE),0) -> 0 | N42: =IFERROR(VLOOKUP(N5,Database!$A$8:$AQ$53,43,FALSE),0) -> 0 | P42: =IFERROR(VLOOKUP(P5,Database!$A$8:$AQ$53,43,FALSE),0) -> 0 | R42: =IFERROR(VLOOKUP(R5,Database!$A$8:$AQ$53,43,FALSE),0) -> 0 | T42: =IFERROR(VLOOKUP(T5,Database!$A$8:$AQ$53,43,FALSE),0) -> 0 | V42: =IFERROR(VLOOKUP(V5,Database!$A$8:$AQ$53,43,FALSE),0) -> 0
C43: Index Warning | D43: =IF(D41<D40,CONCATENATE(VLOOKUP($J$2,Translation!$A$2:$BF$16,45,FALSE)," (Min. Index = ",D40,")"),IF(D41>D42,CONCATENATE(VLOOKUP($J$2,Translation!$A$2:$BF$16,46,FALSE)," (Max. Index = ",D42,")"),CONCATENATE("Capacity Index: ",D41))) -> Capacity Index: 194.25 | F43: =IF(F41<F40,CONCATENATE(VLOOKUP($J$2,Translation!$A$2:$BF$16,45,FALSE)," (Min. Index = ",F40,")"),IF(F41>F42,CONCATENATE(VLOOKUP($J$2,Translation!$A$2:$BF$16,46,FALSE)," (Max. Index = ",F42,")"),CONCATENATE("Capacity Index: ",F41))) -> Capacity Index: 0 | H43: =IF(H41<H40,CONCATENATE(VLOOKUP($J$2,Translation!$A$2:$BF$16,45,FALSE)," (Min. Index = ",H40,")"),IF(H41>H42,CONCATENATE(VLOOKUP($J$2,Translation!$A$2:$BF$16,46,FALSE)," (Max. Index = ",H42,")"),CONCATENATE("Capacity Index: ",H41))) -> Capacity Index: 0 | J43: =IF(J41<J40,CONCATENATE(VLOOKUP($J$2,Translation!$A$2:$BF$16,45,FALSE)," (Min. Index = ",J40,")"),IF(J41>J42,CONCATENATE(VLOOKUP($J$2,Translation!$A$2:$BF$16,46,FALSE)," (Max. Index = ",J42,")"),CONCATENATE("Capacity Index: ",J41))) -> Capacity Index: 0 | L43: =IF(L41<L40,CONCATENATE(VLOOKUP($J$2,Translation!$A$2:$BF$16,45,FALSE)," (Min. Index = ",L40,")"),IF(L41>L42,CONCATENATE(VLOOKUP($J$2,Translation!$A$2:$BF$16,46,FALSE)," (Max. Index = ",L42,")"),CONCATENATE("Capacity Index: ",L41))) -> Capacity Index: 0 | N43: =IF(N41<N40,CONCATENATE(VLOOKUP($J$2,Translation!$A$2:$BF$16,45,FALSE)," (Min. Index = ",N40,")"),IF(N41>N42,CONCATENATE(VLOOKUP($J$2,Translation!$A$2:$BF$16,46,FALSE)," (Max. Index = ",N42,")"),CONCATENATE("Capacity Index: ",N41))) -> Capacity Index: 0 | P43: =IF(P41<P40,CONCATENATE(VLOOKUP($J$2,Translation!$A$2:$BF$16,45,FALSE)," (Min. Index = ",P40,")"),IF(P41>P42,CONCATENATE(VLOOKUP($J$2,Translation!$A$2:$BF$16,46,FALSE)," (Max. Index = ",P42,")"),CONCATENATE("Capacity Index: ",P41))) -> Capacity Index: 0 | R43: =IF(R41<R40,CONCATENATE(VLOOKUP($J$2,Translation!$A$2:$BF$16,45,FALSE)," (Min. Index = ",R40,")"),IF(R41>R42,CONCATENATE(VLOOKUP($J$2,Translation!$A$2:$BF$16,46,FALSE)," (Max. Index = ",R42,")"),CONCATENATE("Capacity Index: ",R41))) -> Capacity Index: 0 | T43: =IF(T41<T40,CONCATENATE(VLOOKUP($J$2,Translation!$A$2:$BF$16,45,FALSE)," (Min. Index = ",T40,")"),IF(T41>T42,CONCATENATE(VLOOKUP($J$2,Translation!$A$2:$BF$16,46,FALSE)," (Max. Index = ",T42,")"),CONCATENATE("Capacity Index: ",T41))) -> Capacity Index: 0 | V43: =IF(V41<V40,CONCATENATE(VLOOKUP($J$2,Translation!$A$2:$BF$16,45,FALSE)," (Min. Index = ",V40,")"),IF(V41>V42,CONCATENATE(VLOOKUP($J$2,Translation!$A$2:$BF$16,46,FALSE)," (Max. Index = ",V42,")"),CONCATENATE("Capacity Index: ",V41))) -> Capacity Index: 0
C44: Max Indoor | D44: =IFERROR(VLOOKUP(D5,Database!$A$8:$AR$53,44,FALSE),0) -> 13 | F44: =IFERROR(VLOOKUP(F5,Database!$A$8:$AR$53,44,FALSE),0) -> 0 | H44: =IFERROR(VLOOKUP(H5,Database!$A$8:$AR$53,44,FALSE),0) -> 0 | J44: =IFERROR(VLOOKUP(J5,Database!$A$8:$AR$53,44,FALSE),0) -> 0 | L44: =IFERROR(VLOOKUP(L5,Database!$A$8:$AR$53,44,FALSE),0) -> 0 | N44: =IFERROR(VLOOKUP(N5,Database!$A$8:$AR$53,44,FALSE),0) -> 0 | P44: =IFERROR(VLOOKUP(P5,Database!$A$8:$AR$53,44,FALSE),0) -> 0 | R44: =IFERROR(VLOOKUP(R5,Database!$A$8:$AR$53,44,FALSE),0) -> 0 | T44: =IFERROR(VLOOKUP(T5,Database!$A$8:$AR$53,44,FALSE),0) -> 0 | V44: =IFERROR(VLOOKUP(V5,Database!$A$8:$AR$53,44,FALSE),0) -> 0
C45: Actual Indoor | D45: =COUNTA(E5:E36)-COUNTIF(E5:E36,Lists!$F$2) -> 3 | F45: =COUNTA(G5:G36)-COUNTIF(G5:G36,Lists!$F$2) -> 0 | H45: =COUNTA(I5:I36)-COUNTIF(I5:I36,Lists!$F$2) -> 0 | J45: =COUNTA(K5:K36)-COUNTIF(K5:K36,Lists!$F$2) -> 0 | L45: =COUNTA(M5:M36)-COUNTIF(M5:M36,Lists!$F$2) -> 0 | N45: =COUNTA(O5:O36)-COUNTIF(O5:O36,Lists!$F$2) -> 0 | P45: =COUNTA(Q5:Q36)-COUNTIF(Q5:Q36,Lists!$F$2) -> 0 | R45: =COUNTA(S5:S36)-COUNTIF(S5:S36,Lists!$F$2) -> 0 | T45: =COUNTA(U5:U36)-COUNTIF(U5:U36,Lists!$F$2) -> 0 | V45: =COUNTA(W5:W36)-COUNTIF(W5:W36,Lists!$F$2) -> 0
D46: =CONCATENATE($C$40,"= ",D40," - ",$C$42,"= ",D42) -> Min index= 100 - Max index= 260 | F46: =CONCATENATE($C$40,"= ",F40," - ",$C$42,"= ",F42) -> Min index= 0 - Max index= 0 | H46: Min index= 0 - Max index= 0 | J46: Min index= 0 - Max index= 0 | L46: Min index= 0 - Max index= 0 | N46: Min index= 0 - Max index= 0 | P46: Min index= 0 - Max index= 0 | R46: Min index= 0 - Max index= 0 | T46: Min index= 0 - Max index= 0 | V46: Min index= 0 - Max index= 0
E48: =IF(E5=Lists!$F$3,1,IF(E5=Lists!$F$5,2,IF(E5=Lists!$F$4,3,IF(E5=Lists!$F$6,4,IF(E5=Lists!$F$7,5,IF(E5=Lists!$F$8,6,0)))))) -> 2 | G48: =IF(G5=Lists!$F$3,1,IF(G5=Lists!$F$5,2,IF(G5=Lists!$F$4,3,IF(G5=Lists!$F$6,4,IF(G5=Lists!$F$7,5,IF(G5=Lists!$F$8,6,0)))))) -> 0 | I48: =IF(I5=Lists!$F$3,1,IF(I5=Lists!$F$5,2,IF(I5=Lists!$F$4,3,IF(I5=Lists!$F$6,4,IF(I5=Lists!$F$7,5,IF(I5=Lists!$F$8,6,0)))))) -> 0 | K48: =IF(K5=Lists!$F$3,1,IF(K5=Lists!$F$5,2,IF(K5=Lists!$F$4,3,IF(K5=Lists!$F$6,4,IF(K5=Lists!$F$7,5,IF(K5=Lists!$F$8,6,0)))))) -> 0 | M48: =IF(M5=Lists!$F$3,1,IF(M5=Lists!$F$5,2,IF(M5=Lists!$F$4,3,IF(M5=Lists!$F$6,4,IF(M5=Lists!$F$7,5,IF(M5=Lists!$F$8,6,0)))))) -> 0 | O48: =IF(O5=Lists!$F$3,1,IF(O5=Lists!$F$5,2,IF(O5=Lists!$F$4,3,IF(O5=Lists!$F$6,4,IF(O5=Lists!$F$7,5,IF(O5=Lists!$F$8,6,0)))))) -> 0 | Q48: =IF(Q5=Lists!$F$3,1,IF(Q5=Lists!$F$5,2,IF(Q5=Lists!$F$4,3,IF(Q5=Lists!$F$6,4,IF(Q5=Lists!$F$7,5,IF(Q5=Lists!$F$8,6,0)))))) -> 0 | S48: =IF(S5=Lists!$F$3,1,IF(S5=Lists!$F$5,2,IF(S5=Lists!$F$4,3,IF(S5=Lists!$F$6,4,IF(S5=Lists!$F$7,5,IF(S5=Lists!$F$8,6,0)))))) -> 0 | U48: =IF(U5=Lists!$F$3,1,IF(U5=Lists!$F$5,2,IF(U5=Lists!$F$4,3,IF(U5=Lists!$F$6,4,IF(U5=Lists!$F$7,5,IF(U5=Lists!$F$8,6,0)))))) -> 0 | W48: =IF(W5=Lists!$F$3,1,IF(W5=Lists!$F$5,2,IF(W5=Lists!$F$4,3,IF(W5=Lists!$F$6,4,IF(W5=Lists!$F$7,5,IF(W5=Lists!$F$8,6,0)))))) -> 0
E49: =IF(E6=Lists!$F$3,1,IF(E6=Lists!$F$5,2,IF(E6=Lists!$F$4,3,IF(E6=Lists!$F$6,4,IF(E6=Lists!$F$7,5,IF(E6=Lists!$F$8,6,0)))))) -> 2 | G49: =IF(G6=Lists!$F$3,1,IF(G6=Lists!$F$5,2,IF(G6=Lists!$F$4,3,IF(G6=Lists!$F$6,4,IF(G6=Lists!$F$7,5,IF(G6=Lists!$F$8,6,0)))))) -> 0 | I49: =IF(I6=Lists!$F$3,1,IF(I6=Lists!$F$5,2,IF(I6=Lists!$F$4,3,IF(I6=Lists!$F$6,4,IF(I6=Lists!$F$7,5,IF(I6=Lists!$F$8,6,0)))))) -> 0 | K49: =IF(K6=Lists!$F$3,1,IF(K6=Lists!$F$5,2,IF(K6=Lists!$F$4,3,IF(K6=Lists!$F$6,4,IF(K6=Lists!$F$7,5,IF(K6=Lists!$F$8,6,0)))))) -> 0 | M49: =IF(M6=Lists!$F$3,1,IF(M6=Lists!$F$5,2,IF(M6=Lists!$F$4,3,IF(M6=Lists!$F$6,4,IF(M6=Lists!$F$7,5,IF(M6=Lists!$F$8,6,0)))))) -> 0 | O49: =IF(O6=Lists!$F$3,1,IF(O6=Lists!$F$5,2,IF(O6=Lists!$F$4,3,IF(O6=Lists!$F$6,4,IF(O6=Lists!$F$7,5,IF(O6=Lists!$F$8,6,0)))))) -> 0 | Q49: =IF(Q6=Lists!$F$3,1,IF(Q6=Lists!$F$5,2,IF(Q6=Lists!$F$4,3,IF(Q6=Lists!$F$6,4,IF(Q6=Lists!$F$7,5,IF(Q6=Lists!$F$8,6,0)))))) -> 0 | S49: =IF(S6=Lists!$F$3,1,IF(S6=Lists!$F$5,2,IF(S6=Lists!$F$4,3,IF(S6=Lists!$F$6,4,IF(S6=Lists!$F$7,5,IF(S6=Lists!$F$8,6,0)))))) -> 0 | U49: =IF(U6=Lists!$F$3,1,IF(U6=Lists!$F$5,2,IF(U6=Lists!$F$4,3,IF(U6=Lists!$F$6,4,IF(U6=Lists!$F$7,5,IF(U6=Lists!$F$8,6,0)))))) -> 0 | W49: =IF(W6=Lists!$F$3,1,IF(W6=Lists!$F$5,2,IF(W6=Lists!$F$4,3,IF(W6=Lists!$F$6,4,IF(W6=Lists!$F$7,5,IF(W6=Lists!$F$8,6,0)))))) -> 0
E50: =IF(E7=Lists!$F$3,1,IF(E7=Lists!$F$5,2,IF(E7=Lists!$F$4,3,IF(E7=Lists!$F$6,4,IF(E7=Lists!$F$7,5,IF(E7=Lists!$F$8,6,0)))))) -> 3 | G50: =IF(G7=Lists!$F$3,1,IF(G7=Lists!$F$5,2,IF(G7=Lists!$F$4,3,IF(G7=Lists!$F$6,4,IF(G7=Lists!$F$7,5,IF(G7=Lists!$F$8,6,0)))))) -> 0 | I50: =IF(I7=Lists!$F$3,1,IF(I7=Lists!$F$5,2,IF(I7=Lists!$F$4,3,IF(I7=Lists!$F$6,4,IF(I7=Lists!$F$7,5,IF(I7=Lists!$F$8,6,0)))))) -> 0 | K50: =IF(K7=Lists!$F$3,1,IF(K7=Lists!$F$5,2,IF(K7=Lists!$F$4,3,IF(K7=Lists!$F$6,4,IF(K7=Lists!$F$7,5,IF(K7=Lists!$F$8,6,0)))))) -> 0 | M50: =IF(M7=Lists!$F$3,1,IF(M7=Lists!$F$5,2,IF(M7=Lists!$F$4,3,IF(M7=Lists!$F$6,4,IF(M7=Lists!$F$7,5,IF(M7=Lists!$F$8,6,0)))))) -> 0 | O50: =IF(O7=Lists!$F$3,1,IF(O7=Lists!$F$5,2,IF(O7=Lists!$F$4,3,IF(O7=Lists!$F$6,4,IF(O7=Lists!$F$7,5,IF(O7=Lists!$F$8,6,0)))))) -> 0 | Q50: =IF(Q7=Lists!$F$3,1,IF(Q7=Lists!$F$5,2,IF(Q7=Lists!$F$4,3,IF(Q7=Lists!$F$6,4,IF(Q7=Lists!$F$7,5,IF(Q7=Lists!$F$8,6,0)))))) -> 0 | S50: =IF(S7=Lists!$F$3,1,IF(S7=Lists!$F$5,2,IF(S7=Lists!$F$4,3,IF(S7=Lists!$F$6,4,IF(S7=Lists!$F$7,5,IF(S7=Lists!$F$8,6,0)))))) -> 0 | U50: =IF(U7=Lists!$F$3,1,IF(U7=Lists!$F$5,2,IF(U7=Lists!$F$4,3,IF(U7=Lists!$F$6,4,IF(U7=Lists!$F$7,5,IF(U7=Lists!$F$8,6,0)))))) -> 0 | W50: =IF(W7=Lists!$F$3,1,IF(W7=Lists!$F$5,2,IF(W7=Lists!$F$4,3,IF(W7=Lists!$F$6,4,IF(W7=Lists!$F$7,5,IF(W7=Lists!$F$8,6,0)))))) -> 0
E51: =IF(E8=Lists!$F$3,1,IF(E8=Lists!$F$5,2,IF(E8=Lists!$F$4,3,IF(E8=Lists!$F$6,4,IF(E8=Lists!$F$7,5,IF(E8=Lists!$F$8,6,0)))))) -> 0 | G51: =IF(G8=Lists!$F$3,1,IF(G8=Lists!$F$5,2,IF(G8=Lists!$F$4,3,IF(G8=Lists!$F$6,4,IF(G8=Lists!$F$7,5,IF(G8=Lists!$F$8,6,0)))))) -> 0 | I51: =IF(I8=Lists!$F$3,1,IF(I8=Lists!$F$5,2,IF(I8=Lists!$F$4,3,IF(I8=Lists!$F$6,4,IF(I8=Lists!$F$7,5,IF(I8=Lists!$F$8,6,0)))))) -> 0 | K51: =IF(K8=Lists!$F$3,1,IF(K8=Lists!$F$5,2,IF(K8=Lists!$F$4,3,IF(K8=Lists!$F$6,4,IF(K8=Lists!$F$7,5,IF(K8=Lists!$F$8,6,0)))))) -> 0 | M51: =IF(M8=Lists!$F$3,1,IF(M8=Lists!$F$5,2,IF(M8=Lists!$F$4,3,IF(M8=Lists!$F$6,4,IF(M8=Lists!$F$7,5,IF(M8=Lists!$F$8,6,0)))))) -> 0 | O51: =IF(O8=Lists!$F$3,1,IF(O8=Lists!$F$5,2,IF(O8=Lists!$F$4,3,IF(O8=Lists!$F$6,4,IF(O8=Lists!$F$7,5,IF(O8=Lists!$F$8,6,0)))))) -> 0 | Q51: =IF(Q8=Lists!$F$3,1,IF(Q8=Lists!$F$5,2,IF(Q8=Lists!$F$4,3,IF(Q8=Lists!$F$6,4,IF(Q8=Lists!$F$7,5,IF(Q8=Lists!$F$8,6,0)))))) -> 0 | S51: =IF(S8=Lists!$F$3,1,IF(S8=Lists!$F$5,2,IF(S8=Lists!$F$4,3,IF(S8=Lists!$F$6,4,IF(S8=Lists!$F$7,5,IF(S8=Lists!$F$8,6,0)))))) -> 0 | U51: =IF(U8=Lists!$F$3,1,IF(U8=Lists!$F$5,2,IF(U8=Lists!$F$4,3,IF(U8=Lists!$F$6,4,IF(U8=Lists!$F$7,5,IF(U8=Lists!$F$8,6,0)))))) -> 0 | W51: =IF(W8=Lists!$F$3,1,IF(W8=Lists!$F$5,2,IF(W8=Lists!$F$4,3,IF(W8=Lists!$F$6,4,IF(W8=Lists!$F$7,5,IF(W8=Lists!$F$8,6,0)))))) -> 0
E52: =IF(E9=Lists!$F$3,1,IF(E9=Lists!$F$5,2,IF(E9=Lists!$F$4,3,IF(E9=Lists!$F$6,4,IF(E9=Lists!$F$7,5,IF(E9=Lists!$F$8,6,0)))))) -> 0 | G52: =IF(G9=Lists!$F$3,1,IF(G9=Lists!$F$5,2,IF(G9=Lists!$F$4,3,IF(G9=Lists!$F$6,4,IF(G9=Lists!$F$7,5,IF(G9=Lists!$F$8,6,0)))))) -> 0 | I52: =IF(I9=Lists!$F$3,1,IF(I9=Lists!$F$5,2,IF(I9=Lists!$F$4,3,IF(I9=Lists!$F$6,4,IF(I9=Lists!$F$7,5,IF(I9=Lists!$F$8,6,0)))))) -> 0 | K52: =IF(K9=Lists!$F$3,1,IF(K9=Lists!$F$5,2,IF(K9=Lists!$F$4,3,IF(K9=Lists!$F$6,4,IF(K9=Lists!$F$7,5,IF(K9=Lists!$F$8,6,0)))))) -> 0 | M52: =IF(M9=Lists!$F$3,1,IF(M9=Lists!$F$5,2,IF(M9=Lists!$F$4,3,IF(M9=Lists!$F$6,4,IF(M9=Lists!$F$7,5,IF(M9=Lists!$F$8,6,0)))))) -> 0 | O52: =IF(O9=Lists!$F$3,1,IF(O9=Lists!$F$5,2,IF(O9=Lists!$F$4,3,IF(O9=Lists!$F$6,4,IF(O9=Lists!$F$7,5,IF(O9=Lists!$F$8,6,0)))))) -> 0 | Q52: =IF(Q9=Lists!$F$3,1,IF(Q9=Lists!$F$5,2,IF(Q9=Lists!$F$4,3,IF(Q9=Lists!$F$6,4,IF(Q9=Lists!$F$7,5,IF(Q9=Lists!$F$8,6,0)))))) -> 0 | S52: =IF(S9=Lists!$F$3,1,IF(S9=Lists!$F$5,2,IF(S9=Lists!$F$4,3,IF(S9=Lists!$F$6,4,IF(S9=Lists!$F$7,5,IF(S9=Lists!$F$8,6,0)))))) -> 0 | U52: =IF(U9=Lists!$F$3,1,IF(U9=Lists!$F$5,2,IF(U9=Lists!$F$4,3,IF(U9=Lists!$F$6,4,IF(U9=Lists!$F$7,5,IF(U9=Lists!$F$8,6,0)))))) -> 0 | W52: =IF(W9=Lists!$F$3,1,IF(W9=Lists!$F$5,2,IF(W9=Lists!$F$4,3,IF(W9=Lists!$F$6,4,IF(W9=Lists!$F$7,5,IF(W9=Lists!$F$8,6,0)))))) -> 0
E53: =IF(E10=Lists!$F$3,1,IF(E10=Lists!$F$5,2,IF(E10=Lists!$F$4,3,IF(E10=Lists!$F$6,4,IF(E10=Lists!$F$7,5,IF(E10=Lists!$F$8,6,0)))))) -> 0 | G53: =IF(G10=Lists!$F$3,1,IF(G10=Lists!$F$5,2,IF(G10=Lists!$F$4,3,IF(G10=Lists!$F$6,4,IF(G10=Lists!$F$7,5,IF(G10=Lists!$F$8,6,0)))))) -> 0 | I53: =IF(I10=Lists!$F$3,1,IF(I10=Lists!$F$5,2,IF(I10=Lists!$F$4,3,IF(I10=Lists!$F$6,4,IF(I10=Lists!$F$7,5,IF(I10=Lists!$F$8,6,0)))))) -> 0 | K53: =IF(K10=Lists!$F$3,1,IF(K10=Lists!$F$5,2,IF(K10=Lists!$F$4,3,IF(K10=Lists!$F$6,4,IF(K10=Lists!$F$7,5,IF(K10=Lists!$F$8,6,0)))))) -> 0 | M53: =IF(M10=Lists!$F$3,1,IF(M10=Lists!$F$5,2,IF(M10=Lists!$F$4,3,IF(M10=Lists!$F$6,4,IF(M10=Lists!$F$7,5,IF(M10=Lists!$F$8,6,0)))))) -> 0 | O53: =IF(O10=Lists!$F$3,1,IF(O10=Lists!$F$5,2,IF(O10=Lists!$F$4,3,IF(O10=Lists!$F$6,4,IF(O10=Lists!$F$7,5,IF(O10=Lists!$F$8,6,0)))))) -> 0 | Q53: =IF(Q10=Lists!$F$3,1,IF(Q10=Lists!$F$5,2,IF(Q10=Lists!$F$4,3,IF(Q10=Lists!$F$6,4,IF(Q10=Lists!$F$7,5,IF(Q10=Lists!$F$8,6,0)))))) -> 0 | S53: =IF(S10=Lists!$F$3,1,IF(S10=Lists!$F$5,2,IF(S10=Lists!$F$4,3,IF(S10=Lists!$F$6,4,IF(S10=Lists!$F$7,5,IF(S10=Lists!$F$8,6,0)))))) -> 0 | U53: =IF(U10=Lists!$F$3,1,IF(U10=Lists!$F$5,2,IF(U10=Lists!$F$4,3,IF(U10=Lists!$F$6,4,IF(U10=Lists!$F$7,5,IF(U10=Lists!$F$8,6,0)))))) -> 0 | W53: =IF(W10=Lists!$F$3,1,IF(W10=Lists!$F$5,2,IF(W10=Lists!$F$4,3,IF(W10=Lists!$F$6,4,IF(W10=Lists!$F$7,5,IF(W10=Lists!$F$8,6,0)))))) -> 0
E54: =IF(E11=Lists!$F$3,1,IF(E11=Lists!$F$5,2,IF(E11=Lists!$F$4,3,IF(E11=Lists!$F$6,4,IF(E11=Lists!$F$7,5,IF(E11=Lists!$F$8,6,0)))))) -> 0 | G54: =IF(G11=Lists!$F$3,1,IF(G11=Lists!$F$5,2,IF(G11=Lists!$F$4,3,IF(G11=Lists!$F$6,4,IF(G11=Lists!$F$7,5,IF(G11=Lists!$F$8,6,0)))))) -> 0 | I54: =IF(I11=Lists!$F$3,1,IF(I11=Lists!$F$5,2,IF(I11=Lists!$F$4,3,IF(I11=Lists!$F$6,4,IF(I11=Lists!$F$7,5,IF(I11=Lists!$F$8,6,0)))))) -> 0 | K54: =IF(K11=Lists!$F$3,1,IF(K11=Lists!$F$5,2,IF(K11=Lists!$F$4,3,IF(K11=Lists!$F$6,4,IF(K11=Lists!$F$7,5,IF(K11=Lists!$F$8,6,0)))))) -> 0 | M54: =IF(M11=Lists!$F$3,1,IF(M11=Lists!$F$5,2,IF(M11=Lists!$F$4,3,IF(M11=Lists!$F$6,4,IF(M11=Lists!$F$7,5,IF(M11=Lists!$F$8,6,0)))))) -> 0 | O54: =IF(O11=Lists!$F$3,1,IF(O11=Lists!$F$5,2,IF(O11=Lists!$F$4,3,IF(O11=Lists!$F$6,4,IF(O11=Lists!$F$7,5,IF(O11=Lists!$F$8,6,0)))))) -> 0 | Q54: =IF(Q11=Lists!$F$3,1,IF(Q11=Lists!$F$5,2,IF(Q11=Lists!$F$4,3,IF(Q11=Lists!$F$6,4,IF(Q11=Lists!$F$7,5,IF(Q11=Lists!$F$8,6,0)))))) -> 0 | S54: =IF(S11=Lists!$F$3,1,IF(S11=Lists!$F$5,2,IF(S11=Lists!$F$4,3,IF(S11=Lists!$F$6,4,IF(S11=Lists!$F$7,5,IF(S11=Lists!$F$8,6,0)))))) -> 0 | U54: =IF(U11=Lists!$F$3,1,IF(U11=Lists!$F$5,2,IF(U11=Lists!$F$4,3,IF(U11=Lists!$F$6,4,IF(U11=Lists!$F$7,5,IF(U11=Lists!$F$8,6,0)))))) -> 0 | W54: =IF(W11=Lists!$F$3,1,IF(W11=Lists!$F$5,2,IF(W11=Lists!$F$4,3,IF(W11=Lists!$F$6,4,IF(W11=Lists!$F$7,5,IF(W11=Lists!$F$8,6,0)))))) -> 0
E55: =IF(E12=Lists!$F$3,1,IF(E12=Lists!$F$5,2,IF(E12=Lists!$F$4,3,IF(E12=Lists!$F$6,4,IF(E12=Lists!$F$7,5,IF(E12=Lists!$F$8,6,0)))))) -> 0 | G55: =IF(G12=Lists!$F$3,1,IF(G12=Lists!$F$5,2,IF(G12=Lists!$F$4,3,IF(G12=Lists!$F$6,4,IF(G12=Lists!$F$7,5,IF(G12=Lists!$F$8,6,0)))))) -> 0 | I55: =IF(I12=Lists!$F$3,1,IF(I12=Lists!$F$5,2,IF(I12=Lists!$F$4,3,IF(I12=Lists!$F$6,4,IF(I12=Lists!$F$7,5,IF(I12=Lists!$F$8,6,0)))))) -> 0 | K55: =IF(K12=Lists!$F$3,1,IF(K12=Lists!$F$5,2,IF(K12=Lists!$F$4,3,IF(K12=Lists!$F$6,4,IF(K12=Lists!$F$7,5,IF(K12=Lists!$F$8,6,0)))))) -> 0 | M55: =IF(M12=Lists!$F$3,1,IF(M12=Lists!$F$5,2,IF(M12=Lists!$F$4,3,IF(M12=Lists!$F$6,4,IF(M12=Lists!$F$7,5,IF(M12=Lists!$F$8,6,0)))))) -> 0 | O55: =IF(O12=Lists!$F$3,1,IF(O12=Lists!$F$5,2,IF(O12=Lists!$F$4,3,IF(O12=Lists!$F$6,4,IF(O12=Lists!$F$7,5,IF(O12=Lists!$F$8,6,0)))))) -> 0 | Q55: =IF(Q12=Lists!$F$3,1,IF(Q12=Lists!$F$5,2,IF(Q12=Lists!$F$4,3,IF(Q12=Lists!$F$6,4,IF(Q12=Lists!$F$7,5,IF(Q12=Lists!$F$8,6,0)))))) -> 0 | S55: =IF(S12=Lists!$F$3,1,IF(S12=Lists!$F$5,2,IF(S12=Lists!$F$4,3,IF(S12=Lists!$F$6,4,IF(S12=Lists!$F$7,5,IF(S12=Lists!$F$8,6,0)))))) -> 0 | U55: =IF(U12=Lists!$F$3,1,IF(U12=Lists!$F$5,2,IF(U12=Lists!$F$4,3,IF(U12=Lists!$F$6,4,IF(U12=Lists!$F$7,5,IF(U12=Lists!$F$8,6,0)))))) -> 0 | W55: =IF(W12=Lists!$F$3,1,IF(W12=Lists!$F$5,2,IF(W12=Lists!$F$4,3,IF(W12=Lists!$F$6,4,IF(W12=Lists!$F$7,5,IF(W12=Lists!$F$8,6,0)))))) -> 0
E56: =IF(E13=Lists!$F$3,1,IF(E13=Lists!$F$5,2,IF(E13=Lists!$F$4,3,IF(E13=Lists!$F$6,4,IF(E13=Lists!$F$7,5,IF(E13=Lists!$F$8,6,0)))))) -> 0 | G56: =IF(G13=Lists!$F$3,1,IF(G13=Lists!$F$5,2,IF(G13=Lists!$F$4,3,IF(G13=Lists!$F$6,4,IF(G13=Lists!$F$7,5,IF(G13=Lists!$F$8,6,0)))))) -> 0 | I56: =IF(I13=Lists!$F$3,1,IF(I13=Lists!$F$5,2,IF(I13=Lists!$F$4,3,IF(I13=Lists!$F$6,4,IF(I13=Lists!$F$7,5,IF(I13=Lists!$F$8,6,0)))))) -> 0 | K56: =IF(K13=Lists!$F$3,1,IF(K13=Lists!$F$5,2,IF(K13=Lists!$F$4,3,IF(K13=Lists!$F$6,4,IF(K13=Lists!$F$7,5,IF(K13=Lists!$F$8,6,0)))))) -> 0 | M56: =IF(M13=Lists!$F$3,1,IF(M13=Lists!$F$5,2,IF(M13=Lists!$F$4,3,IF(M13=Lists!$F$6,4,IF(M13=Lists!$F$7,5,IF(M13=Lists!$F$8,6,0)))))) -> 0 | O56: =IF(O13=Lists!$F$3,1,IF(O13=Lists!$F$5,2,IF(O13=Lists!$F$4,3,IF(O13=Lists!$F$6,4,IF(O13=Lists!$F$7,5,IF(O13=Lists!$F$8,6,0)))))) -> 0 | Q56: =IF(Q13=Lists!$F$3,1,IF(Q13=Lists!$F$5,2,IF(Q13=Lists!$F$4,3,IF(Q13=Lists!$F$6,4,IF(Q13=Lists!$F$7,5,IF(Q13=Lists!$F$8,6,0)))))) -> 0 | S56: =IF(S13=Lists!$F$3,1,IF(S13=Lists!$F$5,2,IF(S13=Lists!$F$4,3,IF(S13=Lists!$F$6,4,IF(S13=Lists!$F$7,5,IF(S13=Lists!$F$8,6,0)))))) -> 0 | U56: =IF(U13=Lists!$F$3,1,IF(U13=Lists!$F$5,2,IF(U13=Lists!$F$4,3,IF(U13=Lists!$F$6,4,IF(U13=Lists!$F$7,5,IF(U13=Lists!$F$8,6,0)))))) -> 0 | W56: =IF(W13=Lists!$F$3,1,IF(W13=Lists!$F$5,2,IF(W13=Lists!$F$4,3,IF(W13=Lists!$F$6,4,IF(W13=Lists!$F$7,5,IF(W13=Lists!$F$8,6,0)))))) -> 0
E57: =IF(E14=Lists!$F$3,1,IF(E14=Lists!$F$5,2,IF(E14=Lists!$F$4,3,IF(E14=Lists!$F$6,4,IF(E14=Lists!$F$7,5,IF(E14=Lists!$F$8,6,0)))))) -> 0 | G57: =IF(G14=Lists!$F$3,1,IF(G14=Lists!$F$5,2,IF(G14=Lists!$F$4,3,IF(G14=Lists!$F$6,4,IF(G14=Lists!$F$7,5,IF(G14=Lists!$F$8,6,0)))))) -> 0 | I57: =IF(I14=Lists!$F$3,1,IF(I14=Lists!$F$5,2,IF(I14=Lists!$F$4,3,IF(I14=Lists!$F$6,4,IF(I14=Lists!$F$7,5,IF(I14=Lists!$F$8,6,0)))))) -> 0 | K57: =IF(K14=Lists!$F$3,1,IF(K14=Lists!$F$5,2,IF(K14=Lists!$F$4,3,IF(K14=Lists!$F$6,4,IF(K14=Lists!$F$7,5,IF(K14=Lists!$F$8,6,0)))))) -> 0 | M57: =IF(M14=Lists!$F$3,1,IF(M14=Lists!$F$5,2,IF(M14=Lists!$F$4,3,IF(M14=Lists!$F$6,4,IF(M14=Lists!$F$7,5,IF(M14=Lists!$F$8,6,0)))))) -> 0 | O57: =IF(O14=Lists!$F$3,1,IF(O14=Lists!$F$5,2,IF(O14=Lists!$F$4,3,IF(O14=Lists!$F$6,4,IF(O14=Lists!$F$7,5,IF(O14=Lists!$F$8,6,0)))))) -> 0 | Q57: =IF(Q14=Lists!$F$3,1,IF(Q14=Lists!$F$5,2,IF(Q14=Lists!$F$4,3,IF(Q14=Lists!$F$6,4,IF(Q14=Lists!$F$7,5,IF(Q14=Lists!$F$8,6,0)))))) -> 0 | S57: =IF(S14=Lists!$F$3,1,IF(S14=Lists!$F$5,2,IF(S14=Lists!$F$4,3,IF(S14=Lists!$F$6,4,IF(S14=Lists!$F$7,5,IF(S14=Lists!$F$8,6,0)))))) -> 0 | U57: =IF(U14=Lists!$F$3,1,IF(U14=Lists!$F$5,2,IF(U14=Lists!$F$4,3,IF(U14=Lists!$F$6,4,IF(U14=Lists!$F$7,5,IF(U14=Lists!$F$8,6,0)))))) -> 0 | W57: =IF(W14=Lists!$F$3,1,IF(W14=Lists!$F$5,2,IF(W14=Lists!$F$4,3,IF(W14=Lists!$F$6,4,IF(W14=Lists!$F$7,5,IF(W14=Lists!$F$8,6,0)))))) -> 0
E58: =IF(E15=Lists!$F$3,1,IF(E15=Lists!$F$5,2,IF(E15=Lists!$F$4,3,IF(E15=Lists!$F$6,4,IF(E15=Lists!$F$7,5,IF(E15=Lists!$F$8,6,0)))))) -> 0 | G58: =IF(G15=Lists!$F$3,1,IF(G15=Lists!$F$5,2,IF(G15=Lists!$F$4,3,IF(G15=Lists!$F$6,4,IF(G15=Lists!$F$7,5,IF(G15=Lists!$F$8,6,0)))))) -> 0 | I58: =IF(I15=Lists!$F$3,1,IF(I15=Lists!$F$5,2,IF(I15=Lists!$F$4,3,IF(I15=Lists!$F$6,4,IF(I15=Lists!$F$7,5,IF(I15=Lists!$F$8,6,0)))))) -> 0 | K58: =IF(K15=Lists!$F$3,1,IF(K15=Lists!$F$5,2,IF(K15=Lists!$F$4,3,IF(K15=Lists!$F$6,4,IF(K15=Lists!$F$7,5,IF(K15=Lists!$F$8,6,0)))))) -> 0 | M58: =IF(M15=Lists!$F$3,1,IF(M15=Lists!$F$5,2,IF(M15=Lists!$F$4,3,IF(M15=Lists!$F$6,4,IF(M15=Lists!$F$7,5,IF(M15=Lists!$F$8,6,0)))))) -> 0 | O58: =IF(O15=Lists!$F$3,1,IF(O15=Lists!$F$5,2,IF(O15=Lists!$F$4,3,IF(O15=Lists!$F$6,4,IF(O15=Lists!$F$7,5,IF(O15=Lists!$F$8,6,0)))))) -> 0 | Q58: =IF(Q15=Lists!$F$3,1,IF(Q15=Lists!$F$5,2,IF(Q15=Lists!$F$4,3,IF(Q15=Lists!$F$6,4,IF(Q15=Lists!$F$7,5,IF(Q15=Lists!$F$8,6,0)))))) -> 0 | S58: =IF(S15=Lists!$F$3,1,IF(S15=Lists!$F$5,2,IF(S15=Lists!$F$4,3,IF(S15=Lists!$F$6,4,IF(S15=Lists!$F$7,5,IF(S15=Lists!$F$8,6,0)))))) -> 0 | U58: =IF(U15=Lists!$F$3,1,IF(U15=Lists!$F$5,2,IF(U15=Lists!$F$4,3,IF(U15=Lists!$F$6,4,IF(U15=Lists!$F$7,5,IF(U15=Lists!$F$8,6,0)))))) -> 0 | W58: =IF(W15=Lists!$F$3,1,IF(W15=Lists!$F$5,2,IF(W15=Lists!$F$4,3,IF(W15=Lists!$F$6,4,IF(W15=Lists!$F$7,5,IF(W15=Lists!$F$8,6,0)))))) -> 0
E59: =IF(E16=Lists!$F$3,1,IF(E16=Lists!$F$5,2,IF(E16=Lists!$F$4,3,IF(E16=Lists!$F$6,4,IF(E16=Lists!$F$7,5,IF(E16=Lists!$F$8,6,0)))))) -> 0 | G59: =IF(G16=Lists!$F$3,1,IF(G16=Lists!$F$5,2,IF(G16=Lists!$F$4,3,IF(G16=Lists!$F$6,4,IF(G16=Lists!$F$7,5,IF(G16=Lists!$F$8,6,0)))))) -> 0 | I59: =IF(I16=Lists!$F$3,1,IF(I16=Lists!$F$5,2,IF(I16=Lists!$F$4,3,IF(I16=Lists!$F$6,4,IF(I16=Lists!$F$7,5,IF(I16=Lists!$F$8,6,0)))))) -> 0 | K59: =IF(K16=Lists!$F$3,1,IF(K16=Lists!$F$5,2,IF(K16=Lists!$F$4,3,IF(K16=Lists!$F$6,4,IF(K16=Lists!$F$7,5,IF(K16=Lists!$F$8,6,0)))))) -> 0 | M59: =IF(M16=Lists!$F$3,1,IF(M16=Lists!$F$5,2,IF(M16=Lists!$F$4,3,IF(M16=Lists!$F$6,4,IF(M16=Lists!$F$7,5,IF(M16=Lists!$F$8,6,0)))))) -> 0 | O59: =IF(O16=Lists!$F$3,1,IF(O16=Lists!$F$5,2,IF(O16=Lists!$F$4,3,IF(O16=Lists!$F$6,4,IF(O16=Lists!$F$7,5,IF(O16=Lists!$F$8,6,0)))))) -> 0 | Q59: =IF(Q16=Lists!$F$3,1,IF(Q16=Lists!$F$5,2,IF(Q16=Lists!$F$4,3,IF(Q16=Lists!$F$6,4,IF(Q16=Lists!$F$7,5,IF(Q16=Lists!$F$8,6,0)))))) -> 0 | S59: =IF(S16=Lists!$F$3,1,IF(S16=Lists!$F$5,2,IF(S16=Lists!$F$4,3,IF(S16=Lists!$F$6,4,IF(S16=Lists!$F$7,5,IF(S16=Lists!$F$8,6,0)))))) -> 0 | U59: =IF(U16=Lists!$F$3,1,IF(U16=Lists!$F$5,2,IF(U16=Lists!$F$4,3,IF(U16=Lists!$F$6,4,IF(U16=Lists!$F$7,5,IF(U16=Lists!$F$8,6,0)))))) -> 0 | W59: =IF(W16=Lists!$F$3,1,IF(W16=Lists!$F$5,2,IF(W16=Lists!$F$4,3,IF(W16=Lists!$F$6,4,IF(W16=Lists!$F$7,5,IF(W16=Lists!$F$8,6,0)))))) -> 0
E60: =IF(E17=Lists!$F$3,1,IF(E17=Lists!$F$5,2,IF(E17=Lists!$F$4,3,IF(E17=Lists!$F$6,4,IF(E17=Lists!$F$7,5,IF(E17=Lists!$F$8,6,0)))))) -> 0 | G60: =IF(G17=Lists!$F$3,1,IF(G17=Lists!$F$5,2,IF(G17=Lists!$F$4,3,IF(G17=Lists!$F$6,4,IF(G17=Lists!$F$7,5,IF(G17=Lists!$F$8,6,0)))))) -> 0 | I60: =IF(I17=Lists!$F$3,1,IF(I17=Lists!$F$5,2,IF(I17=Lists!$F$4,3,IF(I17=Lists!$F$6,4,IF(I17=Lists!$F$7,5,IF(I17=Lists!$F$8,6,0)))))) -> 0 | K60: =IF(K17=Lists!$F$3,1,IF(K17=Lists!$F$5,2,IF(K17=Lists!$F$4,3,IF(K17=Lists!$F$6,4,IF(K17=Lists!$F$7,5,IF(K17=Lists!$F$8,6,0)))))) -> 0 | M60: =IF(M17=Lists!$F$3,1,IF(M17=Lists!$F$5,2,IF(M17=Lists!$F$4,3,IF(M17=Lists!$F$6,4,IF(M17=Lists!$F$7,5,IF(M17=Lists!$F$8,6,0)))))) -> 0 | O60: =IF(O17=Lists!$F$3,1,IF(O17=Lists!$F$5,2,IF(O17=Lists!$F$4,3,IF(O17=Lists!$F$6,4,IF(O17=Lists!$F$7,5,IF(O17=Lists!$F$8,6,0)))))) -> 0 | Q60: =IF(Q17=Lists!$F$3,1,IF(Q17=Lists!$F$5,2,IF(Q17=Lists!$F$4,3,IF(Q17=Lists!$F$6,4,IF(Q17=Lists!$F$7,5,IF(Q17=Lists!$F$8,6,0)))))) -> 0 | S60: =IF(S17=Lists!$F$3,1,IF(S17=Lists!$F$5,2,IF(S17=Lists!$F$4,3,IF(S17=Lists!$F$6,4,IF(S17=Lists!$F$7,5,IF(S17=Lists!$F$8,6,0)))))) -> 0 | U60: =IF(U17=Lists!$F$3,1,IF(U17=Lists!$F$5,2,IF(U17=Lists!$F$4,3,IF(U17=Lists!$F$6,4,IF(U17=Lists!$F$7,5,IF(U17=Lists!$F$8,6,0)))))) -> 0 | W60: =IF(W17=Lists!$F$3,1,IF(W17=Lists!$F$5,2,IF(W17=Lists!$F$4,3,IF(W17=Lists!$F$6,4,IF(W17=Lists!$F$7,5,IF(W17=Lists!$F$8,6,0)))))) -> 0
E61: =IF(E18=Lists!$F$3,1,IF(E18=Lists!$F$5,2,IF(E18=Lists!$F$4,3,IF(E18=Lists!$F$6,4,IF(E18=Lists!$F$7,5,IF(E18=Lists!$F$8,6,0)))))) -> 0 | G61: =IF(G18=Lists!$F$3,1,IF(G18=Lists!$F$5,2,IF(G18=Lists!$F$4,3,IF(G18=Lists!$F$6,4,IF(G18=Lists!$F$7,5,IF(G18=Lists!$F$8,6,0)))))) -> 0 | I61: =IF(I18=Lists!$F$3,1,IF(I18=Lists!$F$5,2,IF(I18=Lists!$F$4,3,IF(I18=Lists!$F$6,4,IF(I18=Lists!$F$7,5,IF(I18=Lists!$F$8,6,0)))))) -> 0 | K61: =IF(K18=Lists!$F$3,1,IF(K18=Lists!$F$5,2,IF(K18=Lists!$F$4,3,IF(K18=Lists!$F$6,4,IF(K18=Lists!$F$7,5,IF(K18=Lists!$F$8,6,0)))))) -> 0 | M61: =IF(M18=Lists!$F$3,1,IF(M18=Lists!$F$5,2,IF(M18=Lists!$F$4,3,IF(M18=Lists!$F$6,4,IF(M18=Lists!$F$7,5,IF(M18=Lists!$F$8,6,0)))))) -> 0 | O61: =IF(O18=Lists!$F$3,1,IF(O18=Lists!$F$5,2,IF(O18=Lists!$F$4,3,IF(O18=Lists!$F$6,4,IF(O18=Lists!$F$7,5,IF(O18=Lists!$F$8,6,0)))))) -> 0 | Q61: =IF(Q18=Lists!$F$3,1,IF(Q18=Lists!$F$5,2,IF(Q18=Lists!$F$4,3,IF(Q18=Lists!$F$6,4,IF(Q18=Lists!$F$7,5,IF(Q18=Lists!$F$8,6,0)))))) -> 0 | S61: =IF(S18=Lists!$F$3,1,IF(S18=Lists!$F$5,2,IF(S18=Lists!$F$4,3,IF(S18=Lists!$F$6,4,IF(S18=Lists!$F$7,5,IF(S18=Lists!$F$8,6,0)))))) -> 0 | U61: =IF(U18=Lists!$F$3,1,IF(U18=Lists!$F$5,2,IF(U18=Lists!$F$4,3,IF(U18=Lists!$F$6,4,IF(U18=Lists!$F$7,5,IF(U18=Lists!$F$8,6,0)))))) -> 0 | W61: =IF(W18=Lists!$F$3,1,IF(W18=Lists!$F$5,2,IF(W18=Lists!$F$4,3,IF(W18=Lists!$F$6,4,IF(W18=Lists!$F$7,5,IF(W18=Lists!$F$8,6,0)))))) -> 0
E62: =IF(E19=Lists!$F$3,1,IF(E19=Lists!$F$5,2,IF(E19=Lists!$F$4,3,IF(E19=Lists!$F$6,4,IF(E19=Lists!$F$7,5,IF(E19=Lists!$F$8,6,0)))))) -> 0 | G62: =IF(G19=Lists!$F$3,1,IF(G19=Lists!$F$5,2,IF(G19=Lists!$F$4,3,IF(G19=Lists!$F$6,4,IF(G19=Lists!$F$7,5,IF(G19=Lists!$F$8,6,0)))))) -> 0 | I62: =IF(I19=Lists!$F$3,1,IF(I19=Lists!$F$5,2,IF(I19=Lists!$F$4,3,IF(I19=Lists!$F$6,4,IF(I19=Lists!$F$7,5,IF(I19=Lists!$F$8,6,0)))))) -> 0 | K62: =IF(K19=Lists!$F$3,1,IF(K19=Lists!$F$5,2,IF(K19=Lists!$F$4,3,IF(K19=Lists!$F$6,4,IF(K19=Lists!$F$7,5,IF(K19=Lists!$F$8,6,0)))))) -> 0 | M62: =IF(M19=Lists!$F$3,1,IF(M19=Lists!$F$5,2,IF(M19=Lists!$F$4,3,IF(M19=Lists!$F$6,4,IF(M19=Lists!$F$7,5,IF(M19=Lists!$F$8,6,0)))))) -> 0 | O62: =IF(O19=Lists!$F$3,1,IF(O19=Lists!$F$5,2,IF(O19=Lists!$F$4,3,IF(O19=Lists!$F$6,4,IF(O19=Lists!$F$7,5,IF(O19=Lists!$F$8,6,0)))))) -> 0 | Q62: =IF(Q19=Lists!$F$3,1,IF(Q19=Lists!$F$5,2,IF(Q19=Lists!$F$4,3,IF(Q19=Lists!$F$6,4,IF(Q19=Lists!$F$7,5,IF(Q19=Lists!$F$8,6,0)))))) -> 0 | S62: =IF(S19=Lists!$F$3,1,IF(S19=Lists!$F$5,2,IF(S19=Lists!$F$4,3,IF(S19=Lists!$F$6,4,IF(S19=Lists!$F$7,5,IF(S19=Lists!$F$8,6,0)))))) -> 0 | U62: =IF(U19=Lists!$F$3,1,IF(U19=Lists!$F$5,2,IF(U19=Lists!$F$4,3,IF(U19=Lists!$F$6,4,IF(U19=Lists!$F$7,5,IF(U19=Lists!$F$8,6,0)))))) -> 0 | W62: =IF(W19=Lists!$F$3,1,IF(W19=Lists!$F$5,2,IF(W19=Lists!$F$4,3,IF(W19=Lists!$F$6,4,IF(W19=Lists!$F$7,5,IF(W19=Lists!$F$8,6,0)))))) -> 0
E63: =IF(E20=Lists!$F$3,1,IF(E20=Lists!$F$5,2,IF(E20=Lists!$F$4,3,IF(E20=Lists!$F$6,4,IF(E20=Lists!$F$7,5,IF(E20=Lists!$F$8,6,0)))))) -> 0 | G63: =IF(G20=Lists!$F$3,1,IF(G20=Lists!$F$5,2,IF(G20=Lists!$F$4,3,IF(G20=Lists!$F$6,4,IF(G20=Lists!$F$7,5,IF(G20=Lists!$F$8,6,0)))))) -> 0 | I63: =IF(I20=Lists!$F$3,1,IF(I20=Lists!$F$5,2,IF(I20=Lists!$F$4,3,IF(I20=Lists!$F$6,4,IF(I20=Lists!$F$7,5,IF(I20=Lists!$F$8,6,0)))))) -> 0 | K63: =IF(K20=Lists!$F$3,1,IF(K20=Lists!$F$5,2,IF(K20=Lists!$F$4,3,IF(K20=Lists!$F$6,4,IF(K20=Lists!$F$7,5,IF(K20=Lists!$F$8,6,0)))))) -> 0 | M63: =IF(M20=Lists!$F$3,1,IF(M20=Lists!$F$5,2,IF(M20=Lists!$F$4,3,IF(M20=Lists!$F$6,4,IF(M20=Lists!$F$7,5,IF(M20=Lists!$F$8,6,0)))))) -> 0 | O63: =IF(O20=Lists!$F$3,1,IF(O20=Lists!$F$5,2,IF(O20=Lists!$F$4,3,IF(O20=Lists!$F$6,4,IF(O20=Lists!$F$7,5,IF(O20=Lists!$F$8,6,0)))))) -> 0 | Q63: =IF(Q20=Lists!$F$3,1,IF(Q20=Lists!$F$5,2,IF(Q20=Lists!$F$4,3,IF(Q20=Lists!$F$6,4,IF(Q20=Lists!$F$7,5,IF(Q20=Lists!$F$8,6,0)))))) -> 0 | S63: =IF(S20=Lists!$F$3,1,IF(S20=Lists!$F$5,2,IF(S20=Lists!$F$4,3,IF(S20=Lists!$F$6,4,IF(S20=Lists!$F$7,5,IF(S20=Lists!$F$8,6,0)))))) -> 0 | U63: =IF(U20=Lists!$F$3,1,IF(U20=Lists!$F$5,2,IF(U20=Lists!$F$4,3,IF(U20=Lists!$F$6,4,IF(U20=Lists!$F$7,5,IF(U20=Lists!$F$8,6,0)))))) -> 0 | W63: =IF(W20=Lists!$F$3,1,IF(W20=Lists!$F$5,2,IF(W20=Lists!$F$4,3,IF(W20=Lists!$F$6,4,IF(W20=Lists!$F$7,5,IF(W20=Lists!$F$8,6,0)))))) -> 0
E64: =IF(E21=Lists!$F$3,1,IF(E21=Lists!$F$5,2,IF(E21=Lists!$F$4,3,IF(E21=Lists!$F$6,4,IF(E21=Lists!$F$7,5,IF(E21=Lists!$F$8,6,0)))))) -> 0 | G64: =IF(G21=Lists!$F$3,1,IF(G21=Lists!$F$5,2,IF(G21=Lists!$F$4,3,IF(G21=Lists!$F$6,4,IF(G21=Lists!$F$7,5,IF(G21=Lists!$F$8,6,0)))))) -> 0 | I64: =IF(I21=Lists!$F$3,1,IF(I21=Lists!$F$5,2,IF(I21=Lists!$F$4,3,IF(I21=Lists!$F$6,4,IF(I21=Lists!$F$7,5,IF(I21=Lists!$F$8,6,0)))))) -> 0 | K64: =IF(K21=Lists!$F$3,1,IF(K21=Lists!$F$5,2,IF(K21=Lists!$F$4,3,IF(K21=Lists!$F$6,4,IF(K21=Lists!$F$7,5,IF(K21=Lists!$F$8,6,0)))))) -> 0 | M64: =IF(M21=Lists!$F$3,1,IF(M21=Lists!$F$5,2,IF(M21=Lists!$F$4,3,IF(M21=Lists!$F$6,4,IF(M21=Lists!$F$7,5,IF(M21=Lists!$F$8,6,0)))))) -> 0 | O64: =IF(O21=Lists!$F$3,1,IF(O21=Lists!$F$5,2,IF(O21=Lists!$F$4,3,IF(O21=Lists!$F$6,4,IF(O21=Lists!$F$7,5,IF(O21=Lists!$F$8,6,0)))))) -> 0 | Q64: =IF(Q21=Lists!$F$3,1,IF(Q21=Lists!$F$5,2,IF(Q21=Lists!$F$4,3,IF(Q21=Lists!$F$6,4,IF(Q21=Lists!$F$7,5,IF(Q21=Lists!$F$8,6,0)))))) -> 0 | S64: =IF(S21=Lists!$F$3,1,IF(S21=Lists!$F$5,2,IF(S21=Lists!$F$4,3,IF(S21=Lists!$F$6,4,IF(S21=Lists!$F$7,5,IF(S21=Lists!$F$8,6,0)))))) -> 0 | U64: =IF(U21=Lists!$F$3,1,IF(U21=Lists!$F$5,2,IF(U21=Lists!$F$4,3,IF(U21=Lists!$F$6,4,IF(U21=Lists!$F$7,5,IF(U21=Lists!$F$8,6,0)))))) -> 0 | W64: =IF(W21=Lists!$F$3,1,IF(W21=Lists!$F$5,2,IF(W21=Lists!$F$4,3,IF(W21=Lists!$F$6,4,IF(W21=Lists!$F$7,5,IF(W21=Lists!$F$8,6,0)))))) -> 0
E65: =IF(E22=Lists!$F$3,1,IF(E22=Lists!$F$5,2,IF(E22=Lists!$F$4,3,IF(E22=Lists!$F$6,4,IF(E22=Lists!$F$7,5,IF(E22=Lists!$F$8,6,0)))))) -> 0 | G65: =IF(G22=Lists!$F$3,1,IF(G22=Lists!$F$5,2,IF(G22=Lists!$F$4,3,IF(G22=Lists!$F$6,4,IF(G22=Lists!$F$7,5,IF(G22=Lists!$F$8,6,0)))))) -> 0 | I65: =IF(I22=Lists!$F$3,1,IF(I22=Lists!$F$5,2,IF(I22=Lists!$F$4,3,IF(I22=Lists!$F$6,4,IF(I22=Lists!$F$7,5,IF(I22=Lists!$F$8,6,0)))))) -> 0 | K65: =IF(K22=Lists!$F$3,1,IF(K22=Lists!$F$5,2,IF(K22=Lists!$F$4,3,IF(K22=Lists!$F$6,4,IF(K22=Lists!$F$7,5,IF(K22=Lists!$F$8,6,0)))))) -> 0 | M65: =IF(M22=Lists!$F$3,1,IF(M22=Lists!$F$5,2,IF(M22=Lists!$F$4,3,IF(M22=Lists!$F$6,4,IF(M22=Lists!$F$7,5,IF(M22=Lists!$F$8,6,0)))))) -> 0 | O65: =IF(O22=Lists!$F$3,1,IF(O22=Lists!$F$5,2,IF(O22=Lists!$F$4,3,IF(O22=Lists!$F$6,4,IF(O22=Lists!$F$7,5,IF(O22=Lists!$F$8,6,0)))))) -> 0 | Q65: =IF(Q22=Lists!$F$3,1,IF(Q22=Lists!$F$5,2,IF(Q22=Lists!$F$4,3,IF(Q22=Lists!$F$6,4,IF(Q22=Lists!$F$7,5,IF(Q22=Lists!$F$8,6,0)))))) -> 0 | S65: =IF(S22=Lists!$F$3,1,IF(S22=Lists!$F$5,2,IF(S22=Lists!$F$4,3,IF(S22=Lists!$F$6,4,IF(S22=Lists!$F$7,5,IF(S22=Lists!$F$8,6,0)))))) -> 0 | U65: =IF(U22=Lists!$F$3,1,IF(U22=Lists!$F$5,2,IF(U22=Lists!$F$4,3,IF(U22=Lists!$F$6,4,IF(U22=Lists!$F$7,5,IF(U22=Lists!$F$8,6,0)))))) -> 0 | W65: =IF(W22=Lists!$F$3,1,IF(W22=Lists!$F$5,2,IF(W22=Lists!$F$4,3,IF(W22=Lists!$F$6,4,IF(W22=Lists!$F$7,5,IF(W22=Lists!$F$8,6,0)))))) -> 0
E66: =IF(E23=Lists!$F$3,1,IF(E23=Lists!$F$5,2,IF(E23=Lists!$F$4,3,IF(E23=Lists!$F$6,4,IF(E23=Lists!$F$7,5,IF(E23=Lists!$F$8,6,0)))))) -> 0 | G66: =IF(G23=Lists!$F$3,1,IF(G23=Lists!$F$5,2,IF(G23=Lists!$F$4,3,IF(G23=Lists!$F$6,4,IF(G23=Lists!$F$7,5,IF(G23=Lists!$F$8,6,0)))))) -> 0 | I66: =IF(I23=Lists!$F$3,1,IF(I23=Lists!$F$5,2,IF(I23=Lists!$F$4,3,IF(I23=Lists!$F$6,4,IF(I23=Lists!$F$7,5,IF(I23=Lists!$F$8,6,0)))))) -> 0 | K66: =IF(K23=Lists!$F$3,1,IF(K23=Lists!$F$5,2,IF(K23=Lists!$F$4,3,IF(K23=Lists!$F$6,4,IF(K23=Lists!$F$7,5,IF(K23=Lists!$F$8,6,0)))))) -> 0 | M66: =IF(M23=Lists!$F$3,1,IF(M23=Lists!$F$5,2,IF(M23=Lists!$F$4,3,IF(M23=Lists!$F$6,4,IF(M23=Lists!$F$7,5,IF(M23=Lists!$F$8,6,0)))))) -> 0 | O66: =IF(O23=Lists!$F$3,1,IF(O23=Lists!$F$5,2,IF(O23=Lists!$F$4,3,IF(O23=Lists!$F$6,4,IF(O23=Lists!$F$7,5,IF(O23=Lists!$F$8,6,0)))))) -> 0 | Q66: =IF(Q23=Lists!$F$3,1,IF(Q23=Lists!$F$5,2,IF(Q23=Lists!$F$4,3,IF(Q23=Lists!$F$6,4,IF(Q23=Lists!$F$7,5,IF(Q23=Lists!$F$8,6,0)))))) -> 0 | S66: =IF(S23=Lists!$F$3,1,IF(S23=Lists!$F$5,2,IF(S23=Lists!$F$4,3,IF(S23=Lists!$F$6,4,IF(S23=Lists!$F$7,5,IF(S23=Lists!$F$8,6,0)))))) -> 0 | U66: =IF(U23=Lists!$F$3,1,IF(U23=Lists!$F$5,2,IF(U23=Lists!$F$4,3,IF(U23=Lists!$F$6,4,IF(U23=Lists!$F$7,5,IF(U23=Lists!$F$8,6,0)))))) -> 0 | W66: =IF(W23=Lists!$F$3,1,IF(W23=Lists!$F$5,2,IF(W23=Lists!$F$4,3,IF(W23=Lists!$F$6,4,IF(W23=Lists!$F$7,5,IF(W23=Lists!$F$8,6,0)))))) -> 0
E67: =IF(E24=Lists!$F$3,1,IF(E24=Lists!$F$5,2,IF(E24=Lists!$F$4,3,IF(E24=Lists!$F$6,4,IF(E24=Lists!$F$7,5,IF(E24=Lists!$F$8,6,0)))))) -> 0 | G67: =IF(G24=Lists!$F$3,1,IF(G24=Lists!$F$5,2,IF(G24=Lists!$F$4,3,IF(G24=Lists!$F$6,4,IF(G24=Lists!$F$7,5,IF(G24=Lists!$F$8,6,0)))))) -> 0 | I67: =IF(I24=Lists!$F$3,1,IF(I24=Lists!$F$5,2,IF(I24=Lists!$F$4,3,IF(I24=Lists!$F$6,4,IF(I24=Lists!$F$7,5,IF(I24=Lists!$F$8,6,0)))))) -> 0 | K67: =IF(K24=Lists!$F$3,1,IF(K24=Lists!$F$5,2,IF(K24=Lists!$F$4,3,IF(K24=Lists!$F$6,4,IF(K24=Lists!$F$7,5,IF(K24=Lists!$F$8,6,0)))))) -> 0 | M67: =IF(M24=Lists!$F$3,1,IF(M24=Lists!$F$5,2,IF(M24=Lists!$F$4,3,IF(M24=Lists!$F$6,4,IF(M24=Lists!$F$7,5,IF(M24=Lists!$F$8,6,0)))))) -> 0 | O67: =IF(O24=Lists!$F$3,1,IF(O24=Lists!$F$5,2,IF(O24=Lists!$F$4,3,IF(O24=Lists!$F$6,4,IF(O24=Lists!$F$7,5,IF(O24=Lists!$F$8,6,0)))))) -> 0 | Q67: =IF(Q24=Lists!$F$3,1,IF(Q24=Lists!$F$5,2,IF(Q24=Lists!$F$4,3,IF(Q24=Lists!$F$6,4,IF(Q24=Lists!$F$7,5,IF(Q24=Lists!$F$8,6,0)))))) -> 0 | S67: =IF(S24=Lists!$F$3,1,IF(S24=Lists!$F$5,2,IF(S24=Lists!$F$4,3,IF(S24=Lists!$F$6,4,IF(S24=Lists!$F$7,5,IF(S24=Lists!$F$8,6,0)))))) -> 0 | U67: =IF(U24=Lists!$F$3,1,IF(U24=Lists!$F$5,2,IF(U24=Lists!$F$4,3,IF(U24=Lists!$F$6,4,IF(U24=Lists!$F$7,5,IF(U24=Lists!$F$8,6,0)))))) -> 0 | W67: =IF(W24=Lists!$F$3,1,IF(W24=Lists!$F$5,2,IF(W24=Lists!$F$4,3,IF(W24=Lists!$F$6,4,IF(W24=Lists!$F$7,5,IF(W24=Lists!$F$8,6,0)))))) -> 0
E68: =IF(E25=Lists!$F$3,1,IF(E25=Lists!$F$5,2,IF(E25=Lists!$F$4,3,IF(E25=Lists!$F$6,4,IF(E25=Lists!$F$7,5,IF(E25=Lists!$F$8,6,0)))))) -> 0 | G68: =IF(G25=Lists!$F$3,1,IF(G25=Lists!$F$5,2,IF(G25=Lists!$F$4,3,IF(G25=Lists!$F$6,4,IF(G25=Lists!$F$7,5,IF(G25=Lists!$F$8,6,0)))))) -> 0 | I68: =IF(I25=Lists!$F$3,1,IF(I25=Lists!$F$5,2,IF(I25=Lists!$F$4,3,IF(I25=Lists!$F$6,4,IF(I25=Lists!$F$7,5,IF(I25=Lists!$F$8,6,0)))))) -> 0 | K68: =IF(K25=Lists!$F$3,1,IF(K25=Lists!$F$5,2,IF(K25=Lists!$F$4,3,IF(K25=Lists!$F$6,4,IF(K25=Lists!$F$7,5,IF(K25=Lists!$F$8,6,0)))))) -> 0 | M68: =IF(M25=Lists!$F$3,1,IF(M25=Lists!$F$5,2,IF(M25=Lists!$F$4,3,IF(M25=Lists!$F$6,4,IF(M25=Lists!$F$7,5,IF(M25=Lists!$F$8,6,0)))))) -> 0 | O68: =IF(O25=Lists!$F$3,1,IF(O25=Lists!$F$5,2,IF(O25=Lists!$F$4,3,IF(O25=Lists!$F$6,4,IF(O25=Lists!$F$7,5,IF(O25=Lists!$F$8,6,0)))))) -> 0 | Q68: =IF(Q25=Lists!$F$3,1,IF(Q25=Lists!$F$5,2,IF(Q25=Lists!$F$4,3,IF(Q25=Lists!$F$6,4,IF(Q25=Lists!$F$7,5,IF(Q25=Lists!$F$8,6,0)))))) -> 0 | S68: =IF(S25=Lists!$F$3,1,IF(S25=Lists!$F$5,2,IF(S25=Lists!$F$4,3,IF(S25=Lists!$F$6,4,IF(S25=Lists!$F$7,5,IF(S25=Lists!$F$8,6,0)))))) -> 0 | U68: =IF(U25=Lists!$F$3,1,IF(U25=Lists!$F$5,2,IF(U25=Lists!$F$4,3,IF(U25=Lists!$F$6,4,IF(U25=Lists!$F$7,5,IF(U25=Lists!$F$8,6,0)))))) -> 0 | W68: =IF(W25=Lists!$F$3,1,IF(W25=Lists!$F$5,2,IF(W25=Lists!$F$4,3,IF(W25=Lists!$F$6,4,IF(W25=Lists!$F$7,5,IF(W25=Lists!$F$8,6,0)))))) -> 0
E69: =IF(E26=Lists!$F$3,1,IF(E26=Lists!$F$5,2,IF(E26=Lists!$F$4,3,IF(E26=Lists!$F$6,4,IF(E26=Lists!$F$7,5,IF(E26=Lists!$F$8,6,0)))))) -> 0 | G69: =IF(G26=Lists!$F$3,1,IF(G26=Lists!$F$5,2,IF(G26=Lists!$F$4,3,IF(G26=Lists!$F$6,4,IF(G26=Lists!$F$7,5,IF(G26=Lists!$F$8,6,0)))))) -> 0 | I69: =IF(I26=Lists!$F$3,1,IF(I26=Lists!$F$5,2,IF(I26=Lists!$F$4,3,IF(I26=Lists!$F$6,4,IF(I26=Lists!$F$7,5,IF(I26=Lists!$F$8,6,0)))))) -> 0 | K69: =IF(K26=Lists!$F$3,1,IF(K26=Lists!$F$5,2,IF(K26=Lists!$F$4,3,IF(K26=Lists!$F$6,4,IF(K26=Lists!$F$7,5,IF(K26=Lists!$F$8,6,0)))))) -> 0 | M69: =IF(M26=Lists!$F$3,1,IF(M26=Lists!$F$5,2,IF(M26=Lists!$F$4,3,IF(M26=Lists!$F$6,4,IF(M26=Lists!$F$7,5,IF(M26=Lists!$F$8,6,0)))))) -> 0 | O69: =IF(O26=Lists!$F$3,1,IF(O26=Lists!$F$5,2,IF(O26=Lists!$F$4,3,IF(O26=Lists!$F$6,4,IF(O26=Lists!$F$7,5,IF(O26=Lists!$F$8,6,0)))))) -> 0 | Q69: =IF(Q26=Lists!$F$3,1,IF(Q26=Lists!$F$5,2,IF(Q26=Lists!$F$4,3,IF(Q26=Lists!$F$6,4,IF(Q26=Lists!$F$7,5,IF(Q26=Lists!$F$8,6,0)))))) -> 0 | S69: =IF(S26=Lists!$F$3,1,IF(S26=Lists!$F$5,2,IF(S26=Lists!$F$4,3,IF(S26=Lists!$F$6,4,IF(S26=Lists!$F$7,5,IF(S26=Lists!$F$8,6,0)))))) -> 0 | U69: =IF(U26=Lists!$F$3,1,IF(U26=Lists!$F$5,2,IF(U26=Lists!$F$4,3,IF(U26=Lists!$F$6,4,IF(U26=Lists!$F$7,5,IF(U26=Lists!$F$8,6,0)))))) -> 0 | W69: =IF(W26=Lists!$F$3,1,IF(W26=Lists!$F$5,2,IF(W26=Lists!$F$4,3,IF(W26=Lists!$F$6,4,IF(W26=Lists!$F$7,5,IF(W26=Lists!$F$8,6,0)))))) -> 0
E70: =IF(E27=Lists!$F$3,1,IF(E27=Lists!$F$5,2,IF(E27=Lists!$F$4,3,IF(E27=Lists!$F$6,4,IF(E27=Lists!$F$7,5,IF(E27=Lists!$F$8,6,0)))))) -> 0 | G70: =IF(G27=Lists!$F$3,1,IF(G27=Lists!$F$5,2,IF(G27=Lists!$F$4,3,IF(G27=Lists!$F$6,4,IF(G27=Lists!$F$7,5,IF(G27=Lists!$F$8,6,0)))))) -> 0 | I70: =IF(I27=Lists!$F$3,1,IF(I27=Lists!$F$5,2,IF(I27=Lists!$F$4,3,IF(I27=Lists!$F$6,4,IF(I27=Lists!$F$7,5,IF(I27=Lists!$F$8,6,0)))))) -> 0 | K70: =IF(K27=Lists!$F$3,1,IF(K27=Lists!$F$5,2,IF(K27=Lists!$F$4,3,IF(K27=Lists!$F$6,4,IF(K27=Lists!$F$7,5,IF(K27=Lists!$F$8,6,0)))))) -> 0 | M70: =IF(M27=Lists!$F$3,1,IF(M27=Lists!$F$5,2,IF(M27=Lists!$F$4,3,IF(M27=Lists!$F$6,4,IF(M27=Lists!$F$7,5,IF(M27=Lists!$F$8,6,0)))))) -> 0 | O70: =IF(O27=Lists!$F$3,1,IF(O27=Lists!$F$5,2,IF(O27=Lists!$F$4,3,IF(O27=Lists!$F$6,4,IF(O27=Lists!$F$7,5,IF(O27=Lists!$F$8,6,0)))))) -> 0 | Q70: =IF(Q27=Lists!$F$3,1,IF(Q27=Lists!$F$5,2,IF(Q27=Lists!$F$4,3,IF(Q27=Lists!$F$6,4,IF(Q27=Lists!$F$7,5,IF(Q27=Lists!$F$8,6,0)))))) -> 0 | S70: =IF(S27=Lists!$F$3,1,IF(S27=Lists!$F$5,2,IF(S27=Lists!$F$4,3,IF(S27=Lists!$F$6,4,IF(S27=Lists!$F$7,5,IF(S27=Lists!$F$8,6,0)))))) -> 0 | U70: =IF(U27=Lists!$F$3,1,IF(U27=Lists!$F$5,2,IF(U27=Lists!$F$4,3,IF(U27=Lists!$F$6,4,IF(U27=Lists!$F$7,5,IF(U27=Lists!$F$8,6,0)))))) -> 0 | W70: =IF(W27=Lists!$F$3,1,IF(W27=Lists!$F$5,2,IF(W27=Lists!$F$4,3,IF(W27=Lists!$F$6,4,IF(W27=Lists!$F$7,5,IF(W27=Lists!$F$8,6,0)))))) -> 0
E71: =IF(E28=Lists!$F$3,1,IF(E28=Lists!$F$5,2,IF(E28=Lists!$F$4,3,IF(E28=Lists!$F$6,4,IF(E28=Lists!$F$7,5,IF(E28=Lists!$F$8,6,0)))))) -> 0 | G71: =IF(G28=Lists!$F$3,1,IF(G28=Lists!$F$5,2,IF(G28=Lists!$F$4,3,IF(G28=Lists!$F$6,4,IF(G28=Lists!$F$7,5,IF(G28=Lists!$F$8,6,0)))))) -> 0 | I71: =IF(I28=Lists!$F$3,1,IF(I28=Lists!$F$5,2,IF(I28=Lists!$F$4,3,IF(I28=Lists!$F$6,4,IF(I28=Lists!$F$7,5,IF(I28=Lists!$F$8,6,0)))))) -> 0 | K71: =IF(K28=Lists!$F$3,1,IF(K28=Lists!$F$5,2,IF(K28=Lists!$F$4,3,IF(K28=Lists!$F$6,4,IF(K28=Lists!$F$7,5,IF(K28=Lists!$F$8,6,0)))))) -> 0 | M71: =IF(M28=Lists!$F$3,1,IF(M28=Lists!$F$5,2,IF(M28=Lists!$F$4,3,IF(M28=Lists!$F$6,4,IF(M28=Lists!$F$7,5,IF(M28=Lists!$F$8,6,0)))))) -> 0 | O71: =IF(O28=Lists!$F$3,1,IF(O28=Lists!$F$5,2,IF(O28=Lists!$F$4,3,IF(O28=Lists!$F$6,4,IF(O28=Lists!$F$7,5,IF(O28=Lists!$F$8,6,0)))))) -> 0 | Q71: =IF(Q28=Lists!$F$3,1,IF(Q28=Lists!$F$5,2,IF(Q28=Lists!$F$4,3,IF(Q28=Lists!$F$6,4,IF(Q28=Lists!$F$7,5,IF(Q28=Lists!$F$8,6,0)))))) -> 0 | S71: =IF(S28=Lists!$F$3,1,IF(S28=Lists!$F$5,2,IF(S28=Lists!$F$4,3,IF(S28=Lists!$F$6,4,IF(S28=Lists!$F$7,5,IF(S28=Lists!$F$8,6,0)))))) -> 0 | U71: =IF(U28=Lists!$F$3,1,IF(U28=Lists!$F$5,2,IF(U28=Lists!$F$4,3,IF(U28=Lists!$F$6,4,IF(U28=Lists!$F$7,5,IF(U28=Lists!$F$8,6,0)))))) -> 0 | W71: =IF(W28=Lists!$F$3,1,IF(W28=Lists!$F$5,2,IF(W28=Lists!$F$4,3,IF(W28=Lists!$F$6,4,IF(W28=Lists!$F$7,5,IF(W28=Lists!$F$8,6,0)))))) -> 0
E72: =IF(E29=Lists!$F$3,1,IF(E29=Lists!$F$5,2,IF(E29=Lists!$F$4,3,IF(E29=Lists!$F$6,4,IF(E29=Lists!$F$7,5,IF(E29=Lists!$F$8,6,0)))))) -> 0 | G72: =IF(G29=Lists!$F$3,1,IF(G29=Lists!$F$5,2,IF(G29=Lists!$F$4,3,IF(G29=Lists!$F$6,4,IF(G29=Lists!$F$7,5,IF(G29=Lists!$F$8,6,0)))))) -> 0 | I72: =IF(I29=Lists!$F$3,1,IF(I29=Lists!$F$5,2,IF(I29=Lists!$F$4,3,IF(I29=Lists!$F$6,4,IF(I29=Lists!$F$7,5,IF(I29=Lists!$F$8,6,0)))))) -> 0 | K72: =IF(K29=Lists!$F$3,1,IF(K29=Lists!$F$5,2,IF(K29=Lists!$F$4,3,IF(K29=Lists!$F$6,4,IF(K29=Lists!$F$7,5,IF(K29=Lists!$F$8,6,0)))))) -> 0 | M72: =IF(M29=Lists!$F$3,1,IF(M29=Lists!$F$5,2,IF(M29=Lists!$F$4,3,IF(M29=Lists!$F$6,4,IF(M29=Lists!$F$7,5,IF(M29=Lists!$F$8,6,0)))))) -> 0 | O72: =IF(O29=Lists!$F$3,1,IF(O29=Lists!$F$5,2,IF(O29=Lists!$F$4,3,IF(O29=Lists!$F$6,4,IF(O29=Lists!$F$7,5,IF(O29=Lists!$F$8,6,0)))))) -> 0 | Q72: =IF(Q29=Lists!$F$3,1,IF(Q29=Lists!$F$5,2,IF(Q29=Lists!$F$4,3,IF(Q29=Lists!$F$6,4,IF(Q29=Lists!$F$7,5,IF(Q29=Lists!$F$8,6,0)))))) -> 0 | S72: =IF(S29=Lists!$F$3,1,IF(S29=Lists!$F$5,2,IF(S29=Lists!$F$4,3,IF(S29=Lists!$F$6,4,IF(S29=Lists!$F$7,5,IF(S29=Lists!$F$8,6,0)))))) -> 0 | U72: =IF(U29=Lists!$F$3,1,IF(U29=Lists!$F$5,2,IF(U29=Lists!$F$4,3,IF(U29=Lists!$F$6,4,IF(U29=Lists!$F$7,5,IF(U29=Lists!$F$8,6,0)))))) -> 0 | W72: =IF(W29=Lists!$F$3,1,IF(W29=Lists!$F$5,2,IF(W29=Lists!$F$4,3,IF(W29=Lists!$F$6,4,IF(W29=Lists!$F$7,5,IF(W29=Lists!$F$8,6,0)))))) -> 0
E73: =IF(E30=Lists!$F$3,1,IF(E30=Lists!$F$5,2,IF(E30=Lists!$F$4,3,IF(E30=Lists!$F$6,4,IF(E30=Lists!$F$7,5,IF(E30=Lists!$F$8,6,0)))))) -> 0 | G73: =IF(G30=Lists!$F$3,1,IF(G30=Lists!$F$5,2,IF(G30=Lists!$F$4,3,IF(G30=Lists!$F$6,4,IF(G30=Lists!$F$7,5,IF(G30=Lists!$F$8,6,0)))))) -> 0 | I73: =IF(I30=Lists!$F$3,1,IF(I30=Lists!$F$5,2,IF(I30=Lists!$F$4,3,IF(I30=Lists!$F$6,4,IF(I30=Lists!$F$7,5,IF(I30=Lists!$F$8,6,0)))))) -> 0 | K73: =IF(K30=Lists!$F$3,1,IF(K30=Lists!$F$5,2,IF(K30=Lists!$F$4,3,IF(K30=Lists!$F$6,4,IF(K30=Lists!$F$7,5,IF(K30=Lists!$F$8,6,0)))))) -> 0 | M73: =IF(M30=Lists!$F$3,1,IF(M30=Lists!$F$5,2,IF(M30=Lists!$F$4,3,IF(M30=Lists!$F$6,4,IF(M30=Lists!$F$7,5,IF(M30=Lists!$F$8,6,0)))))) -> 0 | O73: =IF(O30=Lists!$F$3,1,IF(O30=Lists!$F$5,2,IF(O30=Lists!$F$4,3,IF(O30=Lists!$F$6,4,IF(O30=Lists!$F$7,5,IF(O30=Lists!$F$8,6,0)))))) -> 0 | Q73: =IF(Q30=Lists!$F$3,1,IF(Q30=Lists!$F$5,2,IF(Q30=Lists!$F$4,3,IF(Q30=Lists!$F$6,4,IF(Q30=Lists!$F$7,5,IF(Q30=Lists!$F$8,6,0)))))) -> 0 | S73: =IF(S30=Lists!$F$3,1,IF(S30=Lists!$F$5,2,IF(S30=Lists!$F$4,3,IF(S30=Lists!$F$6,4,IF(S30=Lists!$F$7,5,IF(S30=Lists!$F$8,6,0)))))) -> 0 | U73: =IF(U30=Lists!$F$3,1,IF(U30=Lists!$F$5,2,IF(U30=Lists!$F$4,3,IF(U30=Lists!$F$6,4,IF(U30=Lists!$F$7,5,IF(U30=Lists!$F$8,6,0)))))) -> 0 | W73: =IF(W30=Lists!$F$3,1,IF(W30=Lists!$F$5,2,IF(W30=Lists!$F$4,3,IF(W30=Lists!$F$6,4,IF(W30=Lists!$F$7,5,IF(W30=Lists!$F$8,6,0)))))) -> 0
E74: =IF(E31=Lists!$F$3,1,IF(E31=Lists!$F$5,2,IF(E31=Lists!$F$4,3,IF(E31=Lists!$F$6,4,IF(E31=Lists!$F$7,5,IF(E31=Lists!$F$8,6,0)))))) -> 0 | G74: =IF(G31=Lists!$F$3,1,IF(G31=Lists!$F$5,2,IF(G31=Lists!$F$4,3,IF(G31=Lists!$F$6,4,IF(G31=Lists!$F$7,5,IF(G31=Lists!$F$8,6,0)))))) -> 0 | I74: =IF(I31=Lists!$F$3,1,IF(I31=Lists!$F$5,2,IF(I31=Lists!$F$4,3,IF(I31=Lists!$F$6,4,IF(I31=Lists!$F$7,5,IF(I31=Lists!$F$8,6,0)))))) -> 0 | K74: =IF(K31=Lists!$F$3,1,IF(K31=Lists!$F$5,2,IF(K31=Lists!$F$4,3,IF(K31=Lists!$F$6,4,IF(K31=Lists!$F$7,5,IF(K31=Lists!$F$8,6,0)))))) -> 0 | M74: =IF(M31=Lists!$F$3,1,IF(M31=Lists!$F$5,2,IF(M31=Lists!$F$4,3,IF(M31=Lists!$F$6,4,IF(M31=Lists!$F$7,5,IF(M31=Lists!$F$8,6,0)))))) -> 0 | O74: =IF(O31=Lists!$F$3,1,IF(O31=Lists!$F$5,2,IF(O31=Lists!$F$4,3,IF(O31=Lists!$F$6,4,IF(O31=Lists!$F$7,5,IF(O31=Lists!$F$8,6,0)))))) -> 0 | Q74: =IF(Q31=Lists!$F$3,1,IF(Q31=Lists!$F$5,2,IF(Q31=Lists!$F$4,3,IF(Q31=Lists!$F$6,4,IF(Q31=Lists!$F$7,5,IF(Q31=Lists!$F$8,6,0)))))) -> 0 | S74: =IF(S31=Lists!$F$3,1,IF(S31=Lists!$F$5,2,IF(S31=Lists!$F$4,3,IF(S31=Lists!$F$6,4,IF(S31=Lists!$F$7,5,IF(S31=Lists!$F$8,6,0)))))) -> 0 | U74: =IF(U31=Lists!$F$3,1,IF(U31=Lists!$F$5,2,IF(U31=Lists!$F$4,3,IF(U31=Lists!$F$6,4,IF(U31=Lists!$F$7,5,IF(U31=Lists!$F$8,6,0)))))) -> 0 | W74: =IF(W31=Lists!$F$3,1,IF(W31=Lists!$F$5,2,IF(W31=Lists!$F$4,3,IF(W31=Lists!$F$6,4,IF(W31=Lists!$F$7,5,IF(W31=Lists!$F$8,6,0)))))) -> 0
E75: =IF(E32=Lists!$F$3,1,IF(E32=Lists!$F$5,2,IF(E32=Lists!$F$4,3,IF(E32=Lists!$F$6,4,IF(E32=Lists!$F$7,5,IF(E32=Lists!$F$8,6,0)))))) -> 0 | G75: =IF(G32=Lists!$F$3,1,IF(G32=Lists!$F$5,2,IF(G32=Lists!$F$4,3,IF(G32=Lists!$F$6,4,IF(G32=Lists!$F$7,5,IF(G32=Lists!$F$8,6,0)))))) -> 0 | I75: =IF(I32=Lists!$F$3,1,IF(I32=Lists!$F$5,2,IF(I32=Lists!$F$4,3,IF(I32=Lists!$F$6,4,IF(I32=Lists!$F$7,5,IF(I32=Lists!$F$8,6,0)))))) -> 0 | K75: =IF(K32=Lists!$F$3,1,IF(K32=Lists!$F$5,2,IF(K32=Lists!$F$4,3,IF(K32=Lists!$F$6,4,IF(K32=Lists!$F$7,5,IF(K32=Lists!$F$8,6,0)))))) -> 0 | M75: =IF(M32=Lists!$F$3,1,IF(M32=Lists!$F$5,2,IF(M32=Lists!$F$4,3,IF(M32=Lists!$F$6,4,IF(M32=Lists!$F$7,5,IF(M32=Lists!$F$8,6,0)))))) -> 0 | O75: =IF(O32=Lists!$F$3,1,IF(O32=Lists!$F$5,2,IF(O32=Lists!$F$4,3,IF(O32=Lists!$F$6,4,IF(O32=Lists!$F$7,5,IF(O32=Lists!$F$8,6,0)))))) -> 0 | Q75: =IF(Q32=Lists!$F$3,1,IF(Q32=Lists!$F$5,2,IF(Q32=Lists!$F$4,3,IF(Q32=Lists!$F$6,4,IF(Q32=Lists!$F$7,5,IF(Q32=Lists!$F$8,6,0)))))) -> 0 | S75: =IF(S32=Lists!$F$3,1,IF(S32=Lists!$F$5,2,IF(S32=Lists!$F$4,3,IF(S32=Lists!$F$6,4,IF(S32=Lists!$F$7,5,IF(S32=Lists!$F$8,6,0)))))) -> 0 | U75: =IF(U32=Lists!$F$3,1,IF(U32=Lists!$F$5,2,IF(U32=Lists!$F$4,3,IF(U32=Lists!$F$6,4,IF(U32=Lists!$F$7,5,IF(U32=Lists!$F$8,6,0)))))) -> 0 | W75: =IF(W32=Lists!$F$3,1,IF(W32=Lists!$F$5,2,IF(W32=Lists!$F$4,3,IF(W32=Lists!$F$6,4,IF(W32=Lists!$F$7,5,IF(W32=Lists!$F$8,6,0)))))) -> 0
E76: =IF(E33=Lists!$F$3,1,IF(E33=Lists!$F$5,2,IF(E33=Lists!$F$4,3,IF(E33=Lists!$F$6,4,IF(E33=Lists!$F$7,5,IF(E33=Lists!$F$8,6,0)))))) -> 0 | G76: =IF(G33=Lists!$F$3,1,IF(G33=Lists!$F$5,2,IF(G33=Lists!$F$4,3,IF(G33=Lists!$F$6,4,IF(G33=Lists!$F$7,5,IF(G33=Lists!$F$8,6,0)))))) -> 0 | I76: =IF(I33=Lists!$F$3,1,IF(I33=Lists!$F$5,2,IF(I33=Lists!$F$4,3,IF(I33=Lists!$F$6,4,IF(I33=Lists!$F$7,5,IF(I33=Lists!$F$8,6,0)))))) -> 0 | K76: =IF(K33=Lists!$F$3,1,IF(K33=Lists!$F$5,2,IF(K33=Lists!$F$4,3,IF(K33=Lists!$F$6,4,IF(K33=Lists!$F$7,5,IF(K33=Lists!$F$8,6,0)))))) -> 0 | M76: =IF(M33=Lists!$F$3,1,IF(M33=Lists!$F$5,2,IF(M33=Lists!$F$4,3,IF(M33=Lists!$F$6,4,IF(M33=Lists!$F$7,5,IF(M33=Lists!$F$8,6,0)))))) -> 0 | O76: =IF(O33=Lists!$F$3,1,IF(O33=Lists!$F$5,2,IF(O33=Lists!$F$4,3,IF(O33=Lists!$F$6,4,IF(O33=Lists!$F$7,5,IF(O33=Lists!$F$8,6,0)))))) -> 0 | Q76: =IF(Q33=Lists!$F$3,1,IF(Q33=Lists!$F$5,2,IF(Q33=Lists!$F$4,3,IF(Q33=Lists!$F$6,4,IF(Q33=Lists!$F$7,5,IF(Q33=Lists!$F$8,6,0)))))) -> 0 | S76: =IF(S33=Lists!$F$3,1,IF(S33=Lists!$F$5,2,IF(S33=Lists!$F$4,3,IF(S33=Lists!$F$6,4,IF(S33=Lists!$F$7,5,IF(S33=Lists!$F$8,6,0)))))) -> 0 | U76: =IF(U33=Lists!$F$3,1,IF(U33=Lists!$F$5,2,IF(U33=Lists!$F$4,3,IF(U33=Lists!$F$6,4,IF(U33=Lists!$F$7,5,IF(U33=Lists!$F$8,6,0)))))) -> 0 | W76: =IF(W33=Lists!$F$3,1,IF(W33=Lists!$F$5,2,IF(W33=Lists!$F$4,3,IF(W33=Lists!$F$6,4,IF(W33=Lists!$F$7,5,IF(W33=Lists!$F$8,6,0)))))) -> 0
E77: =IF(E34=Lists!$F$3,1,IF(E34=Lists!$F$5,2,IF(E34=Lists!$F$4,3,IF(E34=Lists!$F$6,4,IF(E34=Lists!$F$7,5,IF(E34=Lists!$F$8,6,0)))))) -> 0 | G77: =IF(G34=Lists!$F$3,1,IF(G34=Lists!$F$5,2,IF(G34=Lists!$F$4,3,IF(G34=Lists!$F$6,4,IF(G34=Lists!$F$7,5,IF(G34=Lists!$F$8,6,0)))))) -> 0 | I77: =IF(I34=Lists!$F$3,1,IF(I34=Lists!$F$5,2,IF(I34=Lists!$F$4,3,IF(I34=Lists!$F$6,4,IF(I34=Lists!$F$7,5,IF(I34=Lists!$F$8,6,0)))))) -> 0 | K77: =IF(K34=Lists!$F$3,1,IF(K34=Lists!$F$5,2,IF(K34=Lists!$F$4,3,IF(K34=Lists!$F$6,4,IF(K34=Lists!$F$7,5,IF(K34=Lists!$F$8,6,0)))))) -> 0 | M77: =IF(M34=Lists!$F$3,1,IF(M34=Lists!$F$5,2,IF(M34=Lists!$F$4,3,IF(M34=Lists!$F$6,4,IF(M34=Lists!$F$7,5,IF(M34=Lists!$F$8,6,0)))))) -> 0 | O77: =IF(O34=Lists!$F$3,1,IF(O34=Lists!$F$5,2,IF(O34=Lists!$F$4,3,IF(O34=Lists!$F$6,4,IF(O34=Lists!$F$7,5,IF(O34=Lists!$F$8,6,0)))))) -> 0 | Q77: =IF(Q34=Lists!$F$3,1,IF(Q34=Lists!$F$5,2,IF(Q34=Lists!$F$4,3,IF(Q34=Lists!$F$6,4,IF(Q34=Lists!$F$7,5,IF(Q34=Lists!$F$8,6,0)))))) -> 0 | S77: =IF(S34=Lists!$F$3,1,IF(S34=Lists!$F$5,2,IF(S34=Lists!$F$4,3,IF(S34=Lists!$F$6,4,IF(S34=Lists!$F$7,5,IF(S34=Lists!$F$8,6,0)))))) -> 0 | U77: =IF(U34=Lists!$F$3,1,IF(U34=Lists!$F$5,2,IF(U34=Lists!$F$4,3,IF(U34=Lists!$F$6,4,IF(U34=Lists!$F$7,5,IF(U34=Lists!$F$8,6,0)))))) -> 0 | W77: =IF(W34=Lists!$F$3,1,IF(W34=Lists!$F$5,2,IF(W34=Lists!$F$4,3,IF(W34=Lists!$F$6,4,IF(W34=Lists!$F$7,5,IF(W34=Lists!$F$8,6,0)))))) -> 0
E78: =IF(E35=Lists!$F$3,1,IF(E35=Lists!$F$5,2,IF(E35=Lists!$F$4,3,IF(E35=Lists!$F$6,4,IF(E35=Lists!$F$7,5,IF(E35=Lists!$F$8,6,0)))))) -> 0 | G78: =IF(G35=Lists!$F$3,1,IF(G35=Lists!$F$5,2,IF(G35=Lists!$F$4,3,IF(G35=Lists!$F$6,4,IF(G35=Lists!$F$7,5,IF(G35=Lists!$F$8,6,0)))))) -> 0 | I78: =IF(I35=Lists!$F$3,1,IF(I35=Lists!$F$5,2,IF(I35=Lists!$F$4,3,IF(I35=Lists!$F$6,4,IF(I35=Lists!$F$7,5,IF(I35=Lists!$F$8,6,0)))))) -> 0 | K78: =IF(K35=Lists!$F$3,1,IF(K35=Lists!$F$5,2,IF(K35=Lists!$F$4,3,IF(K35=Lists!$F$6,4,IF(K35=Lists!$F$7,5,IF(K35=Lists!$F$8,6,0)))))) -> 0 | M78: =IF(M35=Lists!$F$3,1,IF(M35=Lists!$F$5,2,IF(M35=Lists!$F$4,3,IF(M35=Lists!$F$6,4,IF(M35=Lists!$F$7,5,IF(M35=Lists!$F$8,6,0)))))) -> 0 | O78: =IF(O35=Lists!$F$3,1,IF(O35=Lists!$F$5,2,IF(O35=Lists!$F$4,3,IF(O35=Lists!$F$6,4,IF(O35=Lists!$F$7,5,IF(O35=Lists!$F$8,6,0)))))) -> 0 | Q78: =IF(Q35=Lists!$F$3,1,IF(Q35=Lists!$F$5,2,IF(Q35=Lists!$F$4,3,IF(Q35=Lists!$F$6,4,IF(Q35=Lists!$F$7,5,IF(Q35=Lists!$F$8,6,0)))))) -> 0 | S78: =IF(S35=Lists!$F$3,1,IF(S35=Lists!$F$5,2,IF(S35=Lists!$F$4,3,IF(S35=Lists!$F$6,4,IF(S35=Lists!$F$7,5,IF(S35=Lists!$F$8,6,0)))))) -> 0 | U78: =IF(U35=Lists!$F$3,1,IF(U35=Lists!$F$5,2,IF(U35=Lists!$F$4,3,IF(U35=Lists!$F$6,4,IF(U35=Lists!$F$7,5,IF(U35=Lists!$F$8,6,0)))))) -> 0 | W78: =IF(W35=Lists!$F$3,1,IF(W35=Lists!$F$5,2,IF(W35=Lists!$F$4,3,IF(W35=Lists!$F$6,4,IF(W35=Lists!$F$7,5,IF(W35=Lists!$F$8,6,0)))))) -> 0
E79: =IF(E36=Lists!$F$3,1,IF(E36=Lists!$F$5,2,IF(E36=Lists!$F$4,3,IF(E36=Lists!$F$6,4,IF(E36=Lists!$F$7,5,IF(E36=Lists!$F$8,6,0)))))) -> 0 | G79: =IF(G36=Lists!$F$3,1,IF(G36=Lists!$F$5,2,IF(G36=Lists!$F$4,3,IF(G36=Lists!$F$6,4,IF(G36=Lists!$F$7,5,IF(G36=Lists!$F$8,6,0)))))) -> 0 | I79: =IF(I36=Lists!$F$3,1,IF(I36=Lists!$F$5,2,IF(I36=Lists!$F$4,3,IF(I36=Lists!$F$6,4,IF(I36=Lists!$F$7,5,IF(I36=Lists!$F$8,6,0)))))) -> 0 | K79: =IF(K36=Lists!$F$3,1,IF(K36=Lists!$F$5,2,IF(K36=Lists!$F$4,3,IF(K36=Lists!$F$6,4,IF(K36=Lists!$F$7,5,IF(K36=Lists!$F$8,6,0)))))) -> 0 | M79: =IF(M36=Lists!$F$3,1,IF(M36=Lists!$F$5,2,IF(M36=Lists!$F$4,3,IF(M36=Lists!$F$6,4,IF(M36=Lists!$F$7,5,IF(M36=Lists!$F$8,6,0)))))) -> 0 | O79: =IF(O36=Lists!$F$3,1,IF(O36=Lists!$F$5,2,IF(O36=Lists!$F$4,3,IF(O36=Lists!$F$6,4,IF(O36=Lists!$F$7,5,IF(O36=Lists!$F$8,6,0)))))) -> 0 | Q79: =IF(Q36=Lists!$F$3,1,IF(Q36=Lists!$F$5,2,IF(Q36=Lists!$F$4,3,IF(Q36=Lists!$F$6,4,IF(Q36=Lists!$F$7,5,IF(Q36=Lists!$F$8,6,0)))))) -> 0 | S79: =IF(S36=Lists!$F$3,1,IF(S36=Lists!$F$5,2,IF(S36=Lists!$F$4,3,IF(S36=Lists!$F$6,4,IF(S36=Lists!$F$7,5,IF(S36=Lists!$F$8,6,0)))))) -> 0 | U79: =IF(U36=Lists!$F$3,1,IF(U36=Lists!$F$5,2,IF(U36=Lists!$F$4,3,IF(U36=Lists!$F$6,4,IF(U36=Lists!$F$7,5,IF(U36=Lists!$F$8,6,0)))))) -> 0 | W79: =IF(W36=Lists!$F$3,1,IF(W36=Lists!$F$5,2,IF(W36=Lists!$F$4,3,IF(W36=Lists!$F$6,4,IF(W36=Lists!$F$7,5,IF(W36=Lists!$F$8,6,0)))))) -> 0

Sheet Database (hidden)
P1: EXISTING Installation / Reuse IDU | R1: New Indoor Units / New VRVIII Equiv. / Hi CoP VRVIII
A2: ODU Model | C2: Tonnes | P2: VRV K | Q2: VRV G H | R2: VRVIII | S2: =VLOOKUP(Output!J2,Translation!$A$2:$BF$16,31,FALSE) -> £/kWh | T2: =VLOOKUP(Output!J2,Translation!$A$2:$BF$16,15,FALSE) -> Carbon Equivalent | U2: Cool h/y | V2: Heat h/y | W2: Intermediate hours | X2: Diversity Cooling | Y2: Diversity Heating | Z2: Diversity Intermediate
B3: =VLOOKUP(Output!J2,Translation!$A$2:$BF$16,29,FALSE) -> £/annum | C3: =VLOOKUP(Output!J2,Translation!$A$2:$BF$16,30,FALSE) -> CO2/annum | P3: 0.02388431308 | Q3: 0.01909456795 | R3: 0.02045983467 | S3: =Output!H2 -> 0.11 | T3: 0.517 | U3: =Output!C2*Output!B2*Output!E2*Database!X3 -> 269.5 | V3: =Output!B2*Output!C2*Output!F2*Database!Y3 -> 341.25 | W3: =Output!B2*Output!C2*Output!G2*Z3 -> 288.75 | X3: 0.55 | Y3: 0.65 | Z3: =(0.35+0.4)/2 -> 0.375
B4: =VLOOKUP(Output!$J$2,Translation!$A$2:$BF$16,7,FALSE) -> Existing Installation | D4: =VLOOKUP(Output!$J$2,Translation!$A$2:$BF$16,10,FALSE) -> VRVQ + New IDUs | G4: =VLOOKUP(Output!$J$2,Translation!$A$2:$BF$16,8,FALSE) -> VRVQ + Old IDUs | J4: =VLOOKUP(Output!$J$2,Translation!$A$2:$BF$16,11,FALSE) -> Totally new VRV | M4: =VLOOKUP(Output!$J$2,Translation!$A$2:$AU$6,12,FALSE) -> New Hi CoP VRVIII | P4: =B4 -> Existing Installation | U4: =D4 -> VRVQ + New IDUs | Z4: =G4 -> VRVQ + Old IDUs | AE4: =J4 -> Totally new VRV | AJ4: Hi CoP VRVIII
A5: 1 | B5: 2 | C5: 3 | D5: 4 | E5: 5 | F5: 6 | G5: 7 | H5: 8 | I5: 9 | J5: 10 | K5: 11 | L5: 12 | M5: 13 | N5: 14 | O5: 15 | P5: 16 | Q5: 17 | R5: 18 | S5: 19 | T5: 20 | U5: 21 | V5: 22 | W5: 23 | X5: 24 | Y5: 25 | Z5: 26 | AA5: 27 | AB5: 28 | AC5: 29 | AD5: 30 | AE5: 31 | AF5: 32 | AG5: 33 | AH5: 34 | AI5: 35 | AJ5: 36 | AK5: 37 | AL5: 38 | AM5: 39 | AN5: 40 | AO5: 41 | AP5: 42 | AQ5: 43 | AR5: 44
A6: ODU Model | B6: =B3 -> £/annum | C6: =C3 -> CO2/annum | D6: ODU Model | E6: =B3 -> £/annum | F6: =C3 -> CO2/annum | G6: ODU Model | H6: =B3 -> £/annum | I6: =C3 -> CO2/annum | J6: ODU Model | K6: =B3 -> £/annum | L6: =C3 -> CO2/annum | M6: ODU Model | N6: =B3 -> £/annum | O6: =C3 -> CO2/annum | P6: ODU cool | Q6: ODU heat | R6: IDU PI | S6: Duty | T6: kW / year | U6: ODU cool | V6: ODU heat | W6: IDU PI | X6: Duty | Y6: kW / year | Z6: ODU cool | AA6: ODU heat | AB6: IDU PI | AC6: Duty | AD6: kW / year | AE6: ODU cool | AF6: ODU heat | AG6: IDU PI | AH6: Duty | AI6: kW / year | AJ6: ODU cool | AK6: ODU heat | AL6: IDU PI | AM6: Duty | AN6: kW / year | AP6: 0.5 | AQ6: 1.3
A7: =VLOOKUP(Output!J2,Translation!$A$2:$AL$6,21,FALSE) -> Click here >>> | AO7: Quantity | AP7: Min Index | AQ7: Max Index | AR7: Max Unit
A8: RSXY5G/H | B8: =T8*$S$3 -> 0 | C8: =T8*($T$3/1000) -> 0 | D8: RQYQ140P | E8: =Y8*$S$3 -> 0 | F8: =Y8*($T$3/1000) -> 0 | P8: 6.1 | Q8: 5.58 | R8: =S8*$P$3 -> 0.3343803831 | S8: 14 | T8: =((P8*$U$3)+(Q8*$V$3))*AO8 -> 0 | U8: 3.36 | V8: 3.91 | W8: =X8*$R$3 -> 0.2864376854 | X8: 14 | Y8: =((U8*$U$3)+(V8*$V$3))*AO8 -> 0 | AO8: =COUNTIF(Output!$D$5:$V$5,Database!A8) -> 0 | AP8: 62.5 | AQ8: 162.5 | AR8: 8 | AT8: 3.52 | AU8: 3.999778179 | AV8: RXYQ5P
A9: RSXY8G/H | B9: 0 | C9: 0 | D9: =G9 -> RXYQQ8T | E9: =Y9*$S$3 -> 0 | F9: =Y9*($T$3/1000) -> 0 | G9: RXYQQ8T | H9: =AD9*$S$3 -> 0 | I9: =AD9*($T$3/1000) -> 0 | J9: RYYQ8T | K9: =AI9*$S$3 -> 0 | L9: =AI9*($T$3/1000) -> 0 | P9: 9.43 | Q9: 8.14 | R9: =S9*$P$3 -> 0.535008613 | S9: 22.4 | T9: =((P9*$U$3)+(Q9*$V$3))*AO9 -> 0 | U9: =AE9 -> 4.168 | V9: =AF9 -> 5.51 | W9: =X9*$R$3 -> 0.4583002966 | X9: =AH9 -> 22.4 | Y9: =((U9*$U$3)+(V9*$V$3))*AO9 -> 0 | Z9: =AE9 -> 4.168 | AA9: =AF9 -> 5.51 | AB9: =AC9*$R$3 -> 0.4583002966 | AC9: =AH9 -> 22.4 | AD9: =((Z9*$U$3)+(AA9*$V$3))*AO9 -> 0 | AE9: =5.21*0.8 -> 4.168 | AF9: 5.51 | AG9: =AH9*$R$3 -> 0.4583002966 | AH9: 22.4 | AI9: =((AE9*$U$3)+(AF9*$V$3))*AO9 -> 0 | AO9: =COUNTIF(Output!$D$5:$V$5,Database!A9) -> 0 | AP9: 100 | AQ9: 260 | AR9: 8 | AT9: 5.22 | AU9: 5.559691669 | AV9: RXYQ8P8
A10: RSXY10G/H | B10: 0 | C10: 0 | D10: =G10 -> RXYQQ10T | E10: =Y10*$S$3 -> 0 | F10: =Y10*($T$3/1000) -> 0 | G10: RXYQQ10T | H10: 0 | I10: 0 | J10: RYYQ10T | K10: =AI10*$S$3 -> 0 | L10: =AI10*($T$3/1000) -> 0 | P10: 11.8 | Q10: 9.54 | R10: =S10*$P$3 -> 0.6687607662 | S10: 28 | T10: 0 | U10: =AE10 -> 5.84 | V10: =AF10 -> 7.38 | W10: =X10*$R$3 -> 0.5728753708 | X10: =AH10 -> 28 | Y10: 0 | Z10: =AE10 -> 5.84 | AA10: =AF10 -> 7.38 | AB10: =AC10*$R$3 -> 0.5728753708 | AC10: =AH10 -> 28 | AD10: 0 | AE10: =7.3*0.8 -> 5.84 | AF10: 7.38 | AG10: =AH10*$R$3 -> 0.5728753708 | AH10: 28 | AI10: 0 | AO10: =COUNTIF(Output!$D$5:$V$5,Database!A10) -> 0 | AP10: 125 | AQ10: 325 | AR10: 8 | AT10: 7.42 | AU10: 7.699561955 | AV10: RXYQ10P
A11: RSEY8G/H | B11: 0 | C11: 0 | D11: RQCEQ180_280P | E11: =Y11*$S$3 -> 0 | F11: =Y11*($T$3/1000) -> 0 | G11: =D11 -> RQCEQ180_280P | H11: 0 | I11: 0 | J11: REYQ8P9 | K11: =AI11*$S$3 -> 0 | L11: =AI11*($T$3/1000) -> 0 | P11: 9.4 | Q11: 8.14 | R11: 0.535008613 | S11: 22.4 | T11: 0 | U11: 6 | V11: 7 | W11: =X11*$R$3 -> 0.5728753708 | X11: 28 | Y11: 0 | Z11: =U11 -> 6 | AA11: =V11 -> 7 | AB11: =AC11*$R$3 -> 0.5728753708 | AC11: =X11 -> 28 | AD11: 0 | AE11: 5.2 | AF11: 5.71 | AG11: =AH11*$R$3 -> 0.4583002966 | AH11: 22.4 | AI11: 0 | AO11: =COUNTIF(Output!$D$5:$V$5,Database!A11) -> 0 | AP11: 100 | AQ11: 260 | AR11: 8 | AT11: 5.2 | AU11: 5.709683351 | AV11: REYQ8P9
A12: RSEY10G/H | B12: 0 | C12: 0 | D12: RQCEQ280P | E12: =Y12*$S$3 -> 0 | F12: =Y12*($T$3/1000) -> 0 | G12: =D12 -> RQCEQ280P | H12: 0 | I12: 0 | J12: REYQ10P9 | K12: =AI12*$S$3 -> 0 | L12: =AI12*($T$3/1000) -> 0 | P12: 11.8 | Q12: 9.54 | R12: 0.6687607662 | S12: 28 | T12: 0 | U12: 7.04 | V12: 8 | W12: =X12*$R$3 -> 0.5728753708 | X12: 28 | Y12: 0 | Z12: =U12 -> 7.04 | AA12: =V12 -> 8 | AB12: 0.5728753708 | AC12: =X12 -> 28 | AD12: 0 | AE12: 7.09 | AF12: 7.38 | AG12: =AH12*$R$3 -> 0.5728753708 | AH12: 28 | AI12: 0 | AO12: =COUNTIF(Output!$D$5:$V$5,Database!A12) -> 0 | AP12: 125 | AQ12: 325 | AR12: 8 | AT12: 7.09 | AU12: 7.379580159 | AV12: REYQ10P8
A13: RSXY5K7 | B13: 0 | C13: 0 | D13: =G13 -> RXYQQ8T | E13: =Y13*$S$3 -> 0 | F13: =Y13*($T$3/1000) -> 0 | G13: RXYQQ8T | H13: =AD13*$S$3 -> 0 | I13: =AD13*($T$3/1000) -> 0 | J13: =J14 -> RYYQ8T | K13: =AI13*$S$3 -> 0 | L13: =AI13*($T$3/1000) -> 0 | P13: 6.1 | Q13: 5.4 | R13: 0.3343803831 | S13: 14 | T13: 0 | U13: =AE13 -> 0 | V13: =AF13 -> 0 | W13: =X13*$R$3 -> 0.437840462 | X13: =AH13 -> 21.4 | Y13: 0 | Z13: =AE13 -> 0 | AA13: =AF13 -> 0 | AB13: =AC13*$R$3 -> 0.437840462 | AC13: =AH13 -> 21.4 | AD13: =((Z13*$U$3)+(AA13*$V$3))*AO13 -> 0 | AE13: =AE8 -> 0 | AF13: 0 | AG13: =AH13*$R$3 -> 0.437840462 | AH13: 21.4 | AI13: =((AE13*$U$3)+(AF13*$V$3))*AO13 -> 0 | AO13: =COUNTIF(Output!$D$5:$V$5,Database!A13) -> 0 | AP13: 62.5 | AQ13: 162.5 | AR13: 8 | AT13: 3.52 | AU13: 3.999778179 | AV13: =AV8 -> RXYQ5P
A14: RSXY8K7 | B14: 598.6211 | C14: 2.81351917 | D14: =G14 -> RXYQQ8T | E14: 330.391985 | F14: 1.55284233 | G14: RXYQQ8T | H14: 330.391985 | I14: 1.55284233 | J14: =J9 -> RYYQ8T | K14: =AI14*$S$3 -> 330.391985 | L14: =AI14*($T$3/1000) -> 1.55284233 | P14: 9.43 | Q14: 8.5 | R14: 0.535008613 | S14: 22.4 | T14: 5442.01 | U14: =AE14 -> 4.168 | V14: =AF14 -> 5.51 | W14: 0.4583002966 | X14: =AH14 -> 22.4 | Y14: 3003.5635 | Z14: 4.168 | AA14: 5.51 | AB14: 0.4583002966 | AC14: 22.4 | AD14: =((Z14*$U$3)+(AA14*$V$3))*AO14 -> 3003.5635 | AE14: 4.168 | AF14: 5.51 | AG14: =AH14*$R$3 -> 0.4583002966 | AH14: 22.4 | AI14: 3003.5635 | AO14: =COUNTIF(Output!$D$5:$V$5,Database!A14) -> 1 | AP14: 100 | AQ14: 260 | AR14: 13 | AT14: 5.22 | AU14: 5.559691669 | AV14: =AV9 -> RXYQ8P8
A15: RSXY10K7 | B15: 0 | C15: 0 | D15: RXYQQ10T | E15: 0 | F15: 0 | G15: RXYQQ10T | H15: 0 | I15: 0 | J15: =J10 -> RYYQ10T | K15: 0 | L15: 0 | P15: 11.8 | Q15: 10.5 | R15: 0.6687607662 | S15: 28 | T15: 0 | U15: 5.84 | V15: 7.38 | W15: 0.5728753708 | X15: 28 | Y15: 0 | Z15: 5.84 | AA15: 7.38 | AB15: 0.5728753708 | AC15: 28 | AD15: 0 | AE15: 5.84 | AF15: 7.38 | AG15: 0.5728753708 | AH15: 28 | AI15: 0 | AO15: =COUNTIF(Output!$D$5:$V$5,Database!A15) -> 0 | AP15: 125 | AQ15: 325 | AR15: 16 | AT15: 7.42 | AU15: 7.699561955 | AV15: =AV10 -> RXYQ10P
A16: RXY16K | B16: 0 | C16: 0 | D16: RXYQQ16T | E16: 0 | F16: 0 | G16: RXYQQ16T | H16: 0 | I16: 0 | J16: RYYQ16T | K16: 0 | L16: 0 | M16: RXYHQ16P | N16: =AN16*$S$3 -> 0 | O16: =AN16*($T$3/1000) -> 0 | P16: 17 | Q16: 13.5 | R16: 1.09628997 | S16: 45.9 | T16: 0 | U16: 10.4 | V16: 12.8 | W16: 0.9206925602 | X16: 45 | Y16: 0 | Z16: 10.4 | AA16: 12.8 | AB16: 0.9206925602 | AC16: 45 | AD16: 0 | AE16: =13*0.8 -> 10.4 | AF16: 12.8 | AG16: 0.9206925602 | AH16: 45 | AI16: 0 | AJ16: 10.49 | AK16: 11.11 | AL16: =AM16*$R$3 -> 0.9094396511 | AM16: 44.45 | AN16: =((AJ16*$U$3)+(AK16*$V$3)+(AL16*$W$3))*AO16 -> 0 | AO16: =COUNTIF(Output!$D$5:$V$5,Database!A16) -> 0 | AP16: 200 | AQ16: 520 | AR16: 20 | AT16: 14.2 | AU16: 12.89928 | AV16: RXYQ16PA
A17: RXY18K | B17: 0 | C17: 0 | D17: RXYQQ18T | E17: 0 | F17: 0 | G17: RXYQQ18T | H17: 0 | I17: 0 | J17: RYYQ18T | K17: 0 | L17: 0 | M17: RXYHQ18P | N17: 0 | O17: 0 | P17: 19.7 | Q17: 14.8 | R17: 1.232430555 | S17: 51.6 | T17: 0 | U17: 11.76 | V17: 14.4 | W17: 1.022991734 | X17: 50 | Y17: 0 | Z17: 11.76 | AA17: 14.4 | AB17: 1.022991734 | AC17: 50 | AD17: 0 | AE17: =14.7*0.8 -> 11.76 | AF17: 14.4 | AG17: 1.022991734 | AH17: 50 | AI17: 0 | AJ17: 12.25 | AK17: 13.23 | AL17: 1.041200986 | AM17: 50.89 | AN17: 0 | AO17: =COUNTIF(Output!$D$5:$V$5,Database!A17) -> 0 | AP17: 225 | AQ17: 585 | AR17: 20 | AT17: 16.2 | AU17: 15.29914605 | AV17: RXYQ18PA
A18: RXY20K | B18: 0 | C18: 0 | D18: RXYQQ20T | E18: 0 | F18: 0 | G18: RXYQQ20T | H18: 0 | I18: 0 | J18: RYYQ20T | K18: 0 | L18: 0 | M18: RXYHQ20P | N18: 0 | O18: 0 | P18: 21.9 | Q18: 16.1 | R18: 1.368571139 | S18: 57.3 | T18: 0 | U18: 14.8 | V18: 17 | W18: 1.145750742 | X18: 56 | Y18: 0 | Z18: 14.8 | AA18: 17 | AB18: 1.145750742 | AC18: 56 | AD18: 0 | AE18: =18.5*0.8 -> 14.8 | AF18: 17 | AG18: 1.145750742 | AH18: 56 | AI18: 0 | AJ18: 13.8 | AK18: 14 | AL18: 1.143704758 | AM18: 55.9 | AN18: 0 | AO18: =COUNTIF(Output!$D$5:$V$5,Database!A18) -> 0 | AP18: 250 | AQ18: 650 | AR18: 20 | AT18: 14.71 | AU18: 14.95131107 | AV18: RXYQ20P8
A19: RXY24K | B19: 0 | C19: 0 | D19: RXYQQ24T | E19: 0 | F19: 0 | G19: RXYQQ24T | H19: 0 | I19: 0 | J19: RYYQ24T | K19: 0 | L19: 0 | M19: RXYHQ24P | N19: 0 | O19: 0 | P19: 27.2 | Q19: 20.4 | R19: 1.64324074 | S19: 68.8 | T19: 0 | U19: 14.56 | V19: 18.3 | W19: 1.378992857 | X19: 67.4 | Y19: 0 | Z19: 14.56 | AA19: 18.3 | AB19: 1.378992857 | AC19: 67.4 | AD19: 0 | AE19: =18.2*0.8 -> 14.56 | AF19: 18.3 | AG19: 1.378992857 | AH19: 67.4 | AI19: 0 | AJ19: 15.62 | AK19: 16.67 | AL19: 1.370808923 | AM19: 67 | AN19: 0 | AO19: =COUNTIF(Output!$D$5:$V$5,Database!A19) -> 0 | AP19: 300 | AQ19: 780 | AR19: 30 | AT19: 19.2 | AU19: 18.9 | AV19: RXYQ24P8
A20: RXY26K | B20: 0 | C20: 0 | D20: RXYQQ26T | E20: 0 | F20: 0 | G20: RXYQQ26T | H20: 0 | I20: 0 | J20: RYYQ26T | K20: 0 | L20: 0 | M20: RXYHQ26P | N20: 0 | O20: 0 | P20: 29.1 | Q20: 20.9 | R20: 1.781769756 | S20: 74.6 | T20: 0 | U20: 16 | V20: 20.3 | W20: 1.503797848 | X20: 73.5 | Y20: 0 | Z20: 16 | AA20: 20.3 | AB20: 1.503797848 | AC20: 73.5 | AD20: 0 | AE20: =20*0.8 -> 16 | AF20: 20.3 | AG20: 1.503797848 | AH20: 73.5 | AI20: 0 | AJ20: 17.46 | AK20: 18.78 | AL20: 1.460832196 | AM20: 71.4 | AN20: 0 | AO20: =COUNTIF(Output!$D$5:$V$5,Database!A20) -> 0 | AP20: 325 | AQ20: 845 | AR20: 30 | AT20: 20.94 | AU20: 20.68412694 | AV20: RXYQ26P8
A21: RXY28K | B21: 0 | C21: 0 | D21: RXYQQ28T | E21: 0 | F21: 0 | G21: RXYQQ28T | H21: 0 | I21: 0 | J21: RYYQ28T | K21: 0 | L21: 0 | M21: RXYHQ28P | N21: 0 | O21: 0 | P21: 31.2 | Q21: 23.8 | R21: 1.915521909 | S21: 80.2 | T21: 0 | U21: 17.6 | V21: 21.9 | W21: 1.606097022 | X21: 78.5 | Y21: 0 | Z21: 17.6 | AA21: 21.9 | AB21: 1.606097022 | AC21: 78.5 | AD21: 0 | AE21: =22*0.8 -> 17.6 | AF21: 21.9 | AG21: 1.606097022 | AH21: 78.5 | AI21: 0 | AJ21: 18.69 | AK21: 19.82 | AL21: 1.591161342 | AM21: 77.77 | AN21: 0 | AO21: =COUNTIF(Output!$D$5:$V$5,Database!A21) -> 0 | AP21: 350 | AQ21: 910 | AR21: 30 | AT21: 23.62 | AU21: 22.99870743 | AV21: RXYQ28P8
A22: RXY30K | B22: 0 | C22: 0 | D22: RXYQQ30T | E22: 0 | F22: 0 | G22: RXYQQ30T | H22: 0 | I22: 0 | J22: RYYQ30T | K22: 0 | L22: 0 | M22: RXYHQ30P | N22: 0 | O22: 0 | P22: 33.9 | Q22: 25.8 | R22: 2.054050925 | S22: 86 | T22: 0 | U22: 18.96 | V22: 23.5 | W22: 1.708396195 | X22: 83.5 | Y22: 0 | Z22: 18.96 | AA22: 23.5 | AB22: 1.708396195 | AC22: 83.5 | AD22: 0 | AE22: =23.7*0.8 -> 18.96 | AF22: 23.5 | AG22: 1.708396195 | AH22: 83.5 | AI22: 0 | AJ22: 20.83 | AK22: 21.81 | AL22: 1.68793636 | AM22: 82.5 | AN22: 0 | AO22: =COUNTIF(Output!$D$5:$V$5,Database!A22) -> 0 | AP22: 375 | AQ22: 975 | AR22: 30 | AT22: 25.78 | AU22: 24.69861081 | AV22: RXYQ30P8
A24: RSEY8KL | B24: 0 | C24: 0 | D24: RQCEQ180_280P | E24: =Y24*$S$3 -> 0 | F24: =Y24*($T$3/1000) -> 0 | G24: RQCEQ180_280P | H24: =AD24*$S$3 -> 0 | I24: =AD24*($T$3/1000) -> 0 | J24: =J11 -> REYQ8P9 | K24: =AI24*$S$3 -> 0 | L24: =AI24*($T$3/1000) -> 0 | P24: 9.43 | Q24: 8.48 | R24: 0.535008613 | S24: 22.4 | T24: 0 | U24: 6 | V24: 7 | W24: =X24*$R$3 -> 0.4501163628 | X24: 22 | Y24: 0 | Z24: 6 | AA24: 7 | AB24: =AC24*$P$3 -> 0.5254548877 | AC24: 22 | AD24: =((Z24*$U$3)+(AA24*$V$3))*AO24 -> 0 | AE24: =AE11 -> 5.2 | AF24: =AF11 -> 5.71 | AG24: =AH24*$R$3 -> 0.4583002966 | AH24: =AH11 -> 22.4 | AI24: =((AE24*$U$3)+(AF24*$V$3))*AO24 -> 0 | AO24: =COUNTIF(Output!$D$5:$V$5,Database!A24) -> 0 | AP24: 100 | AQ24: 260 | AR24: 8 | AT24: 5.2 | AU24: 5.709683351 | AV24: REYQ8P9
A25: RSEY10KL | B25: 0 | C25: 0 | D25: RQCEQ280P | E25: 0 | F25: 0 | G25: RQCEQ280P | H25: 0 | I25: 0 | J25: =J12 -> REYQ10P9 | K25: 0 | L25: 0 | P25: 11.8 | Q25: 10.5 | R25: 0.6687607662 | S25: 28 | T25: 0 | U25: 7.04 | V25: 8 | W25: 0.5728753708 | X25: 28 | Y25: 0 | Z25: 7.04 | AA25: 8 | AB25: 0.6687607662 | AC25: 28 | AD25: =((Z25*$U$3)+(AA25*$V$3))*AO25 -> 0 | AE25: =AE12 -> 7.09 | AF25: =AF12 -> 7.38 | AG25: 0.5728753708 | AH25: =AH12 -> 28 | AI25: =((AE25*$U$3)+(AF25*$V$3))*AO25 -> 0 | AO25: =COUNTIF(Output!$D$5:$V$5,Database!A25) -> 0 | AP25: 125 | AQ25: 325 | AR25: 8 | AT25: 7.09 | AU25: 7.379580159 | AV25: REYQ10P8
A26: REY16K | B26: 0 | C26: 0 | D26: RQCEQ460P | E26: 0 | F26: 0 | G26: RQCEQ460P | H26: 0 | I26: 0 | J26: REYQ16P9 | K26: 0 | L26: 0 | P26: 17 | Q26: 13.5 | R26: 1.09628997 | S26: 45.9 | T26: 0 | U26: 12.2 | V26: 13.4 | W26: 0.9206925602 | X26: 45 | Y26: 0 | Z26: 12.2 | AA26: 13.4 | AB26: 1.074794089 | AC26: 45 | AD26: 0 | AE26: 14.4 | AF26: 12.8 | AG26: 0.9206925602 | AH26: 45 | AI26: 0 | AO26: =COUNTIF(Output!$D$5:$V$5,Database!A26) -> 0 | AP26: 200 | AQ26: 520 | AR26: 20 | AT26: 14.1 | AU26: 12.79928559 | AV26: REYQ16P8
A27: REY18K | B27: 0 | C27: 0 | D27: RQCEQ500P | E27: 0 | F27: 0 | G27: RQCEQ500P | H27: 0 | I27: 0 | J27: REYQ18P9 | K27: 0 | L27: 0 | P27: 19.7 | Q27: 14.8 | R27: 1.232430555 | S27: 51.6 | T27: 0 | U27: 13.9 | V27: 14.7 | W27: 1.022991734 | X27: 50 | Y27: 0 | Z27: 13.9 | AA27: 14.7 | AB27: 1.194215654 | AC27: 50 | AD27: 0 | AE27: 12.7 | AF27: 13.4 | AG27: 1.031175667 | AH27: 50.4 | AI27: 0 | AO27: =COUNTIF(Output!$D$5:$V$5,Database!A27) -> 0 | AP27: 225 | AQ27: 585 | AR27: 20 | AT27: 12.7 | AU27: 13.3992521 | AV27: REYQ18P8
A28: REY20K | B28: 0 | C28: 0 | D28: RQCEQ540P | E28: 0 | F28: 0 | G28: RQCEQ540P | H28: 0 | I28: 0 | J28: REYQ20P9 | K28: 0 | L28: 0 | P28: 21.9 | Q28: 16.1 | R28: 1.368571139 | S28: 57.3 | T28: 0 | U28: 15.5 | V28: 16.1 | W28: 1.104831072 | X28: 54 | Y28: 0 | Z28: 15.5 | AA28: 16.1 | AB28: 1.289752906 | AC28: 54 | AD28: 0 | AE28: 14.9 | AF28: 15.2 | AG28: 1.143704758 | AH28: 55.9 | AI28: 0 | AO28: =COUNTIF(Output!$D$5:$V$5,Database!A28) -> 0 | AP28: 250 | AQ28: 650 | AR28: 20 | AT28: 14.9 | AU28: 15.19914401 | AV28: REYQ20P8
A29: REY24K | B29: 0 | C29: 0 | D29: RQCEQ712P | E29: 0 | F29: 0 | G29: RQCEQ712P | H29: 0 | I29: 0 | J29: REYQ24P9 | K29: 0 | L29: 0 | P29: 27.2 | Q29: 20.4 | R29: 1.64324074 | S29: 68.8 | T29: 0 | U29: 21.2 | V29: 20.7 | W29: 1.456740229 | X29: 71.2 | Y29: 0 | Z29: 21.2 | AA29: 20.7 | AB29: 1.700563091 | AC29: 71.2 | AD29: 0 | AE29: 19.2 | AF29: 18.9 | AG29: 1.370808923 | AH29: 67 | AI29: 0 | AO29: =COUNTIF(Output!$D$5:$V$5,Database!A29) -> 0 | AP29: 300 | AQ29: 780 | AR29: 30 | AT29: 19.2 | AU29: 18.89894738 | AV29: REYQ24P8
A30: REY26K | B30: 0 | C30: 0 | D30: RQCEQ744P | E30: 0 | F30: 0 | G30: RQCEQ744P | H30: 0 | I30: 0 | J30: REYQ26P9 | K30: 0 | L30: 0 | P30: 29.1 | Q30: 20.9 | R30: 1.781769756 | S30: 74.6 | T30: 0 | U30: 23.3 | V30: 21.2 | W30: 1.514027766 | X30: 74 | Y30: 0 | Z30: 23.3 | AA30: 21.2 | AB30: 1.767439168 | AC30: 74 | AD30: 0 | AE30: 21.6 | AF30: 20.6 | AG30: 1.493567931 | AH30: 73 | AI30: 0 | AO30: =COUNTIF(Output!$D$5:$V$5,Database!A30) -> 0 | AP30: 325 | AQ30: 845 | AR30: 30 | AT30: 21.6 | AU30: 20.59885251 | AV30: REYQ26P8
A31: REY28K | B31: 0 | C31: 0 | D31: RQCEQ816P | E31: 0 | F31: 0 | G31: RQCEQ816P | H31: 0 | I31: 0 | J31: REYQ28P9 | K31: 0 | L31: 0 | P31: 31.2 | Q31: 23.8 | R31: 1.915521909 | S31: 80.2 | T31: 0 | U31: 27.1 | V31: 23.1 | W31: 1.657246608 | X31: 81 | Y31: 0 | Z31: 27.1 | AA31: 23.1 | AB31: 1.934629359 | AC31: 81 | AD31: 0 | AE31: 23.8 | AF31: 22.3 | AG31: 1.606097022 | AH31: 78.5 | AI31: 0 | AO31: =COUNTIF(Output!$D$5:$V$5,Database!A31) -> 0 | AP31: 350 | AQ31: 910 | AR31: 30 | AT31: 23.8 | AU31: 22.29874677 | AV31: REYQ28P8
A32: REY30K | B32: 0 | C32: 0 | D32: RQCEQ848P | E32: 0 | F32: 0 | G32: RQCEQ848P | H32: 0 | I32: 0 | J32: REYQ30P9 | K32: 0 | L32: 0 | P32: 33.9 | Q32: 25.8 | R32: 2.054050925 | S32: 86 | T32: 0 | U32: 29.2 | V32: 23.6 | W32: 1.73499398 | X32: 84.8 | Y32: 0 | Z32: 29.2 | AA32: 23.6 | AB32: 2.025389749 | AC32: 84.8 | AD32: 0 | AE32: 26.6 | AF32: 25.8 | AG32: 1.739085947 | AH32: 85 | AI32: 0 | AO32: =COUNTIF(Output!$D$5:$V$5,Database!A32) -> 0 | AP32: 375 | AQ32: 975 | AR32: 30 | AT32: 26.6 | AU32: 24.19863893 | AV32: REYQ30P8
A34: RSXYP5K7 | B34: 0 | C34: 0 | D34: =G34 -> RXYQQ8T | E34: =Y34*$S$3 -> 0 | F34: =Y34*($T$3/1000) -> 0 | G34: =G13 -> RXYQQ8T | H34: =AD34*$S$3 -> 0 | I34: =AD34*($T$3/1000) -> 0 | J34: =J35 -> RYYQ8T | K34: =AI34*$S$3 -> 0 | L34: =AI34*($T$3/1000) -> 0 | P34: 6.1 | Q34: 5.74 | R34: 0.3343803831 | S34: 14 | T34: 0 | U34: =U13 -> 0 | V34: =V13 -> 0 | W34: =X34*$R$3 -> 0.437840462 | X34: =X13 -> 21.4 | Y34: 0 | Z34: =Z13 -> 0 | AA34: =AA13 -> 0 | AB34: 0.5111242999 | AC34: =AC13 -> 21.4 | AD34: =((Z34*$U$3)+(AA34*$V$3))*AO34 -> 0 | AE34: =AE8 -> 0 | AF34: 0 | AG34: =AH34*$R$3 -> 0 | AH34: =AH8 -> 0 | AI34: =((AE34*$U$3)+(AF34*$V$3))*AO34 -> 0 | AO34: =COUNTIF(Output!$D$5:$V$5,Database!A34) -> 0 | AP34: 62.5 | AQ34: 162.5 | AR34: 8 | AT34: 3.52 | AU34: 3.999778179 | AV34: RXYQ5P
A35: RSXYP8K7 | B35: 0 | C35: 0 | D35: =G35 -> RXYQQ8T | E35: 0 | F35: 0 | G35: =G14 -> RXYQQ8T | H35: 0 | I35: 0 | J35: =J9 -> RYYQ8T | K35: 0 | L35: 0 | P35: 9.43 | Q35: 8.79 | R35: 0.535008613 | S35: 22.4 | T35: 0 | U35: =U14 -> 4.168 | V35: 5.51 | W35: 0.4583002966 | X35: =X14 -> 22.4 | Y35: 0 | Z35: =Z14 -> 4.168 | AA35: 5.51 | AB35: 0.535008613 | AC35: =AC14 -> 22.4 | AD35: =((Z35*$U$3)+(AA35*$V$3))*AO35 -> 0 | AE35: 4.168 | AF35: 5.51 | AG35: =AH35*$R$3 -> 0.4583002966 | AH35: =AH9 -> 22.4 | AI35: =((AE35*$U$3)+(AF35*$V$3))*AO35 -> 0 | AO35: =COUNTIF(Output!$D$5:$V$5,Database!A35) -> 0 | AP35: 100 | AQ35: 260 | AR35: 13 | AT35: 5.22 | AU35: 5.559691669 | AV35: RXYQ8P8
A36: RSXYP10K7 | B36: 0 | C36: 0 | D36: RXYQQ10T | E36: 0 | F36: 0 | G36: RXYQQ10T | H36: 0 | I36: 0 | J36: RYYQ10T | K36: 0 | L36: 0 | P36: 11.8 | Q36: 11.2 | R36: 0.6687607662 | S36: 28 | T36: 0 | U36: 5.84 | V36: 7.38 | W36: 0.5728753708 | X36: 28 | Y36: 0 | Z36: 5.84 | AA36: 7.38 | AB36: 0.6687607662 | AC36: 28 | AD36: 0 | AE36: =AE10 -> 5.84 | AF36: 7.38 | AG36: 0.5728753708 | AH36: =AH10 -> 28 | AI36: 0 | AO36: =COUNTIF(Output!$D$5:$V$5,Database!A36) -> 0 | AP36: 125 | AQ36: 325 | AR36: 16 | AT36: 7.42 | AU36: 7.699561955 | AV36: RXYQ10P
A37: RSXYP16J | B37: 0 | C37: 0 | D37: RXYQQ16T | E37: 0 | F37: 0 | G37: RXYQQ16T | H37: 0 | I37: 0 | J37: =J16 -> RYYQ16T | K37: 0 | L37: 0 | M37: RXYHQ16P | N37: =AN37*$S$3 -> 0 | O37: =AN37*($T$3/1000) -> 0 | P37: 15.7 | Q37: 14.2 | R37: 1.046132913 | S37: 43.8 | T37: 0 | U37: 10.4 | V37: 12.8 | W37: 0.9206925602 | X37: 45 | Y37: 0 | Z37: 10.4 | AA37: 12.8 | AB37: 1.074794089 | AC37: 45 | AD37: 0 | AE37: =AE16 -> 10.4 | AF37: =AF16 -> 12.8 | AG37: 0.9206925602 | AH37: =AH16 -> 45 | AI37: 0 | AJ37: 10.49 | AK37: 11.47935926 | AL37: =AM37*$R$3 -> 0.9094396511 | AM37: 44.45 | AN37: =((AJ37*$U$3)+(AK37*$V$3)+(AL37*$W$3))*AO37 -> 0 | AO37: =COUNTIF(Output!$D$5:$V$5,Database!A37) -> 0 | AP37: 200 | AQ37: 520 | AR37: 20 | AT37: 14.2 | AU37: 12.89928 | AV37: RXYQ16PA
A38: RSXYP18J | B38: 0 | C38: 0 | D38: RXYQQ18T | E38: 0 | F38: 0 | G38: RXYQQ18T | H38: 0 | I38: 0 | J38: =J17 -> RYYQ18T | K38: 0 | L38: 0 | M38: RXYHQ18P | N38: 0 | O38: 0 | P38: 18.1 | Q38: 15.5 | R38: 1.177496635 | S38: 49.3 | T38: 0 | U38: 11.76 | V38: 14.4 | W38: 1.022991734 | X38: 50 | Y38: 0 | Z38: 11.76 | AA38: 14.4 | AB38: 1.194215654 | AC38: 50 | AD38: 0 | AE38: =AE17 -> 11.76 | AF38: 14.4 | AG38: 1.022991734 | AH38: =AH17 -> 50 | AI38: 0 | AJ38: 12.25 | AK38: 12.91927889 | AL38: 1.041200986 | AM38: 50.89 | AN38: 0 | AO38: =COUNTIF(Output!$D$5:$V$5,Database!A38) -> 0 | AP38: 225 | AQ38: 585 | AR38: 20 | AT38: 16.2 | AU38: 15.29914605 | AV38: RXYQ18PA
A39: RSXYP20J | B39: 0 | C39: 0 | D39: RXYQQ20T | E39: 0 | F39: 0 | G39: RXYQQ20T | H39: 0 | I39: 0 | J39: RYYQ20T | K39: 0 | L39: 0 | M39: RXYHQ20P | N39: 0 | O39: 0 | P39: 20.2 | Q39: 16.9 | R39: 1.306471925 | S39: 54.7 | T39: 0 | U39: 14.8 | V39: 17 | W39: 1.145750742 | X39: 56 | Y39: 0 | Z39: 14.8 | AA39: 17 | AB39: 1.337521532 | AC39: 56 | AD39: 0 | AE39: =AE18 -> 14.8 | AF39: 17 | AG39: 1.145750742 | AH39: 56 | AI39: 0 | AJ39: 13.8 | AK39: 14.79917608 | AL39: 1.143704758 | AM39: 55.9 | AN39: 0 | AO39: =COUNTIF(Output!$D$5:$V$5,Database!A39) -> 0 | AP39: 250 | AQ39: 650 | AR39: 20 | AT39: 14.71 | AU39: 14.95131107 | AV39: RXYQ20P8
A40: RSXYP24J | B40: 0 | C40: 0 | D40: RXYQQ24T | E40: 0 | F40: 0 | G40: RXYQQ24T | H40: 0 | I40: 0 | J40: RYYQ24T | K40: 0 | L40: 0 | M40: RXYHQ24P | N40: 0 | O40: 0 | P40: 25 | Q40: 21.4 | R40: 1.569199369 | S40: 65.7 | T40: 0 | U40: 14.56 | V40: 18.3 | W40: 1.378992857 | X40: 67.4 | Y40: 0 | Z40: 14.56 | AA40: 18.3 | AB40: 1.609802702 | AC40: 67.4 | AD40: 0 | AE40: =AE19 -> 14.56 | AF40: 18.3 | AG40: 1.378992857 | AH40: 67.4 | AI40: 0 | AJ40: 15.62 | AK40: 18.11899082 | AL40: 1.384517012 | AM40: 67.67 | AN40: 0 | AO40: =COUNTIF(Output!$D$5:$V$5,Database!A40) -> 0 | AP40: 300 | AQ40: 780 | AR40: 32 | AT40: 19.2 | AU40: 18.9 | AV40: RXYQ24P8
A41: RSXYP26J | B41: 0 | C41: 0 | D41: RXYQQ26T | E41: 0 | F41: 0 | G41: RXYQQ26T | H41: 0 | I41: 0 | J41: RYYQ26T | K41: 0 | L41: 0 | M41: RXYHQ26P | N41: 0 | O41: 0 | P41: 26.9 | Q41: 21.9 | R41: 1.700563091 | S41: 71.2 | T41: 0 | U41: 16 | V41: 20.3 | W41: 1.503797848 | X41: 73.5 | Y41: 0 | Z41: 16 | AA41: 20.3 | AB41: 1.755497011 | AC41: 73.5 | AD41: 0 | AE41: =AE20 -> 16 | AF41: 20.3 | AG41: 1.503797848 | AH41: 73.5 | AI41: 0 | AJ41: 17.46 | AK41: 18.65896057 | AL41: 1.460832196 | AM41: 71.4 | AN41: 0 | AO41: =COUNTIF(Output!$D$5:$V$5,Database!A41) -> 0 | AP41: 325 | AQ41: 845 | AR41: 32 | AT41: 20.94 | AU41: 20.68412694 | AV41: RXYQ26P8
A42: RSXYP28J | B42: 0 | C42: 0 | D42: RXYQQ28T | E42: 0 | F42: 0 | G42: RXYQQ28T | H42: 0 | I42: 0 | J42: RYYQ28T | K42: 0 | L42: 0 | M42: RXYHQ28P | N42: 0 | O42: 0 | P42: 28.7 | Q42: 23.9 | R42: 1.829538382 | S42: 76.6 | T42: 0 | U42: 17.6 | V42: 21.9 | W42: 1.606097022 | X42: 78.5 | Y42: 0 | Z42: 17.6 | AA42: 21.9 | AB42: 1.874918577 | AC42: 78.5 | AD42: 0 | AE42: =AE21 -> 17.6 | AF42: 21.9 | AG42: 1.606097022 | AH42: 78.5 | AI42: 0 | AJ42: 18.69 | AK42: 20.09887041 | AL42: 1.611621177 | AM42: 78.77 | AN42: 0 | AO42: =COUNTIF(Output!$D$5:$V$5,Database!A42) -> 0 | AP42: 350 | AQ42: 910 | AR42: 32 | AT42: 23.62 | AU42: 22.99870743 | AV42: RXYQ28P8
A43: RSXYP30J | B43: 0 | C43: 0 | D43: RXYQQ30T | E43: 0 | F43: 0 | G43: RXYQQ30T | H43: 0 | I43: 0 | J43: RYYQ30T | K43: 0 | L43: 0 | M43: RXYHQ30P | N43: 0 | O43: 0 | P43: 31.2 | Q43: 27.1 | R43: 1.960902104 | S43: 82.1 | T43: 0 | U43: 18.96 | V43: 23.5 | W43: 1.708396195 | X43: 83.5 | Y43: 0 | Z43: 18.96 | AA43: 23.5 | AB43: 1.994340142 | AC43: 83.5 | AD43: 0 | AE43: =AE22 -> 18.96 | AF43: 23.5 | AG43: 1.708396195 | AH43: 83.5 | AI43: 0 | AJ43: 20.83 | AK43: 21.97877322 | AL43: 1.68793636 | AM43: 82.5 | AN43: 0 | AO43: =COUNTIF(Output!$D$5:$V$5,Database!A43) -> 0 | AP43: 375 | AQ43: 975 | AR43: 32 | AT43: 25.78 | AU43: 24.69861081 | AV43: RXYQ30P8
A45: RSEYP8KJ | B45: 0 | C45: 0 | D45: RQCEQ180_280P | E45: =Y45*$S$3 -> 0 | F45: =Y45*($T$3/1000) -> 0 | G45: RQCEQ180_280P | H45: =AD45*$S$3 -> 0 | I45: =AD45*($T$3/1000) -> 0 | J45: =J24 -> REYQ8P9 | K45: =AI45*$S$3 -> 0 | L45: =AI45*($T$3/1000) -> 0 | P45: 9.43 | Q45: 8.79 | R45: 0.535008613 | S45: 22.4 | T45: 0 | U45: 6 | V45: 7 | W45: =X45*$R$3 -> 0.4501163628 | X45: 22 | Y45: 0 | Z45: 6 | AA45: 7 | AB45: 0.5254548877 | AC45: 22 | AD45: =((Z45*$U$3)+(AA45*$V$3))*AO45 -> 0 | AE45: =AE24 -> 5.2 | AF45: =AF24 -> 5.71 | AG45: =AH45*$R$3 -> 0.4583002966 | AH45: =AH24 -> 22.4 | AI45: =((AE45*$U$3)+(AF45*$V$3))*AO45 -> 0 | AO45: =COUNTIF(Output!$D$5:$V$5,Database!A45) -> 0 | AP45: 100 | AQ45: 260 | AR45: 13 | AT45: 5.2 | AU45: 5.709683351 | AV45: REYQ8P9
A46: RSEYP10KJ | B46: 0 | C46: 0 | D46: RQCEQ280P | E46: 0 | F46: 0 | G46: RQCEQ280P | H46: 0 | I46: 0 | J46: =J25 -> REYQ10P9 | K46: 0 | L46: 0 | P46: 11.8 | Q46: 11.2 | R46: 0.6687607662 | S46: 28 | T46: 0 | U46: 7.04 | V46: 8 | W46: 0.5728753708 | X46: 28 | Y46: 0 | Z46: 7.04 | AA46: 8 | AB46: 0.6687607662 | AC46: 28 | AD46: =((Z46*$U$3)+(AA46*$V$3))*AO46 -> 0 | AE46: =AE25 -> 7.09 | AF46: 7.38 | AG46: 0.5728753708 | AH46: =AH25 -> 28 | AI46: =((AE46*$U$3)+(AF46*$V$3))*AO46 -> 0 | AO46: =COUNTIF(Output!$D$5:$V$5,Database!A46) -> 0 | AP46: 125 | AQ46: 325 | AR46: 16 | AT46: 7.09 | AU46: 7.379580159 | AV46: REYQ10P8
A47: RSEYP16KJ | B47: 0 | C47: 0 | D47: RQCEQ460P | E47: 0 | F47: 0 | G47: RQCEQ460P | H47: 0 | I47: 0 | J47: REYQ16P9 | K47: 0 | L47: 0 | M47: REYHQ16P | N47: =AN47*$S$3 -> 0 | O47: =AN47*($T$3/1000) -> 0 | P47: 15.7 | Q47: 14.2 | R47: 1.046132913 | S47: 43.8 | T47: 0 | U47: 12.2 | V47: 13.4 | W47: 0.9206925602 | X47: 45 | Y47: 0 | Z47: 12.2 | AA47: 13.4 | AB47: 1.074794089 | AC47: 45 | AD47: 0 | AE47: =AE26 -> 14.4 | AF47: 12.8 | AG47: 0.9206925602 | AH47: 45 | AI47: 0 | AJ47: 10.5 | AK47: 11.49935814 | AL47: =AM47*$R$3 -> 0.9206925602 | AM47: 45 | AN47: =((AJ47*$U$3)+(AK47*$V$3)+(AL47*$W$3))*AO47 -> 0 | AO47: =COUNTIF(Output!$D$5:$V$5,Database!A47) -> 0 | AP47: 200 | AQ47: 520 | AR47: 20 | AT47: 14.1 | AU47: 12.79928559 | AV47: REYQ16P8
A48: RSEYP18KJ | B48: 0 | C48: 0 | D48: RQCEQ500P | E48: 0 | F48: 0 | G48: RQCEQ500P | H48: 0 | I48: 0 | J48: REYQ18P9 | K48: 0 | L48: 0 | P48: 18.7 | Q48: 15.5 | R48: 1.177496635 | S48: 49.3 | T48: 0 | U48: 13.9 | V48: 14.7 | W48: 1.022991734 | X48: 50 | Y48: 0 | Z48: 13.9 | AA48: 14.7 | AB48: 1.194215654 | AC48: 50 | AD48: 0 | AE48: =AE27 -> 12.7 | AF48: 13.4 | AG48: 1.031175667 | AH48: 50.4 | AI48: 0 | AO48: =COUNTIF(Output!$D$5:$V$5,Database!A48) -> 0 | AP48: 225 | AQ48: 585 | AR48: 20 | AT48: 12.7 | AU48: 13.3992521 | AV48: REYQ18P8
A49: RSEYP20KJ | B49: 0 | C49: 0 | D49: RQCEQ540P | E49: 0 | F49: 0 | G49: RQCEQ540P | H49: 0 | I49: 0 | J49: REYQ20P9 | K49: 0 | L49: 0 | M49: REYHQ20P | N49: =AN49*$S$3 -> 0 | O49: =AN49*($T$3/1000) -> 0 | P49: 21.8 | Q49: 16.9 | R49: 1.306471925 | S49: 54.7 | T49: 0 | U49: 15.5 | V49: 16.1 | W49: 1.104831072 | X49: 54 | Y49: 0 | Z49: 15.5 | AA49: 16.1 | AB49: 1.289752906 | AC49: 54 | AD49: 0 | AE49: =AE28 -> 14.9 | AF49: 15.2 | AG49: 1.143704758 | AH49: 55.9 | AI49: 0 | AJ49: 13.9 | AK49: 14.29919469 | AL49: =AM49*$R$3 -> 1.145750742 | AM49: 56 | AN49: =((AJ49*$U$3)+(AK49*$V$3)+(AL49*$W$3))*AO49 -> 0 | AO49: =COUNTIF(Output!$D$5:$V$5,Database!A49) -> 0 | AP49: 250 | AQ49: 650 | AR49: 20 | AT49: 14.9 | AU49: 15.19914401 | AV49: REYQ20P8
A50: RSEYP24KJ | B50: 0 | C50: 0 | D50: RQCEQ712P | E50: 0 | F50: 0 | G50: RQCEQ712P | H50: 0 | I50: 0 | J50: REYQ24P9 | K50: 0 | L50: 0 | M50: REYHQ24P | N50: =AN50*$S$3 -> 0 | O50: =AN50*($T$3/1000) -> 0 | P50: 25 | Q50: 21.4 | R50: 1.569199369 | S50: 65.7 | T50: 0 | U50: 21.2 | V50: 20.7 | W50: 1.456740229 | X50: 71.2 | Y50: 0 | Z50: 21.2 | AA50: 20.7 | AB50: 1.700563091 | AC50: 71.2 | AD50: 0 | AE50: =AE29 -> 19.2 | AF50: 18.9 | AG50: 1.370808923 | AH50: 67 | AI50: 0 | AJ50: 17.2 | AK50: 17.19904206 | AL50: =AM50*$R$3 -> 1.370808923 | AM50: 67 | AN50: =((AJ50*$U$3)+(AK50*$V$3)+(AL50*$W$3))*AO50 -> 0 | AO50: =COUNTIF(Output!$D$5:$V$5,Database!A50) -> 0 | AP50: 300 | AQ50: 780 | AR50: 32 | AT50: 19.2 | AU50: 18.89894738 | AV50: REYQ24P8
A51: RSEYP26KJ | B51: 0 | C51: 0 | D51: RQCEQ744P | E51: 0 | F51: 0 | G51: RQCEQ744P | H51: 0 | I51: 0 | J51: REYQ26P9 | K51: 0 | L51: 0 | P51: 26.9 | Q51: 21.9 | R51: 1.700563091 | S51: 71.2 | T51: 0 | U51: 23.3 | V51: 21.2 | W51: 1.514027766 | X51: 74 | Y51: 0 | Z51: 23.3 | AA51: 21.2 | AB51: 1.767439168 | AC51: 74 | AD51: 0 | AE51: =AE30 -> 21.6 | AF51: 20.6 | AG51: 1.493567931 | AH51: 73 | AI51: 0 | AO51: =COUNTIF(Output!$D$5:$V$5,Database!A51) -> 0 | AP51: 325 | AQ51: 845 | AR51: 32 | AT51: 21.6 | AU51: 20.59885251 | AV51: REYQ26P8
A52: RSEYP28KJ | B52: 0 | C52: 0 | D52: RQCEQ816P | E52: 0 | F52: 0 | G52: RQCEQ816P | H52: 0 | I52: 0 | J52: REYQ28P9 | K52: 0 | L52: 0 | P52: 28.7 | Q52: 23.9 | R52: 1.829538382 | S52: 76.6 | T52: 0 | U52: 27.1 | V52: 23.1 | W52: 1.657246608 | X52: 81 | Y52: 0 | Z52: 27.1 | AA52: 23.1 | AB52: 1.934629359 | AC52: 81 | AD52: 0 | AE52: =AE31 -> 23.8 | AF52: 22.3 | AG52: 1.606097022 | AH52: 78.5 | AI52: 0 | AO52: =COUNTIF(Output!$D$5:$V$5,Database!A52) -> 0 | AP52: 350 | AQ52: 910 | AR52: 32 | AT52: 23.8 | AU52: 22.29874677 | AV52: REYQ28P8
A53: RSEYP30KJ | B53: 0 | C53: 0 | D53: RQCEQ848P | E53: 0 | F53: 0 | G53: RQCEQ848P | H53: 0 | I53: 0 | J53: REYQ30P9 | K53: 0 | L53: 0 | P53: 31.2 | Q53: 27.1 | R53: 1.960902104 | S53: 82.1 | T53: 0 | U53: 29.2 | V53: 23.6 | W53: 1.73499398 | X53: 84.8 | Y53: 0 | Z53: 29.2 | AA53: 23.6 | AB53: 2.025389749 | AC53: 84.8 | AD53: 0 | AE53: =AE32 -> 26.6 | AF53: 25.8 | AG53: 1.739085947 | AH53: =AH32 -> 85 | AI53: 0 | AO53: =COUNTIF(Output!$D$5:$V$5,Database!A53) -> 0 | AP53: 375 | AQ53: 975 | AR53: 32 | AT53: 26.6 | AU53: 24.19863893 | AV53: REYQ30P8
T54: =COUNTIF(T8:T53,">0") -> 1 | Y54: =COUNTIF(Y8:Y53,">0") -> 1 | AD54: =COUNTIF(AD8:AD53,">0") -> 1 | AI54: =COUNTIF(AI8:AI53,">0") -> 1 | AN54: =COUNTIF(AN8:AN53,">0") -> 0
A55: RQYQ140P | B55: 0 | C55: 0 | P55: 3.52 | Q55: 4 | R55: =S55*$R$3 -> 0.2864376854 | S55: 14 | T55: 0
A56: RQYQ180P | B56: 0 | C56: 0 | P56: 5.17 | Q56: 5.37 | R56: 0.3682770241 | S56: 18 | T56: 0
A57: RQCYQ280P | B57: 0 | C57: 0 | P57: 7.04 | Q57: 8 | R57: 0.5728753708 | S57: 28 | T57: 0
A58: RQCYQ360P | B58: 0 | C58: 0 | P58: 10.3 | Q58: 10.7 | R58: 0.7365540482 | S58: 36 | T58: 0
A59: RQCYQ460P | B59: 0 | C59: 0 | P59: 12.2 | Q59: 13.4 | R59: 0.9411523949 | S59: 46 | T59: 0
A60: RQCYQ500P | B60: 0 | C60: 0 | P60: 13.9 | Q60: 14.7 | R60: 1.022991734 | S60: 50 | T60: 0
A61: RQCYQ540P | B61: 0 | C61: 0 | P61: 15.5 | Q61: 16.1 | R61: 1.104831072 | S61: 54 | T61: 0
A62: RQYP615A | B62: 0 | C62: 0 | P62: 17.7 | Q62: 18.8 | R62: 1.258279832 | S62: 61.5 | T62: 0
A63: RQYP680A | B63: 0 | C63: 0 | P63: 19.2 | Q63: 20.8 | R63: 1.391268758 | S63: 68 | T63: 0
A64: RQYP730A | B64: 0 | C64: 0 | P64: 21.2 | Q64: 22.2 | R64: 1.493567931 | S64: 73 | T64: 0
A65: RQYP785A | B65: 0 | C65: 0 | P65: 23.7 | Q65: 23.8 | R65: 1.606097022 | S65: 78.5 | T65: 0
A66: RQYP850A | B66: 0 | C66: 0 | P66: 25.2 | Q66: 25.8 | R66: 1.739085947 | S66: 85 | T66: 0
A68: RQCEQ280P | B68: 0 | C68: 0 | P68: 7.04 | Q68: 8 | R68: 0.5728753708 | S68: 28 | T68: 0
A69: RQCEQ360P | B69: 0 | C69: 0 | P69: 10.3 | Q69: 10.7 | R69: 0.7365540482 | S69: 36 | T69: 0
A70: RQCEQ460P | B70: 0 | C70: 0 | P70: 12.2 | Q70: 13.4 | R70: 0.9206925602 | S70: 45 | T70: 0
A71: RQCEQ500P | B71: 0 | C71: 0 | P71: 13.9 | Q71: 14.7 | R71: 1.022991734 | S71: 50 | T71: 0
A72: RQCEQ540P | B72: =T72*$S$3 -> 0 | C72: =T72*($T$3/1000) -> 0 | P72: 15.5 | Q72: 16.1 | R72: 1.104831072 | S72: 54 | T72: 0
A73: RQCEQ636P | B73: 0 | C73: 0 | P73: 21.9 | Q73: 17.7 | R73: 1.301245485 | S73: 63.6 | T73: =((P73*$U$3)+(Q73*$V$3))*AO73 -> 0
A74: RQCEQ712P | B74: 0 | C74: 0 | P74: 21.2 | Q74: 20.7 | R74: 1.456740229 | S74: 71.2 | T74: 0
A75: RQCEQ744P | B75: 0 | C75: 0 | P75: 23.3 | Q75: 21.2 | R75: 1.514027766 | S75: 74 | T75: 0
A76: RQCEQ816P | B76: 0 | C76: 0 | P76: 27.1 | Q76: 23.1 | R76: 1.657246608 | S76: 81 | T76: 0
A77: RQCEQ848P | B77: 0 | C77: 0 | P77: 29.2 | Q77: 23.6 | R77: 1.73499398 | S77: 84.8 | T77: 0
A79: RXYQ5P | B79: =T79*$S$3 -> 0 | C79: =T79*($T$3/1000) -> 0 | P79: 3.52 | Q79: 3.999778179 | R79: =S79*$R$3 -> 0.2864376854 | S79: 14 | T79: 0
A80: RXYQ8P8 | B80: 0 | C80: 0 | P80: 5.22 | Q80: 5.559691669 | R80: 0.4583002966 | S80: 22.4 | T80: 0
A81: RXYQ10P | B81: 0 | C81: 0 | P81: 7.42 | Q81: 7.699561955 | R81: 0.5728753708 | S81: 28 | T81: 0
A82: RXYQ12P | B82: 0 | C82: 0 | P82: 9.62 | Q82: 9.449462399 | R82: 0.6854044615 | S82: 33.5 | T82: 0
A83: RXYQ14PA | B83: 0 | C83: 0 | P83: 12.4 | Q83: 11.29936931 | R83: 0.8183933869 | S83: 40 | T83: 0
A84: RXYQ16PA | B84: 0 | C84: 0 | P84: 14.2 | Q84: 12.89928 | R84: 0.9206925602 | S84: 45 | T84: 0
A85: RXYQ18PA | B85: 0 | C85: 0 | P85: 16.2 | Q85: 15.29914605 | R85: 1.002531899 | S85: 49 | T85: 0
A86: RXYQ20P8 | B86: 0 | C86: 0 | P86: 14.71 | Q86: 14.95131107 | R86: 1.143704758 | S86: 55.9 | T86: 0
A87: RXYQ22P8 | B87: 0 | C87: 0 | P87: 16.99 | Q87: 17.0990272 | R87: 1.258279832 | S87: 61.5 | T87: 0
A88: RXYQ24P8 | B88: 0 | C88: 0 | P88: 19.2 | Q88: 18.9 | R88: 1.370808923 | S88: 67 | T88: 0
A89: RXYQ26P8 | B89: 0 | C89: 0 | P89: 20.94 | Q89: 20.68412694 | R89: 1.460832196 | S89: 71.4 | T89: 0
A90: RXYQ28P8 | B90: 0 | C90: 0 | P90: 23.62 | Q90: 22.99870743 | R90: 1.57540727 | S90: 77 | T90: 0
A91: RXYQ30P8 | B91: 0 | C91: 0 | P91: 25.78 | Q91: 24.69861081 | R91: 1.68793636 | S91: 82.5 | T91: 0
A92: RXYQ32P8 | B92: 0 | C92: 0 | P92: 28.62 | Q92: 26.59851536 | R92: 1.820925286 | S92: 89 | T92: 0
A93: RXYQ34P8 | B93: 0 | C93: 0 | P93: 30.42 | Q93: 28.19842606 | R93: 1.923224459 | S93: 94 | T93: 0
A94: RXYQ36P8 | B94: 0 | C94: 0 | P94: 32.45 | Q94: 30.5982921 | R94: 2.005063798 | S94: 98 | T94: 0
A95: RXYQ38P8 | B95: 0 | C95: 0 | P95: 30.61 | Q95: 30.09831208 | R95: 2.14828264 | S95: 105 | T95: 0
A96: RXYQ40P8 | B96: 0 | C96: 0 | P96: 33.23 | Q96: 32.39819396 | R96: 2.271041649 | S96: 111 | T96: 0
A97: RXYQ42P8 | B97: 0 | C97: 0 | P97: 35.37 | Q97: 34.19809351 | R97: 2.373340822 | S97: 116 | T97: 0
A98: RXYQ44P8 | B98: 0 | C98: 0 | P98: 36.92 | Q98: 34.19809351 | R98: 2.455180161 | S98: 120 | T98: 0
A99: RXYQ46P8 | B99: 0 | C99: 0 | P99: 39.75 | Q99: 38.29785336 | R99: 2.577939169 | S99: 126 | T99: 0
A100: RXYQ48P8 | B100: 0 | C100: 0 | P100: 42.04 | Q100: 39.94775954 | R100: 2.700698177 | S100: 132 | T100: 0
A101: RXYQ50P8 | B101: 0 | C101: 0 | P101: 44.81 | Q101: 41.89766141 | R101: 2.823457185 | S101: 138 | T101: 0
A102: RXYQ52P8 | B102: 0 | C102: 0 | P102: 46.88 | Q102: 43.49757211 | R102: 2.925756358 | S102: 143 | T102: 0
A103: RXYQ54P8 | B103: 0 | C103: 0 | P103: 48.7 | Q103: 45.94743537 | R103: 3.007595697 | S103: 147 | T103: 0
A106: RXYHQ12P | B106: =T106*$S$3 -> 0 | C106: =T106*($T$3/1000) -> 0 | P106: 8.61 | Q106: 9.449462399 | R106: =S106*$R$3 -> 0.6854044615 | S106: 33.5 | T106: 0
A107: RXYHQ16P | B107: 0 | C107: 0 | P107: 10.49 | Q107: 11.11 | R107: 0.9094396511 | S107: 44.45 | T107: 0
A108: RXYHQ18P | B108: 0 | C108: 0 | P108: 12.25 | Q108: 13.23 | R108: 1.041200986 | S108: 50.89 | T108: 0
A109: RXYHQ20P | B109: 0 | C109: 0 | P109: 13.8 | Q109: 14 | R109: 1.143704758 | S109: 55.9 | T109: 0
A110: RXYHQ22P | B110: 0 | C110: 0 | P110: 16.02 | Q110: 16.23908561 | R110: 1.258279832 | S110: 61.5 | T110: 0
A111: RXYHQ24P | B111: 0 | C111: 0 | P111: 15.62 | Q111: 16.67 | R111: 1.384517012 | S111: 67.67 | T111: 0
A112: RXYHQ26P | B112: 0 | C112: 0 | P112: 17.46 | Q112: 18.78 | R112: 1.460832196 | S112: 71.4 | T112: 0
A113: RXYHQ28P | B113: 0 | C113: 0 | P113: 18.69 | Q113: 19.82 | R113: 1.611621177 | S113: 78.77 | T113: 0
A114: RXYHQ30P | B114: 0 | C114: 0 | P114: 20.83 | Q114: 21.81 | R114: 1.68793636 | S114: 82.5 | T114: 0
A115: RXYHQ32P | B115: 0 | C115: 0 | P115: 22.31 | Q115: 23.41869285 | R115: 1.820925286 | S115: 89 | T115: 0
A116: RXYHQ34P | B116: 0 | C116: 0 | P116: 24.42 | Q116: 25.29858792 | R116: 1.923224459 | S116: 94 | T116: 0
A117: RXYHQ36P | B117: 0 | C117: 0 | P117: 25.91 | Q117: 27.17848299 | R117: 2.005063798 | S117: 98 | T117: 0
A119: REYQ8P9 | B119: =T119*$S$3 -> 0 | C119: =T119*($T$3/1000) -> 0 | P119: 5.2 | Q119: 5.709683351 | R119: =S119*$R$3 -> 0.4583002966 | S119: 22.4 | T119: 0
A120: REYQ10P8 | B120: 0 | C120: 0 | P120: 7.09 | Q120: 7.379580159 | R120: 0.5728753708 | S120: 28 | T120: 0
A121: REYQ12P9 | B121: 0 | C121: 0 | P121: 8.72 | Q121: 8.839497101 | R121: 0.6854044615 | S121: 33.5 | T121: 0
A122: REYQ14P8 | B122: 0 | C122: 0 | P122: 11.4 | Q122: 10.99938605 | R122: 0.8183933869 | S122: 40 | T122: 0
A123: REYQ16P8 | B123: 0 | C123: 0 | P123: 14.1 | Q123: 12.79928559 | R123: 0.9206925602 | S123: 45 | T123: 0
A124: REYQ18P8 | B124: 0 | C124: 0 | P124: 12.7 | Q124: 13.3992521 | R124: 1.031175667 | S124: 50.4 | T124: 0
A125: REYQ20P8 | B125: 0 | C125: 0 | P125: 14.9 | Q125: 15.19914401 | R125: 1.143704758 | S125: 55.9 | T125: 0
A126: REYQ22P8 | B126: 0 | C126: 0 | P126: 17 | Q126: 17.0990272 | R126: 1.258279832 | S126: 61.5 | T126: 0
A127: REYQ24P8 | B127: 0 | C127: 0 | P127: 19.2 | Q127: 18.89894738 | R127: 1.370808923 | S127: 67 | T127: 0
A128: REYQ26P8 | B128: 0 | C128: 0 | P128: 21.6 | Q128: 20.59885251 | R128: 1.493567931 | S128: 73 | T128: 0
A129: REYQ28P8 | B129: 0 | C129: 0 | P129: 23.8 | Q129: 22.29874677 | R129: 1.606097022 | S129: 78.5 | T129: 0
A130: REYQ30P8 | B130: 0 | C130: 0 | P130: 26.6 | Q130: 24.19863893 | R130: 1.739085947 | S130: 85 | T130: 0
A131: REYQ32P8 | B131: 0 | C131: 0 | P131: 28.4 | Q131: 25.79856001 | R131: 1.84138512 | S131: 90 | T131: 0
A132: REYQ34P8 | B132: 0 | C132: 0 | P132: 26.9 | Q132: 26.2985321 | R132: 1.951868228 | S132: 95.4 | T132: 0
A133: REYQ36P8 | B133: 0 | C133: 0 | P133: 29.1 | Q133: 28.09843164 | R133: 2.064780168 | S133: 100.9187123 | T133: 0
A134: REYQ38P8 | B134: 0 | C134: 0 | P134: 31.2 | Q134: 29.99831768 | R134: 2.18920231 | S134: 107 | T134: 0
A135: REYQ40P8 | B135: 0 | C135: 0 | P135: 33.4 | Q135: 31.79822741 | R135: 2.291501483 | S135: 112 | T135: 0
A136: REYQ42P8 | B136: 0 | C136: 0 | P136: 35.8 | Q136: 33.49813253 | R136: 2.414260491 | S136: 118 | T136: 0
A137: REYQ44P8 | B137: 0 | C137: 0 | P137: 38 | Q137: 35.19803765 | R137: 2.537019499 | S137: 124 | T137: =((P137*$U$3)+(Q137*$V$3))*AO137 -> 0
A138: REYQ46P8 | B138: 0 | C138: 0 | P138: 40.8 | Q138: 37.09792062 | R138: 2.659778507 | S138: 130 | T138: 0
A139: REYQ48P8 | B139: 0 | C139: 0 | P139: 42.6 | Q139: 38.69782964 | R139: 2.762077681 | S139: 135 | T139: 0
A141: REYHQ16P | B141: =T141*$S$3 -> 0 | C141: =T141*($T$3/1000) -> 0 | P141: 10.5 | Q141: 11.49935814 | R141: =S141*$R$3 -> 0.9206925602 | S141: 45 | T141: 0
A142: REYHQ20P | B142: =T142*$S$3 -> 0 | C142: =T142*($T$3/1000) -> 0 | P142: 13.9 | Q142: 14.29919469 | R142: =S142*$R$3 -> 1.145750742 | S142: 56 | T142: 0
A143: REYHQ22P | B143: =T143*$S$3 -> 0 | C143: =T143*($T$3/1000) -> 0 | P143: 16 | Q143: 16.29907271 | R143: =S143*$R$3 -> 1.258279832 | S143: 61.5 | T143: 0
A144: REYHQ24P | B144: =T144*$S$3 -> 0 | C144: =T144*($T$3/1000) -> 0 | P144: 17.2 | Q144: 17.19904206 | R144: =S144*$R$3 -> 1.370808923 | S144: 67 | T144: 0

Sheet Indoor (hidden)
A1: OLD IDU | B1: Outdoor Unit 1 | D1: Cooling | E1: Heating | F1: Inter. | G1: Tot PI | H1: Outdoor Unit 2 | J1: Cooling | K1: Heating | L1: Inter. | M1: Tot PI | N1: Outdoor Unit 3 | P1: Cooling | Q1: Heating | R1: Inter. | S1: Tot PI | T1: Outdoor Unit 4 | V1: Cooling | W1: Heating | X1: Inter. | Y1: Tot PI | Z1: Outdoor Unit 5 | AB1: Cooling | AC1: Heating | AD1: Inter. | AE1: Tot PI | AF1: Outdoor Unit 6 | AH1: Cooling | AI1: Heating | AJ1: Inter. | AK1: Tot PI | AL1: Outdoor Unit 7 | AN1: Cooling | AO1: Heating | AP1: Inter. | AQ1: Tot PI | AR1: Outdoor Unit 8 | AT1: Cooling | AU1: Heating | AV1: Inter. | AW1: Tot PI | AX1: Outdoor Unit 9 | AZ1: Cooling | BA1: Heating | BB1: Inter. | BC1: Tot PI | BD1: Outdoor Unit 10 | BF1: Cooling | BG1: Heating | BH1: Inter. | BI1: Tot PI | BJ1: Total
A2: =Lists!$F$6 -> Wall Mounted | B2: 20 | C2: =COUNTIFS(Output!$E$5:$E$36,Indoor!A2,Output!$D$6:$D$37,Indoor!B2) -> 0 | F2: =(D2+E2)/2 -> 0 | G2: =(((D2*Database!$U$3)+(E2*Database!$V$3)+(F2*Database!$W$3))*C2) -> 0 | H2: 20 | I2: =COUNTIFS(Output!$G$5:$G$36,Indoor!A2,Output!$F$6:$F$37,Indoor!H2) -> 0 | J2: =D2 -> 0 | K2: =E2 -> 0 | L2: =F2 -> 0 | M2: =(((J2*Database!$U$3)+(K2*Database!$V$3)+(L2*Database!$W$3))*I2) -> 0 | N2: 20 | O2: =COUNTIFS(Output!$I$5:$I$36,Indoor!A2,Output!$H$6:$H$37,Indoor!N2) -> 0 | P2: =D2 -> 0 | Q2: =E2 -> 0 | R2: 0 | S2: =(((P2*Database!$U$3)+(Q2*Database!$V$3)+(R2*Database!$W$3))*O2) -> 0 | T2: 20 | U2: =COUNTIFS(Output!$K$5:$K$36,Indoor!A2,Output!$J$6:$J$37,Indoor!T2) -> 0 | V2: =D2 -> 0 | W2: =E2 -> 0 | X2: 0 | Y2: =(((V2*Database!$U$3)+(W2*Database!$V$3)+(X2*Database!$W$3))*U2) -> 0 | Z2: 20 | AA2: =COUNTIFS(Output!$M$5:$M$36,Indoor!A2,Output!$L$6:$L$37,Indoor!Z2) -> 0 | AB2: =D2 -> 0 | AC2: =E2 -> 0 | AD2: 0 | AE2: =(((AB2*Database!$U$3)+(AC2*Database!$V$3)+(AD2*Database!$W$3))*AA2) -> 0 | AF2: 20 | AG2: =COUNTIFS(Output!$O$5:$O$36,Indoor!A2,Output!$N$6:$N$37,Indoor!AF2) -> 0 | AH2: =D2 -> 0 | AI2: =E2 -> 0 | AJ2: 0 | AK2: =(((AH2*Database!$U$3)+(AI2*Database!$V$3)+(AJ2*Database!$W$3))*AG2) -> 0 | AL2: 20 | AM2: =COUNTIFS(Output!$Q$5:$Q$36,Indoor!A2,Output!$P$6:$P$37,Indoor!AL2) -> 0 | AN2: =D2 -> 0 | AO2: =E2 -> 0 | AP2: 0 | AQ2: =(((AN2*Database!$U$3)+(AO2*Database!$V$3)+(AP2*Database!$W$3))*AM2) -> 0 | AR2: 20 | AS2: =COUNTIFS(Output!$S$5:$S$36,Indoor!A2,Output!$R$6:$R$37,Indoor!AR2) -> 0 | AT2: =D2 -> 0 | AU2: =E2 -> 0 | AV2: 0 | AW2: =(((AT2*Database!$U$3)+(AU2*Database!$V$3)+(AV2*Database!$W$3))*AS2) -> 0 | AX2: 20 | AY2: =COUNTIFS(Output!$U$5:$U$36,Indoor!A2,Output!$T$6:$T$37,Indoor!AX2) -> 0 | AZ2: =D2 -> 0 | BA2: =E2 -> 0 | BB2: 0 | BC2: =(((AZ2*Database!$U$3)+(BA2*Database!$V$3)+(BB2*Database!$W$3))*AY2) -> 0 | BD2: 20 | BE2: =COUNTIFS(Output!$W$5:$W$36,Indoor!A2,Output!$V$6:$V$37,Indoor!BD2) -> 0 | BF2: =D2 -> 0 | BG2: =E2 -> 0 | BH2: =F2 -> 0 | BI2: =(((BF2*Database!$U$3)+(BG2*Database!$V$3)+(BH2*Database!$W$3))*BE2) -> 0 | BJ2: =SUM(BE2+AY2+AS2+AM2+AG2+AA2+U2+O2+I2+C2) -> 0
A3: =Lists!$F$6 -> Wall Mounted | B3: 25 | C3: =COUNTIFS(Output!$E$5:$E$36,Indoor!A3,Output!$D$6:$D$37,Indoor!B3) -> 0 | D3: 0.026 | E3: 0.026 | F3: =(D3+E3)/2 -> 0.026 | G3: =(((D3*Database!$U$3)+(E3*Database!$V$3)+(F3*Database!$W$3))*C3) -> 0 | H3: 25 | I3: =COUNTIFS(Output!$G$5:$G$36,Indoor!A3,Output!$F$6:$F$37,Indoor!H3) -> 0 | J3: =D3 -> 0.026 | K3: 0.026 | L3: 0.026 | M3: =(((J3*Database!$U$3)+(K3*Database!$V$3)+(L3*Database!$W$3))*I3) -> 0 | N3: 25 | O3: =COUNTIFS(Output!$I$5:$I$36,Indoor!A3,Output!$H$6:$H$37,Indoor!N3) -> 0 | P3: =D3 -> 0.026 | Q3: 0.026 | R3: 0.026 | S3: =(((P3*Database!$U$3)+(Q3*Database!$V$3)+(R3*Database!$W$3))*O3) -> 0 | T3: 25 | U3: =COUNTIFS(Output!$K$5:$K$36,Indoor!A3,Output!$J$6:$J$37,Indoor!T3) -> 0 | V3: =D3 -> 0.026 | W3: 0.026 | X3: 0.026 | Y3: =(((V3*Database!$U$3)+(W3*Database!$V$3)+(X3*Database!$W$3))*U3) -> 0 | Z3: 25 | AA3: =COUNTIFS(Output!$M$5:$M$36,Indoor!A3,Output!$L$6:$L$37,Indoor!Z3) -> 0 | AB3: =D3 -> 0.026 | AC3: 0.026 | AD3: 0.026 | AE3: =(((AB3*Database!$U$3)+(AC3*Database!$V$3)+(AD3*Database!$W$3))*AA3) -> 0 | AF3: 25 | AG3: =COUNTIFS(Output!$O$5:$O$36,Indoor!A3,Output!$N$6:$N$37,Indoor!AF3) -> 0 | AH3: =D3 -> 0.026 | AI3: 0.026 | AJ3: 0.026 | AK3: =(((AH3*Database!$U$3)+(AI3*Database!$V$3)+(AJ3*Database!$W$3))*AG3) -> 0 | AL3: 25 | AM3: =COUNTIFS(Output!$Q$5:$Q$36,Indoor!A3,Output!$P$6:$P$37,Indoor!AL3) -> 0 | AN3: =D3 -> 0.026 | AO3: 0.026 | AP3: 0.026 | AQ3: =(((AN3*Database!$U$3)+(AO3*Database!$V$3)+(AP3*Database!$W$3))*AM3) -> 0 | AR3: 25 | AS3: =COUNTIFS(Output!$S$5:$S$36,Indoor!A3,Output!$R$6:$R$37,Indoor!AR3) -> 0 | AT3: =D3 -> 0.026 | AU3: 0.026 | AV3: 0.026 | AW3: =(((AT3*Database!$U$3)+(AU3*Database!$V$3)+(AV3*Database!$W$3))*AS3) -> 0 | AX3: 25 | AY3: =COUNTIFS(Output!$U$5:$U$36,Indoor!A3,Output!$T$6:$T$37,Indoor!AX3) -> 0 | AZ3: =D3 -> 0.026 | BA3: 0.026 | BB3: 0.026 | BC3: =(((AZ3*Database!$U$3)+(BA3*Database!$V$3)+(BB3*Database!$W$3))*AY3) -> 0 | BD3: 25 | BE3: =COUNTIFS(Output!$W$5:$W$36,Indoor!A3,Output!$V$6:$V$37,Indoor!BD3) -> 0 | BF3: =D3 -> 0.026 | BG3: 0.026 | BH3: 0.026 | BI3: =(((BF3*Database!$U$3)+(BG3*Database!$V$3)+(BH3*Database!$W$3))*BE3) -> 0 | BJ3: 0
A4: =Lists!$F$6 -> Wall Mounted | B4: 31.25 | C4: =COUNTIFS(Output!$E$5:$E$36,Indoor!A4,Output!$D$6:$D$37,Indoor!B4) -> 0 | D4: 0.028 | E4: 0.028 | F4: 0.028 | G4: =(((D4*Database!$U$3)+(E4*Database!$V$3)+(F4*Database!$W$3))*C4) -> 0 | H4: 31.25 | I4: =COUNTIFS(Output!$G$5:$G$36,Indoor!A4,Output!$F$6:$F$37,Indoor!H4) -> 0 | J4: 0.028 | K4: 0.028 | L4: 0.028 | M4: =(((J4*Database!$U$3)+(K4*Database!$V$3)+(L4*Database!$W$3))*I4) -> 0 | N4: 31.25 | O4: =COUNTIFS(Output!$I$5:$I$36,Indoor!A4,Output!$H$6:$H$37,Indoor!N4) -> 0 | P4: 0.028 | Q4: 0.028 | R4: 0.028 | S4: =(((P4*Database!$U$3)+(Q4*Database!$V$3)+(R4*Database!$W$3))*O4) -> 0 | T4: 31.25 | U4: =COUNTIFS(Output!$K$5:$K$36,Indoor!A4,Output!$J$6:$J$37,Indoor!T4) -> 0 | V4: 0.028 | W4: 0.028 | X4: 0.028 | Y4: =(((V4*Database!$U$3)+(W4*Database!$V$3)+(X4*Database!$W$3))*U4) -> 0 | Z4: 31.25 | AA4: =COUNTIFS(Output!$M$5:$M$36,Indoor!A4,Output!$L$6:$L$37,Indoor!Z4) -> 0 | AB4: 0.028 | AC4: 0.028 | AD4: 0.028 | AE4: =(((AB4*Database!$U$3)+(AC4*Database!$V$3)+(AD4*Database!$W$3))*AA4) -> 0 | AF4: 31.25 | AG4: =COUNTIFS(Output!$O$5:$O$36,Indoor!A4,Output!$N$6:$N$37,Indoor!AF4) -> 0 | AH4: 0.028 | AI4: 0.028 | AJ4: 0.028 | AK4: =(((AH4*Database!$U$3)+(AI4*Database!$V$3)+(AJ4*Database!$W$3))*AG4) -> 0 | AL4: 31.25 | AM4: =COUNTIFS(Output!$Q$5:$Q$36,Indoor!A4,Output!$P$6:$P$37,Indoor!AL4) -> 0 | AN4: 0.028 | AO4: 0.028 | AP4: 0.028 | AQ4: =(((AN4*Database!$U$3)+(AO4*Database!$V$3)+(AP4*Database!$W$3))*AM4) -> 0 | AR4: 31.25 | AS4: =COUNTIFS(Output!$S$5:$S$36,Indoor!A4,Output!$R$6:$R$37,Indoor!AR4) -> 0 | AT4: 0.028 | AU4: 0.028 | AV4: 0.028 | AW4: =(((AT4*Database!$U$3)+(AU4*Database!$V$3)+(AV4*Database!$W$3))*AS4) -> 0 | AX4: 31.25 | AY4: =COUNTIFS(Output!$U$5:$U$36,Indoor!A4,Output!$T$6:$T$37,Indoor!AX4) -> 0 | AZ4: 0.028 | BA4: 0.028 | BB4: 0.028 | BC4: =(((AZ4*Database!$U$3)+(BA4*Database!$V$3)+(BB4*Database!$W$3))*AY4) -> 0 | BD4: 31.25 | BE4: =COUNTIFS(Output!$W$5:$W$36,Indoor!A4,Output!$V$6:$V$37,Indoor!BD4) -> 0 | BF4: 0.028 | BG4: 0.028 | BH4: 0.028 | BI4: =(((BF4*Database!$U$3)+(BG4*Database!$V$3)+(BH4*Database!$W$3))*BE4) -> 0 | BJ4: 0
A5: =Lists!$F$6 -> Wall Mounted | B5: 40 | C5: =COUNTIFS(Output!$E$5:$E$36,Indoor!A5,Output!$D$6:$D$37,Indoor!B5) -> 0 | D5: 0.036 | E5: 0.036 | F5: 0.036 | G5: =(((D5*Database!$U$3)+(E5*Database!$V$3)+(F5*Database!$W$3))*C5) -> 0 | H5: 40 | I5: =COUNTIFS(Output!$G$5:$G$36,Indoor!A5,Output!$F$6:$F$37,Indoor!H5) -> 0 | J5: 0.036 | K5: 0.036 | L5: 0.036 | M5: =(((J5*Database!$U$3)+(K5*Database!$V$3)+(L5*Database!$W$3))*I5) -> 0 | N5: 40 | O5: =COUNTIFS(Output!$I$5:$I$36,Indoor!A5,Output!$H$6:$H$37,Indoor!N5) -> 0 | P5: 0.036 | Q5: 0.036 | R5: 0.036 | S5: =(((P5*Database!$U$3)+(Q5*Database!$V$3)+(R5*Database!$W$3))*O5) -> 0 | T5: 40 | U5: =COUNTIFS(Output!$K$5:$K$36,Indoor!A5,Output!$J$6:$J$37,Indoor!T5) -> 0 | V5: 0.036 | W5: 0.036 | X5: 0.036 | Y5: =(((V5*Database!$U$3)+(W5*Database!$V$3)+(X5*Database!$W$3))*U5) -> 0 | Z5: 40 | AA5: =COUNTIFS(Output!$M$5:$M$36,Indoor!A5,Output!$L$6:$L$37,Indoor!Z5) -> 0 | AB5: 0.036 | AC5: 0.036 | AD5: 0.036 | AE5: =(((AB5*Database!$U$3)+(AC5*Database!$V$3)+(AD5*Database!$W$3))*AA5) -> 0 | AF5: 40 | AG5: =COUNTIFS(Output!$O$5:$O$36,Indoor!A5,Output!$N$6:$N$37,Indoor!AF5) -> 0 | AH5: 0.036 | AI5: 0.036 | AJ5: 0.036 | AK5: =(((AH5*Database!$U$3)+(AI5*Database!$V$3)+(AJ5*Database!$W$3))*AG5) -> 0 | AL5: 40 | AM5: =COUNTIFS(Output!$Q$5:$Q$36,Indoor!A5,Output!$P$6:$P$37,Indoor!AL5) -> 0 | AN5: 0.036 | AO5: 0.036 | AP5: 0.036 | AQ5: =(((AN5*Database!$U$3)+(AO5*Database!$V$3)+(AP5*Database!$W$3))*AM5) -> 0 | AR5: 40 | AS5: =COUNTIFS(Output!$S$5:$S$36,Indoor!A5,Output!$R$6:$R$37,Indoor!AR5) -> 0 | AT5: 0.036 | AU5: 0.036 | AV5: 0.036 | AW5: =(((AT5*Database!$U$3)+(AU5*Database!$V$3)+(AV5*Database!$W$3))*AS5) -> 0 | AX5: 40 | AY5: =COUNTIFS(Output!$U$5:$U$36,Indoor!A5,Output!$T$6:$T$37,Indoor!AX5) -> 0 | AZ5: 0.036 | BA5: 0.036 | BB5: 0.036 | BC5: =(((AZ5*Database!$U$3)+(BA5*Database!$V$3)+(BB5*Database!$W$3))*AY5) -> 0 | BD5: 40 | BE5: =COUNTIFS(Output!$W$5:$W$36,Indoor!A5,Output!$V$6:$V$37,Indoor!BD5) -> 0 | BF5: 0.036 | BG5: 0.036 | BH5: 0.036 | BI5: =(((BF5*Database!$U$3)+(BG5*Database!$V$3)+(BH5*Database!$W$3))*BE5) -> 0 | BJ5: 0
A6: =Lists!$F$6 -> Wall Mounted | B6: 50 | C6: =COUNTIFS(Output!$E$5:$E$36,Indoor!A6,Output!$D$6:$D$37,Indoor!B6) -> 0 | D6: 0.035 | E6: 0.035 | F6: 0.035 | G6: =(((D6*Database!$U$3)+(E6*Database!$V$3)+(F6*Database!$W$3))*C6) -> 0 | H6: 50 | I6: =COUNTIFS(Output!$G$5:$G$36,Indoor!A6,Output!$F$6:$F$37,Indoor!H6) -> 0 | J6: 0.035 | K6: 0.035 | L6: 0.035 | M6: =(((J6*Database!$U$3)+(K6*Database!$V$3)+(L6*Database!$W$3))*I6) -> 0 | N6: 50 | O6: =COUNTIFS(Output!$I$5:$I$36,Indoor!A6,Output!$H$6:$H$37,Indoor!N6) -> 0 | P6: 0.035 | Q6: 0.035 | R6: 0.035 | S6: =(((P6*Database!$U$3)+(Q6*Database!$V$3)+(R6*Database!$W$3))*O6) -> 0 | T6: 50 | U6: =COUNTIFS(Output!$K$5:$K$36,Indoor!A6,Output!$J$6:$J$37,Indoor!T6) -> 0 | V6: 0.035 | W6: 0.035 | X6: 0.035 | Y6: =(((V6*Database!$U$3)+(W6*Database!$V$3)+(X6*Database!$W$3))*U6) -> 0 | Z6: 50 | AA6: =COUNTIFS(Output!$M$5:$M$36,Indoor!A6,Output!$L$6:$L$37,Indoor!Z6) -> 0 | AB6: 0.035 | AC6: 0.035 | AD6: 0.035 | AE6: =(((AB6*Database!$U$3)+(AC6*Database!$V$3)+(AD6*Database!$W$3))*AA6) -> 0 | AF6: 50 | AG6: =COUNTIFS(Output!$O$5:$O$36,Indoor!A6,Output!$N$6:$N$37,Indoor!AF6) -> 0 | AH6: 0.035 | AI6: 0.035 | AJ6: 0.035 | AK6: =(((AH6*Database!$U$3)+(AI6*Database!$V$3)+(AJ6*Database!$W$3))*AG6) -> 0 | AL6: 50 | AM6: =COUNTIFS(Output!$Q$5:$Q$36,Indoor!A6,Output!$P$6:$P$37,Indoor!AL6) -> 0 | AN6: 0.035 | AO6: 0.035 | AP6: 0.035 | AQ6: =(((AN6*Database!$U$3)+(AO6*Database!$V$3)+(AP6*Database!$W$3))*AM6) -> 0 | AR6: 50 | AS6: =COUNTIFS(Output!$S$5:$S$36,Indoor!A6,Output!$R$6:$R$37,Indoor!AR6) -> 0 | AT6: 0.035 | AU6: 0.035 | AV6: 0.035 | AW6: =(((AT6*Database!$U$3)+(AU6*Database!$V$3)+(AV6*Database!$W$3))*AS6) -> 0 | AX6: 50 | AY6: =COUNTIFS(Output!$U$5:$U$36,Indoor!A6,Output!$T$6:$T$37,Indoor!AX6) -> 0 | AZ6: 0.035 | BA6: 0.035 | BB6: 0.035 | BC6: =(((AZ6*Database!$U$3)+(BA6*Database!$V$3)+(BB6*Database!$W$3))*AY6) -> 0 | BD6: 50 | BE6: =COUNTIFS(Output!$W$5:$W$36,Indoor!A6,Output!$V$6:$V$37,Indoor!BD6) -> 0 | BF6: 0.035 | BG6: 0.035 | BH6: 0.035 | BI6: =(((BF6*Database!$U$3)+(BG6*Database!$V$3)+(BH6*Database!$W$3))*BE6) -> 0 | BJ6: 0
A7: =Lists!$F$6 -> Wall Mounted | B7: 63 | C7: =COUNTIFS(Output!$E$5:$E$36,Indoor!A7,Output!$D$6:$D$37,Indoor!B7) -> 0 | D7: 0.044 | E7: 0.044 | F7: 0.044 | G7: =(((D7*Database!$U$3)+(E7*Database!$V$3)+(F7*Database!$W$3))*C7) -> 0 | H7: 63 | I7: =COUNTIFS(Output!$G$5:$G$36,Indoor!A7,Output!$F$6:$F$37,Indoor!H7) -> 0 | J7: 0.044 | K7: 0.044 | L7: 0.044 | M7: =(((J7*Database!$U$3)+(K7*Database!$V$3)+(L7*Database!$W$3))*I7) -> 0 | N7: 63 | O7: =COUNTIFS(Output!$I$5:$I$36,Indoor!A7,Output!$H$6:$H$37,Indoor!N7) -> 0 | P7: 0.044 | Q7: 0.044 | R7: 0.044 | S7: =(((P7*Database!$U$3)+(Q7*Database!$V$3)+(R7*Database!$W$3))*O7) -> 0 | T7: 63 | U7: =COUNTIFS(Output!$K$5:$K$36,Indoor!A7,Output!$J$6:$J$37,Indoor!T7) -> 0 | V7: 0.044 | W7: 0.044 | X7: 0.044 | Y7: =(((V7*Database!$U$3)+(W7*Database!$V$3)+(X7*Database!$W$3))*U7) -> 0 | Z7: 63 | AA7: =COUNTIFS(Output!$M$5:$M$36,Indoor!A7,Output!$L$6:$L$37,Indoor!Z7) -> 0 | AB7: 0.044 | AC7: 0.044 | AD7: 0.044 | AE7: =(((AB7*Database!$U$3)+(AC7*Database!$V$3)+(AD7*Database!$W$3))*AA7) -> 0 | AF7: 63 | AG7: =COUNTIFS(Output!$O$5:$O$36,Indoor!A7,Output!$N$6:$N$37,Indoor!AF7) -> 0 | AH7: 0.044 | AI7: 0.044 | AJ7: 0.044 | AK7: =(((AH7*Database!$U$3)+(AI7*Database!$V$3)+(AJ7*Database!$W$3))*AG7) -> 0 | AL7: 63 | AM7: =COUNTIFS(Output!$Q$5:$Q$36,Indoor!A7,Output!$P$6:$P$37,Indoor!AL7) -> 0 | AN7: 0.044 | AO7: 0.044 | AP7: 0.044 | AQ7: =(((AN7*Database!$U$3)+(AO7*Database!$V$3)+(AP7*Database!$W$3))*AM7) -> 0 | AR7: 63 | AS7: =COUNTIFS(Output!$S$5:$S$36,Indoor!A7,Output!$R$6:$R$37,Indoor!AR7) -> 0 | AT7: 0.044 | AU7: 0.044 | AV7: 0.044 | AW7: =(((AT7*Database!$U$3)+(AU7*Database!$V$3)+(AV7*Database!$W$3))*AS7) -> 0 | AX7: 63 | AY7: =COUNTIFS(Output!$U$5:$U$36,Indoor!A7,Output!$T$6:$T$37,Indoor!AX7) -> 0 | AZ7: 0.044 | BA7: 0.044 | BB7: 0.044 | BC7: =(((AZ7*Database!$U$3)+(BA7*Database!$V$3)+(BB7*Database!$W$3))*AY7) -> 0 | BD7: 63 | BE7: =COUNTIFS(Output!$W$5:$W$36,Indoor!A7,Output!$V$6:$V$37,Indoor!BD7) -> 0 | BF7: 0.044 | BG7: 0.044 | BH7: 0.044 | BI7: =(((BF7*Database!$U$3)+(BG7*Database!$V$3)+(BH7*Database!$W$3))*BE7) -> 0 | BJ7: 0
A8: =Lists!$F$6 -> Wall Mounted | B8: 80 | C8: =COUNTIFS(Output!$E$5:$E$36,Indoor!A8,Output!$D$6:$D$37,Indoor!B8) -> 0 | F8: 0 | G8: =(((D8*Database!$U$3)+(E8*Database!$V$3)+(F8*Database!$W$3))*C8) -> 0 | H8: 80 | I8: =COUNTIFS(Output!$G$5:$G$36,Indoor!A8,Output!$F$6:$F$37,Indoor!H8) -> 0 | J8: 0 | K8: 0 | L8: 0 | M8: =(((J8*Database!$U$3)+(K8*Database!$V$3)+(L8*Database!$W$3))*I8) -> 0 | N8: 80 | O8: =COUNTIFS(Output!$I$5:$I$36,Indoor!A8,Output!$H$6:$H$37,Indoor!N8) -> 0 | P8: 0 | Q8: 0 | R8: 0 | S8: =(((P8*Database!$U$3)+(Q8*Database!$V$3)+(R8*Database!$W$3))*O8) -> 0 | T8: 80 | U8: =COUNTIFS(Output!$K$5:$K$36,Indoor!A8,Output!$J$6:$J$37,Indoor!T8) -> 0 | V8: 0 | W8: 0 | X8: 0 | Y8: =(((V8*Database!$U$3)+(W8*Database!$V$3)+(X8*Database!$W$3))*U8) -> 0 | Z8: 80 | AA8: =COUNTIFS(Output!$M$5:$M$36,Indoor!A8,Output!$L$6:$L$37,Indoor!Z8) -> 0 | AB8: 0 | AC8: 0 | AD8: 0 | AE8: =(((AB8*Database!$U$3)+(AC8*Database!$V$3)+(AD8*Database!$W$3))*AA8) -> 0 | AF8: 80 | AG8: =COUNTIFS(Output!$O$5:$O$36,Indoor!A8,Output!$N$6:$N$37,Indoor!AF8) -> 0 | AH8: 0 | AI8: 0 | AJ8: 0 | AK8: =(((AH8*Database!$U$3)+(AI8*Database!$V$3)+(AJ8*Database!$W$3))*AG8) -> 0 | AL8: 80 | AM8: =COUNTIFS(Output!$Q$5:$Q$36,Indoor!A8,Output!$P$6:$P$37,Indoor!AL8) -> 0 | AN8: 0 | AO8: 0 | AP8: 0 | AQ8: =(((AN8*Database!$U$3)+(AO8*Database!$V$3)+(AP8*Database!$W$3))*AM8) -> 0 | AR8: 80 | AS8: =COUNTIFS(Output!$S$5:$S$36,Indoor!A8,Output!$R$6:$R$37,Indoor!AR8) -> 0 | AT8: 0 | AU8: 0 | AV8: 0 | AW8: =(((AT8*Database!$U$3)+(AU8*Database!$V$3)+(AV8*Database!$W$3))*AS8) -> 0 | AX8: 80 | AY8: =COUNTIFS(Output!$U$5:$U$36,Indoor!A8,Output!$T$6:$T$37,Indoor!AX8) -> 0 | AZ8: 0 | BA8: 0 | BB8: 0 | BC8: =(((AZ8*Database!$U$3)+(BA8*Database!$V$3)+(BB8*Database!$W$3))*AY8) -> 0 | BD8: 80 | BE8: =COUNTIFS(Output!$W$5:$W$36,Indoor!A8,Output!$V$6:$V$37,Indoor!BD8) -> 0 | BF8: 0 | BG8: 0 | BH8: 0 | BI8: =(((BF8*Database!$U$3)+(BG8*Database!$V$3)+(BH8*Database!$W$3))*BE8) -> 0 | BJ8: 0
A9: =Lists!$F$6 -> Wall Mounted | B9: 100 | C9: =COUNTIFS(Output!$E$5:$E$36,Indoor!A9,Output!$D$6:$D$37,Indoor!B9) -> 0 | F9: 0 | G9: =(((D9*Database!$U$3)+(E9*Database!$V$3)+(F9*Database!$W$3))*C9) -> 0 | H9: 100 | I9: =COUNTIFS(Output!$G$5:$G$36,Indoor!A9,Output!$F$6:$F$37,Indoor!H9) -> 0 | J9: 0 | K9: 0 | L9: 0 | M9: =(((J9*Database!$U$3)+(K9*Database!$V$3)+(L9*Database!$W$3))*I9) -> 0 | N9: 100 | O9: =COUNTIFS(Output!$I$5:$I$36,Indoor!A9,Output!$H$6:$H$37,Indoor!N9) -> 0 | P9: 0 | Q9: 0 | R9: 0 | S9: =(((P9*Database!$U$3)+(Q9*Database!$V$3)+(R9*Database!$W$3))*O9) -> 0 | T9: 100 | U9: =COUNTIFS(Output!$K$5:$K$36,Indoor!A9,Output!$J$6:$J$37,Indoor!T9) -> 0 | V9: 0 | W9: 0 | X9: 0 | Y9: =(((V9*Database!$U$3)+(W9*Database!$V$3)+(X9*Database!$W$3))*U9) -> 0 | Z9: 100 | AA9: =COUNTIFS(Output!$M$5:$M$36,Indoor!A9,Output!$L$6:$L$37,Indoor!Z9) -> 0 | AB9: 0 | AC9: 0 | AD9: 0 | AE9: =(((AB9*Database!$U$3)+(AC9*Database!$V$3)+(AD9*Database!$W$3))*AA9) -> 0 | AF9: 100 | AG9: =COUNTIFS(Output!$O$5:$O$36,Indoor!A9,Output!$N$6:$N$37,Indoor!AF9) -> 0 | AH9: 0 | AI9: 0 | AJ9: 0 | AK9: =(((AH9*Database!$U$3)+(AI9*Database!$V$3)+(AJ9*Database!$W$3))*AG9) -> 0 | AL9: 100 | AM9: =COUNTIFS(Output!$Q$5:$Q$36,Indoor!A9,Output!$P$6:$P$37,Indoor!AL9) -> 0 | AN9: 0 | AO9: 0 | AP9: 0 | AQ9: =(((AN9*Database!$U$3)+(AO9*Database!$V$3)+(AP9*Database!$W$3))*AM9) -> 0 | AR9: 100 | AS9: =COUNTIFS(Output!$S$5:$S$36,Indoor!A9,Output!$R$6:$R$37,Indoor!AR9) -> 0 | AT9: 0 | AU9: 0 | AV9: 0 | AW9: =(((AT9*Database!$U$3)+(AU9*Database!$V$3)+(AV9*Database!$W$3))*AS9) -> 0 | AX9: 100 | AY9: =COUNTIFS(Output!$U$5:$U$36,Indoor!A9,Output!$T$6:$T$37,Indoor!AX9) -> 0 | AZ9: 0 | BA9: 0 | BB9: 0 | BC9: =(((AZ9*Database!$U$3)+(BA9*Database!$V$3)+(BB9*Database!$W$3))*AY9) -> 0 | BD9: 100 | BE9: =COUNTIFS(Output!$W$5:$W$36,Indoor!A9,Output!$V$6:$V$37,Indoor!BD9) -> 0 | BF9: 0 | BG9: 0 | BH9: 0 | BI9: =(((BF9*Database!$U$3)+(BG9*Database!$V$3)+(BH9*Database!$W$3))*BE9) -> 0 | BJ9: 0
A10: =Lists!$F$6 -> Wall Mounted | B10: 125 | C10: =COUNTIFS(Output!$E$5:$E$36,Indoor!A10,Output!$D$6:$D$37,Indoor!B10) -> 0 | F10: 0 | G10: =(((D10*Database!$U$3)+(E10*Database!$V$3)+(F10*Database!$W$3))*C10) -> 0 | H10: 125 | I10: =COUNTIFS(Output!$G$5:$G$36,Indoor!A10,Output!$F$6:$F$37,Indoor!H10) -> 0 | J10: 0 | K10: 0 | L10: 0 | M10: =(((J10*Database!$U$3)+(K10*Database!$V$3)+(L10*Database!$W$3))*I10) -> 0 | N10: 125 | O10: =COUNTIFS(Output!$I$5:$I$36,Indoor!A10,Output!$H$6:$H$37,Indoor!N10) -> 0 | P10: 0 | Q10: 0 | R10: 0 | S10: =(((P10*Database!$U$3)+(Q10*Database!$V$3)+(R10*Database!$W$3))*O10) -> 0 | T10: 125 | U10: =COUNTIFS(Output!$K$5:$K$36,Indoor!A10,Output!$J$6:$J$37,Indoor!T10) -> 0 | V10: 0 | W10: 0 | X10: 0 | Y10: =(((V10*Database!$U$3)+(W10*Database!$V$3)+(X10*Database!$W$3))*U10) -> 0 | Z10: 125 | AA10: =COUNTIFS(Output!$M$5:$M$36,Indoor!A10,Output!$L$6:$L$37,Indoor!Z10) -> 0 | AB10: 0 | AC10: 0 | AD10: 0 | AE10: =(((AB10*Database!$U$3)+(AC10*Database!$V$3)+(AD10*Database!$W$3))*AA10) -> 0 | AF10: 125 | AG10: =COUNTIFS(Output!$O$5:$O$36,Indoor!A10,Output!$N$6:$N$37,Indoor!AF10) -> 0 | AH10: 0 | AI10: 0 | AJ10: 0 | AK10: =(((AH10*Database!$U$3)+(AI10*Database!$V$3)+(AJ10*Database!$W$3))*AG10) -> 0 | AL10: 125 | AM10: =COUNTIFS(Output!$Q$5:$Q$36,Indoor!A10,Output!$P$6:$P$37,Indoor!AL10) -> 0 | AN10: 0 | AO10: 0 | AP10: 0 | AQ10: =(((AN10*Database!$U$3)+(AO10*Database!$V$3)+(AP10*Database!$W$3))*AM10) -> 0 | AR10: 125 | AS10: =COUNTIFS(Output!$S$5:$S$36,Indoor!A10,Output!$R$6:$R$37,Indoor!AR10) -> 0 | AT10: 0 | AU10: 0 | AV10: 0 | AW10: =(((AT10*Database!$U$3)+(AU10*Database!$V$3)+(AV10*Database!$W$3))*AS10) -> 0 | AX10: 125 | AY10: =COUNTIFS(Output!$U$5:$U$36,Indoor!A10,Output!$T$6:$T$37,Indoor!AX10) -> 0 | AZ10: 0 | BA10: 0 | BB10: 0 | BC10: =(((AZ10*Database!$U$3)+(BA10*Database!$V$3)+(BB10*Database!$W$3))*AY10) -> 0 | BD10: 125 | BE10: =COUNTIFS(Output!$W$5:$W$36,Indoor!A10,Output!$V$6:$V$37,Indoor!BD10) -> 0 | BF10: 0 | BG10: 0 | BH10: 0 | BI10: =(((BF10*Database!$U$3)+(BG10*Database!$V$3)+(BH10*Database!$W$3))*BE10) -> 0 | BJ10: 0
A11: =Lists!$F$6 -> Wall Mounted | B11: 200 | C11: =COUNTIFS(Output!$E$5:$E$36,Indoor!A11,Output!$D$6:$D$37,Indoor!B11) -> 0 | F11: 0 | G11: =(((D11*Database!$U$3)+(E11*Database!$V$3)+(F11*Database!$W$3))*C11) -> 0 | H11: 200 | I11: =COUNTIFS(Output!$G$5:$G$36,Indoor!A11,Output!$F$6:$F$37,Indoor!H11) -> 0 | J11: 0 | K11: 0 | L11: 0 | M11: =(((J11*Database!$U$3)+(K11*Database!$V$3)+(L11*Database!$W$3))*I11) -> 0 | N11: 200 | O11: =COUNTIFS(Output!$I$5:$I$36,Indoor!A11,Output!$H$6:$H$37,Indoor!N11) -> 0 | P11: 0 | Q11: 0 | R11: 0 | S11: =(((P11*Database!$U$3)+(Q11*Database!$V$3)+(R11*Database!$W$3))*O11) -> 0 | T11: 200 | U11: =COUNTIFS(Output!$K$5:$K$36,Indoor!A11,Output!$J$6:$J$37,Indoor!T11) -> 0 | V11: 0 | W11: 0 | X11: 0 | Y11: =(((V11*Database!$U$3)+(W11*Database!$V$3)+(X11*Database!$W$3))*U11) -> 0 | Z11: 200 | AA11: =COUNTIFS(Output!$M$5:$M$36,Indoor!A11,Output!$L$6:$L$37,Indoor!Z11) -> 0 | AB11: 0 | AC11: 0 | AD11: 0 | AE11: =(((AB11*Database!$U$3)+(AC11*Database!$V$3)+(AD11*Database!$W$3))*AA11) -> 0 | AF11: 200 | AG11: =COUNTIFS(Output!$O$5:$O$36,Indoor!A11,Output!$N$6:$N$37,Indoor!AF11) -> 0 | AH11: 0 | AI11: 0 | AJ11: 0 | AK11: =(((AH11*Database!$U$3)+(AI11*Database!$V$3)+(AJ11*Database!$W$3))*AG11) -> 0 | AL11: 200 | AM11: =COUNTIFS(Output!$Q$5:$Q$36,Indoor!A11,Output!$P$6:$P$37,Indoor!AL11) -> 0 | AN11: 0 | AO11: 0 | AP11: 0 | AQ11: =(((AN11*Database!$U$3)+(AO11*Database!$V$3)+(AP11*Database!$W$3))*AM11) -> 0 | AR11: 200 | AS11: =COUNTIFS(Output!$S$5:$S$36,Indoor!A11,Output!$R$6:$R$37,Indoor!AR11) -> 0 | AT11: 0 | AU11: 0 | AV11: 0 | AW11: =(((AT11*Database!$U$3)+(AU11*Database!$V$3)+(AV11*Database!$W$3))*AS11) -> 0 | AX11: 200 | AY11: =COUNTIFS(Output!$U$5:$U$36,Indoor!A11,Output!$T$6:$T$37,Indoor!AX11) -> 0 | AZ11: 0 | BA11: 0 | BB11: 0 | BC11: =(((AZ11*Database!$U$3)+(BA11*Database!$V$3)+(BB11*Database!$W$3))*AY11) -> 0 | BD11: 200 | BE11: =COUNTIFS(Output!$W$5:$W$36,Indoor!A11,Output!$V$6:$V$37,Indoor!BD11) -> 0 | BF11: 0 | BG11: 0 | BH11: 0 | BI11: =(((BF11*Database!$U$3)+(BG11*Database!$V$3)+(BH11*Database!$W$3))*BE11) -> 0 | BJ11: 0
A12: =Lists!$F$6 -> Wall Mounted | B12: 250 | C12: =COUNTIFS(Output!$E$5:$E$36,Indoor!A12,Output!$D$6:$D$37,Indoor!B12) -> 0 | F12: 0 | G12: =(((D12*Database!$U$3)+(E12*Database!$V$3)+(F12*Database!$W$3))*C12) -> 0 | H12: 250 | I12: =COUNTIFS(Output!$G$5:$G$36,Indoor!A12,Output!$F$6:$F$37,Indoor!H12) -> 0 | J12: 0 | K12: 0 | L12: 0 | M12: =(((J12*Database!$U$3)+(K12*Database!$V$3)+(L12*Database!$W$3))*I12) -> 0 | N12: 250 | O12: =COUNTIFS(Output!$I$5:$I$36,Indoor!A12,Output!$H$6:$H$37,Indoor!N12) -> 0 | P12: 0 | Q12: 0 | R12: 0 | S12: =(((P12*Database!$U$3)+(Q12*Database!$V$3)+(R12*Database!$W$3))*O12) -> 0 | T12: 250 | U12: =COUNTIFS(Output!$K$5:$K$36,Indoor!A12,Output!$J$6:$J$37,Indoor!T12) -> 0 | V12: 0 | W12: 0 | X12: 0 | Y12: =(((V12*Database!$U$3)+(W12*Database!$V$3)+(X12*Database!$W$3))*U12) -> 0 | Z12: 250 | AA12: =COUNTIFS(Output!$M$5:$M$36,Indoor!A12,Output!$L$6:$L$37,Indoor!Z12) -> 0 | AB12: 0 | AC12: 0 | AD12: 0 | AE12: =(((AB12*Database!$U$3)+(AC12*Database!$V$3)+(AD12*Database!$W$3))*AA12) -> 0 | AF12: 250 | AG12: =COUNTIFS(Output!$O$5:$O$36,Indoor!A12,Output!$N$6:$N$37,Indoor!AF12) -> 0 | AH12: 0 | AI12: 0 | AJ12: 0 | AK12: =(((AH12*Database!$U$3)+(AI12*Database!$V$3)+(AJ12*Database!$W$3))*AG12) -> 0 | AL12: 250 | AM12: =COUNTIFS(Output!$Q$5:$Q$36,Indoor!A12,Output!$P$6:$P$37,Indoor!AL12) -> 0 | AN12: 0 | AO12: 0 | AP12: 0 | AQ12: =(((AN12*Database!$U$3)+(AO12*Database!$V$3)+(AP12*Database!$W$3))*AM12) -> 0 | AR12: 250 | AS12: =COUNTIFS(Output!$S$5:$S$36,Indoor!A12,Output!$R$6:$R$37,Indoor!AR12) -> 0 | AT12: 0 | AU12: 0 | AV12: 0 | AW12: =(((AT12*Database!$U$3)+(AU12*Database!$V$3)+(AV12*Database!$W$3))*AS12) -> 0 | AX12: 250 | AY12: =COUNTIFS(Output!$U$5:$U$36,Indoor!A12,Output!$T$6:$T$37,Indoor!AX12) -> 0 | AZ12: 0 | BA12: 0 | BB12: 0 | BC12: =(((AZ12*Database!$U$3)+(BA12*Database!$V$3)+(BB12*Database!$W$3))*AY12) -> 0 | BD12: 250 | BE12: =COUNTIFS(Output!$W$5:$W$36,Indoor!A12,Output!$V$6:$V$37,Indoor!BD12) -> 0 | BF12: 0 | BG12: 0 | BH12: 0 | BI12: =(((BF12*Database!$U$3)+(BG12*Database!$V$3)+(BH12*Database!$W$3))*BE12) -> 0 | BJ12: 0
C13: =SUM(C2:C12) -> 0 | I13: =SUM(I2:I12) -> 0 | O13: =SUM(O2:O12) -> 0 | U13: =SUM(U2:U12) -> 0 | AA13: =SUM(AA2:AA12) -> 0 | AG13: =SUM(AG2:AG12) -> 0 | AM13: =SUM(AM2:AM12) -> 0 | AS13: =SUM(AS2:AS12) -> 0 | AY13: =SUM(AY2:AY12) -> 0 | BE13: =SUM(BE2:BE12) -> 0
A14: =Lists!$F$3 -> Ceiling Mounted Cassette | B14: 20 | C14: =COUNTIFS(Output!$E$5:$E$36,Indoor!A14,Output!$D$6:$D$37,Indoor!B14) -> 0 | F14: 0 | G14: =(((D14*Database!$U$3)+(E14*Database!$V$3)+(F14*Database!$W$3))*C14) -> 0 | H14: 20 | I14: =COUNTIFS(Output!$G$5:$G$36,Indoor!A14,Output!$F$6:$F$37,Indoor!H14) -> 0 | J14: 0 | K14: 0 | L14: 0 | M14: =(((J14*Database!$U$3)+(K14*Database!$V$3)+(L14*Database!$W$3))*I14) -> 0 | N14: 20 | O14: =COUNTIFS(Output!$I$5:$I$36,Indoor!A14,Output!$H$6:$H$37,Indoor!N14) -> 0 | P14: 0 | Q14: 0 | R14: 0 | S14: =(((P14*Database!$U$3)+(Q14*Database!$V$3)+(R14*Database!$W$3))*O14) -> 0 | T14: 20 | U14: =COUNTIFS(Output!$K$5:$K$36,Indoor!A14,Output!$J$6:$J$37,Indoor!T14) -> 0 | V14: 0 | W14: 0 | X14: 0 | Y14: =(((V14*Database!$U$3)+(W14*Database!$V$3)+(X14*Database!$W$3))*U14) -> 0 | Z14: 20 | AA14: =COUNTIFS(Output!$M$5:$M$36,Indoor!A14,Output!$L$6:$L$37,Indoor!Z14) -> 0 | AB14: 0 | AC14: 0 | AD14: 0 | AE14: =(((AB14*Database!$U$3)+(AC14*Database!$V$3)+(AD14*Database!$W$3))*AA14) -> 0 | AF14: 20 | AG14: =COUNTIFS(Output!$O$5:$O$36,Indoor!A14,Output!$N$6:$N$37,Indoor!AF14) -> 0 | AH14: 0 | AI14: 0 | AJ14: 0 | AK14: =(((AH14*Database!$U$3)+(AI14*Database!$V$3)+(AJ14*Database!$W$3))*AG14) -> 0 | AL14: 20 | AM14: =COUNTIFS(Output!$Q$5:$Q$36,Indoor!A14,Output!$P$6:$P$37,Indoor!AL14) -> 0 | AN14: 0 | AO14: 0 | AP14: 0 | AQ14: =(((AN14*Database!$U$3)+(AO14*Database!$V$3)+(AP14*Database!$W$3))*AM14) -> 0 | AR14: 20 | AS14: =COUNTIFS(Output!$S$5:$S$36,Indoor!A14,Output!$R$6:$R$37,Indoor!AR14) -> 0 | AT14: 0 | AU14: 0 | AV14: 0 | AW14: =(((AT14*Database!$U$3)+(AU14*Database!$V$3)+(AV14*Database!$W$3))*AS14) -> 0 | AX14: 20 | AY14: =COUNTIFS(Output!$U$5:$U$36,Indoor!A14,Output!$T$6:$T$37,Indoor!AX14) -> 0 | AZ14: 0 | BA14: 0 | BB14: 0 | BC14: =(((AZ14*Database!$U$3)+(BA14*Database!$V$3)+(BB14*Database!$W$3))*AY14) -> 0 | BD14: 20 | BE14: =COUNTIFS(Output!$W$5:$W$36,Indoor!A14,Output!$V$6:$V$37,Indoor!BD14) -> 0 | BF14: 0 | BG14: 0 | BH14: 0 | BI14: =(((BF14*Database!$U$3)+(BG14*Database!$V$3)+(BH14*Database!$W$3))*BE14) -> 0 | BJ14: =SUM(BE14+AY14+AS14+AM14+AG14+AA14+U14+O14+I14+C14) -> 0
A15: =Lists!$F$3 -> Ceiling Mounted Cassette | B15: 25 | C15: =COUNTIFS(Output!$E$5:$E$36,Indoor!A15,Output!$D$6:$D$37,Indoor!B15) -> 0 | F15: 0 | G15: =(((D15*Database!$U$3)+(E15*Database!$V$3)+(F15*Database!$W$3))*C15) -> 0 | H15: 25 | I15: =COUNTIFS(Output!$G$5:$G$36,Indoor!A15,Output!$F$6:$F$37,Indoor!H15) -> 0 | J15: 0 | K15: 0 | L15: 0 | M15: =(((J15*Database!$U$3)+(K15*Database!$V$3)+(L15*Database!$W$3))*I15) -> 0 | N15: 25 | O15: =COUNTIFS(Output!$I$5:$I$36,Indoor!A15,Output!$H$6:$H$37,Indoor!N15) -> 0 | P15: 0 | Q15: 0 | R15: 0 | S15: =(((P15*Database!$U$3)+(Q15*Database!$V$3)+(R15*Database!$W$3))*O15) -> 0 | T15: 25 | U15: =COUNTIFS(Output!$K$5:$K$36,Indoor!A15,Output!$J$6:$J$37,Indoor!T15) -> 0 | V15: 0 | W15: 0 | X15: 0 | Y15: =(((V15*Database!$U$3)+(W15*Database!$V$3)+(X15*Database!$W$3))*U15) -> 0 | Z15: 25 | AA15: =COUNTIFS(Output!$M$5:$M$36,Indoor!A15,Output!$L$6:$L$37,Indoor!Z15) -> 0 | AB15: 0 | AC15: 0 | AD15: 0 | AE15: =(((AB15*Database!$U$3)+(AC15*Database!$V$3)+(AD15*Database!$W$3))*AA15) -> 0 | AF15: 25 | AG15: =COUNTIFS(Output!$O$5:$O$36,Indoor!A15,Output!$N$6:$N$37,Indoor!AF15) -> 0 | AH15: 0 | AI15: 0 | AJ15: 0 | AK15: =(((AH15*Database!$U$3)+(AI15*Database!$V$3)+(AJ15*Database!$W$3))*AG15) -> 0 | AL15: 25 | AM15: =COUNTIFS(Output!$Q$5:$Q$36,Indoor!A15,Output!$P$6:$P$37,Indoor!AL15) -> 0 | AN15: 0 | AO15: 0 | AP15: 0 | AQ15: =(((AN15*Database!$U$3)+(AO15*Database!$V$3)+(AP15*Database!$W$3))*AM15) -> 0 | AR15: 25 | AS15: =COUNTIFS(Output!$S$5:$S$36,Indoor!A15,Output!$R$6:$R$37,Indoor!AR15) -> 0 | AT15: 0 | AU15: 0 | AV15: 0 | AW15: =(((AT15*Database!$U$3)+(AU15*Database!$V$3)+(AV15*Database!$W$3))*AS15) -> 0 | AX15: 25 | AY15: =COUNTIFS(Output!$U$5:$U$36,Indoor!A15,Output!$T$6:$T$37,Indoor!AX15) -> 0 | AZ15: 0 | BA15: 0 | BB15: 0 | BC15: =(((AZ15*Database!$U$3)+(BA15*Database!$V$3)+(BB15*Database!$W$3))*AY15) -> 0 | BD15: 25 | BE15: =COUNTIFS(Output!$W$5:$W$36,Indoor!A15,Output!$V$6:$V$37,Indoor!BD15) -> 0 | BF15: 0 | BG15: 0 | BH15: 0 | BI15: =(((BF15*Database!$U$3)+(BG15*Database!$V$3)+(BH15*Database!$W$3))*BE15) -> 0 | BJ15: 0
A16: =Lists!$F$3 -> Ceiling Mounted Cassette | B16: 31.25 | C16: =COUNTIFS(Output!$E$5:$E$36,Indoor!A16,Output!$D$6:$D$37,Indoor!B16) -> 0 | D16: 0.14 | E16: 0.107 | F16: 0.1235 | G16: =(((D16*Database!$U$3)+(E16*Database!$V$3)+(F16*Database!$W$3))*C16) -> 0 | H16: 31.25 | I16: =COUNTIFS(Output!$G$5:$G$36,Indoor!A16,Output!$F$6:$F$37,Indoor!H16) -> 0 | J16: 0.14 | K16: 0.107 | L16: 0.1235 | M16: =(((J16*Database!$U$3)+(K16*Database!$V$3)+(L16*Database!$W$3))*I16) -> 0 | N16: 31.25 | O16: =COUNTIFS(Output!$I$5:$I$36,Indoor!A16,Output!$H$6:$H$37,Indoor!N16) -> 0 | P16: 0.14 | Q16: 0.107 | R16: 0.1235 | S16: =(((P16*Database!$U$3)+(Q16*Database!$V$3)+(R16*Database!$W$3))*O16) -> 0 | T16: 31.25 | U16: =COUNTIFS(Output!$K$5:$K$36,Indoor!A16,Output!$J$6:$J$37,Indoor!T16) -> 0 | V16: 0.14 | W16: 0.107 | X16: 0.1235 | Y16: =(((V16*Database!$U$3)+(W16*Database!$V$3)+(X16*Database!$W$3))*U16) -> 0 | Z16: 31.25 | AA16: =COUNTIFS(Output!$M$5:$M$36,Indoor!A16,Output!$L$6:$L$37,Indoor!Z16) -> 0 | AB16: 0.14 | AC16: 0.107 | AD16: 0.1235 | AE16: =(((AB16*Database!$U$3)+(AC16*Database!$V$3)+(AD16*Database!$W$3))*AA16) -> 0 | AF16: 31.25 | AG16: =COUNTIFS(Output!$O$5:$O$36,Indoor!A16,Output!$N$6:$N$37,Indoor!AF16) -> 0 | AH16: 0.14 | AI16: 0.107 | AJ16: 0.1235 | AK16: =(((AH16*Database!$U$3)+(AI16*Database!$V$3)+(AJ16*Database!$W$3))*AG16) -> 0 | AL16: 31.25 | AM16: =COUNTIFS(Output!$Q$5:$Q$36,Indoor!A16,Output!$P$6:$P$37,Indoor!AL16) -> 0 | AN16: 0.14 | AO16: 0.107 | AP16: 0.1235 | AQ16: =(((AN16*Database!$U$3)+(AO16*Database!$V$3)+(AP16*Database!$W$3))*AM16) -> 0 | AR16: 31.25 | AS16: =COUNTIFS(Output!$S$5:$S$36,Indoor!A16,Output!$R$6:$R$37,Indoor!AR16) -> 0 | AT16: 0.14 | AU16: 0.107 | AV16: 0.1235 | AW16: =(((AT16*Database!$U$3)+(AU16*Database!$V$3)+(AV16*Database!$W$3))*AS16) -> 0 | AX16: 31.25 | AY16: =COUNTIFS(Output!$U$5:$U$36,Indoor!A16,Output!$T$6:$T$37,Indoor!AX16) -> 0 | AZ16: 0.14 | BA16: 0.107 | BB16: 0.1235 | BC16: =(((AZ16*Database!$U$3)+(BA16*Database!$V$3)+(BB16*Database!$W$3))*AY16) -> 0 | BD16: 31.25 | BE16: =COUNTIFS(Output!$W$5:$W$36,Indoor!A16,Output!$V$6:$V$37,Indoor!BD16) -> 0 | BF16: 0.14 | BG16: 0.107 | BH16: 0.1235 | BI16: =(((BF16*Database!$U$3)+(BG16*Database!$V$3)+(BH16*Database!$W$3))*BE16) -> 0 | BJ16: 0
A17: =Lists!$F$3 -> Ceiling Mounted Cassette | B17: 40 | C17: =COUNTIFS(Output!$E$5:$E$36,Indoor!A17,Output!$D$6:$D$37,Indoor!B17) -> 0 | D17: 0.14 | E17: 0.107 | F17: 0.1235 | G17: =(((D17*Database!$U$3)+(E17*Database!$V$3)+(F17*Database!$W$3))*C17) -> 0 | H17: 40 | I17: =COUNTIFS(Output!$G$5:$G$36,Indoor!A17,Output!$F$6:$F$37,Indoor!H17) -> 0 | J17: 0.14 | K17: 0.107 | L17: 0.1235 | M17: =(((J17*Database!$U$3)+(K17*Database!$V$3)+(L17*Database!$W$3))*I17) -> 0 | N17: 40 | O17: =COUNTIFS(Output!$I$5:$I$36,Indoor!A17,Output!$H$6:$H$37,Indoor!N17) -> 0 | P17: 0.14 | Q17: 0.107 | R17: 0.1235 | S17: =(((P17*Database!$U$3)+(Q17*Database!$V$3)+(R17*Database!$W$3))*O17) -> 0 | T17: 40 | U17: =COUNTIFS(Output!$K$5:$K$36,Indoor!A17,Output!$J$6:$J$37,Indoor!T17) -> 0 | V17: 0.14 | W17: 0.107 | X17: 0.1235 | Y17: =(((V17*Database!$U$3)+(W17*Database!$V$3)+(X17*Database!$W$3))*U17) -> 0 | Z17: 40 | AA17: =COUNTIFS(Output!$M$5:$M$36,Indoor!A17,Output!$L$6:$L$37,Indoor!Z17) -> 0 | AB17: 0.14 | AC17: 0.107 | AD17: 0.1235 | AE17: =(((AB17*Database!$U$3)+(AC17*Database!$V$3)+(AD17*Database!$W$3))*AA17) -> 0 | AF17: 40 | AG17: =COUNTIFS(Output!$O$5:$O$36,Indoor!A17,Output!$N$6:$N$37,Indoor!AF17) -> 0 | AH17: 0.14 | AI17: 0.107 | AJ17: 0.1235 | AK17: =(((AH17*Database!$U$3)+(AI17*Database!$V$3)+(AJ17*Database!$W$3))*AG17) -> 0 | AL17: 40 | AM17: =COUNTIFS(Output!$Q$5:$Q$36,Indoor!A17,Output!$P$6:$P$37,Indoor!AL17) -> 0 | AN17: 0.14 | AO17: 0.107 | AP17: 0.1235 | AQ17: =(((AN17*Database!$U$3)+(AO17*Database!$V$3)+(AP17*Database!$W$3))*AM17) -> 0 | AR17: 40 | AS17: =COUNTIFS(Output!$S$5:$S$36,Indoor!A17,Output!$R$6:$R$37,Indoor!AR17) -> 0 | AT17: 0.14 | AU17: 0.107 | AV17: 0.1235 | AW17: =(((AT17*Database!$U$3)+(AU17*Database!$V$3)+(AV17*Database!$W$3))*AS17) -> 0 | AX17: 40 | AY17: =COUNTIFS(Output!$U$5:$U$36,Indoor!A17,Output!$T$6:$T$37,Indoor!AX17) -> 0 | AZ17: 0.14 | BA17: 0.107 | BB17: 0.1235 | BC17: =(((AZ17*Database!$U$3)+(BA17*Database!$V$3)+(BB17*Database!$W$3))*AY17) -> 0 | BD17: 40 | BE17: =COUNTIFS(Output!$W$5:$W$36,Indoor!A17,Output!$V$6:$V$37,Indoor!BD17) -> 0 | BF17: 0.14 | BG17: 0.107 | BH17: 0.1235 | BI17: =(((BF17*Database!$U$3)+(BG17*Database!$V$3)+(BH17*Database!$W$3))*BE17) -> 0 | BJ17: 0
A18: =Lists!$F$3 -> Ceiling Mounted Cassette | B18: 50 | C18: =COUNTIFS(Output!$E$5:$E$36,Indoor!A18,Output!$D$6:$D$37,Indoor!B18) -> 0 | D18: 0.14 | E18: 0.107 | F18: 0.1235 | G18: =(((D18*Database!$U$3)+(E18*Database!$V$3)+(F18*Database!$W$3))*C18) -> 0 | H18: 50 | I18: =COUNTIFS(Output!$G$5:$G$36,Indoor!A18,Output!$F$6:$F$37,Indoor!H18) -> 0 | J18: 0.14 | K18: 0.107 | L18: 0.1235 | M18: =(((J18*Database!$U$3)+(K18*Database!$V$3)+(L18*Database!$W$3))*I18) -> 0 | N18: 50 | O18: =COUNTIFS(Output!$I$5:$I$36,Indoor!A18,Output!$H$6:$H$37,Indoor!N18) -> 0 | P18: 0.14 | Q18: 0.107 | R18: 0.1235 | S18: =(((P18*Database!$U$3)+(Q18*Database!$V$3)+(R18*Database!$W$3))*O18) -> 0 | T18: 50 | U18: =COUNTIFS(Output!$K$5:$K$36,Indoor!A18,Output!$J$6:$J$37,Indoor!T18) -> 0 | V18: 0.14 | W18: 0.107 | X18: 0.1235 | Y18: =(((V18*Database!$U$3)+(W18*Database!$V$3)+(X18*Database!$W$3))*U18) -> 0 | Z18: 50 | AA18: =COUNTIFS(Output!$M$5:$M$36,Indoor!A18,Output!$L$6:$L$37,Indoor!Z18) -> 0 | AB18: 0.14 | AC18: 0.107 | AD18: 0.1235 | AE18: =(((AB18*Database!$U$3)+(AC18*Database!$V$3)+(AD18*Database!$W$3))*AA18) -> 0 | AF18: 50 | AG18: =COUNTIFS(Output!$O$5:$O$36,Indoor!A18,Output!$N$6:$N$37,Indoor!AF18) -> 0 | AH18: 0.14 | AI18: 0.107 | AJ18: 0.1235 | AK18: =(((AH18*Database!$U$3)+(AI18*Database!$V$3)+(AJ18*Database!$W$3))*AG18) -> 0 | AL18: 50 | AM18: =COUNTIFS(Output!$Q$5:$Q$36,Indoor!A18,Output!$P$6:$P$37,Indoor!AL18) -> 0 | AN18: 0.14 | AO18: 0.107 | AP18: 0.1235 | AQ18: =(((AN18*Database!$U$3)+(AO18*Database!$V$3)+(AP18*Database!$W$3))*AM18) -> 0 | AR18: 50 | AS18: =COUNTIFS(Output!$S$5:$S$36,Indoor!A18,Output!$R$6:$R$37,Indoor!AR18) -> 0 | AT18: 0.14 | AU18: 0.107 | AV18: 0.1235 | AW18: =(((AT18*Database!$U$3)+(AU18*Database!$V$3)+(AV18*Database!$W$3))*AS18) -> 0 | AX18: 50 | AY18: =COUNTIFS(Output!$U$5:$U$36,Indoor!A18,Output!$T$6:$T$37,Indoor!AX18) -> 0 | AZ18: 0.14 | BA18: 0.107 | BB18: 0.1235 | BC18: =(((AZ18*Database!$U$3)+(BA18*Database!$V$3)+(BB18*Database!$W$3))*AY18) -> 0 | BD18: 50 | BE18: =COUNTIFS(Output!$W$5:$W$36,Indoor!A18,Output!$V$6:$V$37,Indoor!BD18) -> 0 | BF18: 0.14 | BG18: 0.107 | BH18: 0.1235 | BI18: =(((BF18*Database!$U$3)+(BG18*Database!$V$3)+(BH18*Database!$W$3))*BE18) -> 0 | BJ18: 0
A19: =Lists!$F$3 -> Ceiling Mounted Cassette | B19: 63 | C19: =COUNTIFS(Output!$E$5:$E$36,Indoor!A19,Output!$D$6:$D$37,Indoor!B19) -> 0 | D19: 0.161 | E19: 0.128 | F19: 0.1445 | G19: =(((D19*Database!$U$3)+(E19*Database!$V$3)+(F19*Database!$W$3))*C19) -> 0 | H19: 63 | I19: =COUNTIFS(Output!$G$5:$G$36,Indoor!A19,Output!$F$6:$F$37,Indoor!H19) -> 0 | J19: 0.161 | K19: 0.128 | L19: 0.1445 | M19: =(((J19*Database!$U$3)+(K19*Database!$V$3)+(L19*Database!$W$3))*I19) -> 0 | N19: 63 | O19: =COUNTIFS(Output!$I$5:$I$36,Indoor!A19,Output!$H$6:$H$37,Indoor!N19) -> 0 | P19: 0.161 | Q19: 0.128 | R19: 0.1445 | S19: =(((P19*Database!$U$3)+(Q19*Database!$V$3)+(R19*Database!$W$3))*O19) -> 0 | T19: 63 | U19: =COUNTIFS(Output!$K$5:$K$36,Indoor!A19,Output!$J$6:$J$37,Indoor!T19) -> 0 | V19: 0.161 | W19: 0.128 | X19: 0.1445 | Y19: =(((V19*Database!$U$3)+(W19*Database!$V$3)+(X19*Database!$W$3))*U19) -> 0 | Z19: 63 | AA19: =COUNTIFS(Output!$M$5:$M$36,Indoor!A19,Output!$L$6:$L$37,Indoor!Z19) -> 0 | AB19: 0.161 | AC19: 0.128 | AD19: 0.1445 | AE19: =(((AB19*Database!$U$3)+(AC19*Database!$V$3)+(AD19*Database!$W$3))*AA19) -> 0 | AF19: 63 | AG19: =COUNTIFS(Output!$O$5:$O$36,Indoor!A19,Output!$N$6:$N$37,Indoor!AF19) -> 0 | AH19: 0.161 | AI19: 0.128 | AJ19: 0.1445 | AK19: =(((AH19*Database!$U$3)+(AI19*Database!$V$3)+(AJ19*Database!$W$3))*AG19) -> 0 | AL19: 63 | AM19: =COUNTIFS(Output!$Q$5:$Q$36,Indoor!A19,Output!$P$6:$P$37,Indoor!AL19) -> 0 | AN19: 0.161 | AO19: 0.128 | AP19: 0.1445 | AQ19: =(((AN19*Database!$U$3)+(AO19*Database!$V$3)+(AP19*Database!$W$3))*AM19) -> 0 | AR19: 63 | AS19: =COUNTIFS(Output!$S$5:$S$36,Indoor!A19,Output!$R$6:$R$37,Indoor!AR19) -> 0 | AT19: 0.161 | AU19: 0.128 | AV19: 0.1445 | AW19: =(((AT19*Database!$U$3)+(AU19*Database!$V$3)+(AV19*Database!$W$3))*AS19) -> 0 | AX19: 63 | AY19: =COUNTIFS(Output!$U$5:$U$36,Indoor!A19,Output!$T$6:$T$37,Indoor!AX19) -> 0 | AZ19: 0.161 | BA19: 0.128 | BB19: 0.1445 | BC19: =(((AZ19*Database!$U$3)+(BA19*Database!$V$3)+(BB19*Database!$W$3))*AY19) -> 0 | BD19: 63 | BE19: =COUNTIFS(Output!$W$5:$W$36,Indoor!A19,Output!$V$6:$V$37,Indoor!BD19) -> 0 | BF19: 0.161 | BG19: 0.128 | BH19: 0.1445 | BI19: =(((BF19*Database!$U$3)+(BG19*Database!$V$3)+(BH19*Database!$W$3))*BE19) -> 0 | BJ19: 0
A20: =Lists!$F$3 -> Ceiling Mounted Cassette | B20: 80 | C20: =COUNTIFS(Output!$E$5:$E$36,Indoor!A20,Output!$D$6:$D$37,Indoor!B20) -> 0 | D20: 0.24 | E20: 0.171 | F20: 0.2055 | G20: =(((D20*Database!$U$3)+(E20*Database!$V$3)+(F20*Database!$W$3))*C20) -> 0 | H20: 80 | I20: =COUNTIFS(Output!$G$5:$G$36,Indoor!A20,Output!$F$6:$F$37,Indoor!H20) -> 0 | J20: 0.24 | K20: 0.171 | L20: 0.2055 | M20: =(((J20*Database!$U$3)+(K20*Database!$V$3)+(L20*Database!$W$3))*I20) -> 0 | N20: 80 | O20: =COUNTIFS(Output!$I$5:$I$36,Indoor!A20,Output!$H$6:$H$37,Indoor!N20) -> 0 | P20: 0.24 | Q20: 0.171 | R20: 0.2055 | S20: =(((P20*Database!$U$3)+(Q20*Database!$V$3)+(R20*Database!$W$3))*O20) -> 0 | T20: 80 | U20: =COUNTIFS(Output!$K$5:$K$36,Indoor!A20,Output!$J$6:$J$37,Indoor!T20) -> 0 | V20: 0.24 | W20: 0.171 | X20: 0.2055 | Y20: =(((V20*Database!$U$3)+(W20*Database!$V$3)+(X20*Database!$W$3))*U20) -> 0 | Z20: 80 | AA20: =COUNTIFS(Output!$M$5:$M$36,Indoor!A20,Output!$L$6:$L$37,Indoor!Z20) -> 0 | AB20: 0.24 | AC20: 0.171 | AD20: 0.2055 | AE20: =(((AB20*Database!$U$3)+(AC20*Database!$V$3)+(AD20*Database!$W$3))*AA20) -> 0 | AF20: 80 | AG20: =COUNTIFS(Output!$O$5:$O$36,Indoor!A20,Output!$N$6:$N$37,Indoor!AF20) -> 0 | AH20: 0.24 | AI20: 0.171 | AJ20: 0.2055 | AK20: =(((AH20*Database!$U$3)+(AI20*Database!$V$3)+(AJ20*Database!$W$3))*AG20) -> 0 | AL20: 80 | AM20: =COUNTIFS(Output!$Q$5:$Q$36,Indoor!A20,Output!$P$6:$P$37,Indoor!AL20) -> 0 | AN20: 0.24 | AO20: 0.171 | AP20: 0.2055 | AQ20: =(((AN20*Database!$U$3)+(AO20*Database!$V$3)+(AP20*Database!$W$3))*AM20) -> 0 | AR20: 80 | AS20: =COUNTIFS(Output!$S$5:$S$36,Indoor!A20,Output!$R$6:$R$37,Indoor!AR20) -> 0 | AT20: 0.24 | AU20: 0.171 | AV20: 0.2055 | AW20: =(((AT20*Database!$U$3)+(AU20*Database!$V$3)+(AV20*Database!$W$3))*AS20) -> 0 | AX20: 80 | AY20: =COUNTIFS(Output!$U$5:$U$36,Indoor!A20,Output!$T$6:$T$37,Indoor!AX20) -> 0 | AZ20: 0.24 | BA20: 0.171 | BB20: 0.2055 | BC20: =(((AZ20*Database!$U$3)+(BA20*Database!$V$3)+(BB20*Database!$W$3))*AY20) -> 0 | BD20: 80 | BE20: =COUNTIFS(Output!$W$5:$W$36,Indoor!A20,Output!$V$6:$V$37,Indoor!BD20) -> 0 | BF20: 0.24 | BG20: 0.171 | BH20: 0.2055 | BI20: =(((BF20*Database!$U$3)+(BG20*Database!$V$3)+(BH20*Database!$W$3))*BE20) -> 0 | BJ20: 0
A21: =Lists!$F$3 -> Ceiling Mounted Cassette | B21: 100 | C21: =COUNTIFS(Output!$E$5:$E$36,Indoor!A21,Output!$D$6:$D$37,Indoor!B21) -> 0 | D21: 0.204 | E21: 0.171 | F21: =(D21+E21)/2 -> 0.1875 | G21: =(((D21*Database!$U$3)+(E21*Database!$V$3)+(F21*Database!$W$3))*C21) -> 0 | H21: 100 | I21: =COUNTIFS(Output!$G$5:$G$36,Indoor!A21,Output!$F$6:$F$37,Indoor!H21) -> 0 | J21: =D21 -> 0.204 | K21: =E21 -> 0.171 | L21: 0.1875 | M21: =(((J21*Database!$U$3)+(K21*Database!$V$3)+(L21*Database!$W$3))*I21) -> 0 | N21: 100 | O21: =COUNTIFS(Output!$I$5:$I$36,Indoor!A21,Output!$H$6:$H$37,Indoor!N21) -> 0 | P21: =D21 -> 0.204 | Q21: =E21 -> 0.171 | R21: 0.1875 | S21: =(((P21*Database!$U$3)+(Q21*Database!$V$3)+(R21*Database!$W$3))*O21) -> 0 | T21: 100 | U21: =COUNTIFS(Output!$K$5:$K$36,Indoor!A21,Output!$J$6:$J$37,Indoor!T21) -> 0 | V21: =D21 -> 0.204 | W21: =E21 -> 0.171 | X21: 0.1875 | Y21: =(((V21*Database!$U$3)+(W21*Database!$V$3)+(X21*Database!$W$3))*U21) -> 0 | Z21: 100 | AA21: =COUNTIFS(Output!$M$5:$M$36,Indoor!A21,Output!$L$6:$L$37,Indoor!Z21) -> 0 | AB21: =D21 -> 0.204 | AC21: =E21 -> 0.171 | AD21: 0.1875 | AE21: =(((AB21*Database!$U$3)+(AC21*Database!$V$3)+(AD21*Database!$W$3))*AA21) -> 0 | AF21: 100 | AG21: =COUNTIFS(Output!$O$5:$O$36,Indoor!A21,Output!$N$6:$N$37,Indoor!AF21) -> 0 | AH21: =D21 -> 0.204 | AI21: =E21 -> 0.171 | AJ21: 0.1875 | AK21: =(((AH21*Database!$U$3)+(AI21*Database!$V$3)+(AJ21*Database!$W$3))*AG21) -> 0 | AL21: 100 | AM21: =COUNTIFS(Output!$Q$5:$Q$36,Indoor!A21,Output!$P$6:$P$37,Indoor!AL21) -> 0 | AN21: =D21 -> 0.204 | AO21: =E21 -> 0.171 | AP21: 0.1875 | AQ21: =(((AN21*Database!$U$3)+(AO21*Database!$V$3)+(AP21*Database!$W$3))*AM21) -> 0 | AR21: 100 | AS21: =COUNTIFS(Output!$S$5:$S$36,Indoor!A21,Output!$R$6:$R$37,Indoor!AR21) -> 0 | AT21: =D21 -> 0.204 | AU21: =E21 -> 0.171 | AV21: 0.1875 | AW21: =(((AT21*Database!$U$3)+(AU21*Database!$V$3)+(AV21*Database!$W$3))*AS21) -> 0 | AX21: 100 | AY21: =COUNTIFS(Output!$U$5:$U$36,Indoor!A21,Output!$T$6:$T$37,Indoor!AX21) -> 0 | AZ21: =D21 -> 0.204 | BA21: =E21 -> 0.171 | BB21: 0.1875 | BC21: =(((AZ21*Database!$U$3)+(BA21*Database!$V$3)+(BB21*Database!$W$3))*AY21) -> 0 | BD21: 100 | BE21: =COUNTIFS(Output!$W$5:$W$36,Indoor!A21,Output!$V$6:$V$37,Indoor!BD21) -> 0 | BF21: =D21 -> 0.204 | BG21: =E21 -> 0.171 | BH21: 0.1875 | BI21: =(((BF21*Database!$U$3)+(BG21*Database!$V$3)+(BH21*Database!$W$3))*BE21) -> 0 | BJ21: 0
A22: =Lists!$F$3 -> Ceiling Mounted Cassette | B22: 125 | C22: =COUNTIFS(Output!$E$5:$E$36,Indoor!A22,Output!$D$6:$D$37,Indoor!B22) -> 0 | D22: 0.238 | E22: 0.205 | F22: =(D22+E22)/2 -> 0.2215 | G22: =(((D22*Database!$U$3)+(E22*Database!$V$3)+(F22*Database!$W$3))*C22) -> 0 | H22: 125 | I22: =COUNTIFS(Output!$G$5:$G$36,Indoor!A22,Output!$F$6:$F$37,Indoor!H22) -> 0 | J22: =D22 -> 0.238 | K22: =E22 -> 0.205 | L22: 0.2215 | M22: =(((J22*Database!$U$3)+(K22*Database!$V$3)+(L22*Database!$W$3))*I22) -> 0 | N22: 125 | O22: =COUNTIFS(Output!$I$5:$I$36,Indoor!A22,Output!$H$6:$H$37,Indoor!N22) -> 0 | P22: =D22 -> 0.238 | Q22: =E22 -> 0.205 | R22: 0.2215 | S22: =(((P22*Database!$U$3)+(Q22*Database!$V$3)+(R22*Database!$W$3))*O22) -> 0 | T22: 125 | U22: =COUNTIFS(Output!$K$5:$K$36,Indoor!A22,Output!$J$6:$J$37,Indoor!T22) -> 0 | V22: =D22 -> 0.238 | W22: =E22 -> 0.205 | X22: 0.2215 | Y22: =(((V22*Database!$U$3)+(W22*Database!$V$3)+(X22*Database!$W$3))*U22) -> 0 | Z22: 125 | AA22: =COUNTIFS(Output!$M$5:$M$36,Indoor!A22,Output!$L$6:$L$37,Indoor!Z22) -> 0 | AB22: =D22 -> 0.238 | AC22: =E22 -> 0.205 | AD22: 0.2215 | AE22: =(((AB22*Database!$U$3)+(AC22*Database!$V$3)+(AD22*Database!$W$3))*AA22) -> 0 | AF22: 125 | AG22: =COUNTIFS(Output!$O$5:$O$36,Indoor!A22,Output!$N$6:$N$37,Indoor!AF22) -> 0 | AH22: =D22 -> 0.238 | AI22: =E22 -> 0.205 | AJ22: 0.2215 | AK22: =(((AH22*Database!$U$3)+(AI22*Database!$V$3)+(AJ22*Database!$W$3))*AG22) -> 0 | AL22: 125 | AM22: =COUNTIFS(Output!$Q$5:$Q$36,Indoor!A22,Output!$P$6:$P$37,Indoor!AL22) -> 0 | AN22: =D22 -> 0.238 | AO22: =E22 -> 0.205 | AP22: 0.2215 | AQ22: =(((AN22*Database!$U$3)+(AO22*Database!$V$3)+(AP22*Database!$W$3))*AM22) -> 0 | AR22: 125 | AS22: =COUNTIFS(Output!$S$5:$S$36,Indoor!A22,Output!$R$6:$R$37,Indoor!AR22) -> 0 | AT22: =D22 -> 0.238 | AU22: =E22 -> 0.205 | AV22: 0.2215 | AW22: =(((AT22*Database!$U$3)+(AU22*Database!$V$3)+(AV22*Database!$W$3))*AS22) -> 0 | AX22: 125 | AY22: =COUNTIFS(Output!$U$5:$U$36,Indoor!A22,Output!$T$6:$T$37,Indoor!AX22) -> 0 | AZ22: =D22 -> 0.238 | BA22: =E22 -> 0.205 | BB22: 0.2215 | BC22: =(((AZ22*Database!$U$3)+(BA22*Database!$V$3)+(BB22*Database!$W$3))*AY22) -> 0 | BD22: 125 | BE22: =COUNTIFS(Output!$W$5:$W$36,Indoor!A22,Output!$V$6:$V$37,Indoor!BD22) -> 0 | BF22: =D22 -> 0.238 | BG22: =E22 -> 0.205 | BH22: 0.2215 | BI22: =(((BF22*Database!$U$3)+(BG22*Database!$V$3)+(BH22*Database!$W$3))*BE22) -> 0 | BJ22: 0
A23: =Lists!$F$3 -> Ceiling Mounted Cassette | B23: 200 | C23: =COUNTIFS(Output!$E$5:$E$36,Indoor!A23,Output!$D$6:$D$37,Indoor!B23) -> 0 | F23: 0 | G23: =(((D23*Database!$U$3)+(E23*Database!$V$3)+(F23*Database!$W$3))*C23) -> 0 | H23: 200 | I23: =COUNTIFS(Output!$G$5:$G$36,Indoor!A23,Output!$F$6:$F$37,Indoor!H23) -> 0 | J23: 0 | K23: 0 | L23: 0 | M23: =(((J23*Database!$U$3)+(K23*Database!$V$3)+(L23*Database!$W$3))*I23) -> 0 | N23: 200 | O23: =COUNTIFS(Output!$I$5:$I$36,Indoor!A23,Output!$H$6:$H$37,Indoor!N23) -> 0 | P23: 0 | Q23: 0 | R23: 0 | S23: =(((P23*Database!$U$3)+(Q23*Database!$V$3)+(R23*Database!$W$3))*O23) -> 0 | T23: 200 | U23: =COUNTIFS(Output!$K$5:$K$36,Indoor!A23,Output!$J$6:$J$37,Indoor!T23) -> 0 | V23: 0 | W23: 0 | X23: 0 | Y23: =(((V23*Database!$U$3)+(W23*Database!$V$3)+(X23*Database!$W$3))*U23) -> 0 | Z23: 200 | AA23: =COUNTIFS(Output!$M$5:$M$36,Indoor!A23,Output!$L$6:$L$37,Indoor!Z23) -> 0 | AB23: 0 | AC23: 0 | AD23: 0 | AE23: =(((AB23*Database!$U$3)+(AC23*Database!$V$3)+(AD23*Database!$W$3))*AA23) -> 0 | AF23: 200 | AG23: =COUNTIFS(Output!$O$5:$O$36,Indoor!A23,Output!$N$6:$N$37,Indoor!AF23) -> 0 | AH23: 0 | AI23: 0 | AJ23: 0 | AK23: =(((AH23*Database!$U$3)+(AI23*Database!$V$3)+(AJ23*Database!$W$3))*AG23) -> 0 | AL23: 200 | AM23: =COUNTIFS(Output!$Q$5:$Q$36,Indoor!A23,Output!$P$6:$P$37,Indoor!AL23) -> 0 | AN23: 0 | AO23: 0 | AP23: 0 | AQ23: =(((AN23*Database!$U$3)+(AO23*Database!$V$3)+(AP23*Database!$W$3))*AM23) -> 0 | AR23: 200 | AS23: =COUNTIFS(Output!$S$5:$S$36,Indoor!A23,Output!$R$6:$R$37,Indoor!AR23) -> 0 | AT23: 0 | AU23: 0 | AV23: 0 | AW23: =(((AT23*Database!$U$3)+(AU23*Database!$V$3)+(AV23*Database!$W$3))*AS23) -> 0 | AX23: 200 | AY23: =COUNTIFS(Output!$U$5:$U$36,Indoor!A23,Output!$T$6:$T$37,Indoor!AX23) -> 0 | AZ23: 0 | BA23: 0 | BB23: 0 | BC23: =(((AZ23*Database!$U$3)+(BA23*Database!$V$3)+(BB23*Database!$W$3))*AY23) -> 0 | BD23: 200 | BE23: =COUNTIFS(Output!$W$5:$W$36,Indoor!A23,Output!$V$6:$V$37,Indoor!BD23) -> 0 | BF23: 0 | BG23: 0 | BH23: 0 | BI23: =(((BF23*Database!$U$3)+(BG23*Database!$V$3)+(BH23*Database!$W$3))*BE23) -> 0 | BJ23: 0
A24: =Lists!$F$3 -> Ceiling Mounted Cassette | B24: 250 | C24: =COUNTIFS(Output!$E$5:$E$36,Indoor!A24,Output!$D$6:$D$37,Indoor!B24) -> 0 | F24: 0 | G24: =(((D24*Database!$U$3)+(E24*Database!$V$3)+(F24*Database!$W$3))*C24) -> 0 | H24: 250 | I24: =COUNTIFS(Output!$G$5:$G$36,Indoor!A24,Output!$F$6:$F$37,Indoor!H24) -> 0 | J24: 0 | K24: 0 | L24: 0 | M24: =(((J24*Database!$U$3)+(K24*Database!$V$3)+(L24*Database!$W$3))*I24) -> 0 | N24: 250 | O24: =COUNTIFS(Output!$I$5:$I$36,Indoor!A24,Output!$H$6:$H$37,Indoor!N24) -> 0 | P24: 0 | Q24: 0 | R24: 0 | S24: =(((P24*Database!$U$3)+(Q24*Database!$V$3)+(R24*Database!$W$3))*O24) -> 0 | T24: 250 | U24: =COUNTIFS(Output!$K$5:$K$36,Indoor!A24,Output!$J$6:$J$37,Indoor!T24) -> 0 | V24: 0 | W24: 0 | X24: 0 | Y24: =(((V24*Database!$U$3)+(W24*Database!$V$3)+(X24*Database!$W$3))*U24) -> 0 | Z24: 250 | AA24: =COUNTIFS(Output!$M$5:$M$36,Indoor!A24,Output!$L$6:$L$37,Indoor!Z24) -> 0 | AB24: 0 | AC24: 0 | AD24: 0 | AE24: =(((AB24*Database!$U$3)+(AC24*Database!$V$3)+(AD24*Database!$W$3))*AA24) -> 0 | AF24: 250 | AG24: =COUNTIFS(Output!$O$5:$O$36,Indoor!A24,Output!$N$6:$N$37,Indoor!AF24) -> 0 | AH24: 0 | AI24: 0 | AJ24: 0 | AK24: =(((AH24*Database!$U$3)+(AI24*Database!$V$3)+(AJ24*Database!$W$3))*AG24) -> 0 | AL24: 250 | AM24: =COUNTIFS(Output!$Q$5:$Q$36,Indoor!A24,Output!$P$6:$P$37,Indoor!AL24) -> 0 | AN24: 0 | AO24: 0 | AP24: 0 | AQ24: =(((AN24*Database!$U$3)+(AO24*Database!$V$3)+(AP24*Database!$W$3))*AM24) -> 0 | AR24: 250 | AS24: =COUNTIFS(Output!$S$5:$S$36,Indoor!A24,Output!$R$6:$R$37,Indoor!AR24) -> 0 | AT24: 0 | AU24: 0 | AV24: 0 | AW24: =(((AT24*Database!$U$3)+(AU24*Database!$V$3)+(AV24*Database!$W$3))*AS24) -> 0 | AX24: 250 | AY24: =COUNTIFS(Output!$U$5:$U$36,Indoor!A24,Output!$T$6:$T$37,Indoor!AX24) -> 0 | AZ24: 0 | BA24: 0 | BB24: 0 | BC24: =(((AZ24*Database!$U$3)+(BA24*Database!$V$3)+(BB24*Database!$W$3))*AY24) -> 0 | BD24: 250 | BE24: =COUNTIFS(Output!$W$5:$W$36,Indoor!A24,Output!$V$6:$V$37,Indoor!BD24) -> 0 | BF24: 0 | BG24: 0 | BH24: 0 | BI24: =(((BF24*Database!$U$3)+(BG24*Database!$V$3)+(BH24*Database!$W$3))*BE24) -> 0 | BJ24: 0
C25: =SUM(C14:C24) -> 0 | I25: =SUM(I14:I24) -> 0 | O25: =SUM(O14:O24) -> 0 | U25: =SUM(U14:U24) -> 0 | AA25: =SUM(AA14:AA24) -> 0 | AG25: =SUM(AG14:AG24) -> 0 | AM25: =SUM(AM14:AM24) -> 0 | AS25: =SUM(AS14:AS24) -> 0 | AY25: =SUM(AY14:AY24) -> 0 | BE25: =SUM(BE14:BE24) -> 0
A26: =Lists!$F$4 -> Horizontal Ducted | B26: 20 | C26: =COUNTIFS(Output!$E$5:$E$36,Indoor!A26,Output!$D$6:$D$37,Indoor!B26) -> 0 | D26: 0.11 | E26: 0.09 | F26: 0.1 | G26: =(((D26*Database!$U$3)+(E26*Database!$V$3)+(F26*Database!$W$3))*C26) -> 0 | H26: 20 | I26: =COUNTIFS(Output!$G$5:$G$36,Indoor!A26,Output!$F$6:$F$37,Indoor!H26) -> 0 | J26: 0.11 | K26: 0.09 | L26: 0.1 | M26: =(((J26*Database!$U$3)+(K26*Database!$V$3)+(L26*Database!$W$3))*I26) -> 0 | N26: 20 | O26: =COUNTIFS(Output!$I$5:$I$36,Indoor!A26,Output!$H$6:$H$37,Indoor!N26) -> 0 | P26: 0.11 | Q26: 0.09 | R26: 0.1 | S26: =(((P26*Database!$U$3)+(Q26*Database!$V$3)+(R26*Database!$W$3))*O26) -> 0 | T26: 20 | U26: =COUNTIFS(Output!$K$5:$K$36,Indoor!A26,Output!$J$6:$J$37,Indoor!T26) -> 0 | V26: 0.11 | W26: 0.09 | X26: 0.1 | Y26: =(((V26*Database!$U$3)+(W26*Database!$V$3)+(X26*Database!$W$3))*U26) -> 0 | Z26: 20 | AA26: =COUNTIFS(Output!$M$5:$M$36,Indoor!A26,Output!$L$6:$L$37,Indoor!Z26) -> 0 | AB26: 0.11 | AC26: 0.09 | AD26: 0.1 | AE26: =(((AB26*Database!$U$3)+(AC26*Database!$V$3)+(AD26*Database!$W$3))*AA26) -> 0 | AF26: 20 | AG26: =COUNTIFS(Output!$O$5:$O$36,Indoor!A26,Output!$N$6:$N$37,Indoor!AF26) -> 0 | AH26: 0.11 | AI26: 0.09 | AJ26: 0.1 | AK26: =(((AH26*Database!$U$3)+(AI26*Database!$V$3)+(AJ26*Database!$W$3))*AG26) -> 0 | AL26: 20 | AM26: =COUNTIFS(Output!$Q$5:$Q$36,Indoor!A26,Output!$P$6:$P$37,Indoor!AL26) -> 0 | AN26: 0.11 | AO26: 0.09 | AP26: 0.1 | AQ26: =(((AN26*Database!$U$3)+(AO26*Database!$V$3)+(AP26*Database!$W$3))*AM26) -> 0 | AR26: 20 | AS26: =COUNTIFS(Output!$S$5:$S$36,Indoor!A26,Output!$R$6:$R$37,Indoor!AR26) -> 0 | AT26: 0.11 | AU26: 0.09 | AV26: 0.1 | AW26: =(((AT26*Database!$U$3)+(AU26*Database!$V$3)+(AV26*Database!$W$3))*AS26) -> 0 | AX26: 20 | AY26: =COUNTIFS(Output!$U$5:$U$36,Indoor!A26,Output!$T$6:$T$37,Indoor!AX26) -> 0 | AZ26: 0.11 | BA26: 0.09 | BB26: 0.1 | BC26: =(((AZ26*Database!$U$3)+(BA26*Database!$V$3)+(BB26*Database!$W$3))*AY26) -> 0 | BD26: 20 | BE26: =COUNTIFS(Output!$W$5:$W$36,Indoor!A26,Output!$V$6:$V$37,Indoor!BD26) -> 0 | BF26: 0.11 | BG26: 0.09 | BH26: 0.1 | BI26: =(((BF26*Database!$U$3)+(BG26*Database!$V$3)+(BH26*Database!$W$3))*BE26) -> 0 | BJ26: =SUM(BE26+AY26+AS26+AM26+AG26+AA26+U26+O26+I26+C26) -> 0
A27: =Lists!$F$4 -> Horizontal Ducted | B27: 25 | C27: =COUNTIFS(Output!$E$5:$E$36,Indoor!A27,Output!$D$6:$D$37,Indoor!B27) -> 0 | D27: 0.11 | E27: 0.09 | F27: 0.1 | G27: =(((D27*Database!$U$3)+(E27*Database!$V$3)+(F27*Database!$W$3))*C27) -> 0 | H27: 25 | I27: =COUNTIFS(Output!$G$5:$G$36,Indoor!A27,Output!$F$6:$F$37,Indoor!H27) -> 0 | J27: 0.11 | K27: 0.09 | L27: 0.1 | M27: =(((J27*Database!$U$3)+(K27*Database!$V$3)+(L27*Database!$W$3))*I27) -> 0 | N27: 25 | O27: =COUNTIFS(Output!$I$5:$I$36,Indoor!A27,Output!$H$6:$H$37,Indoor!N27) -> 0 | P27: 0.11 | Q27: 0.09 | R27: 0.1 | S27: =(((P27*Database!$U$3)+(Q27*Database!$V$3)+(R27*Database!$W$3))*O27) -> 0 | T27: 25 | U27: =COUNTIFS(Output!$K$5:$K$36,Indoor!A27,Output!$J$6:$J$37,Indoor!T27) -> 0 | V27: 0.11 | W27: 0.09 | X27: 0.1 | Y27: =(((V27*Database!$U$3)+(W27*Database!$V$3)+(X27*Database!$W$3))*U27) -> 0 | Z27: 25 | AA27: =COUNTIFS(Output!$M$5:$M$36,Indoor!A27,Output!$L$6:$L$37,Indoor!Z27) -> 0 | AB27: 0.11 | AC27: 0.09 | AD27: 0.1 | AE27: =(((AB27*Database!$U$3)+(AC27*Database!$V$3)+(AD27*Database!$W$3))*AA27) -> 0 | AF27: 25 | AG27: =COUNTIFS(Output!$O$5:$O$36,Indoor!A27,Output!$N$6:$N$37,Indoor!AF27) -> 0 | AH27: 0.11 | AI27: 0.09 | AJ27: 0.1 | AK27: =(((AH27*Database!$U$3)+(AI27*Database!$V$3)+(AJ27*Database!$W$3))*AG27) -> 0 | AL27: 25 | AM27: =COUNTIFS(Output!$Q$5:$Q$36,Indoor!A27,Output!$P$6:$P$37,Indoor!AL27) -> 0 | AN27: 0.11 | AO27: 0.09 | AP27: 0.1 | AQ27: =(((AN27*Database!$U$3)+(AO27*Database!$V$3)+(AP27*Database!$W$3))*AM27) -> 0 | AR27: 25 | AS27: =COUNTIFS(Output!$S$5:$S$36,Indoor!A27,Output!$R$6:$R$37,Indoor!AR27) -> 0 | AT27: 0.11 | AU27: 0.09 | AV27: 0.1 | AW27: =(((AT27*Database!$U$3)+(AU27*Database!$V$3)+(AV27*Database!$W$3))*AS27) -> 0 | AX27: 25 | AY27: =COUNTIFS(Output!$U$5:$U$36,Indoor!A27,Output!$T$6:$T$37,Indoor!AX27) -> 0 | AZ27: 0.11 | BA27: 0.09 | BB27: 0.1 | BC27: =(((AZ27*Database!$U$3)+(BA27*Database!$V$3)+(BB27*Database!$W$3))*AY27) -> 0 | BD27: 25 | BE27: =COUNTIFS(Output!$W$5:$W$36,Indoor!A27,Output!$V$6:$V$37,Indoor!BD27) -> 0 | BF27: 0.11 | BG27: 0.09 | BH27: 0.1 | BI27: =(((BF27*Database!$U$3)+(BG27*Database!$V$3)+(BH27*Database!$W$3))*BE27) -> 0 | BJ27: 0
A28: =Lists!$F$4 -> Horizontal Ducted | B28: 31.25 | C28: =COUNTIFS(Output!$E$5:$E$36,Indoor!A28,Output!$D$6:$D$37,Indoor!B28) -> 1 | D28: 0.11 | E28: 0.09 | F28: 0.1 | G28: =(((D28*Database!$U$3)+(E28*Database!$V$3)+(F28*Database!$W$3))*C28) -> 89.2325 | H28: 31.25 | I28: =COUNTIFS(Output!$G$5:$G$36,Indoor!A28,Output!$F$6:$F$37,Indoor!H28) -> 0 | J28: 0.11 | K28: 0.09 | L28: 0.1 | M28: =(((J28*Database!$U$3)+(K28*Database!$V$3)+(L28*Database!$W$3))*I28) -> 0 | N28: 31.25 | O28: =COUNTIFS(Output!$I$5:$I$36,Indoor!A28,Output!$H$6:$H$37,Indoor!N28) -> 0 | P28: 0.11 | Q28: 0.09 | R28: 0.1 | S28: =(((P28*Database!$U$3)+(Q28*Database!$V$3)+(R28*Database!$W$3))*O28) -> 0 | T28: 31.25 | U28: =COUNTIFS(Output!$K$5:$K$36,Indoor!A28,Output!$J$6:$J$37,Indoor!T28) -> 0 | V28: 0.11 | W28: 0.09 | X28: 0.1 | Y28: =(((V28*Database!$U$3)+(W28*Database!$V$3)+(X28*Database!$W$3))*U28) -> 0 | Z28: 31.25 | AA28: =COUNTIFS(Output!$M$5:$M$36,Indoor!A28,Output!$L$6:$L$37,Indoor!Z28) -> 0 | AB28: 0.11 | AC28: 0.09 | AD28: 0.1 | AE28: =(((AB28*Database!$U$3)+(AC28*Database!$V$3)+(AD28*Database!$W$3))*AA28) -> 0 | AF28: 31.25 | AG28: =COUNTIFS(Output!$O$5:$O$36,Indoor!A28,Output!$N$6:$N$37,Indoor!AF28) -> 0 | AH28: 0.11 | AI28: 0.09 | AJ28: 0.1 | AK28: =(((AH28*Database!$U$3)+(AI28*Database!$V$3)+(AJ28*Database!$W$3))*AG28) -> 0 | AL28: 31.25 | AM28: =COUNTIFS(Output!$Q$5:$Q$36,Indoor!A28,Output!$P$6:$P$37,Indoor!AL28) -> 0 | AN28: 0.11 | AO28: 0.09 | AP28: 0.1 | AQ28: =(((AN28*Database!$U$3)+(AO28*Database!$V$3)+(AP28*Database!$W$3))*AM28) -> 0 | AR28: 31.25 | AS28: =COUNTIFS(Output!$S$5:$S$36,Indoor!A28,Output!$R$6:$R$37,Indoor!AR28) -> 0 | AT28: 0.11 | AU28: 0.09 | AV28: 0.1 | AW28: =(((AT28*Database!$U$3)+(AU28*Database!$V$3)+(AV28*Database!$W$3))*AS28) -> 0 | AX28: 31.25 | AY28: =COUNTIFS(Output!$U$5:$U$36,Indoor!A28,Output!$T$6:$T$37,Indoor!AX28) -> 0 | AZ28: 0.11 | BA28: 0.09 | BB28: 0.1 | BC28: =(((AZ28*Database!$U$3)+(BA28*Database!$V$3)+(BB28*Database!$W$3))*AY28) -> 0 | BD28: 31.25 | BE28: =COUNTIFS(Output!$W$5:$W$36,Indoor!A28,Output!$V$6:$V$37,Indoor!BD28) -> 0 | BF28: 0.11 | BG28: 0.09 | BH28: 0.1 | BI28: =(((BF28*Database!$U$3)+(BG28*Database!$V$3)+(BH28*Database!$W$3))*BE28) -> 0 | BJ28: 1
A29: =Lists!$F$4 -> Horizontal Ducted | B29: 40 | C29: =COUNTIFS(Output!$E$5:$E$36,Indoor!A29,Output!$D$6:$D$37,Indoor!B29) -> 0 | D29: 0.127 | E29: 0.107 | F29: 0.117 | G29: =(((D29*Database!$U$3)+(E29*Database!$V$3)+(F29*Database!$W$3))*C29) -> 0 | H29: 40 | I29: =COUNTIFS(Output!$G$5:$G$36,Indoor!A29,Output!$F$6:$F$37,Indoor!H29) -> 0 | J29: 0.127 | K29: 0.107 | L29: 0.117 | M29: =(((J29*Database!$U$3)+(K29*Database!$V$3)+(L29*Database!$W$3))*I29) -> 0 | N29: 40 | O29: =COUNTIFS(Output!$I$5:$I$36,Indoor!A29,Output!$H$6:$H$37,Indoor!N29) -> 0 | P29: 0.127 | Q29: 0.107 | R29: 0.117 | S29: =(((P29*Database!$U$3)+(Q29*Database!$V$3)+(R29*Database!$W$3))*O29) -> 0 | T29: 40 | U29: =COUNTIFS(Output!$K$5:$K$36,Indoor!A29,Output!$J$6:$J$37,Indoor!T29) -> 0 | V29: 0.127 | W29: 0.107 | X29: 0.117 | Y29: =(((V29*Database!$U$3)+(W29*Database!$V$3)+(X29*Database!$W$3))*U29) -> 0 | Z29: 40 | AA29: =COUNTIFS(Output!$M$5:$M$36,Indoor!A29,Output!$L$6:$L$37,Indoor!Z29) -> 0 | AB29: 0.127 | AC29: 0.107 | AD29: 0.117 | AE29: =(((AB29*Database!$U$3)+(AC29*Database!$V$3)+(AD29*Database!$W$3))*AA29) -> 0 | AF29: 40 | AG29: =COUNTIFS(Output!$O$5:$O$36,Indoor!A29,Output!$N$6:$N$37,Indoor!AF29) -> 0 | AH29: 0.127 | AI29: 0.107 | AJ29: 0.117 | AK29: =(((AH29*Database!$U$3)+(AI29*Database!$V$3)+(AJ29*Database!$W$3))*AG29) -> 0 | AL29: 40 | AM29: =COUNTIFS(Output!$Q$5:$Q$36,Indoor!A29,Output!$P$6:$P$37,Indoor!AL29) -> 0 | AN29: 0.127 | AO29: 0.107 | AP29: 0.117 | AQ29: =(((AN29*Database!$U$3)+(AO29*Database!$V$3)+(AP29*Database!$W$3))*AM29) -> 0 | AR29: 40 | AS29: =COUNTIFS(Output!$S$5:$S$36,Indoor!A29,Output!$R$6:$R$37,Indoor!AR29) -> 0 | AT29: 0.127 | AU29: 0.107 | AV29: 0.117 | AW29: =(((AT29*Database!$U$3)+(AU29*Database!$V$3)+(AV29*Database!$W$3))*AS29) -> 0 | AX29: 40 | AY29: =COUNTIFS(Output!$U$5:$U$36,Indoor!A29,Output!$T$6:$T$37,Indoor!AX29) -> 0 | AZ29: 0.127 | BA29: 0.107 | BB29: 0.117 | BC29: =(((AZ29*Database!$U$3)+(BA29*Database!$V$3)+(BB29*Database!$W$3))*AY29) -> 0 | BD29: 40 | BE29: =COUNTIFS(Output!$W$5:$W$36,Indoor!A29,Output!$V$6:$V$37,Indoor!BD29) -> 0 | BF29: 0.127 | BG29: 0.107 | BH29: 0.117 | BI29: =(((BF29*Database!$U$3)+(BG29*Database!$V$3)+(BH29*Database!$W$3))*BE29) -> 0 | BJ29: 0
A30: =Lists!$F$4 -> Horizontal Ducted | B30: 50 | C30: =COUNTIFS(Output!$E$5:$E$36,Indoor!A30,Output!$D$6:$D$37,Indoor!B30) -> 0 | D30: 0.14 | E30: 0.12 | F30: 0.13 | G30: =(((D30*Database!$U$3)+(E30*Database!$V$3)+(F30*Database!$W$3))*C30) -> 0 | H30: 50 | I30: =COUNTIFS(Output!$G$5:$G$36,Indoor!A30,Output!$F$6:$F$37,Indoor!H30) -> 0 | J30: 0.14 | K30: 0.12 | L30: 0.13 | M30: =(((J30*Database!$U$3)+(K30*Database!$V$3)+(L30*Database!$W$3))*I30) -> 0 | N30: 50 | O30: =COUNTIFS(Output!$I$5:$I$36,Indoor!A30,Output!$H$6:$H$37,Indoor!N30) -> 0 | P30: 0.14 | Q30: 0.12 | R30: 0.13 | S30: =(((P30*Database!$U$3)+(Q30*Database!$V$3)+(R30*Database!$W$3))*O30) -> 0 | T30: 50 | U30: =COUNTIFS(Output!$K$5:$K$36,Indoor!A30,Output!$J$6:$J$37,Indoor!T30) -> 0 | V30: 0.14 | W30: 0.12 | X30: 0.13 | Y30: =(((V30*Database!$U$3)+(W30*Database!$V$3)+(X30*Database!$W$3))*U30) -> 0 | Z30: 50 | AA30: =COUNTIFS(Output!$M$5:$M$36,Indoor!A30,Output!$L$6:$L$37,Indoor!Z30) -> 0 | AB30: 0.14 | AC30: 0.12 | AD30: 0.13 | AE30: =(((AB30*Database!$U$3)+(AC30*Database!$V$3)+(AD30*Database!$W$3))*AA30) -> 0 | AF30: 50 | AG30: =COUNTIFS(Output!$O$5:$O$36,Indoor!A30,Output!$N$6:$N$37,Indoor!AF30) -> 0 | AH30: 0.14 | AI30: 0.12 | AJ30: 0.13 | AK30: =(((AH30*Database!$U$3)+(AI30*Database!$V$3)+(AJ30*Database!$W$3))*AG30) -> 0 | AL30: 50 | AM30: =COUNTIFS(Output!$Q$5:$Q$36,Indoor!A30,Output!$P$6:$P$37,Indoor!AL30) -> 0 | AN30: 0.14 | AO30: 0.12 | AP30: 0.13 | AQ30: =(((AN30*Database!$U$3)+(AO30*Database!$V$3)+(AP30*Database!$W$3))*AM30) -> 0 | AR30: 50 | AS30: =COUNTIFS(Output!$S$5:$S$36,Indoor!A30,Output!$R$6:$R$37,Indoor!AR30) -> 0 | AT30: 0.14 | AU30: 0.12 | AV30: 0.13 | AW30: =(((AT30*Database!$U$3)+(AU30*Database!$V$3)+(AV30*Database!$W$3))*AS30) -> 0 | AX30: 50 | AY30: =COUNTIFS(Output!$U$5:$U$36,Indoor!A30,Output!$T$6:$T$37,Indoor!AX30) -> 0 | AZ30: 0.14 | BA30: 0.12 | BB30: 0.13 | BC30: =(((AZ30*Database!$U$3)+(BA30*Database!$V$3)+(BB30*Database!$W$3))*AY30) -> 0 | BD30: 50 | BE30: =COUNTIFS(Output!$W$5:$W$36,Indoor!A30,Output!$V$6:$V$37,Indoor!BD30) -> 0 | BF30: 0.14 | BG30: 0.12 | BH30: 0.13 | BI30: =(((BF30*Database!$U$3)+(BG30*Database!$V$3)+(BH30*Database!$W$3))*BE30) -> 0 | BJ30: 0
A31: =Lists!$F$4 -> Horizontal Ducted | B31: 63 | C31: =COUNTIFS(Output!$E$5:$E$36,Indoor!A31,Output!$D$6:$D$37,Indoor!B31) -> 0 | D31: 0.184 | E31: 0.164 | F31: 0.174 | G31: =(((D31*Database!$U$3)+(E31*Database!$V$3)+(F31*Database!$W$3))*C31) -> 0 | H31: 63 | I31: =COUNTIFS(Output!$G$5:$G$36,Indoor!A31,Output!$F$6:$F$37,Indoor!H31) -> 0 | J31: 0.184 | K31: 0.164 | L31: 0.174 | M31: =(((J31*Database!$U$3)+(K31*Database!$V$3)+(L31*Database!$W$3))*I31) -> 0 | N31: 63 | O31: =COUNTIFS(Output!$I$5:$I$36,Indoor!A31,Output!$H$6:$H$37,Indoor!N31) -> 0 | P31: 0.184 | Q31: 0.164 | R31: 0.174 | S31: =(((P31*Database!$U$3)+(Q31*Database!$V$3)+(R31*Database!$W$3))*O31) -> 0 | T31: 63 | U31: =COUNTIFS(Output!$K$5:$K$36,Indoor!A31,Output!$J$6:$J$37,Indoor!T31) -> 0 | V31: 0.184 | W31: 0.164 | X31: 0.174 | Y31: =(((V31*Database!$U$3)+(W31*Database!$V$3)+(X31*Database!$W$3))*U31) -> 0 | Z31: 63 | AA31: =COUNTIFS(Output!$M$5:$M$36,Indoor!A31,Output!$L$6:$L$37,Indoor!Z31) -> 0 | AB31: 0.184 | AC31: 0.164 | AD31: 0.174 | AE31: =(((AB31*Database!$U$3)+(AC31*Database!$V$3)+(AD31*Database!$W$3))*AA31) -> 0 | AF31: 63 | AG31: =COUNTIFS(Output!$O$5:$O$36,Indoor!A31,Output!$N$6:$N$37,Indoor!AF31) -> 0 | AH31: 0.184 | AI31: 0.164 | AJ31: 0.174 | AK31: =(((AH31*Database!$U$3)+(AI31*Database!$V$3)+(AJ31*Database!$W$3))*AG31) -> 0 | AL31: 63 | AM31: =COUNTIFS(Output!$Q$5:$Q$36,Indoor!A31,Output!$P$6:$P$37,Indoor!AL31) -> 0 | AN31: 0.184 | AO31: 0.164 | AP31: 0.174 | AQ31: =(((AN31*Database!$U$3)+(AO31*Database!$V$3)+(AP31*Database!$W$3))*AM31) -> 0 | AR31: 63 | AS31: =COUNTIFS(Output!$S$5:$S$36,Indoor!A31,Output!$R$6:$R$37,Indoor!AR31) -> 0 | AT31: 0.184 | AU31: 0.164 | AV31: 0.174 | AW31: =(((AT31*Database!$U$3)+(AU31*Database!$V$3)+(AV31*Database!$W$3))*AS31) -> 0 | AX31: 63 | AY31: =COUNTIFS(Output!$U$5:$U$36,Indoor!A31,Output!$T$6:$T$37,Indoor!AX31) -> 0 | AZ31: 0.184 | BA31: 0.164 | BB31: 0.174 | BC31: =(((AZ31*Database!$U$3)+(BA31*Database!$V$3)+(BB31*Database!$W$3))*AY31) -> 0 | BD31: 63 | BE31: =COUNTIFS(Output!$W$5:$W$36,Indoor!A31,Output!$V$6:$V$37,Indoor!BD31) -> 0 | BF31: 0.184 | BG31: 0.164 | BH31: 0.174 | BI31: =(((BF31*Database!$U$3)+(BG31*Database!$V$3)+(BH31*Database!$W$3))*BE31) -> 0 | BJ31: 0
A32: =Lists!$F$4 -> Horizontal Ducted | B32: 80 | C32: =COUNTIFS(Output!$E$5:$E$36,Indoor!A32,Output!$D$6:$D$37,Indoor!B32) -> 0 | D32: 0.216 | E32: 0.196 | F32: 0.206 | G32: =(((D32*Database!$U$3)+(E32*Database!$V$3)+(F32*Database!$W$3))*C32) -> 0 | H32: 80 | I32: =COUNTIFS(Output!$G$5:$G$36,Indoor!A32,Output!$F$6:$F$37,Indoor!H32) -> 0 | J32: 0.216 | K32: 0.196 | L32: 0.206 | M32: =(((J32*Database!$U$3)+(K32*Database!$V$3)+(L32*Database!$W$3))*I32) -> 0 | N32: 80 | O32: =COUNTIFS(Output!$I$5:$I$36,Indoor!A32,Output!$H$6:$H$37,Indoor!N32) -> 0 | P32: 0.216 | Q32: 0.196 | R32: 0.206 | S32: =(((P32*Database!$U$3)+(Q32*Database!$V$3)+(R32*Database!$W$3))*O32) -> 0 | T32: 80 | U32: =COUNTIFS(Output!$K$5:$K$36,Indoor!A32,Output!$J$6:$J$37,Indoor!T32) -> 0 | V32: 0.216 | W32: 0.196 | X32: 0.206 | Y32: =(((V32*Database!$U$3)+(W32*Database!$V$3)+(X32*Database!$W$3))*U32) -> 0 | Z32: 80 | AA32: =COUNTIFS(Output!$M$5:$M$36,Indoor!A32,Output!$L$6:$L$37,Indoor!Z32) -> 0 | AB32: 0.216 | AC32: 0.196 | AD32: 0.206 | AE32: =(((AB32*Database!$U$3)+(AC32*Database!$V$3)+(AD32*Database!$W$3))*AA32) -> 0 | AF32: 80 | AG32: =COUNTIFS(Output!$O$5:$O$36,Indoor!A32,Output!$N$6:$N$37,Indoor!AF32) -> 0 | AH32: 0.216 | AI32: 0.196 | AJ32: 0.206 | AK32: =(((AH32*Database!$U$3)+(AI32*Database!$V$3)+(AJ32*Database!$W$3))*AG32) -> 0 | AL32: 80 | AM32: =COUNTIFS(Output!$Q$5:$Q$36,Indoor!A32,Output!$P$6:$P$37,Indoor!AL32) -> 0 | AN32: 0.216 | AO32: 0.196 | AP32: 0.206 | AQ32: =(((AN32*Database!$U$3)+(AO32*Database!$V$3)+(AP32*Database!$W$3))*AM32) -> 0 | AR32: 80 | AS32: =COUNTIFS(Output!$S$5:$S$36,Indoor!A32,Output!$R$6:$R$37,Indoor!AR32) -> 0 | AT32: 0.216 | AU32: 0.196 | AV32: 0.206 | AW32: =(((AT32*Database!$U$3)+(AU32*Database!$V$3)+(AV32*Database!$W$3))*AS32) -> 0 | AX32: 80 | AY32: =COUNTIFS(Output!$U$5:$U$36,Indoor!A32,Output!$T$6:$T$37,Indoor!AX32) -> 0 | AZ32: 0.216 | BA32: 0.196 | BB32: 0.206 | BC32: =(((AZ32*Database!$U$3)+(BA32*Database!$V$3)+(BB32*Database!$W$3))*AY32) -> 0 | BD32: 80 | BE32: =COUNTIFS(Output!$W$5:$W$36,Indoor!A32,Output!$V$6:$V$37,Indoor!BD32) -> 0 | BF32: 0.216 | BG32: 0.196 | BH32: 0.206 | BI32: =(((BF32*Database!$U$3)+(BG32*Database!$V$3)+(BH32*Database!$W$3))*BE32) -> 0 | BJ32: 0
A33: =Lists!$F$4 -> Horizontal Ducted | B33: 100 | C33: =COUNTIFS(Output!$E$5:$E$36,Indoor!A33,Output!$D$6:$D$37,Indoor!B33) -> 0 | D33: 0.216 | E33: 0.196 | F33: 0.206 | G33: =(((D33*Database!$U$3)+(E33*Database!$V$3)+(F33*Database!$W$3))*C33) -> 0 | H33: 100 | I33: =COUNTIFS(Output!$G$5:$G$36,Indoor!A33,Output!$F$6:$F$37,Indoor!H33) -> 0 | J33: 0.216 | K33: 0.196 | L33: 0.206 | M33: =(((J33*Database!$U$3)+(K33*Database!$V$3)+(L33*Database!$W$3))*I33) -> 0 | N33: 100 | O33: =COUNTIFS(Output!$I$5:$I$36,Indoor!A33,Output!$H$6:$H$37,Indoor!N33) -> 0 | P33: 0.216 | Q33: 0.196 | R33: 0.206 | S33: =(((P33*Database!$U$3)+(Q33*Database!$V$3)+(R33*Database!$W$3))*O33) -> 0 | T33: 100 | U33: =COUNTIFS(Output!$K$5:$K$36,Indoor!A33,Output!$J$6:$J$37,Indoor!T33) -> 0 | V33: 0.216 | W33: 0.196 | X33: 0.206 | Y33: =(((V33*Database!$U$3)+(W33*Database!$V$3)+(X33*Database!$W$3))*U33) -> 0 | Z33: 100 | AA33: =COUNTIFS(Output!$M$5:$M$36,Indoor!A33,Output!$L$6:$L$37,Indoor!Z33) -> 0 | AB33: 0.216 | AC33: 0.196 | AD33: 0.206 | AE33: =(((AB33*Database!$U$3)+(AC33*Database!$V$3)+(AD33*Database!$W$3))*AA33) -> 0 | AF33: 100 | AG33: =COUNTIFS(Output!$O$5:$O$36,Indoor!A33,Output!$N$6:$N$37,Indoor!AF33) -> 0 | AH33: 0.216 | AI33: 0.196 | AJ33: 0.206 | AK33: =(((AH33*Database!$U$3)+(AI33*Database!$V$3)+(AJ33*Database!$W$3))*AG33) -> 0 | AL33: 100 | AM33: =COUNTIFS(Output!$Q$5:$Q$36,Indoor!A33,Output!$P$6:$P$37,Indoor!AL33) -> 0 | AN33: 0.216 | AO33: 0.196 | AP33: 0.206 | AQ33: =(((AN33*Database!$U$3)+(AO33*Database!$V$3)+(AP33*Database!$W$3))*AM33) -> 0 | AR33: 100 | AS33: =COUNTIFS(Output!$S$5:$S$36,Indoor!A33,Output!$R$6:$R$37,Indoor!AR33) -> 0 | AT33: 0.216 | AU33: 0.196 | AV33: 0.206 | AW33: =(((AT33*Database!$U$3)+(AU33*Database!$V$3)+(AV33*Database!$W$3))*AS33) -> 0 | AX33: 100 | AY33: =COUNTIFS(Output!$U$5:$U$36,Indoor!A33,Output!$T$6:$T$37,Indoor!AX33) -> 0 | AZ33: 0.216 | BA33: 0.196 | BB33: 0.206 | BC33: =(((AZ33*Database!$U$3)+(BA33*Database!$V$3)+(BB33*Database!$W$3))*AY33) -> 0 | BD33: 100 | BE33: =COUNTIFS(Output!$W$5:$W$36,Indoor!A33,Output!$V$6:$V$37,Indoor!BD33) -> 0 | BF33: 0.216 | BG33: 0.196 | BH33: 0.206 | BI33: =(((BF33*Database!$U$3)+(BG33*Database!$V$3)+(BH33*Database!$W$3))*BE33) -> 0 | BJ33: 0
A34: =Lists!$F$4 -> Horizontal Ducted | B34: 125 | C34: =COUNTIFS(Output!$E$5:$E$36,Indoor!A34,Output!$D$6:$D$37,Indoor!B34) -> 0 | D34: 0.29 | E34: 0.27 | F34: 0.28 | G34: =(((D34*Database!$U$3)+(E34*Database!$V$3)+(F34*Database!$W$3))*C34) -> 0 | H34: 125 | I34: =COUNTIFS(Output!$G$5:$G$36,Indoor!A34,Output!$F$6:$F$37,Indoor!H34) -> 0 | J34: 0.29 | K34: 0.27 | L34: 0.28 | M34: =(((J34*Database!$U$3)+(K34*Database!$V$3)+(L34*Database!$W$3))*I34) -> 0 | N34: 125 | O34: =COUNTIFS(Output!$I$5:$I$36,Indoor!A34,Output!$H$6:$H$37,Indoor!N34) -> 0 | P34: 0.29 | Q34: 0.27 | R34: 0.28 | S34: =(((P34*Database!$U$3)+(Q34*Database!$V$3)+(R34*Database!$W$3))*O34) -> 0 | T34: 125 | U34: =COUNTIFS(Output!$K$5:$K$36,Indoor!A34,Output!$J$6:$J$37,Indoor!T34) -> 0 | V34: 0.29 | W34: 0.27 | X34: 0.28 | Y34: =(((V34*Database!$U$3)+(W34*Database!$V$3)+(X34*Database!$W$3))*U34) -> 0 | Z34: 125 | AA34: =COUNTIFS(Output!$M$5:$M$36,Indoor!A34,Output!$L$6:$L$37,Indoor!Z34) -> 0 | AB34: 0.29 | AC34: 0.27 | AD34: 0.28 | AE34: =(((AB34*Database!$U$3)+(AC34*Database!$V$3)+(AD34*Database!$W$3))*AA34) -> 0 | AF34: 125 | AG34: =COUNTIFS(Output!$O$5:$O$36,Indoor!A34,Output!$N$6:$N$37,Indoor!AF34) -> 0 | AH34: 0.29 | AI34: 0.27 | AJ34: 0.28 | AK34: =(((AH34*Database!$U$3)+(AI34*Database!$V$3)+(AJ34*Database!$W$3))*AG34) -> 0 | AL34: 125 | AM34: =COUNTIFS(Output!$Q$5:$Q$36,Indoor!A34,Output!$P$6:$P$37,Indoor!AL34) -> 0 | AN34: 0.29 | AO34: 0.27 | AP34: 0.28 | AQ34: =(((AN34*Database!$U$3)+(AO34*Database!$V$3)+(AP34*Database!$W$3))*AM34) -> 0 | AR34: 125 | AS34: =COUNTIFS(Output!$S$5:$S$36,Indoor!A34,Output!$R$6:$R$37,Indoor!AR34) -> 0 | AT34: 0.29 | AU34: 0.27 | AV34: 0.28 | AW34: =(((AT34*Database!$U$3)+(AU34*Database!$V$3)+(AV34*Database!$W$3))*AS34) -> 0 | AX34: 125 | AY34: =COUNTIFS(Output!$U$5:$U$36,Indoor!A34,Output!$T$6:$T$37,Indoor!AX34) -> 0 | AZ34: 0.29 | BA34: 0.27 | BB34: 0.28 | BC34: =(((AZ34*Database!$U$3)+(BA34*Database!$V$3)+(BB34*Database!$W$3))*AY34) -> 0 | BD34: 125 | BE34: =COUNTIFS(Output!$W$5:$W$36,Indoor!A34,Output!$V$6:$V$37,Indoor!BD34) -> 0 | BF34: 0.29 | BG34: 0.27 | BH34: 0.28 | BI34: =(((BF34*Database!$U$3)+(BG34*Database!$V$3)+(BH34*Database!$W$3))*BE34) -> 0 | BJ34: 0
A35: =Lists!$F$4 -> Horizontal Ducted | B35: 200 | C35: =COUNTIFS(Output!$E$5:$E$36,Indoor!A35,Output!$D$6:$D$37,Indoor!B35) -> 0 | F35: 0 | G35: =(((D35*Database!$U$3)+(E35*Database!$V$3)+(F35*Database!$W$3))*C35) -> 0 | H35: 200 | I35: =COUNTIFS(Output!$G$5:$G$36,Indoor!A35,Output!$F$6:$F$37,Indoor!H35) -> 0 | J35: 0 | K35: 0 | L35: 0 | M35: =(((J35*Database!$U$3)+(K35*Database!$V$3)+(L35*Database!$W$3))*I35) -> 0 | N35: 200 | O35: =COUNTIFS(Output!$I$5:$I$36,Indoor!A35,Output!$H$6:$H$37,Indoor!N35) -> 0 | P35: 0 | Q35: 0 | R35: 0 | S35: =(((P35*Database!$U$3)+(Q35*Database!$V$3)+(R35*Database!$W$3))*O35) -> 0 | T35: 200 | U35: =COUNTIFS(Output!$K$5:$K$36,Indoor!A35,Output!$J$6:$J$37,Indoor!T35) -> 0 | V35: 0 | W35: 0 | X35: 0 | Y35: =(((V35*Database!$U$3)+(W35*Database!$V$3)+(X35*Database!$W$3))*U35) -> 0 | Z35: 200 | AA35: =COUNTIFS(Output!$M$5:$M$36,Indoor!A35,Output!$L$6:$L$37,Indoor!Z35) -> 0 | AB35: 0 | AC35: 0 | AD35: 0 | AE35: =(((AB35*Database!$U$3)+(AC35*Database!$V$3)+(AD35*Database!$W$3))*AA35) -> 0 | AF35: 200 | AG35: =COUNTIFS(Output!$O$5:$O$36,Indoor!A35,Output!$N$6:$N$37,Indoor!AF35) -> 0 | AH35: 0 | AI35: 0 | AJ35: 0 | AK35: =(((AH35*Database!$U$3)+(AI35*Database!$V$3)+(AJ35*Database!$W$3))*AG35) -> 0 | AL35: 200 | AM35: =COUNTIFS(Output!$Q$5:$Q$36,Indoor!A35,Output!$P$6:$P$37,Indoor!AL35) -> 0 | AN35: 0 | AO35: 0 | AP35: 0 | AQ35: =(((AN35*Database!$U$3)+(AO35*Database!$V$3)+(AP35*Database!$W$3))*AM35) -> 0 | AR35: 200 | AS35: =COUNTIFS(Output!$S$5:$S$36,Indoor!A35,Output!$R$6:$R$37,Indoor!AR35) -> 0 | AT35: 0 | AU35: 0 | AV35: 0 | AW35: =(((AT35*Database!$U$3)+(AU35*Database!$V$3)+(AV35*Database!$W$3))*AS35) -> 0 | AX35: 200 | AY35: =COUNTIFS(Output!$U$5:$U$36,Indoor!A35,Output!$T$6:$T$37,Indoor!AX35) -> 0 | AZ35: 0 | BA35: 0 | BB35: 0 | BC35: =(((AZ35*Database!$U$3)+(BA35*Database!$V$3)+(BB35*Database!$W$3))*AY35) -> 0 | BD35: 200 | BE35: =COUNTIFS(Output!$W$5:$W$36,Indoor!A35,Output!$V$6:$V$37,Indoor!BD35) -> 0 | BF35: 0 | BG35: 0 | BH35: 0 | BI35: =(((BF35*Database!$U$3)+(BG35*Database!$V$3)+(BH35*Database!$W$3))*BE35) -> 0 | BJ35: 0
A36: =Lists!$F$4 -> Horizontal Ducted | B36: 250 | C36: =COUNTIFS(Output!$E$5:$E$36,Indoor!A36,Output!$D$6:$D$37,Indoor!B36) -> 0 | F36: 0 | G36: =(((D36*Database!$U$3)+(E36*Database!$V$3)+(F36*Database!$W$3))*C36) -> 0 | H36: 250 | I36: =COUNTIFS(Output!$G$5:$G$36,Indoor!A36,Output!$F$6:$F$37,Indoor!H36) -> 0 | J36: 0 | K36: 0 | L36: 0 | M36: =(((J36*Database!$U$3)+(K36*Database!$V$3)+(L36*Database!$W$3))*I36) -> 0 | N36: 250 | O36: =COUNTIFS(Output!$I$5:$I$36,Indoor!A36,Output!$H$6:$H$37,Indoor!N36) -> 0 | P36: 0 | Q36: 0 | R36: 0 | S36: =(((P36*Database!$U$3)+(Q36*Database!$V$3)+(R36*Database!$W$3))*O36) -> 0 | T36: 250 | U36: =COUNTIFS(Output!$K$5:$K$36,Indoor!A36,Output!$J$6:$J$37,Indoor!T36) -> 0 | V36: 0 | W36: 0 | X36: 0 | Y36: =(((V36*Database!$U$3)+(W36*Database!$V$3)+(X36*Database!$W$3))*U36) -> 0 | Z36: 250 | AA36: =COUNTIFS(Output!$M$5:$M$36,Indoor!A36,Output!$L$6:$L$37,Indoor!Z36) -> 0 | AB36: 0 | AC36: 0 | AD36: 0 | AE36: =(((AB36*Database!$U$3)+(AC36*Database!$V$3)+(AD36*Database!$W$3))*AA36) -> 0 | AF36: 250 | AG36: =COUNTIFS(Output!$O$5:$O$36,Indoor!A36,Output!$N$6:$N$37,Indoor!AF36) -> 0 | AH36: 0 | AI36: 0 | AJ36: 0 | AK36: =(((AH36*Database!$U$3)+(AI36*Database!$V$3)+(AJ36*Database!$W$3))*AG36) -> 0 | AL36: 250 | AM36: =COUNTIFS(Output!$Q$5:$Q$36,Indoor!A36,Output!$P$6:$P$37,Indoor!AL36) -> 0 | AN36: 0 | AO36: 0 | AP36: 0 | AQ36: =(((AN36*Database!$U$3)+(AO36*Database!$V$3)+(AP36*Database!$W$3))*AM36) -> 0 | AR36: 250 | AS36: =COUNTIFS(Output!$S$5:$S$36,Indoor!A36,Output!$R$6:$R$37,Indoor!AR36) -> 0 | AT36: 0 | AU36: 0 | AV36: 0 | AW36: =(((AT36*Database!$U$3)+(AU36*Database!$V$3)+(AV36*Database!$W$3))*AS36) -> 0 | AX36: 250 | AY36: =COUNTIFS(Output!$U$5:$U$36,Indoor!A36,Output!$T$6:$T$37,Indoor!AX36) -> 0 | AZ36: 0 | BA36: 0 | BB36: 0 | BC36: =(((AZ36*Database!$U$3)+(BA36*Database!$V$3)+(BB36*Database!$W$3))*AY36) -> 0 | BD36: 250 | BE36: =COUNTIFS(Output!$W$5:$W$36,Indoor!A36,Output!$V$6:$V$37,Indoor!BD36) -> 0 | BF36: 0 | BG36: 0 | BH36: 0 | BI36: =(((BF36*Database!$U$3)+(BG36*Database!$V$3)+(BH36*Database!$W$3))*BE36) -> 0 | BJ36: 0
C37: =SUM(C26:C36) -> 1 | I37: =SUM(I26:I36) -> 0 | O37: =SUM(O26:O36) -> 0 | U37: =SUM(U26:U36) -> 0 | AA37: =SUM(AA26:AA36) -> 0 | AG37: =SUM(AG26:AG36) -> 0 | AM37: =SUM(AM26:AM36) -> 0 | AS37: =SUM(AS26:AS36) -> 0 | AY37: =SUM(AY26:AY36) -> 0 | BE37: =SUM(BE26:BE36) -> 0
A38: =Lists!$F$5 -> Ceiling Suspended | B38: 20 | C38: =COUNTIFS(Output!$E$5:$E$36,Indoor!A38,Output!$D$6:$D$37,Indoor!B38) -> 0 | F38: 0 | G38: =(((D38*Database!$U$3)+(E38*Database!$V$3)+(F38*Database!$W$3))*C38) -> 0 | H38: 20 | I38: =COUNTIFS(Output!$G$5:$G$36,Indoor!A38,Output!$F$6:$F$37,Indoor!H38) -> 0 | J38: 0 | K38: 0 | L38: 0 | M38: =(((J38*Database!$U$3)+(K38*Database!$V$3)+(L38*Database!$W$3))*I38) -> 0 | N38: 20 | O38: =COUNTIFS(Output!$I$5:$I$36,Indoor!A38,Output!$H$6:$H$37,Indoor!N38) -> 0 | P38: 0 | Q38: 0 | R38: 0 | S38: =(((P38*Database!$U$3)+(Q38*Database!$V$3)+(R38*Database!$W$3))*O38) -> 0 | T38: 20 | U38: =COUNTIFS(Output!$K$5:$K$36,Indoor!A38,Output!$J$6:$J$37,Indoor!T38) -> 0 | V38: 0 | W38: 0 | X38: 0 | Y38: =(((V38*Database!$U$3)+(W38*Database!$V$3)+(X38*Database!$W$3))*U38) -> 0 | Z38: 20 | AA38: =COUNTIFS(Output!$M$5:$M$36,Indoor!A38,Output!$L$6:$L$37,Indoor!Z38) -> 0 | AB38: 0 | AC38: 0 | AD38: 0 | AE38: =(((AB38*Database!$U$3)+(AC38*Database!$V$3)+(AD38*Database!$W$3))*AA38) -> 0 | AF38: 20 | AG38: =COUNTIFS(Output!$O$5:$O$36,Indoor!A38,Output!$N$6:$N$37,Indoor!AF38) -> 0 | AH38: 0 | AI38: 0 | AJ38: 0 | AK38: =(((AH38*Database!$U$3)+(AI38*Database!$V$3)+(AJ38*Database!$W$3))*AG38) -> 0 | AL38: 20 | AM38: =COUNTIFS(Output!$Q$5:$Q$36,Indoor!A38,Output!$P$6:$P$37,Indoor!AL38) -> 0 | AN38: 0 | AO38: 0 | AP38: 0 | AQ38: =(((AN38*Database!$U$3)+(AO38*Database!$V$3)+(AP38*Database!$W$3))*AM38) -> 0 | AR38: 20 | AS38: =COUNTIFS(Output!$S$5:$S$36,Indoor!A38,Output!$R$6:$R$37,Indoor!AR38) -> 0 | AT38: 0 | AU38: 0 | AV38: 0 | AW38: =(((AT38*Database!$U$3)+(AU38*Database!$V$3)+(AV38*Database!$W$3))*AS38) -> 0 | AX38: 20 | AY38: =COUNTIFS(Output!$U$5:$U$36,Indoor!A38,Output!$T$6:$T$37,Indoor!AX38) -> 0 | AZ38: 0 | BA38: 0 | BB38: 0 | BC38: =(((AZ38*Database!$U$3)+(BA38*Database!$V$3)+(BB38*Database!$W$3))*AY38) -> 0 | BD38: 20 | BE38: =COUNTIFS(Output!$W$5:$W$36,Indoor!A38,Output!$V$6:$V$37,Indoor!BD38) -> 0 | BF38: 0 | BG38: 0 | BH38: 0 | BI38: =(((BF38*Database!$U$3)+(BG38*Database!$V$3)+(BH38*Database!$W$3))*BE38) -> 0 | BJ38: =SUM(BE38+AY38+AS38+AM38+AG38+AA38+U38+O38+I38+C38) -> 0
A39: =Lists!$F$5 -> Ceiling Suspended | B39: 25 | C39: =COUNTIFS(Output!$E$5:$E$36,Indoor!A39,Output!$D$6:$D$37,Indoor!B39) -> 0 | F39: 0 | G39: =(((D39*Database!$U$3)+(E39*Database!$V$3)+(F39*Database!$W$3))*C39) -> 0 | H39: 25 | I39: =COUNTIFS(Output!$G$5:$G$36,Indoor!A39,Output!$F$6:$F$37,Indoor!H39) -> 0 | J39: 0 | K39: 0 | L39: 0 | M39: =(((J39*Database!$U$3)+(K39*Database!$V$3)+(L39*Database!$W$3))*I39) -> 0 | N39: 25 | O39: =COUNTIFS(Output!$I$5:$I$36,Indoor!A39,Output!$H$6:$H$37,Indoor!N39) -> 0 | P39: 0 | Q39: 0 | R39: 0 | S39: =(((P39*Database!$U$3)+(Q39*Database!$V$3)+(R39*Database!$W$3))*O39) -> 0 | T39: 25 | U39: =COUNTIFS(Output!$K$5:$K$36,Indoor!A39,Output!$J$6:$J$37,Indoor!T39) -> 0 | V39: 0 | W39: 0 | X39: 0 | Y39: =(((V39*Database!$U$3)+(W39*Database!$V$3)+(X39*Database!$W$3))*U39) -> 0 | Z39: 25 | AA39: =COUNTIFS(Output!$M$5:$M$36,Indoor!A39,Output!$L$6:$L$37,Indoor!Z39) -> 0 | AB39: 0 | AC39: 0 | AD39: 0 | AE39: =(((AB39*Database!$U$3)+(AC39*Database!$V$3)+(AD39*Database!$W$3))*AA39) -> 0 | AF39: 25 | AG39: =COUNTIFS(Output!$O$5:$O$36,Indoor!A39,Output!$N$6:$N$37,Indoor!AF39) -> 0 | AH39: 0 | AI39: 0 | AJ39: 0 | AK39: =(((AH39*Database!$U$3)+(AI39*Database!$V$3)+(AJ39*Database!$W$3))*AG39) -> 0 | AL39: 25 | AM39: =COUNTIFS(Output!$Q$5:$Q$36,Indoor!A39,Output!$P$6:$P$37,Indoor!AL39) -> 0 | AN39: 0 | AO39: 0 | AP39: 0 | AQ39: =(((AN39*Database!$U$3)+(AO39*Database!$V$3)+(AP39*Database!$W$3))*AM39) -> 0 | AR39: 25 | AS39: =COUNTIFS(Output!$S$5:$S$36,Indoor!A39,Output!$R$6:$R$37,Indoor!AR39) -> 0 | AT39: 0 | AU39: 0 | AV39: 0 | AW39: =(((AT39*Database!$U$3)+(AU39*Database!$V$3)+(AV39*Database!$W$3))*AS39) -> 0 | AX39: 25 | AY39: =COUNTIFS(Output!$U$5:$U$36,Indoor!A39,Output!$T$6:$T$37,Indoor!AX39) -> 0 | AZ39: 0 | BA39: 0 | BB39: 0 | BC39: =(((AZ39*Database!$U$3)+(BA39*Database!$V$3)+(BB39*Database!$W$3))*AY39) -> 0 | BD39: 25 | BE39: =COUNTIFS(Output!$W$5:$W$36,Indoor!A39,Output!$V$6:$V$37,Indoor!BD39) -> 0 | BF39: 0 | BG39: 0 | BH39: 0 | BI39: =(((BF39*Database!$U$3)+(BG39*Database!$V$3)+(BH39*Database!$W$3))*BE39) -> 0 | BJ39: 0
A40: =Lists!$F$5 -> Ceiling Suspended | B40: 31.25 | C40: =COUNTIFS(Output!$E$5:$E$36,Indoor!A40,Output!$D$6:$D$37,Indoor!B40) -> 0 | D40: 0.101 | E40: 0.101 | F40: 0.101 | G40: =(((D40*Database!$U$3)+(E40*Database!$V$3)+(F40*Database!$W$3))*C40) -> 0 | H40: 31.25 | I40: =COUNTIFS(Output!$G$5:$G$36,Indoor!A40,Output!$F$6:$F$37,Indoor!H40) -> 0 | J40: 0.101 | K40: 0.101 | L40: 0.101 | M40: =(((J40*Database!$U$3)+(K40*Database!$V$3)+(L40*Database!$W$3))*I40) -> 0 | N40: 31.25 | O40: =COUNTIFS(Output!$I$5:$I$36,Indoor!A40,Output!$H$6:$H$37,Indoor!N40) -> 0 | P40: 0.101 | Q40: 0.101 | R40: 0.101 | S40: =(((P40*Database!$U$3)+(Q40*Database!$V$3)+(R40*Database!$W$3))*O40) -> 0 | T40: 31.25 | U40: =COUNTIFS(Output!$K$5:$K$36,Indoor!A40,Output!$J$6:$J$37,Indoor!T40) -> 0 | V40: 0.101 | W40: 0.101 | X40: 0.101 | Y40: =(((V40*Database!$U$3)+(W40*Database!$V$3)+(X40*Database!$W$3))*U40) -> 0 | Z40: 31.25 | AA40: =COUNTIFS(Output!$M$5:$M$36,Indoor!A40,Output!$L$6:$L$37,Indoor!Z40) -> 0 | AB40: 0.101 | AC40: 0.101 | AD40: 0.101 | AE40: =(((AB40*Database!$U$3)+(AC40*Database!$V$3)+(AD40*Database!$W$3))*AA40) -> 0 | AF40: 31.25 | AG40: =COUNTIFS(Output!$O$5:$O$36,Indoor!A40,Output!$N$6:$N$37,Indoor!AF40) -> 0 | AH40: 0.101 | AI40: 0.101 | AJ40: 0.101 | AK40: =(((AH40*Database!$U$3)+(AI40*Database!$V$3)+(AJ40*Database!$W$3))*AG40) -> 0 | AL40: 31.25 | AM40: =COUNTIFS(Output!$Q$5:$Q$36,Indoor!A40,Output!$P$6:$P$37,Indoor!AL40) -> 0 | AN40: 0.101 | AO40: 0.101 | AP40: 0.101 | AQ40: =(((AN40*Database!$U$3)+(AO40*Database!$V$3)+(AP40*Database!$W$3))*AM40) -> 0 | AR40: 31.25 | AS40: =COUNTIFS(Output!$S$5:$S$36,Indoor!A40,Output!$R$6:$R$37,Indoor!AR40) -> 0 | AT40: 0.101 | AU40: 0.101 | AV40: 0.101 | AW40: =(((AT40*Database!$U$3)+(AU40*Database!$V$3)+(AV40*Database!$W$3))*AS40) -> 0 | AX40: 31.25 | AY40: =COUNTIFS(Output!$U$5:$U$36,Indoor!A40,Output!$T$6:$T$37,Indoor!AX40) -> 0 | AZ40: 0.101 | BA40: 0.101 | BB40: 0.101 | BC40: =(((AZ40*Database!$U$3)+(BA40*Database!$V$3)+(BB40*Database!$W$3))*AY40) -> 0 | BD40: 31.25 | BE40: =COUNTIFS(Output!$W$5:$W$36,Indoor!A40,Output!$V$6:$V$37,Indoor!BD40) -> 0 | BF40: 0.101 | BG40: 0.101 | BH40: 0.101 | BI40: =(((BF40*Database!$U$3)+(BG40*Database!$V$3)+(BH40*Database!$W$3))*BE40) -> 0 | BJ40: 0
A41: =Lists!$F$5 -> Ceiling Suspended | B41: 40 | C41: =COUNTIFS(Output!$E$5:$E$36,Indoor!A41,Output!$D$6:$D$37,Indoor!B41) -> 0 | F41: 0 | G41: =(((D41*Database!$U$3)+(E41*Database!$V$3)+(F41*Database!$W$3))*C41) -> 0 | H41: 40 | I41: =COUNTIFS(Output!$G$5:$G$36,Indoor!A41,Output!$F$6:$F$37,Indoor!H41) -> 0 | J41: 0 | K41: 0 | L41: 0 | M41: =(((J41*Database!$U$3)+(K41*Database!$V$3)+(L41*Database!$W$3))*I41) -> 0 | N41: 40 | O41: =COUNTIFS(Output!$I$5:$I$36,Indoor!A41,Output!$H$6:$H$37,Indoor!N41) -> 0 | P41: 0 | Q41: 0 | R41: 0 | S41: =(((P41*Database!$U$3)+(Q41*Database!$V$3)+(R41*Database!$W$3))*O41) -> 0 | T41: 40 | U41: =COUNTIFS(Output!$K$5:$K$36,Indoor!A41,Output!$J$6:$J$37,Indoor!T41) -> 0 | V41: 0 | W41: 0 | X41: 0 | Y41: =(((V41*Database!$U$3)+(W41*Database!$V$3)+(X41*Database!$W$3))*U41) -> 0 | Z41: 40 | AA41: =COUNTIFS(Output!$M$5:$M$36,Indoor!A41,Output!$L$6:$L$37,Indoor!Z41) -> 0 | AB41: 0 | AC41: 0 | AD41: 0 | AE41: =(((AB41*Database!$U$3)+(AC41*Database!$V$3)+(AD41*Database!$W$3))*AA41) -> 0 | AF41: 40 | AG41: =COUNTIFS(Output!$O$5:$O$36,Indoor!A41,Output!$N$6:$N$37,Indoor!AF41) -> 0 | AH41: 0 | AI41: 0 | AJ41: 0 | AK41: =(((AH41*Database!$U$3)+(AI41*Database!$V$3)+(AJ41*Database!$W$3))*AG41) -> 0 | AL41: 40 | AM41: =COUNTIFS(Output!$Q$5:$Q$36,Indoor!A41,Output!$P$6:$P$37,Indoor!AL41) -> 0 | AN41: 0 | AO41: 0 | AP41: 0 | AQ41: =(((AN41*Database!$U$3)+(AO41*Database!$V$3)+(AP41*Database!$W$3))*AM41) -> 0 | AR41: 40 | AS41: =COUNTIFS(Output!$S$5:$S$36,Indoor!A41,Output!$R$6:$R$37,Indoor!AR41) -> 0 | AT41: 0 | AU41: 0 | AV41: 0 | AW41: =(((AT41*Database!$U$3)+(AU41*Database!$V$3)+(AV41*Database!$W$3))*AS41) -> 0 | AX41: 40 | AY41: =COUNTIFS(Output!$U$5:$U$36,Indoor!A41,Output!$T$6:$T$37,Indoor!AX41) -> 0 | AZ41: 0 | BA41: 0 | BB41: 0 | BC41: =(((AZ41*Database!$U$3)+(BA41*Database!$V$3)+(BB41*Database!$W$3))*AY41) -> 0 | BD41: 40 | BE41: =COUNTIFS(Output!$W$5:$W$36,Indoor!A41,Output!$V$6:$V$37,Indoor!BD41) -> 0 | BF41: 0 | BG41: 0 | BH41: 0 | BI41: =(((BF41*Database!$U$3)+(BG41*Database!$V$3)+(BH41*Database!$W$3))*BE41) -> 0 | BJ41: 0
A42: =Lists!$F$5 -> Ceiling Suspended | B42: 50 | C42: =COUNTIFS(Output!$E$5:$E$36,Indoor!A42,Output!$D$6:$D$37,Indoor!B42) -> 0 | F42: 0 | G42: =(((D42*Database!$U$3)+(E42*Database!$V$3)+(F42*Database!$W$3))*C42) -> 0 | H42: 50 | I42: =COUNTIFS(Output!$G$5:$G$36,Indoor!A42,Output!$F$6:$F$37,Indoor!H42) -> 0 | J42: 0 | K42: 0 | L42: 0 | M42: =(((J42*Database!$U$3)+(K42*Database!$V$3)+(L42*Database!$W$3))*I42) -> 0 | N42: 50 | O42: =COUNTIFS(Output!$I$5:$I$36,Indoor!A42,Output!$H$6:$H$37,Indoor!N42) -> 0 | P42: 0 | Q42: 0 | R42: 0 | S42: =(((P42*Database!$U$3)+(Q42*Database!$V$3)+(R42*Database!$W$3))*O42) -> 0 | T42: 50 | U42: =COUNTIFS(Output!$K$5:$K$36,Indoor!A42,Output!$J$6:$J$37,Indoor!T42) -> 0 | V42: 0 | W42: 0 | X42: 0 | Y42: =(((V42*Database!$U$3)+(W42*Database!$V$3)+(X42*Database!$W$3))*U42) -> 0 | Z42: 50 | AA42: =COUNTIFS(Output!$M$5:$M$36,Indoor!A42,Output!$L$6:$L$37,Indoor!Z42) -> 0 | AB42: 0 | AC42: 0 | AD42: 0 | AE42: =(((AB42*Database!$U$3)+(AC42*Database!$V$3)+(AD42*Database!$W$3))*AA42) -> 0 | AF42: 50 | AG42: =COUNTIFS(Output!$O$5:$O$36,Indoor!A42,Output!$N$6:$N$37,Indoor!AF42) -> 0 | AH42: 0 | AI42: 0 | AJ42: 0 | AK42: =(((AH42*Database!$U$3)+(AI42*Database!$V$3)+(AJ42*Database!$W$3))*AG42) -> 0 | AL42: 50 | AM42: =COUNTIFS(Output!$Q$5:$Q$36,Indoor!A42,Output!$P$6:$P$37,Indoor!AL42) -> 0 | AN42: 0 | AO42: 0 | AP42: 0 | AQ42: =(((AN42*Database!$U$3)+(AO42*Database!$V$3)+(AP42*Database!$W$3))*AM42) -> 0 | AR42: 50 | AS42: =COUNTIFS(Output!$S$5:$S$36,Indoor!A42,Output!$R$6:$R$37,Indoor!AR42) -> 0 | AT42: 0 | AU42: 0 | AV42: 0 | AW42: =(((AT42*Database!$U$3)+(AU42*Database!$V$3)+(AV42*Database!$W$3))*AS42) -> 0 | AX42: 50 | AY42: =COUNTIFS(Output!$U$5:$U$36,Indoor!A42,Output!$T$6:$T$37,Indoor!AX42) -> 0 | AZ42: 0 | BA42: 0 | BB42: 0 | BC42: =(((AZ42*Database!$U$3)+(BA42*Database!$V$3)+(BB42*Database!$W$3))*AY42) -> 0 | BD42: 50 | BE42: =COUNTIFS(Output!$W$5:$W$36,Indoor!A42,Output!$V$6:$V$37,Indoor!BD42) -> 0 | BF42: 0 | BG42: 0 | BH42: 0 | BI42: =(((BF42*Database!$U$3)+(BG42*Database!$V$3)+(BH42*Database!$W$3))*BE42) -> 0 | BJ42: 0
A43: =Lists!$F$5 -> Ceiling Suspended | B43: 63 | C43: =COUNTIFS(Output!$E$5:$E$36,Indoor!A43,Output!$D$6:$D$37,Indoor!B43) -> 1 | D43: 0.114 | E43: 0.114 | F43: 0.114 | G43: =(((D43*Database!$U$3)+(E43*Database!$V$3)+(F43*Database!$W$3))*C43) -> 102.543 | H43: 63 | I43: =COUNTIFS(Output!$G$5:$G$36,Indoor!A43,Output!$F$6:$F$37,Indoor!H43) -> 0 | J43: 0.114 | K43: 0.114 | L43: 0.114 | M43: =(((J43*Database!$U$3)+(K43*Database!$V$3)+(L43*Database!$W$3))*I43) -> 0 | N43: 63 | O43: =COUNTIFS(Output!$I$5:$I$36,Indoor!A43,Output!$H$6:$H$37,Indoor!N43) -> 0 | P43: 0.114 | Q43: 0.114 | R43: 0.114 | S43: =(((P43*Database!$U$3)+(Q43*Database!$V$3)+(R43*Database!$W$3))*O43) -> 0 | T43: 63 | U43: =COUNTIFS(Output!$K$5:$K$36,Indoor!A43,Output!$J$6:$J$37,Indoor!T43) -> 0 | V43: 0.114 | W43: 0.114 | X43: 0.114 | Y43: =(((V43*Database!$U$3)+(W43*Database!$V$3)+(X43*Database!$W$3))*U43) -> 0 | Z43: 63 | AA43: =COUNTIFS(Output!$M$5:$M$36,Indoor!A43,Output!$L$6:$L$37,Indoor!Z43) -> 0 | AB43: 0.114 | AC43: 0.114 | AD43: 0.114 | AE43: =(((AB43*Database!$U$3)+(AC43*Database!$V$3)+(AD43*Database!$W$3))*AA43) -> 0 | AF43: 63 | AG43: =COUNTIFS(Output!$O$5:$O$36,Indoor!A43,Output!$N$6:$N$37,Indoor!AF43) -> 0 | AH43: 0.114 | AI43: 0.114 | AJ43: 0.114 | AK43: =(((AH43*Database!$U$3)+(AI43*Database!$V$3)+(AJ43*Database!$W$3))*AG43) -> 0 | AL43: 63 | AM43: =COUNTIFS(Output!$Q$5:$Q$36,Indoor!A43,Output!$P$6:$P$37,Indoor!AL43) -> 0 | AN43: 0.114 | AO43: 0.114 | AP43: 0.114 | AQ43: =(((AN43*Database!$U$3)+(AO43*Database!$V$3)+(AP43*Database!$W$3))*AM43) -> 0 | AR43: 63 | AS43: =COUNTIFS(Output!$S$5:$S$36,Indoor!A43,Output!$R$6:$R$37,Indoor!AR43) -> 0 | AT43: 0.114 | AU43: 0.114 | AV43: 0.114 | AW43: =(((AT43*Database!$U$3)+(AU43*Database!$V$3)+(AV43*Database!$W$3))*AS43) -> 0 | AX43: 63 | AY43: =COUNTIFS(Output!$U$5:$U$36,Indoor!A43,Output!$T$6:$T$37,Indoor!AX43) -> 0 | AZ43: 0.114 | BA43: 0.114 | BB43: 0.114 | BC43: =(((AZ43*Database!$U$3)+(BA43*Database!$V$3)+(BB43*Database!$W$3))*AY43) -> 0 | BD43: 63 | BE43: =COUNTIFS(Output!$W$5:$W$36,Indoor!A43,Output!$V$6:$V$37,Indoor!BD43) -> 0 | BF43: 0.114 | BG43: 0.114 | BH43: 0.114 | BI43: =(((BF43*Database!$U$3)+(BG43*Database!$V$3)+(BH43*Database!$W$3))*BE43) -> 0 | BJ43: 1
A44: =Lists!$F$5 -> Ceiling Suspended | B44: 80 | C44: =COUNTIFS(Output!$E$5:$E$36,Indoor!A44,Output!$D$6:$D$37,Indoor!B44) -> 0 | F44: 0 | G44: =(((D44*Database!$U$3)+(E44*Database!$V$3)+(F44*Database!$W$3))*C44) -> 0 | H44: 80 | I44: =COUNTIFS(Output!$G$5:$G$36,Indoor!A44,Output!$F$6:$F$37,Indoor!H44) -> 0 | J44: 0 | K44: 0 | L44: 0 | M44: =(((J44*Database!$U$3)+(K44*Database!$V$3)+(L44*Database!$W$3))*I44) -> 0 | N44: 80 | O44: =COUNTIFS(Output!$I$5:$I$36,Indoor!A44,Output!$H$6:$H$37,Indoor!N44) -> 0 | P44: 0 | Q44: 0 | R44: 0 | S44: =(((P44*Database!$U$3)+(Q44*Database!$V$3)+(R44*Database!$W$3))*O44) -> 0 | T44: 80 | U44: =COUNTIFS(Output!$K$5:$K$36,Indoor!A44,Output!$J$6:$J$37,Indoor!T44) -> 0 | V44: 0 | W44: 0 | X44: 0 | Y44: =(((V44*Database!$U$3)+(W44*Database!$V$3)+(X44*Database!$W$3))*U44) -> 0 | Z44: 80 | AA44: =COUNTIFS(Output!$M$5:$M$36,Indoor!A44,Output!$L$6:$L$37,Indoor!Z44) -> 0 | AB44: 0 | AC44: 0 | AD44: 0 | AE44: =(((AB44*Database!$U$3)+(AC44*Database!$V$3)+(AD44*Database!$W$3))*AA44) -> 0 | AF44: 80 | AG44: =COUNTIFS(Output!$O$5:$O$36,Indoor!A44,Output!$N$6:$N$37,Indoor!AF44) -> 0 | AH44: 0 | AI44: 0 | AJ44: 0 | AK44: =(((AH44*Database!$U$3)+(AI44*Database!$V$3)+(AJ44*Database!$W$3))*AG44) -> 0 | AL44: 80 | AM44: =COUNTIFS(Output!$Q$5:$Q$36,Indoor!A44,Output!$P$6:$P$37,Indoor!AL44) -> 0 | AN44: 0 | AO44: 0 | AP44: 0 | AQ44: =(((AN44*Database!$U$3)+(AO44*Database!$V$3)+(AP44*Database!$W$3))*AM44) -> 0 | AR44: 80 | AS44: =COUNTIFS(Output!$S$5:$S$36,Indoor!A44,Output!$R$6:$R$37,Indoor!AR44) -> 0 | AT44: 0 | AU44: 0 | AV44: 0 | AW44: =(((AT44*Database!$U$3)+(AU44*Database!$V$3)+(AV44*Database!$W$3))*AS44) -> 0 | AX44: 80 | AY44: =COUNTIFS(Output!$U$5:$U$36,Indoor!A44,Output!$T$6:$T$37,Indoor!AX44) -> 0 | AZ44: 0 | BA44: 0 | BB44: 0 | BC44: =(((AZ44*Database!$U$3)+(BA44*Database!$V$3)+(BB44*Database!$W$3))*AY44) -> 0 | BD44: 80 | BE44: =COUNTIFS(Output!$W$5:$W$36,Indoor!A44,Output!$V$6:$V$37,Indoor!BD44) -> 0 | BF44: 0 | BG44: 0 | BH44: 0 | BI44: =(((BF44*Database!$U$3)+(BG44*Database!$V$3)+(BH44*Database!$W$3))*BE44) -> 0 | BJ44: 0
A45: =Lists!$F$5 -> Ceiling Suspended | B45: 100 | C45: =COUNTIFS(Output!$E$5:$E$36,Indoor!A45,Output!$D$6:$D$37,Indoor!B45) -> 1 | D45: 0.19 | E45: 0.19 | F45: 0.19 | G45: =(((D45*Database!$U$3)+(E45*Database!$V$3)+(F45*Database!$W$3))*C45) -> 170.905 | H45: 100 | I45: =COUNTIFS(Output!$G$5:$G$36,Indoor!A45,Output!$F$6:$F$37,Indoor!H45) -> 0 | J45: 0.19 | K45: 0.19 | L45: 0.19 | M45: =(((J45*Database!$U$3)+(K45*Database!$V$3)+(L45*Database!$W$3))*I45) -> 0 | N45: 100 | O45: =COUNTIFS(Output!$I$5:$I$36,Indoor!A45,Output!$H$6:$H$37,Indoor!N45) -> 0 | P45: 0.19 | Q45: 0.19 | R45: 0.19 | S45: =(((P45*Database!$U$3)+(Q45*Database!$V$3)+(R45*Database!$W$3))*O45) -> 0 | T45: 100 | U45: =COUNTIFS(Output!$K$5:$K$36,Indoor!A45,Output!$J$6:$J$37,Indoor!T45) -> 0 | V45: 0.19 | W45: 0.19 | X45: 0.19 | Y45: =(((V45*Database!$U$3)+(W45*Database!$V$3)+(X45*Database!$W$3))*U45) -> 0 | Z45: 100 | AA45: =COUNTIFS(Output!$M$5:$M$36,Indoor!A45,Output!$L$6:$L$37,Indoor!Z45) -> 0 | AB45: 0.19 | AC45: 0.19 | AD45: 0.19 | AE45: =(((AB45*Database!$U$3)+(AC45*Database!$V$3)+(AD45*Database!$W$3))*AA45) -> 0 | AF45: 100 | AG45: =COUNTIFS(Output!$O$5:$O$36,Indoor!A45,Output!$N$6:$N$37,Indoor!AF45) -> 0 | AH45: 0.19 | AI45: 0.19 | AJ45: 0.19 | AK45: =(((AH45*Database!$U$3)+(AI45*Database!$V$3)+(AJ45*Database!$W$3))*AG45) -> 0 | AL45: 100 | AM45: =COUNTIFS(Output!$Q$5:$Q$36,Indoor!A45,Output!$P$6:$P$37,Indoor!AL45) -> 0 | AN45: 0.19 | AO45: 0.19 | AP45: 0.19 | AQ45: =(((AN45*Database!$U$3)+(AO45*Database!$V$3)+(AP45*Database!$W$3))*AM45) -> 0 | AR45: 100 | AS45: =COUNTIFS(Output!$S$5:$S$36,Indoor!A45,Output!$R$6:$R$37,Indoor!AR45) -> 0 | AT45: 0.19 | AU45: 0.19 | AV45: 0.19 | AW45: =(((AT45*Database!$U$3)+(AU45*Database!$V$3)+(AV45*Database!$W$3))*AS45) -> 0 | AX45: 100 | AY45: =COUNTIFS(Output!$U$5:$U$36,Indoor!A45,Output!$T$6:$T$37,Indoor!AX45) -> 0 | AZ45: 0.19 | BA45: 0.19 | BB45: 0.19 | BC45: =(((AZ45*Database!$U$3)+(BA45*Database!$V$3)+(BB45*Database!$W$3))*AY45) -> 0 | BD45: 100 | BE45: =COUNTIFS(Output!$W$5:$W$36,Indoor!A45,Output!$V$6:$V$37,Indoor!BD45) -> 0 | BF45: 0.19 | BG45: 0.19 | BH45: 0.19 | BI45: =(((BF45*Database!$U$3)+(BG45*Database!$V$3)+(BH45*Database!$W$3))*BE45) -> 0 | BJ45: 1
A46: =Lists!$F$5 -> Ceiling Suspended | B46: 125 | C46: =COUNTIFS(Output!$E$5:$E$36,Indoor!A46,Output!$D$6:$D$37,Indoor!B46) -> 0 | F46: 0 | G46: =(((D46*Database!$U$3)+(E46*Database!$V$3)+(F46*Database!$W$3))*C46) -> 0 | H46: 125 | I46: =COUNTIFS(Output!$G$5:$G$36,Indoor!A46,Output!$F$6:$F$37,Indoor!H46) -> 0 | J46: 0 | K46: 0 | L46: 0 | M46: =(((J46*Database!$U$3)+(K46*Database!$V$3)+(L46*Database!$W$3))*I46) -> 0 | N46: 125 | O46: =COUNTIFS(Output!$I$5:$I$36,Indoor!A46,Output!$H$6:$H$37,Indoor!N46) -> 0 | P46: 0 | Q46: 0 | R46: 0 | S46: =(((P46*Database!$U$3)+(Q46*Database!$V$3)+(R46*Database!$W$3))*O46) -> 0 | T46: 125 | U46: =COUNTIFS(Output!$K$5:$K$36,Indoor!A46,Output!$J$6:$J$37,Indoor!T46) -> 0 | V46: 0 | W46: 0 | X46: 0 | Y46: =(((V46*Database!$U$3)+(W46*Database!$V$3)+(X46*Database!$W$3))*U46) -> 0 | Z46: 125 | AA46: =COUNTIFS(Output!$M$5:$M$36,Indoor!A46,Output!$L$6:$L$37,Indoor!Z46) -> 0 | AB46: 0 | AC46: 0 | AD46: 0 | AE46: =(((AB46*Database!$U$3)+(AC46*Database!$V$3)+(AD46*Database!$W$3))*AA46) -> 0 | AF46: 125 | AG46: =COUNTIFS(Output!$O$5:$O$36,Indoor!A46,Output!$N$6:$N$37,Indoor!AF46) -> 0 | AH46: 0 | AI46: 0 | AJ46: 0 | AK46: =(((AH46*Database!$U$3)+(AI46*Database!$V$3)+(AJ46*Database!$W$3))*AG46) -> 0 | AL46: 125 | AM46: =COUNTIFS(Output!$Q$5:$Q$36,Indoor!A46,Output!$P$6:$P$37,Indoor!AL46) -> 0 | AN46: 0 | AO46: 0 | AP46: 0 | AQ46: =(((AN46*Database!$U$3)+(AO46*Database!$V$3)+(AP46*Database!$W$3))*AM46) -> 0 | AR46: 125 | AS46: =COUNTIFS(Output!$S$5:$S$36,Indoor!A46,Output!$R$6:$R$37,Indoor!AR46) -> 0 | AT46: 0 | AU46: 0 | AV46: 0 | AW46: =(((AT46*Database!$U$3)+(AU46*Database!$V$3)+(AV46*Database!$W$3))*AS46) -> 0 | AX46: 125 | AY46: =COUNTIFS(Output!$U$5:$U$36,Indoor!A46,Output!$T$6:$T$37,Indoor!AX46) -> 0 | AZ46: 0 | BA46: 0 | BB46: 0 | BC46: =(((AZ46*Database!$U$3)+(BA46*Database!$V$3)+(BB46*Database!$W$3))*AY46) -> 0 | BD46: 125 | BE46: =COUNTIFS(Output!$W$5:$W$36,Indoor!A46,Output!$V$6:$V$37,Indoor!BD46) -> 0 | BF46: 0 | BG46: 0 | BH46: 0 | BI46: =(((BF46*Database!$U$3)+(BG46*Database!$V$3)+(BH46*Database!$W$3))*BE46) -> 0 | BJ46: 0
A47: =Lists!$F$5 -> Ceiling Suspended | B47: 200 | C47: =COUNTIFS(Output!$E$5:$E$36,Indoor!A47,Output!$D$6:$D$37,Indoor!B47) -> 0 | F47: 0 | G47: =(((D47*Database!$U$3)+(E47*Database!$V$3)+(F47*Database!$W$3))*C47) -> 0 | H47: 200 | I47: =COUNTIFS(Output!$G$5:$G$36,Indoor!A47,Output!$F$6:$F$37,Indoor!H47) -> 0 | J47: 0 | K47: 0 | L47: 0 | M47: =(((J47*Database!$U$3)+(K47*Database!$V$3)+(L47*Database!$W$3))*I47) -> 0 | N47: 200 | O47: =COUNTIFS(Output!$I$5:$I$36,Indoor!A47,Output!$H$6:$H$37,Indoor!N47) -> 0 | P47: 0 | Q47: 0 | R47: 0 | S47: =(((P47*Database!$U$3)+(Q47*Database!$V$3)+(R47*Database!$W$3))*O47) -> 0 | T47: 200 | U47: =COUNTIFS(Output!$K$5:$K$36,Indoor!A47,Output!$J$6:$J$37,Indoor!T47) -> 0 | V47: 0 | W47: 0 | X47: 0 | Y47: =(((V47*Database!$U$3)+(W47*Database!$V$3)+(X47*Database!$W$3))*U47) -> 0 | Z47: 200 | AA47: =COUNTIFS(Output!$M$5:$M$36,Indoor!A47,Output!$L$6:$L$37,Indoor!Z47) -> 0 | AB47: 0 | AC47: 0 | AD47: 0 | AE47: =(((AB47*Database!$U$3)+(AC47*Database!$V$3)+(AD47*Database!$W$3))*AA47) -> 0 | AF47: 200 | AG47: =COUNTIFS(Output!$O$5:$O$36,Indoor!A47,Output!$N$6:$N$37,Indoor!AF47) -> 0 | AH47: 0 | AI47: 0 | AJ47: 0 | AK47: =(((AH47*Database!$U$3)+(AI47*Database!$V$3)+(AJ47*Database!$W$3))*AG47) -> 0 | AL47: 200 | AM47: =COUNTIFS(Output!$Q$5:$Q$36,Indoor!A47,Output!$P$6:$P$37,Indoor!AL47) -> 0 | AN47: 0 | AO47: 0 | AP47: 0 | AQ47: =(((AN47*Database!$U$3)+(AO47*Database!$V$3)+(AP47*Database!$W$3))*AM47) -> 0 | AR47: 200 | AS47: =COUNTIFS(Output!$S$5:$S$36,Indoor!A47,Output!$R$6:$R$37,Indoor!AR47) -> 0 | AT47: 0 | AU47: 0 | AV47: 0 | AW47: =(((AT47*Database!$U$3)+(AU47*Database!$V$3)+(AV47*Database!$W$3))*AS47) -> 0 | AX47: 200 | AY47: =COUNTIFS(Output!$U$5:$U$36,Indoor!A47,Output!$T$6:$T$37,Indoor!AX47) -> 0 | AZ47: 0 | BA47: 0 | BB47: 0 | BC47: =(((AZ47*Database!$U$3)+(BA47*Database!$V$3)+(BB47*Database!$W$3))*AY47) -> 0 | BD47: 200 | BE47: =COUNTIFS(Output!$W$5:$W$36,Indoor!A47,Output!$V$6:$V$37,Indoor!BD47) -> 0 | BF47: 0 | BG47: 0 | BH47: 0 | BI47: =(((BF47*Database!$U$3)+(BG47*Database!$V$3)+(BH47*Database!$W$3))*BE47) -> 0 | BJ47: 0
A48: =Lists!$F$5 -> Ceiling Suspended | B48: 250 | C48: =COUNTIFS(Output!$E$5:$E$36,Indoor!A48,Output!$D$6:$D$37,Indoor!B48) -> 0 | F48: 0 | G48: =(((D48*Database!$U$3)+(E48*Database!$V$3)+(F48*Database!$W$3))*C48) -> 0 | H48: 250 | I48: =COUNTIFS(Output!$G$5:$G$36,Indoor!A48,Output!$F$6:$F$37,Indoor!H48) -> 0 | J48: 0 | K48: 0 | L48: 0 | M48: =(((J48*Database!$U$3)+(K48*Database!$V$3)+(L48*Database!$W$3))*I48) -> 0 | N48: 250 | O48: =COUNTIFS(Output!$I$5:$I$36,Indoor!A48,Output!$H$6:$H$37,Indoor!N48) -> 0 | P48: 0 | Q48: 0 | R48: 0 | S48: =(((P48*Database!$U$3)+(Q48*Database!$V$3)+(R48*Database!$W$3))*O48) -> 0 | T48: 250 | U48: =COUNTIFS(Output!$K$5:$K$36,Indoor!A48,Output!$J$6:$J$37,Indoor!T48) -> 0 | V48: 0 | W48: 0 | X48: 0 | Y48: =(((V48*Database!$U$3)+(W48*Database!$V$3)+(X48*Database!$W$3))*U48) -> 0 | Z48: 250 | AA48: =COUNTIFS(Output!$M$5:$M$36,Indoor!A48,Output!$L$6:$L$37,Indoor!Z48) -> 0 | AB48: 0 | AC48: 0 | AD48: 0 | AE48: =(((AB48*Database!$U$3)+(AC48*Database!$V$3)+(AD48*Database!$W$3))*AA48) -> 0 | AF48: 250 | AG48: =COUNTIFS(Output!$O$5:$O$36,Indoor!A48,Output!$N$6:$N$37,Indoor!AF48) -> 0 | AH48: 0 | AI48: 0 | AJ48: 0 | AK48: =(((AH48*Database!$U$3)+(AI48*Database!$V$3)+(AJ48*Database!$W$3))*AG48) -> 0 | AL48: 250 | AM48: =COUNTIFS(Output!$Q$5:$Q$36,Indoor!A48,Output!$P$6:$P$37,Indoor!AL48) -> 0 | AN48: 0 | AO48: 0 | AP48: 0 | AQ48: =(((AN48*Database!$U$3)+(AO48*Database!$V$3)+(AP48*Database!$W$3))*AM48) -> 0 | AR48: 250 | AS48: =COUNTIFS(Output!$S$5:$S$36,Indoor!A48,Output!$R$6:$R$37,Indoor!AR48) -> 0 | AT48: 0 | AU48: 0 | AV48: 0 | AW48: =(((AT48*Database!$U$3)+(AU48*Database!$V$3)+(AV48*Database!$W$3))*AS48) -> 0 | AX48: 250 | AY48: =COUNTIFS(Output!$U$5:$U$36,Indoor!A48,Output!$T$6:$T$37,Indoor!AX48) -> 0 | AZ48: 0 | BA48: 0 | BB48: 0 | BC48: =(((AZ48*Database!$U$3)+(BA48*Database!$V$3)+(BB48*Database!$W$3))*AY48) -> 0 | BD48: 250 | BE48: =COUNTIFS(Output!$W$5:$W$36,Indoor!A48,Output!$V$6:$V$37,Indoor!BD48) -> 0 | BF48: 0 | BG48: 0 | BH48: 0 | BI48: =(((BF48*Database!$U$3)+(BG48*Database!$V$3)+(BH48*Database!$W$3))*BE48) -> 0 | BJ48: 0
C49: =SUM(C38:C48) -> 2 | I49: =SUM(I38:I48) -> 0 | O49: =SUM(O38:O48) -> 0 | U49: =SUM(U38:U48) -> 0 | AA49: =SUM(AA38:AA48) -> 0 | AG49: =SUM(AG38:AG48) -> 0 | AM49: =SUM(AM38:AM48) -> 0 | AS49: =SUM(AS38:AS48) -> 0 | AY49: =SUM(AY38:AY48) -> 0 | BE49: =SUM(BE38:BE48) -> 0
A50: =Lists!$F$7 -> Floor Standing | B50: 20 | C50: =COUNTIFS(Output!$E$5:$E$36,Indoor!A50,Output!$D$6:$D$37,Indoor!B50) -> 0 | F50: 0 | G50: =(((D50*Database!$U$3)+(E50*Database!$V$3)+(F50*Database!$W$3))*C50) -> 0 | H50: 20 | I50: =COUNTIFS(Output!$G$5:$G$36,Indoor!A50,Output!$F$6:$F$37,Indoor!H50) -> 0 | J50: 0 | K50: 0 | L50: 0 | M50: =(((J50*Database!$U$3)+(K50*Database!$V$3)+(L50*Database!$W$3))*I50) -> 0 | N50: 20 | O50: =COUNTIFS(Output!$I$5:$I$36,Indoor!A50,Output!$H$6:$H$37,Indoor!N50) -> 0 | P50: 0 | Q50: 0 | R50: 0 | S50: =(((P50*Database!$U$3)+(Q50*Database!$V$3)+(R50*Database!$W$3))*O50) -> 0 | T50: 20 | U50: =COUNTIFS(Output!$K$5:$K$36,Indoor!A50,Output!$J$6:$J$37,Indoor!T50) -> 0 | V50: 0 | W50: 0 | X50: 0 | Y50: =(((V50*Database!$U$3)+(W50*Database!$V$3)+(X50*Database!$W$3))*U50) -> 0 | Z50: 20 | AA50: =COUNTIFS(Output!$M$5:$M$36,Indoor!A50,Output!$L$6:$L$37,Indoor!Z50) -> 0 | AB50: 0 | AC50: 0 | AD50: 0 | AE50: =(((AB50*Database!$U$3)+(AC50*Database!$V$3)+(AD50*Database!$W$3))*AA50) -> 0 | AF50: 20 | AG50: =COUNTIFS(Output!$O$5:$O$36,Indoor!A50,Output!$N$6:$N$37,Indoor!AF50) -> 0 | AH50: 0 | AI50: 0 | AJ50: 0 | AK50: =(((AH50*Database!$U$3)+(AI50*Database!$V$3)+(AJ50*Database!$W$3))*AG50) -> 0 | AL50: 20 | AM50: =COUNTIFS(Output!$Q$5:$Q$36,Indoor!A50,Output!$P$6:$P$37,Indoor!AL50) -> 0 | AN50: 0 | AO50: 0 | AP50: 0 | AQ50: =(((AN50*Database!$U$3)+(AO50*Database!$V$3)+(AP50*Database!$W$3))*AM50) -> 0 | AR50: 20 | AS50: =COUNTIFS(Output!$S$5:$S$36,Indoor!A50,Output!$R$6:$R$37,Indoor!AR50) -> 0 | AT50: 0 | AU50: 0 | AV50: 0 | AW50: =(((AT50*Database!$U$3)+(AU50*Database!$V$3)+(AV50*Database!$W$3))*AS50) -> 0 | AX50: 20 | AY50: =COUNTIFS(Output!$U$5:$U$36,Indoor!A50,Output!$T$6:$T$37,Indoor!AX50) -> 0 | AZ50: 0 | BA50: 0 | BB50: 0 | BC50: =(((AZ50*Database!$U$3)+(BA50*Database!$V$3)+(BB50*Database!$W$3))*AY50) -> 0 | BD50: 20 | BE50: =COUNTIFS(Output!$W$5:$W$36,Indoor!A50,Output!$V$6:$V$37,Indoor!BD50) -> 0 | BF50: 0 | BG50: 0 | BH50: 0 | BI50: =(((BF50*Database!$U$3)+(BG50*Database!$V$3)+(BH50*Database!$W$3))*BE50) -> 0 | BJ50: =SUM(BE50+AY50+AS50+AM50+AG50+AA50+U50+O50+I50+C50) -> 0
A51: =Lists!$F$7 -> Floor Standing | B51: 25 | C51: =COUNTIFS(Output!$E$5:$E$36,Indoor!A51,Output!$D$6:$D$37,Indoor!B51) -> 0 | D51: 0.044 | E51: 0.044 | F51: 0.044 | G51: =(((D51*Database!$U$3)+(E51*Database!$V$3)+(F51*Database!$W$3))*C51) -> 0 | H51: 25 | I51: =COUNTIFS(Output!$G$5:$G$36,Indoor!A51,Output!$F$6:$F$37,Indoor!H51) -> 0 | J51: 0.044 | K51: 0.044 | L51: 0.044 | M51: =(((J51*Database!$U$3)+(K51*Database!$V$3)+(L51*Database!$W$3))*I51) -> 0 | N51: 25 | O51: =COUNTIFS(Output!$I$5:$I$36,Indoor!A51,Output!$H$6:$H$37,Indoor!N51) -> 0 | P51: 0.044 | Q51: 0.044 | R51: 0.044 | S51: =(((P51*Database!$U$3)+(Q51*Database!$V$3)+(R51*Database!$W$3))*O51) -> 0 | T51: 25 | U51: =COUNTIFS(Output!$K$5:$K$36,Indoor!A51,Output!$J$6:$J$37,Indoor!T51) -> 0 | V51: 0.044 | W51: 0.044 | X51: 0.044 | Y51: =(((V51*Database!$U$3)+(W51*Database!$V$3)+(X51*Database!$W$3))*U51) -> 0 | Z51: 25 | AA51: =COUNTIFS(Output!$M$5:$M$36,Indoor!A51,Output!$L$6:$L$37,Indoor!Z51) -> 0 | AB51: 0.044 | AC51: 0.044 | AD51: 0.044 | AE51: =(((AB51*Database!$U$3)+(AC51*Database!$V$3)+(AD51*Database!$W$3))*AA51) -> 0 | AF51: 25 | AG51: =COUNTIFS(Output!$O$5:$O$36,Indoor!A51,Output!$N$6:$N$37,Indoor!AF51) -> 0 | AH51: 0.044 | AI51: 0.044 | AJ51: 0.044 | AK51: =(((AH51*Database!$U$3)+(AI51*Database!$V$3)+(AJ51*Database!$W$3))*AG51) -> 0 | AL51: 25 | AM51: =COUNTIFS(Output!$Q$5:$Q$36,Indoor!A51,Output!$P$6:$P$37,Indoor!AL51) -> 0 | AN51: 0.044 | AO51: 0.044 | AP51: 0.044 | AQ51: =(((AN51*Database!$U$3)+(AO51*Database!$V$3)+(AP51*Database!$W$3))*AM51) -> 0 | AR51: 25 | AS51: =COUNTIFS(Output!$S$5:$S$36,Indoor!A51,Output!$R$6:$R$37,Indoor!AR51) -> 0 | AT51: 0.044 | AU51: 0.044 | AV51: 0.044 | AW51: =(((AT51*Database!$U$3)+(AU51*Database!$V$3)+(AV51*Database!$W$3))*AS51) -> 0 | AX51: 25 | AY51: =COUNTIFS(Output!$U$5:$U$36,Indoor!A51,Output!$T$6:$T$37,Indoor!AX51) -> 0 | AZ51: 0.044 | BA51: 0.044 | BB51: 0.044 | BC51: =(((AZ51*Database!$U$3)+(BA51*Database!$V$3)+(BB51*Database!$W$3))*AY51) -> 0 | BD51: 25 | BE51: =COUNTIFS(Output!$W$5:$W$36,Indoor!A51,Output!$V$6:$V$37,Indoor!BD51) -> 0 | BF51: 0.044 | BG51: 0.044 | BH51: 0.044 | BI51: =(((BF51*Database!$U$3)+(BG51*Database!$V$3)+(BH51*Database!$W$3))*BE51) -> 0 | BJ51: 0
A52: =Lists!$F$7 -> Floor Standing | B52: 31.25 | C52: =COUNTIFS(Output!$E$5:$E$36,Indoor!A52,Output!$D$6:$D$37,Indoor!B52) -> 0 | F52: 0 | G52: =(((D52*Database!$U$3)+(E52*Database!$V$3)+(F52*Database!$W$3))*C52) -> 0 | H52: 31.25 | I52: =COUNTIFS(Output!$G$5:$G$36,Indoor!A52,Output!$F$6:$F$37,Indoor!H52) -> 0 | J52: 0 | K52: 0 | L52: 0 | M52: =(((J52*Database!$U$3)+(K52*Database!$V$3)+(L52*Database!$W$3))*I52) -> 0 | N52: 31.25 | O52: =COUNTIFS(Output!$I$5:$I$36,Indoor!A52,Output!$H$6:$H$37,Indoor!N52) -> 0 | P52: 0 | Q52: 0 | R52: 0 | S52: =(((P52*Database!$U$3)+(Q52*Database!$V$3)+(R52*Database!$W$3))*O52) -> 0 | T52: 31.25 | U52: =COUNTIFS(Output!$K$5:$K$36,Indoor!A52,Output!$J$6:$J$37,Indoor!T52) -> 0 | V52: 0 | W52: 0 | X52: 0 | Y52: =(((V52*Database!$U$3)+(W52*Database!$V$3)+(X52*Database!$W$3))*U52) -> 0 | Z52: 31.25 | AA52: =COUNTIFS(Output!$M$5:$M$36,Indoor!A52,Output!$L$6:$L$37,Indoor!Z52) -> 0 | AB52: 0 | AC52: 0 | AD52: 0 | AE52: =(((AB52*Database!$U$3)+(AC52*Database!$V$3)+(AD52*Database!$W$3))*AA52) -> 0 | AF52: 31.25 | AG52: =COUNTIFS(Output!$O$5:$O$36,Indoor!A52,Output!$N$6:$N$37,Indoor!AF52) -> 0 | AH52: 0 | AI52: 0 | AJ52: 0 | AK52: =(((AH52*Database!$U$3)+(AI52*Database!$V$3)+(AJ52*Database!$W$3))*AG52) -> 0 | AL52: 31.25 | AM52: =COUNTIFS(Output!$Q$5:$Q$36,Indoor!A52,Output!$P$6:$P$37,Indoor!AL52) -> 0 | AN52: 0 | AO52: 0 | AP52: 0 | AQ52: =(((AN52*Database!$U$3)+(AO52*Database!$V$3)+(AP52*Database!$W$3))*AM52) -> 0 | AR52: 31.25 | AS52: =COUNTIFS(Output!$S$5:$S$36,Indoor!A52,Output!$R$6:$R$37,Indoor!AR52) -> 0 | AT52: 0 | AU52: 0 | AV52: 0 | AW52: =(((AT52*Database!$U$3)+(AU52*Database!$V$3)+(AV52*Database!$W$3))*AS52) -> 0 | AX52: 31.25 | AY52: =COUNTIFS(Output!$U$5:$U$36,Indoor!A52,Output!$T$6:$T$37,Indoor!AX52) -> 0 | AZ52: 0 | BA52: 0 | BB52: 0 | BC52: =(((AZ52*Database!$U$3)+(BA52*Database!$V$3)+(BB52*Database!$W$3))*AY52) -> 0 | BD52: 31.25 | BE52: =COUNTIFS(Output!$W$5:$W$36,Indoor!A52,Output!$V$6:$V$37,Indoor!BD52) -> 0 | BF52: 0 | BG52: 0 | BH52: 0 | BI52: =(((BF52*Database!$U$3)+(BG52*Database!$V$3)+(BH52*Database!$W$3))*BE52) -> 0 | BJ52: 0
A53: =Lists!$F$7 -> Floor Standing | B53: 40 | C53: =COUNTIFS(Output!$E$5:$E$36,Indoor!A53,Output!$D$6:$D$37,Indoor!B53) -> 0 | D53: 0.076 | E53: 0.076 | F53: 0.076 | G53: =(((D53*Database!$U$3)+(E53*Database!$V$3)+(F53*Database!$W$3))*C53) -> 0 | H53: 40 | I53: =COUNTIFS(Output!$G$5:$G$36,Indoor!A53,Output!$F$6:$F$37,Indoor!H53) -> 0 | J53: 0.076 | K53: 0.076 | L53: 0.076 | M53: =(((J53*Database!$U$3)+(K53*Database!$V$3)+(L53*Database!$W$3))*I53) -> 0 | N53: 40 | O53: =COUNTIFS(Output!$I$5:$I$36,Indoor!A53,Output!$H$6:$H$37,Indoor!N53) -> 0 | P53: 0.076 | Q53: 0.076 | R53: 0.076 | S53: =(((P53*Database!$U$3)+(Q53*Database!$V$3)+(R53*Database!$W$3))*O53) -> 0 | T53: 40 | U53: =COUNTIFS(Output!$K$5:$K$36,Indoor!A53,Output!$J$6:$J$37,Indoor!T53) -> 0 | V53: 0.076 | W53: 0.076 | X53: 0.076 | Y53: =(((V53*Database!$U$3)+(W53*Database!$V$3)+(X53*Database!$W$3))*U53) -> 0 | Z53: 40 | AA53: =COUNTIFS(Output!$M$5:$M$36,Indoor!A53,Output!$L$6:$L$37,Indoor!Z53) -> 0 | AB53: 0.076 | AC53: 0.076 | AD53: 0.076 | AE53: =(((AB53*Database!$U$3)+(AC53*Database!$V$3)+(AD53*Database!$W$3))*AA53) -> 0 | AF53: 40 | AG53: =COUNTIFS(Output!$O$5:$O$36,Indoor!A53,Output!$N$6:$N$37,Indoor!AF53) -> 0 | AH53: 0.076 | AI53: 0.076 | AJ53: 0.076 | AK53: =(((AH53*Database!$U$3)+(AI53*Database!$V$3)+(AJ53*Database!$W$3))*AG53) -> 0 | AL53: 40 | AM53: =COUNTIFS(Output!$Q$5:$Q$36,Indoor!A53,Output!$P$6:$P$37,Indoor!AL53) -> 0 | AN53: 0.076 | AO53: 0.076 | AP53: 0.076 | AQ53: =(((AN53*Database!$U$3)+(AO53*Database!$V$3)+(AP53*Database!$W$3))*AM53) -> 0 | AR53: 40 | AS53: =COUNTIFS(Output!$S$5:$S$36,Indoor!A53,Output!$R$6:$R$37,Indoor!AR53) -> 0 | AT53: 0.076 | AU53: 0.076 | AV53: 0.076 | AW53: =(((AT53*Database!$U$3)+(AU53*Database!$V$3)+(AV53*Database!$W$3))*AS53) -> 0 | AX53: 40 | AY53: =COUNTIFS(Output!$U$5:$U$36,Indoor!A53,Output!$T$6:$T$37,Indoor!AX53) -> 0 | AZ53: 0.076 | BA53: 0.076 | BB53: 0.076 | BC53: =(((AZ53*Database!$U$3)+(BA53*Database!$V$3)+(BB53*Database!$W$3))*AY53) -> 0 | BD53: 40 | BE53: =COUNTIFS(Output!$W$5:$W$36,Indoor!A53,Output!$V$6:$V$37,Indoor!BD53) -> 0 | BF53: 0.076 | BG53: 0.076 | BH53: 0.076 | BI53: =(((BF53*Database!$U$3)+(BG53*Database!$V$3)+(BH53*Database!$W$3))*BE53) -> 0 | BJ53: 0
A54: =Lists!$F$7 -> Floor Standing | B54: 50 | C54: =COUNTIFS(Output!$E$5:$E$36,Indoor!A54,Output!$D$6:$D$37,Indoor!B54) -> 0 | F54: 0 | G54: =(((D54*Database!$U$3)+(E54*Database!$V$3)+(F54*Database!$W$3))*C54) -> 0 | H54: 50 | I54: =COUNTIFS(Output!$G$5:$G$36,Indoor!A54,Output!$F$6:$F$37,Indoor!H54) -> 0 | J54: 0 | K54: 0 | L54: 0 | M54: =(((J54*Database!$U$3)+(K54*Database!$V$3)+(L54*Database!$W$3))*I54) -> 0 | N54: 50 | O54: =COUNTIFS(Output!$I$5:$I$36,Indoor!A54,Output!$H$6:$H$37,Indoor!N54) -> 0 | P54: 0 | Q54: 0 | R54: 0 | S54: =(((P54*Database!$U$3)+(Q54*Database!$V$3)+(R54*Database!$W$3))*O54) -> 0 | T54: 50 | U54: =COUNTIFS(Output!$K$5:$K$36,Indoor!A54,Output!$J$6:$J$37,Indoor!T54) -> 0 | V54: 0 | W54: 0 | X54: 0 | Y54: =(((V54*Database!$U$3)+(W54*Database!$V$3)+(X54*Database!$W$3))*U54) -> 0 | Z54: 50 | AA54: =COUNTIFS(Output!$M$5:$M$36,Indoor!A54,Output!$L$6:$L$37,Indoor!Z54) -> 0 | AB54: 0 | AC54: 0 | AD54: 0 | AE54: =(((AB54*Database!$U$3)+(AC54*Database!$V$3)+(AD54*Database!$W$3))*AA54) -> 0 | AF54: 50 | AG54: =COUNTIFS(Output!$O$5:$O$36,Indoor!A54,Output!$N$6:$N$37,Indoor!AF54) -> 0 | AH54: 0 | AI54: 0 | AJ54: 0 | AK54: =(((AH54*Database!$U$3)+(AI54*Database!$V$3)+(AJ54*Database!$W$3))*AG54) -> 0 | AL54: 50 | AM54: =COUNTIFS(Output!$Q$5:$Q$36,Indoor!A54,Output!$P$6:$P$37,Indoor!AL54) -> 0 | AN54: 0 | AO54: 0 | AP54: 0 | AQ54: =(((AN54*Database!$U$3)+(AO54*Database!$V$3)+(AP54*Database!$W$3))*AM54) -> 0 | AR54: 50 | AS54: =COUNTIFS(Output!$S$5:$S$36,Indoor!A54,Output!$R$6:$R$37,Indoor!AR54) -> 0 | AT54: 0 | AU54: 0 | AV54: 0 | AW54: =(((AT54*Database!$U$3)+(AU54*Database!$V$3)+(AV54*Database!$W$3))*AS54) -> 0 | AX54: 50 | AY54: =COUNTIFS(Output!$U$5:$U$36,Indoor!A54,Output!$T$6:$T$37,Indoor!AX54) -> 0 | AZ54: 0 | BA54: 0 | BB54: 0 | BC54: =(((AZ54*Database!$U$3)+(BA54*Database!$V$3)+(BB54*Database!$W$3))*AY54) -> 0 | BD54: 50 | BE54: =COUNTIFS(Output!$W$5:$W$36,Indoor!A54,Output!$V$6:$V$37,Indoor!BD54) -> 0 | BF54: 0 | BG54: 0 | BH54: 0 | BI54: =(((BF54*Database!$U$3)+(BG54*Database!$V$3)+(BH54*Database!$W$3))*BE54) -> 0 | BJ54: 0
A55: =Lists!$F$7 -> Floor Standing | B55: 63 | C55: =COUNTIFS(Output!$E$5:$E$36,Indoor!A55,Output!$D$6:$D$37,Indoor!B55) -> 0 | D55: 0.109 | E55: 0.109 | F55: 0.109 | G55: =(((D55*Database!$U$3)+(E55*Database!$V$3)+(F55*Database!$W$3))*C55) -> 0 | H55: 63 | I55: =COUNTIFS(Output!$G$5:$G$36,Indoor!A55,Output!$F$6:$F$37,Indoor!H55) -> 0 | J55: 0.109 | K55: 0.109 | L55: 0.109 | M55: =(((J55*Database!$U$3)+(K55*Database!$V$3)+(L55*Database!$W$3))*I55) -> 0 | N55: 63 | O55: =COUNTIFS(Output!$I$5:$I$36,Indoor!A55,Output!$H$6:$H$37,Indoor!N55) -> 0 | P55: 0.109 | Q55: 0.109 | R55: 0.109 | S55: =(((P55*Database!$U$3)+(Q55*Database!$V$3)+(R55*Database!$W$3))*O55) -> 0 | T55: 63 | U55: =COUNTIFS(Output!$K$5:$K$36,Indoor!A55,Output!$J$6:$J$37,Indoor!T55) -> 0 | V55: 0.109 | W55: 0.109 | X55: 0.109 | Y55: =(((V55*Database!$U$3)+(W55*Database!$V$3)+(X55*Database!$W$3))*U55) -> 0 | Z55: 63 | AA55: =COUNTIFS(Output!$M$5:$M$36,Indoor!A55,Output!$L$6:$L$37,Indoor!Z55) -> 0 | AB55: 0.109 | AC55: 0.109 | AD55: 0.109 | AE55: =(((AB55*Database!$U$3)+(AC55*Database!$V$3)+(AD55*Database!$W$3))*AA55) -> 0 | AF55: 63 | AG55: =COUNTIFS(Output!$O$5:$O$36,Indoor!A55,Output!$N$6:$N$37,Indoor!AF55) -> 0 | AH55: 0.109 | AI55: 0.109 | AJ55: 0.109 | AK55: =(((AH55*Database!$U$3)+(AI55*Database!$V$3)+(AJ55*Database!$W$3))*AG55) -> 0 | AL55: 63 | AM55: =COUNTIFS(Output!$Q$5:$Q$36,Indoor!A55,Output!$P$6:$P$37,Indoor!AL55) -> 0 | AN55: 0.109 | AO55: 0.109 | AP55: 0.109 | AQ55: =(((AN55*Database!$U$3)+(AO55*Database!$V$3)+(AP55*Database!$W$3))*AM55) -> 0 | AR55: 63 | AS55: =COUNTIFS(Output!$S$5:$S$36,Indoor!A55,Output!$R$6:$R$37,Indoor!AR55) -> 0 | AT55: 0.109 | AU55: 0.109 | AV55: 0.109 | AW55: =(((AT55*Database!$U$3)+(AU55*Database!$V$3)+(AV55*Database!$W$3))*AS55) -> 0 | AX55: 63 | AY55: =COUNTIFS(Output!$U$5:$U$36,Indoor!A55,Output!$T$6:$T$37,Indoor!AX55) -> 0 | AZ55: 0.109 | BA55: 0.109 | BB55: 0.109 | BC55: =(((AZ55*Database!$U$3)+(BA55*Database!$V$3)+(BB55*Database!$W$3))*AY55) -> 0 | BD55: 63 | BE55: =COUNTIFS(Output!$W$5:$W$36,Indoor!A55,Output!$V$6:$V$37,Indoor!BD55) -> 0 | BF55: 0.109 | BG55: 0.109 | BH55: 0.109 | BI55: =(((BF55*Database!$U$3)+(BG55*Database!$V$3)+(BH55*Database!$W$3))*BE55) -> 0 | BJ55: 0
A56: =Lists!$F$7 -> Floor Standing | B56: 80 | C56: =COUNTIFS(Output!$E$5:$E$36,Indoor!A56,Output!$D$6:$D$37,Indoor!B56) -> 0 | F56: 0 | G56: =(((D56*Database!$U$3)+(E56*Database!$V$3)+(F56*Database!$W$3))*C56) -> 0 | H56: 80 | I56: =COUNTIFS(Output!$G$5:$G$36,Indoor!A56,Output!$F$6:$F$37,Indoor!H56) -> 0 | J56: 0 | K56: 0 | L56: 0 | M56: =(((J56*Database!$U$3)+(K56*Database!$V$3)+(L56*Database!$W$3))*I56) -> 0 | N56: 80 | O56: =COUNTIFS(Output!$I$5:$I$36,Indoor!A56,Output!$H$6:$H$37,Indoor!N56) -> 0 | P56: 0 | Q56: 0 | R56: 0 | S56: =(((P56*Database!$U$3)+(Q56*Database!$V$3)+(R56*Database!$W$3))*O56) -> 0 | T56: 80 | U56: =COUNTIFS(Output!$K$5:$K$36,Indoor!A56,Output!$J$6:$J$37,Indoor!T56) -> 0 | V56: 0 | W56: 0 | X56: 0 | Y56: =(((V56*Database!$U$3)+(W56*Database!$V$3)+(X56*Database!$W$3))*U56) -> 0 | Z56: 80 | AA56: =COUNTIFS(Output!$M$5:$M$36,Indoor!A56,Output!$L$6:$L$37,Indoor!Z56) -> 0 | AB56: 0 | AC56: 0 | AD56: 0 | AE56: =(((AB56*Database!$U$3)+(AC56*Database!$V$3)+(AD56*Database!$W$3))*AA56) -> 0 | AF56: 80 | AG56: =COUNTIFS(Output!$O$5:$O$36,Indoor!A56,Output!$N$6:$N$37,Indoor!AF56) -> 0 | AH56: 0 | AI56: 0 | AJ56: 0 | AK56: =(((AH56*Database!$U$3)+(AI56*Database!$V$3)+(AJ56*Database!$W$3))*AG56) -> 0 | AL56: 80 | AM56: =COUNTIFS(Output!$Q$5:$Q$36,Indoor!A56,Output!$P$6:$P$37,Indoor!AL56) -> 0 | AN56: 0 | AO56: 0 | AP56: 0 | AQ56: =(((AN56*Database!$U$3)+(AO56*Database!$V$3)+(AP56*Database!$W$3))*AM56) -> 0 | AR56: 80 | AS56: =COUNTIFS(Output!$S$5:$S$36,Indoor!A56,Output!$R$6:$R$37,Indoor!AR56) -> 0 | AT56: 0 | AU56: 0 | AV56: 0 | AW56: =(((AT56*Database!$U$3)+(AU56*Database!$V$3)+(AV56*Database!$W$3))*AS56) -> 0 | AX56: 80 | AY56: =COUNTIFS(Output!$U$5:$U$36,Indoor!A56,Output!$T$6:$T$37,Indoor!AX56) -> 0 | AZ56: 0 | BA56: 0 | BB56: 0 | BC56: =(((AZ56*Database!$U$3)+(BA56*Database!$V$3)+(BB56*Database!$W$3))*AY56) -> 0 | BD56: 80 | BE56: =COUNTIFS(Output!$W$5:$W$36,Indoor!A56,Output!$V$6:$V$37,Indoor!BD56) -> 0 | BF56: 0 | BG56: 0 | BH56: 0 | BI56: =(((BF56*Database!$U$3)+(BG56*Database!$V$3)+(BH56*Database!$W$3))*BE56) -> 0 | BJ56: 0
A57: =Lists!$F$7 -> Floor Standing | B57: 100 | C57: =COUNTIFS(Output!$E$5:$E$36,Indoor!A57,Output!$D$6:$D$37,Indoor!B57) -> 0 | F57: 0 | G57: =(((D57*Database!$U$3)+(E57*Database!$V$3)+(F57*Database!$W$3))*C57) -> 0 | H57: 100 | I57: =COUNTIFS(Output!$G$5:$G$36,Indoor!A57,Output!$F$6:$F$37,Indoor!H57) -> 0 | J57: 0 | K57: 0 | L57: 0 | M57: =(((J57*Database!$U$3)+(K57*Database!$V$3)+(L57*Database!$W$3))*I57) -> 0 | N57: 100 | O57: =COUNTIFS(Output!$I$5:$I$36,Indoor!A57,Output!$H$6:$H$37,Indoor!N57) -> 0 | P57: 0 | Q57: 0 | R57: 0 | S57: =(((P57*Database!$U$3)+(Q57*Database!$V$3)+(R57*Database!$W$3))*O57) -> 0 | T57: 100 | U57: =COUNTIFS(Output!$K$5:$K$36,Indoor!A57,Output!$J$6:$J$37,Indoor!T57) -> 0 | V57: 0 | W57: 0 | X57: 0 | Y57: =(((V57*Database!$U$3)+(W57*Database!$V$3)+(X57*Database!$W$3))*U57) -> 0 | Z57: 100 | AA57: =COUNTIFS(Output!$M$5:$M$36,Indoor!A57,Output!$L$6:$L$37,Indoor!Z57) -> 0 | AB57: 0 | AC57: 0 | AD57: 0 | AE57: =(((AB57*Database!$U$3)+(AC57*Database!$V$3)+(AD57*Database!$W$3))*AA57) -> 0 | AF57: 100 | AG57: =COUNTIFS(Output!$O$5:$O$36,Indoor!A57,Output!$N$6:$N$37,Indoor!AF57) -> 0 | AH57: 0 | AI57: 0 | AJ57: 0 | AK57: =(((AH57*Database!$U$3)+(AI57*Database!$V$3)+(AJ57*Database!$W$3))*AG57) -> 0 | AL57: 100 | AM57: =COUNTIFS(Output!$Q$5:$Q$36,Indoor!A57,Output!$P$6:$P$37,Indoor!AL57) -> 0 | AN57: 0 | AO57: 0 | AP57: 0 | AQ57: =(((AN57*Database!$U$3)+(AO57*Database!$V$3)+(AP57*Database!$W$3))*AM57) -> 0 | AR57: 100 | AS57: =COUNTIFS(Output!$S$5:$S$36,Indoor!A57,Output!$R$6:$R$37,Indoor!AR57) -> 0 | AT57: 0 | AU57: 0 | AV57: 0 | AW57: =(((AT57*Database!$U$3)+(AU57*Database!$V$3)+(AV57*Database!$W$3))*AS57) -> 0 | AX57: 100 | AY57: =COUNTIFS(Output!$U$5:$U$36,Indoor!A57,Output!$T$6:$T$37,Indoor!AX57) -> 0 | AZ57: 0 | BA57: 0 | BB57: 0 | BC57: =(((AZ57*Database!$U$3)+(BA57*Database!$V$3)+(BB57*Database!$W$3))*AY57) -> 0 | BD57: 100 | BE57: =COUNTIFS(Output!$W$5:$W$36,Indoor!A57,Output!$V$6:$V$37,Indoor!BD57) -> 0 | BF57: 0 | BG57: 0 | BH57: 0 | BI57: =(((BF57*Database!$U$3)+(BG57*Database!$V$3)+(BH57*Database!$W$3))*BE57) -> 0 | BJ57: 0
A58: =Lists!$F$7 -> Floor Standing | B58: 125 | C58: =COUNTIFS(Output!$E$5:$E$36,Indoor!A58,Output!$D$6:$D$37,Indoor!B58) -> 0 | F58: 0 | G58: =(((D58*Database!$U$3)+(E58*Database!$V$3)+(F58*Database!$W$3))*C58) -> 0 | H58: 125 | I58: =COUNTIFS(Output!$G$5:$G$36,Indoor!A58,Output!$F$6:$F$37,Indoor!H58) -> 0 | J58: 0 | K58: 0 | L58: 0 | M58: =(((J58*Database!$U$3)+(K58*Database!$V$3)+(L58*Database!$W$3))*I58) -> 0 | N58: 125 | O58: =COUNTIFS(Output!$I$5:$I$36,Indoor!A58,Output!$H$6:$H$37,Indoor!N58) -> 0 | P58: 0 | Q58: 0 | R58: 0 | S58: =(((P58*Database!$U$3)+(Q58*Database!$V$3)+(R58*Database!$W$3))*O58) -> 0 | T58: 125 | U58: =COUNTIFS(Output!$K$5:$K$36,Indoor!A58,Output!$J$6:$J$37,Indoor!T58) -> 0 | V58: 0 | W58: 0 | X58: 0 | Y58: =(((V58*Database!$U$3)+(W58*Database!$V$3)+(X58*Database!$W$3))*U58) -> 0 | Z58: 125 | AA58: =COUNTIFS(Output!$M$5:$M$36,Indoor!A58,Output!$L$6:$L$37,Indoor!Z58) -> 0 | AB58: 0 | AC58: 0 | AD58: 0 | AE58: =(((AB58*Database!$U$3)+(AC58*Database!$V$3)+(AD58*Database!$W$3))*AA58) -> 0 | AF58: 125 | AG58: =COUNTIFS(Output!$O$5:$O$36,Indoor!A58,Output!$N$6:$N$37,Indoor!AF58) -> 0 | AH58: 0 | AI58: 0 | AJ58: 0 | AK58: =(((AH58*Database!$U$3)+(AI58*Database!$V$3)+(AJ58*Database!$W$3))*AG58) -> 0 | AL58: 125 | AM58: =COUNTIFS(Output!$Q$5:$Q$36,Indoor!A58,Output!$P$6:$P$37,Indoor!AL58) -> 0 | AN58: 0 | AO58: 0 | AP58: 0 | AQ58: =(((AN58*Database!$U$3)+(AO58*Database!$V$3)+(AP58*Database!$W$3))*AM58) -> 0 | AR58: 125 | AS58: =COUNTIFS(Output!$S$5:$S$36,Indoor!A58,Output!$R$6:$R$37,Indoor!AR58) -> 0 | AT58: 0 | AU58: 0 | AV58: 0 | AW58: =(((AT58*Database!$U$3)+(AU58*Database!$V$3)+(AV58*Database!$W$3))*AS58) -> 0 | AX58: 125 | AY58: =COUNTIFS(Output!$U$5:$U$36,Indoor!A58,Output!$T$6:$T$37,Indoor!AX58) -> 0 | AZ58: 0 | BA58: 0 | BB58: 0 | BC58: =(((AZ58*Database!$U$3)+(BA58*Database!$V$3)+(BB58*Database!$W$3))*AY58) -> 0 | BD58: 125 | BE58: =COUNTIFS(Output!$W$5:$W$36,Indoor!A58,Output!$V$6:$V$37,Indoor!BD58) -> 0 | BF58: 0 | BG58: 0 | BH58: 0 | BI58: =(((BF58*Database!$U$3)+(BG58*Database!$V$3)+(BH58*Database!$W$3))*BE58) -> 0 | BJ58: 0
A59: =Lists!$F$7 -> Floor Standing | B59: 200 | C59: =COUNTIFS(Output!$E$5:$E$36,Indoor!A59,Output!$D$6:$D$37,Indoor!B59) -> 0 | F59: 0 | G59: =(((D59*Database!$U$3)+(E59*Database!$V$3)+(F59*Database!$W$3))*C59) -> 0 | H59: 200 | I59: =COUNTIFS(Output!$G$5:$G$36,Indoor!A59,Output!$F$6:$F$37,Indoor!H59) -> 0 | J59: 0 | K59: 0 | L59: 0 | M59: =(((J59*Database!$U$3)+(K59*Database!$V$3)+(L59*Database!$W$3))*I59) -> 0 | N59: 200 | O59: =COUNTIFS(Output!$I$5:$I$36,Indoor!A59,Output!$H$6:$H$37,Indoor!N59) -> 0 | P59: 0 | Q59: 0 | R59: 0 | S59: =(((P59*Database!$U$3)+(Q59*Database!$V$3)+(R59*Database!$W$3))*O59) -> 0 | T59: 200 | U59: =COUNTIFS(Output!$K$5:$K$36,Indoor!A59,Output!$J$6:$J$37,Indoor!T59) -> 0 | V59: 0 | W59: 0 | X59: 0 | Y59: =(((V59*Database!$U$3)+(W59*Database!$V$3)+(X59*Database!$W$3))*U59) -> 0 | Z59: 200 | AA59: =COUNTIFS(Output!$M$5:$M$36,Indoor!A59,Output!$L$6:$L$37,Indoor!Z59) -> 0 | AB59: 0 | AC59: 0 | AD59: 0 | AE59: =(((AB59*Database!$U$3)+(AC59*Database!$V$3)+(AD59*Database!$W$3))*AA59) -> 0 | AF59: 200 | AG59: =COUNTIFS(Output!$O$5:$O$36,Indoor!A59,Output!$N$6:$N$37,Indoor!AF59) -> 0 | AH59: 0 | AI59: 0 | AJ59: 0 | AK59: =(((AH59*Database!$U$3)+(AI59*Database!$V$3)+(AJ59*Database!$W$3))*AG59) -> 0 | AL59: 200 | AM59: =COUNTIFS(Output!$Q$5:$Q$36,Indoor!A59,Output!$P$6:$P$37,Indoor!AL59) -> 0 | AN59: 0 | AO59: 0 | AP59: 0 | AQ59: =(((AN59*Database!$U$3)+(AO59*Database!$V$3)+(AP59*Database!$W$3))*AM59) -> 0 | AR59: 200 | AS59: =COUNTIFS(Output!$S$5:$S$36,Indoor!A59,Output!$R$6:$R$37,Indoor!AR59) -> 0 | AT59: 0 | AU59: 0 | AV59: 0 | AW59: =(((AT59*Database!$U$3)+(AU59*Database!$V$3)+(AV59*Database!$W$3))*AS59) -> 0 | AX59: 200 | AY59: =COUNTIFS(Output!$U$5:$U$36,Indoor!A59,Output!$T$6:$T$37,Indoor!AX59) -> 0 | AZ59: 0 | BA59: 0 | BB59: 0 | BC59: =(((AZ59*Database!$U$3)+(BA59*Database!$V$3)+(BB59*Database!$W$3))*AY59) -> 0 | BD59: 200 | BE59: =COUNTIFS(Output!$W$5:$W$36,Indoor!A59,Output!$V$6:$V$37,Indoor!BD59) -> 0 | BF59: 0 | BG59: 0 | BH59: 0 | BI59: =(((BF59*Database!$U$3)+(BG59*Database!$V$3)+(BH59*Database!$W$3))*BE59) -> 0 | BJ59: 0
